Workbook

Sheet Disclaimer
C3: Whilst efforts have been made to ensure the accuracy of the information contained in this spreadsheet, the content is subject to change and TRL Limited, UK Foreign, Commonwealth, Foreign and Development Office (FCDO), and DT Global and their affiliated organisations cannot guarantee its accuracy or currency. The right is reserved to make changes to the contents without notice. TRL Limited, UK Foreign, Commonwealth, Foreign and Development Office (FCDO), and DT Global and their affiliated organisations do not accept any liability for any direct, indirect, incidental or consequential losses arising from the the use of this tool. By using this tool, you are deemed to have consented to these conditions.
C21: This spreadsheet was designed by Andrew Otto and and programmed by Chris Collis. For queries please email aotto@trl.co.uk or enquiries@trl.co.uk

Sheet 0 Front
B11: INSTRUCTIONS
B12: Legend
C13: Use green cells to import data
C14: Use blue cells to input and iterate results to get values.
C15: Contains formulae. DO NOT INPUT ANY VALUES
C16: DO NOT TAMPER WITH
B18: Tab Number | C18: Name | D18: Description and use
B19: 1 | C19: ADT Direction 1 | D19: Use this for Direction 1 of your design section (e.g. Left-Hand Side). Enter the Average Daily Truck Traffic (ADTT) from the traffic counts, diverted and generated traffic factors. Enter the seasonal and grossing factors here as well. You can rename the vehicle types to match with your country/regional nomenclature.
B20: 2 | C20: Axle Loads Direction 1 | D20: Use this to input the raw axle loads (in tonnes) for individual trucks weighed in Direction 1
B21: 3 | C21: Design MESA Direction 1 | D21: Use this to compute the MESA in Direction 1. Input the growth rates for each truck type, design periods (in years). As an alternative, if you already have the ESA per truck type and the ADTT for each truck type, you can input these in the lower part of the tab.
B22: 4 | C22: ADT Direction 2 | D22: Use this for Direction 2 of your design section (e.g. Right-Hand Side). Enter the Average Daily Truck Traffic (ADTT) from the traffic counts, diverted and generated traffic factors. Enter the seasonal and grossing factors here as well. You can rename the vehicle types to match with your country/regional nomenclature.
B23: 5 | C23: Axle Loads Direction 2 | D23: Use this to input the raw axle loads (in tonnes) for individual trucks weighed in Direction 2
B24: 6 | C24: Design MESA Direction 2 | D24: Use this to compute the MESA in Direction 2. Input the growth rates for each truck type, design periods (in years). As an alternative, if you already have the ESA per truck type and the ADTT for each truck type, you can input these in the lower part of the tab.
B25: 7 | C25: ADT Direction 1-SS | D25: Similar to Tab 1 BUT use only if you your truck classification takes into account axle configurations (e.g. tandems, tridems) and tyre tyepes (dual tyres or single tyres). See RN 31 Chapter 2 for further details or Row 1009-1025 in the tab. After inputing the axle loads, the truck class must be selected from the drop-down list for each row.
B26: 8 | C26: Axle Loads Direction 1-SS | D26: Similar to Tab 2 BUT use only if you your truck classification takes into account axle configurations (e.g. tandems, tridems) and tyre tyepes (dual tyres or single tyres). See RN 31 Chapter 2 for further details.
B27: 9 | C27: Design MESA Direction 1-SS | D27: Similar to Tab 3 BUT use only if you your truck classification takes into account axle configurations (e.g. tandems, tridems) and tyre tyepes (dual tyres or single tyres). See RN 31 Chapter 2 for further details.
B28: 10 | C28: ADT Direction 2-SS | D28: Similar to Tab 4 BUT use only if you your truck classification takes into account axle configurations (e.g. tandems, tridems) and tyre tyepes (dual tyres or single tyres). See RN 31 Chapter 2 for further details or Row 1009-1025 in the tab.
B29: 11 | C29: Axle Loads Direction 2-SS | D29: Similar to Tab 5 BUT use only if you your truck classification takes into account axle configurations (e.g. tandems, tridems) and tyre tyepes (dual tyres or single tyres). See RN 31 Chapter 2 for further details. After inputing the axle loads, the truck class must be selected from the drop-down list for each row.
B30: 12 | C30: Design MESA Direction 2-SS | D30: Similar to Tab 6 BUT use only if you your truck classification takes into account axle configurations (e.g. tandems, tridems) and tyre tyepes (dual tyres or single tyres). See RN 31 Chapter 2 for further details.
B31: 13 | C31: Uniform Sections-CUSUMs | D31: Use this to determine uniform design sections. Input the CBR values, or rut depth/deflection (for rehabilitation) or other property by chainage. Then use the CUSUMS graph to delineate unifrom sections. Check that the coefficient of variation is within acceptable limits. (See RN 31 Chapter 3 and 11 for details)
B32: 14 | C32: Flexible Pavement Structure | D32: Use this to generate flexible pavement options for selection. Options can only be generated for one section at a time. Input the subgrade CBR by chainage for the uniform section under consideration (determined from Tab 13). Input the required level of reliability (80% to 95%), select the required foundation class for design. Then the pavement structure options will be generated automatically. The option for use in the project can then be decided on economic basis or other criteria. Repeat for other uniform sections.
B33: 15 | C33: Flexible Pavement Struct 2 | D33: Similar to Tab 14, BUT use if you already know the design traffic and subgrade or foundation class from another source. Enter these into the respective cells.
B34: 16 | C34: Axle Loads Concrete Dir-1 | D34: This is similar to Tab 8, BUT it applies only to concrete pavements. It must be filled in, if concrete pavement design is to be undertaken. You can rename the vehicle classification and types to match your country or region classification. Do this in Row 1010 to 1026 in the tab.
B35: 17 | C35: Axle Loads Concrete Dir-2 | D35: This is similar to Tab 11, BUT it applies only to concrete pavements. It must be filled in, if concrete pavement design is to be undertaken. You can rename the vehicle classification and types to match your country or region classification. Do this in Row 1010 to 1026 in the tab.
B36: 18 | C36: Concrete HVAG Dir-1 | D36: Use this for the computation of HVAGs (see Chapter 10 for details) for Direction 1 (e.g. LHS). Input the growth rates for each truck type, design periods (in years). As an alternative, if you already have the ADTT for each truck type, you can input these in the lower part of the tab. You can rename the vehicle classes to match your country/region classification.
B37: 19 | C37: Concrete HVAG Dir-2 | D37: Use this for the computation of HVAGs (see Chapter 10 for details) for Direction 2 (e.g. RHS). Input the growth rates for each truck type, design periods (in years). As an alternative, if you already have the ADTT for each truck type, you can input these in the lower part of the tab.
B38: 20 | C38: Concrete Pavement-Undowelled | D38: Use this to design slab thickness and reinforcement for UNDOWELLED concrete pavements. Input subgrade CBR for the uniform section, select the sub-base type, select the reliability level, then use trial values of slab thickness in the blue cell until each of "the sum of damages" is as close as possible to 100% - but not greater. Once the slab thickness has been selected, design the reinforrcement using subsequent cells.
B39: 21 | C39: Concrete Pavement-CRCP+Dowel | D39: Use this to design slab thickness and reinforcement for DOWELLED concrete pavements. Input subgrade CBR for the uniform section, select the sub-base type, select the reliability level, then use trial values of slab thickness in the blue cell until each of "the sum of damages" is as close as possible to 100% - but not greater. Once the slab thickness has been selected, design the reinforrcement using subsequent cells.
B40: 22 | C40: Concrete Catalogue+Cons | D40: This is a catalogue for concrete pavement design+ construction thickness tolerance added (without the need for iterative design)
B41: 23 | C41: Table A | D41: DO NOT TAMPER - contains import tables used by other tabs
B42: 24 | C42: Table B | D42: DO NOT TAMPER - contains import tables used by other tabs
B43: 25 | C43: ORN 18 Diagnosis | D43: SEE SEPARATE SPREADSHEET FILE. Use this for the diagnosis of the cause of defects while undertaking rehabilitation design. Follow the drop-down lists until the end and the likely cause of defect will be generated. Refer to RN 31 Chapter 11 for solutions to adopt.
B44: 26 | C44: VCS Form | D44: This is a form to be printed out for conducting visual condition surveys. Your roads authority may have their own.
B45: 27 | C45: Traffic Tally Form | D45: Print this for use in conducting traffic counts (without classifying vehicles depending on axle and tyre configurations)
B46: 28 | C46: Traffic Tally Form-SS | D46: Print this for use in conducting traffic counts (classifying vehicles depending on axle and tyre configurations)
B47: 29 | C47: Axle Load Survey Form | D47: Print this for use in conducting axle load surveys OR use to prepare data for Sheet 2 or 5 (ignoring Supersingles)
B48: 30 | C48: Axle Load Survey Form-SS | D48: Print this for use in conducting axle load surveys OR use to prepare data for Sheet 8 or 11 (For Supersingles)
B51: This spreadsheet was designed by Andrew Otto and and programmed by Chris Collis. For queries please email aotto@trl.co.uk or enquiries@trl.co.uk

Sheet 1 ADT Direction 1
A1: Summary Traffic Count in Direction 1
A4: VEHICLE | B4: Medium Truck (2 Axles) - Type 2 | C4: Heavy Truck (3 Axles) - Type 3 | D4: Heavy Truck (4 Axles) - Type 4 | E4: Semi-Trailers (5 Axles) - Type 5 | F4: Semi-Trailers (6 Axles) - Type 6 | G4: Trailers (7 Axles) - Type 7 | H4: Trailers (9 Axles) - Type 9 | I4: DAILY averages | L4: Computation of 24 hr Average Night Expansion Factor (Weekday) | T4: Computation of 24 hr Average Night Expansion Factor (Weekend)
A5: Vehicle Class | B5: 2 | C5: 3 | D5: 4 | E5: 5 | F5: 6 | G5: 7 | H5: 9 | L5: Full day count on day of 24 hr count | R5: 300 | T5: Full day count on day of 24 hr count | Z5: 300
A6: Date | L6: Vehicle number on the 24 hr count day, corresponding to the same counting period for day that requires grossing | R6: 250 | T6: Vehicle number on the 24 hr count day, corresponding to the same counting period for day that requires grossing | Z6: 250
A7: ADTT (Weekday) (Less than 24 hrs) | B7: 20 | C7: 20 | D7: 20 | E7: 20 | F7: 20 | G7: 20 | H7: 20 | I7: =SUM(B7:H7) -> 140 | L7: Grossing Factor | R7: =R5/R6 -> 1.2 | T7: Grossing Factor | Z7: =Z5/Z6 -> 1.2
A8: Full day count on day of 24 hr count | B8: 30 | C8: 30 | D8: 30 | E8: 30 | F8: 30 | G8: 30 | H8: 30 | I8: =SUM(B8:H8) -> 210
A9: Night Expansion Factor | B9: =B8/B7 -> 1.5 | C9: =C8/C7 -> 1.5 | D9: 1.5 | E9: 1.5 | F9: 1.5 | G9: 1.5 | H9: 1.5 | I9: =AVERAGE(B9:H9) -> 1.5
A10: ADTT (Weekday (24 hrs) | B10: =$B$9*B7 -> 30 | C10: =$C$9*C7 -> 30 | D10: =$D$9*D7 -> 30 | E10: =$E$9*E7 -> 30 | F10: =$F$9*F7 -> 30 | G10: =$G$9*G7 -> 30 | H10: =$H$9*H7 -> 30 | I10: =SUM(B10:H10) -> 210
A12: ADTT (Weekend) (Less than 24 hrs) | B12: 20 | C12: 20 | D12: 20 | E12: 20 | F12: 20 | G12: 20 | H12: 20 | I12: =SUM(B12:H12) -> 140 | L12: Lane Split Factor (or directional split if two-lane road and ADTT entered is Total) | R12: 1
A13: Full day count on day of 24 hr count | B13: 30 | C13: 30 | D13: 30 | E13: 30 | F13: 30 | G13: 30 | H13: 30 | I13: =SUM(B13:H13) -> 210
A14: Night Expansion Factor | B14: =B13/B12 -> 1.5 | C14: =C13/C12 -> 1.5 | D14: =D13/D12 -> 1.5 | E14: 1.5 | F14: 1.5 | G14: 1.5 | H14: 1.5 | I14: =AVERAGE(B14:H14) -> 1.5
A15: ADTT (Weekend) (24 hrs) | B15: =$B$14*B12 -> 30 | C15: =$C$14*C12 -> 30 | D15: =$D$14*D12 -> 30 | E15: =$E$14*E12 -> 30 | F15: =$F$14*F12 -> 30 | G15: =$G$14*G12 -> 30 | H15: =$H$14*H12 -> 30 | I15: =SUM(B15:H15) -> 210
A17: ADTT (7-day) | B17: =(B10*5+B15*2)/7 -> 30 | C17: =(C10*5+C15*2)/7 -> 30 | D17: 30 | E17: 30 | F17: 30 | G17: 30 | H17: 30 | I17: =SUM(B17:H17) -> 210
A18: Seasonal Factor | B18: 1.2 | C18: 1.2 | D18: 1.2 | E18: 1.2 | F18: 1.2 | G18: 1.2 | H18: 1.2 | I18: =AVERAGE(B18:H18) -> 1.2
A19: Diverted Traffic Factor | B19: 1.2 | C19: 1.2 | D19: 1.2 | E19: 1.2 | F19: 1.2 | G19: 1.2 | H19: 1.2 | I19: 1.2
A20: Generated Traffic Factor | B20: 1.1 | C20: 1.1 | D20: 1.1 | E20: 1.1 | F20: 1.1 | G20: 1.1 | H20: 1.1 | I20: 1.1
A22: AADTT (Design) | B22: =B17*$R$12*B18*B19*B20 -> 47.52 | C22: =C17*$R$12*C18*C19*C20 -> 47.52 | D22: 47.52 | E22: 47.52 | F22: 47.52 | G22: 47.52 | H22: =H17*$R$12*H18*H19*H20 -> 47.52 | I22: =SUM(B22:H22) -> 332.64

Sheet 2 Axle Loads Direction 1
A1: Computation of design axle loading from axle load survey data
C2: Axle Load (tonnes) | L2: n | M2: 4
A3: Direction | B3: Vehicle Class | C3: Axle 1 | D3: Axle 2 | E3: Axle 3 | F3: Axle 4 | G3: Axle 5 | H3: Axle 6 | I3: Axle 7 | J3: Axle 8 | K3: Axle 9 | L3: Equivalency factor per axle EF = (Axle Load/8.16)^n
L4: Axle 1 | M4: Axle 2 | N4: Axle 3 | O4: Axle 4 | P4: Axle 5 | Q4: Axle 6 | R4: Axle 7 | S4: Axle 8 | T4: Axle 9 | U4: Total EF per vehicle
A5: 1 | B5: 2 | L5: =(C5/8.16)^$M$2 -> 0 | M5: 0 | N5: 0 | O5: 0 | P5: 0 | Q5: 0 | R5: 0 | S5: 0 | T5: 0 | U5: =SUM(L5:T5) -> 0
A6: 1 | B6: 2 | L6: =(C6/8.16)^$M$2 -> 0 | M6: =(D6/8.16)^$M$2 -> 0 | N6: =(E6/8.16)^$M$2 -> 0 | O6: =(F6/8.16)^$M$2 -> 0 | P6: =(G6/8.16)^$M$2 -> 0 | Q6: =(H6/8.16)^$M$2 -> 0 | R6: =(I6/8.16)^$M$2 -> 0 | S6: =(J6/8.16)^$M$2 -> 0 | T6: =(K6/8.16)^$M$2 -> 0 | U6: =SUM(L6:T6) -> 0
A7: 1 | B7: 2 | L7: 0 | M7: 0 | N7: 0 | O7: 0 | P7: 0 | Q7: 0 | R7: 0 | S7: 0 | T7: 0 | U7: 0
A8: 1 | B8: 2 | L8: 0 | M8: 0 | N8: 0 | O8: 0 | P8: 0 | Q8: 0 | R8: 0 | S8: 0 | T8: 0 | U8: 0
A9: 1 | B9: 2 | L9: 0 | M9: 0 | N9: 0 | O9: 0 | P9: 0 | Q9: 0 | R9: 0 | S9: 0 | T9: 0 | U9: 0
A10: 1 | B10: 2 | L10: 0 | M10: 0 | N10: 0 | O10: 0 | P10: 0 | Q10: 0 | R10: 0 | S10: 0 | T10: 0 | U10: 0
A11: 1 | B11: 2 | L11: 0 | M11: 0 | N11: 0 | O11: 0 | P11: 0 | Q11: 0 | R11: 0 | S11: 0 | T11: 0 | U11: 0
A12: 1 | B12: 2 | L12: 0 | M12: 0 | N12: 0 | O12: 0 | P12: 0 | Q12: 0 | R12: 0 | S12: 0 | T12: 0 | U12: 0
A13: 1 | B13: 2 | L13: 0 | M13: 0 | N13: 0 | O13: 0 | P13: 0 | Q13: 0 | R13: 0 | S13: 0 | T13: 0 | U13: 0
A14: 1 | B14: 2 | L14: 0 | M14: 0 | N14: 0 | O14: 0 | P14: 0 | Q14: 0 | R14: 0 | S14: 0 | T14: 0 | U14: 0
A15: 1 | B15: 2 | L15: 0 | M15: 0 | N15: 0 | O15: 0 | P15: 0 | Q15: 0 | R15: 0 | S15: 0 | T15: 0 | U15: 0
A16: 1 | B16: 2 | L16: 0 | M16: 0 | N16: 0 | O16: 0 | P16: 0 | Q16: 0 | R16: 0 | S16: 0 | T16: 0 | U16: 0
A17: 1 | B17: 2 | L17: 0 | M17: 0 | N17: 0 | O17: 0 | P17: 0 | Q17: 0 | R17: 0 | S17: 0 | T17: 0 | U17: 0
A18: 1 | B18: 2 | L18: 0 | M18: 0 | N18: 0 | O18: 0 | P18: 0 | Q18: 0 | R18: 0 | S18: 0 | T18: 0 | U18: 0
A19: 1 | B19: 2 | L19: 0 | M19: 0 | N19: 0 | O19: 0 | P19: 0 | Q19: 0 | R19: 0 | S19: 0 | T19: 0 | U19: 0
A20: 1 | B20: 2 | L20: 0 | M20: 0 | N20: 0 | O20: 0 | P20: 0 | Q20: 0 | R20: 0 | S20: 0 | T20: 0 | U20: 0
A21: 1 | B21: 2 | L21: 0 | M21: 0 | N21: 0 | O21: 0 | P21: 0 | Q21: 0 | R21: 0 | S21: 0 | T21: 0 | U21: 0
A22: 1 | B22: 2 | L22: 0 | M22: 0 | N22: 0 | O22: 0 | P22: 0 | Q22: 0 | R22: 0 | S22: 0 | T22: 0 | U22: 0
A23: 1 | B23: 2 | L23: 0 | M23: 0 | N23: 0 | O23: 0 | P23: 0 | Q23: 0 | R23: 0 | S23: 0 | T23: 0 | U23: 0
A24: 1 | B24: 2 | L24: 0 | M24: 0 | N24: 0 | O24: 0 | P24: 0 | Q24: 0 | R24: 0 | S24: 0 | T24: 0 | U24: 0
A25: 1 | B25: 2 | L25: 0 | M25: 0 | N25: 0 | O25: 0 | P25: 0 | Q25: 0 | R25: 0 | S25: 0 | T25: 0 | U25: 0
A26: 1 | B26: 2 | L26: 0 | M26: 0 | N26: 0 | O26: 0 | P26: 0 | Q26: 0 | R26: 0 | S26: 0 | T26: 0 | U26: 0
A27: 1 | B27: 2 | L27: 0 | M27: 0 | N27: 0 | O27: 0 | P27: 0 | Q27: 0 | R27: 0 | S27: 0 | T27: 0 | U27: 0
A28: 1 | B28: 2 | L28: 0 | M28: 0 | N28: 0 | O28: 0 | P28: 0 | Q28: 0 | R28: 0 | S28: 0 | T28: 0 | U28: 0
A29: 1 | B29: 2 | L29: 0 | M29: 0 | N29: 0 | O29: 0 | P29: 0 | Q29: 0 | R29: 0 | S29: 0 | T29: 0 | U29: 0
A30: 1 | B30: 2 | L30: 0 | M30: 0 | N30: 0 | O30: 0 | P30: 0 | Q30: 0 | R30: 0 | S30: 0 | T30: 0 | U30: 0
A31: 1 | B31: 2 | L31: 0 | M31: 0 | N31: 0 | O31: 0 | P31: 0 | Q31: 0 | R31: 0 | S31: 0 | T31: 0 | U31: 0
A32: 1 | B32: 2 | L32: 0 | M32: 0 | N32: 0 | O32: 0 | P32: 0 | Q32: 0 | R32: 0 | S32: 0 | T32: 0 | U32: 0
A33: 1 | B33: 2 | L33: 0 | M33: 0 | N33: 0 | O33: 0 | P33: 0 | Q33: 0 | R33: 0 | S33: 0 | T33: 0 | U33: 0
A34: 1 | B34: 2 | L34: 0 | M34: 0 | N34: 0 | O34: 0 | P34: 0 | Q34: 0 | R34: 0 | S34: 0 | T34: 0 | U34: 0
A35: 1 | B35: 2 | L35: 0 | M35: 0 | N35: 0 | O35: 0 | P35: 0 | Q35: 0 | R35: 0 | S35: 0 | T35: 0 | U35: 0
A36: 1 | B36: 2 | L36: 0 | M36: 0 | N36: 0 | O36: 0 | P36: 0 | Q36: 0 | R36: 0 | S36: 0 | T36: 0 | U36: 0
A37: 1 | B37: 2 | L37: 0 | M37: 0 | N37: 0 | O37: 0 | P37: 0 | Q37: 0 | R37: 0 | S37: 0 | T37: 0 | U37: 0
A38: 1 | B38: 2 | L38: 0 | M38: 0 | N38: 0 | O38: 0 | P38: 0 | Q38: 0 | R38: 0 | S38: 0 | T38: 0 | U38: 0
A39: 1 | B39: 2 | L39: 0 | M39: 0 | N39: 0 | O39: 0 | P39: 0 | Q39: 0 | R39: 0 | S39: 0 | T39: 0 | U39: 0
A40: 1 | B40: 2 | L40: 0 | M40: 0 | N40: 0 | O40: 0 | P40: 0 | Q40: 0 | R40: 0 | S40: 0 | T40: 0 | U40: 0
A41: 1 | B41: 2 | L41: 0 | M41: 0 | N41: 0 | O41: 0 | P41: 0 | Q41: 0 | R41: 0 | S41: 0 | T41: 0 | U41: 0
A42: 1 | B42: 2 | L42: 0 | M42: 0 | N42: 0 | O42: 0 | P42: 0 | Q42: 0 | R42: 0 | S42: 0 | T42: 0 | U42: 0
A43: 1 | B43: 2 | L43: 0 | M43: 0 | N43: 0 | O43: 0 | P43: 0 | Q43: 0 | R43: 0 | S43: 0 | T43: 0 | U43: 0
A44: 1 | B44: 2 | L44: 0 | M44: 0 | N44: 0 | O44: 0 | P44: 0 | Q44: 0 | R44: 0 | S44: 0 | T44: 0 | U44: 0
A45: 1 | B45: 2 | L45: 0 | M45: 0 | N45: 0 | O45: 0 | P45: 0 | Q45: 0 | R45: 0 | S45: 0 | T45: 0 | U45: 0
A46: 1 | B46: 2 | L46: 0 | M46: 0 | N46: 0 | O46: 0 | P46: 0 | Q46: 0 | R46: 0 | S46: 0 | T46: 0 | U46: 0
A47: 1 | B47: 2 | L47: 0 | M47: 0 | N47: 0 | O47: 0 | P47: 0 | Q47: 0 | R47: 0 | S47: 0 | T47: 0 | U47: 0
A48: 1 | B48: 2 | L48: 0 | M48: 0 | N48: 0 | O48: 0 | P48: 0 | Q48: 0 | R48: 0 | S48: 0 | T48: 0 | U48: 0
A49: 1 | B49: 2 | L49: 0 | M49: 0 | N49: 0 | O49: 0 | P49: 0 | Q49: 0 | R49: 0 | S49: 0 | T49: 0 | U49: 0
A50: 1 | B50: 2 | L50: 0 | M50: 0 | N50: 0 | O50: 0 | P50: 0 | Q50: 0 | R50: 0 | S50: 0 | T50: 0 | U50: 0
A51: 1 | B51: 2 | L51: 0 | M51: 0 | N51: 0 | O51: 0 | P51: 0 | Q51: 0 | R51: 0 | S51: 0 | T51: 0 | U51: 0
A52: 1 | B52: 2 | L52: 0 | M52: 0 | N52: 0 | O52: 0 | P52: 0 | Q52: 0 | R52: 0 | S52: 0 | T52: 0 | U52: 0
A53: 1 | B53: 2 | L53: 0 | M53: 0 | N53: 0 | O53: 0 | P53: 0 | Q53: 0 | R53: 0 | S53: 0 | T53: 0 | U53: 0
A54: 1 | B54: 2 | L54: 0 | M54: 0 | N54: 0 | O54: 0 | P54: 0 | Q54: 0 | R54: 0 | S54: 0 | T54: 0 | U54: 0
A55: 1 | B55: 2 | L55: 0 | M55: 0 | N55: 0 | O55: 0 | P55: 0 | Q55: 0 | R55: 0 | S55: 0 | T55: 0 | U55: 0
A56: 1 | B56: 2 | L56: 0 | M56: 0 | N56: 0 | O56: 0 | P56: 0 | Q56: 0 | R56: 0 | S56: 0 | T56: 0 | U56: 0
A57: 1 | B57: 2 | L57: 0 | M57: 0 | N57: 0 | O57: 0 | P57: 0 | Q57: 0 | R57: 0 | S57: 0 | T57: 0 | U57: 0
A58: 1 | B58: 2 | L58: 0 | M58: 0 | N58: 0 | O58: 0 | P58: 0 | Q58: 0 | R58: 0 | S58: 0 | T58: 0 | U58: 0
A59: 1 | B59: 2 | L59: 0 | M59: 0 | N59: 0 | O59: 0 | P59: 0 | Q59: 0 | R59: 0 | S59: 0 | T59: 0 | U59: 0
A60: 1 | B60: 2 | L60: 0 | M60: 0 | N60: 0 | O60: 0 | P60: 0 | Q60: 0 | R60: 0 | S60: 0 | T60: 0 | U60: 0
A61: 1 | B61: 2 | L61: 0 | M61: 0 | N61: 0 | O61: 0 | P61: 0 | Q61: 0 | R61: 0 | S61: 0 | T61: 0 | U61: 0
A62: 1 | B62: 2 | L62: 0 | M62: 0 | N62: 0 | O62: 0 | P62: 0 | Q62: 0 | R62: 0 | S62: 0 | T62: 0 | U62: 0
A63: 1 | B63: 2 | L63: 0 | M63: 0 | N63: 0 | O63: 0 | P63: 0 | Q63: 0 | R63: 0 | S63: 0 | T63: 0 | U63: 0
A64: 1 | B64: 2 | L64: 0 | M64: 0 | N64: 0 | O64: 0 | P64: 0 | Q64: 0 | R64: 0 | S64: 0 | T64: 0 | U64: 0
A65: 1 | B65: 2 | L65: 0 | M65: 0 | N65: 0 | O65: 0 | P65: 0 | Q65: 0 | R65: 0 | S65: 0 | T65: 0 | U65: 0
A66: 1 | B66: 2 | L66: 0 | M66: 0 | N66: 0 | O66: 0 | P66: 0 | Q66: 0 | R66: 0 | S66: 0 | T66: 0 | U66: 0
A67: 1 | B67: 2 | L67: 0 | M67: 0 | N67: 0 | O67: 0 | P67: 0 | Q67: 0 | R67: 0 | S67: 0 | T67: 0 | U67: 0
A68: 1 | B68: 2 | L68: 0 | M68: 0 | N68: 0 | O68: 0 | P68: 0 | Q68: 0 | R68: 0 | S68: 0 | T68: 0 | U68: 0
A69: 1 | B69: 2 | L69: 0 | M69: 0 | N69: 0 | O69: 0 | P69: 0 | Q69: 0 | R69: 0 | S69: 0 | T69: 0 | U69: 0
A70: 1 | B70: 2 | L70: =(C70/8.16)^$M$2 -> 0 | M70: =(D70/8.16)^$M$2 -> 0 | N70: =(E70/8.16)^$M$2 -> 0 | O70: =(F70/8.16)^$M$2 -> 0 | P70: =(G70/8.16)^$M$2 -> 0 | Q70: =(H70/8.16)^$M$2 -> 0 | R70: =(I70/8.16)^$M$2 -> 0 | S70: =(J70/8.16)^$M$2 -> 0 | T70: =(K70/8.16)^$M$2 -> 0 | U70: =SUM(L70:T70) -> 0
A71: 1 | B71: 2 | L71: 0 | M71: 0 | N71: 0 | O71: 0 | P71: 0 | Q71: 0 | R71: 0 | S71: 0 | T71: 0 | U71: 0
A72: 1 | B72: 2 | L72: 0 | M72: 0 | N72: 0 | O72: 0 | P72: 0 | Q72: 0 | R72: 0 | S72: 0 | T72: 0 | U72: 0
A73: 1 | B73: 2 | L73: 0 | M73: 0 | N73: 0 | O73: 0 | P73: 0 | Q73: 0 | R73: 0 | S73: 0 | T73: 0 | U73: 0
A74: 1 | B74: 2 | L74: 0 | M74: 0 | N74: 0 | O74: 0 | P74: 0 | Q74: 0 | R74: 0 | S74: 0 | T74: 0 | U74: 0
A75: 1 | B75: 2 | L75: 0 | M75: 0 | N75: 0 | O75: 0 | P75: 0 | Q75: 0 | R75: 0 | S75: 0 | T75: 0 | U75: 0
A76: 1 | B76: 2 | L76: 0 | M76: 0 | N76: 0 | O76: 0 | P76: 0 | Q76: 0 | R76: 0 | S76: 0 | T76: 0 | U76: 0
A77: 1 | B77: 2 | L77: 0 | M77: 0 | N77: 0 | O77: 0 | P77: 0 | Q77: 0 | R77: 0 | S77: 0 | T77: 0 | U77: 0
A78: 1 | B78: 2 | L78: 0 | M78: 0 | N78: 0 | O78: 0 | P78: 0 | Q78: 0 | R78: 0 | S78: 0 | T78: 0 | U78: 0
A79: 1 | B79: 2 | L79: 0 | M79: 0 | N79: 0 | O79: 0 | P79: 0 | Q79: 0 | R79: 0 | S79: 0 | T79: 0 | U79: 0
A80: 1 | B80: 2 | L80: 0 | M80: 0 | N80: 0 | O80: 0 | P80: 0 | Q80: 0 | R80: 0 | S80: 0 | T80: 0 | U80: 0
A81: 1 | B81: 2 | L81: 0 | M81: 0 | N81: 0 | O81: 0 | P81: 0 | Q81: 0 | R81: 0 | S81: 0 | T81: 0 | U81: 0
A82: 1 | B82: 2 | L82: 0 | M82: 0 | N82: 0 | O82: 0 | P82: 0 | Q82: 0 | R82: 0 | S82: 0 | T82: 0 | U82: 0
A83: 1 | B83: 2 | L83: 0 | M83: 0 | N83: 0 | O83: 0 | P83: 0 | Q83: 0 | R83: 0 | S83: 0 | T83: 0 | U83: 0
A84: 1 | B84: 2 | L84: 0 | M84: 0 | N84: 0 | O84: 0 | P84: 0 | Q84: 0 | R84: 0 | S84: 0 | T84: 0 | U84: 0
A85: 1 | B85: 2 | L85: 0 | M85: 0 | N85: 0 | O85: 0 | P85: 0 | Q85: 0 | R85: 0 | S85: 0 | T85: 0 | U85: 0
A86: 1 | B86: 2 | L86: 0 | M86: 0 | N86: 0 | O86: 0 | P86: 0 | Q86: 0 | R86: 0 | S86: 0 | T86: 0 | U86: 0
A87: 1 | B87: 2 | L87: 0 | M87: 0 | N87: 0 | O87: 0 | P87: 0 | Q87: 0 | R87: 0 | S87: 0 | T87: 0 | U87: 0
A88: 1 | B88: 2 | L88: 0 | M88: 0 | N88: 0 | O88: 0 | P88: 0 | Q88: 0 | R88: 0 | S88: 0 | T88: 0 | U88: 0
A89: 1 | B89: 2 | L89: 0 | M89: 0 | N89: 0 | O89: 0 | P89: 0 | Q89: 0 | R89: 0 | S89: 0 | T89: 0 | U89: 0
A90: 1 | B90: 2 | L90: 0 | M90: 0 | N90: 0 | O90: 0 | P90: 0 | Q90: 0 | R90: 0 | S90: 0 | T90: 0 | U90: 0
A91: 1 | B91: 2 | L91: 0 | M91: 0 | N91: 0 | O91: 0 | P91: 0 | Q91: 0 | R91: 0 | S91: 0 | T91: 0 | U91: 0
A92: 1 | B92: 2 | L92: 0 | M92: 0 | N92: 0 | O92: 0 | P92: 0 | Q92: 0 | R92: 0 | S92: 0 | T92: 0 | U92: 0
A93: 1 | B93: 2 | L93: 0 | M93: 0 | N93: 0 | O93: 0 | P93: 0 | Q93: 0 | R93: 0 | S93: 0 | T93: 0 | U93: 0
A94: 1 | B94: 2 | L94: 0 | M94: 0 | N94: 0 | O94: 0 | P94: 0 | Q94: 0 | R94: 0 | S94: 0 | T94: 0 | U94: 0
A95: 1 | B95: 2 | L95: 0 | M95: 0 | N95: 0 | O95: 0 | P95: 0 | Q95: 0 | R95: 0 | S95: 0 | T95: 0 | U95: 0
A96: 1 | B96: 2 | L96: 0 | M96: 0 | N96: 0 | O96: 0 | P96: 0 | Q96: 0 | R96: 0 | S96: 0 | T96: 0 | U96: 0
A97: 1 | B97: 2 | L97: 0 | M97: 0 | N97: 0 | O97: 0 | P97: 0 | Q97: 0 | R97: 0 | S97: 0 | T97: 0 | U97: 0
A98: 1 | B98: 2 | L98: 0 | M98: 0 | N98: 0 | O98: 0 | P98: 0 | Q98: 0 | R98: 0 | S98: 0 | T98: 0 | U98: 0
A99: 1 | B99: 2 | L99: 0 | M99: 0 | N99: 0 | O99: 0 | P99: 0 | Q99: 0 | R99: 0 | S99: 0 | T99: 0 | U99: 0
A100: 1 | B100: 2 | L100: 0 | M100: 0 | N100: 0 | O100: 0 | P100: 0 | Q100: 0 | R100: 0 | S100: 0 | T100: 0 | U100: 0
A101: 1 | B101: 2 | L101: 0 | M101: 0 | N101: 0 | O101: 0 | P101: 0 | Q101: 0 | R101: 0 | S101: 0 | T101: 0 | U101: 0
A102: 1 | B102: 2 | L102: 0 | M102: 0 | N102: 0 | O102: 0 | P102: 0 | Q102: 0 | R102: 0 | S102: 0 | T102: 0 | U102: 0
A103: 1 | B103: 2 | L103: 0 | M103: 0 | N103: 0 | O103: 0 | P103: 0 | Q103: 0 | R103: 0 | S103: 0 | T103: 0 | U103: 0
A104: 1 | B104: 2 | L104: 0 | M104: 0 | N104: 0 | O104: 0 | P104: 0 | Q104: 0 | R104: 0 | S104: 0 | T104: 0 | U104: 0
A105: 1 | B105: 2 | L105: 0 | M105: 0 | N105: 0 | O105: 0 | P105: 0 | Q105: 0 | R105: 0 | S105: 0 | T105: 0 | U105: 0
A106: 1 | B106: 2 | L106: 0 | M106: 0 | N106: 0 | O106: 0 | P106: 0 | Q106: 0 | R106: 0 | S106: 0 | T106: 0 | U106: 0
A107: 1 | B107: 2 | L107: 0 | M107: 0 | N107: 0 | O107: 0 | P107: 0 | Q107: 0 | R107: 0 | S107: 0 | T107: 0 | U107: 0
A108: 1 | B108: 2 | L108: 0 | M108: 0 | N108: 0 | O108: 0 | P108: 0 | Q108: 0 | R108: 0 | S108: 0 | T108: 0 | U108: 0
A109: 1 | B109: 2 | L109: 0 | M109: 0 | N109: 0 | O109: 0 | P109: 0 | Q109: 0 | R109: 0 | S109: 0 | T109: 0 | U109: 0
A110: 1 | B110: 2 | L110: 0 | M110: 0 | N110: 0 | O110: 0 | P110: 0 | Q110: 0 | R110: 0 | S110: 0 | T110: 0 | U110: 0
A111: 1 | B111: 2 | L111: 0 | M111: 0 | N111: 0 | O111: 0 | P111: 0 | Q111: 0 | R111: 0 | S111: 0 | T111: 0 | U111: 0
A112: 1 | B112: 2 | L112: 0 | M112: 0 | N112: 0 | O112: 0 | P112: 0 | Q112: 0 | R112: 0 | S112: 0 | T112: 0 | U112: 0
A113: 1 | B113: 2 | L113: 0 | M113: 0 | N113: 0 | O113: 0 | P113: 0 | Q113: 0 | R113: 0 | S113: 0 | T113: 0 | U113: 0
A114: 1 | B114: 2 | L114: 0 | M114: 0 | N114: 0 | O114: 0 | P114: 0 | Q114: 0 | R114: 0 | S114: 0 | T114: 0 | U114: 0
A115: 1 | B115: 2 | L115: 0 | M115: 0 | N115: 0 | O115: 0 | P115: 0 | Q115: 0 | R115: 0 | S115: 0 | T115: 0 | U115: 0
A116: 1 | B116: 2 | L116: 0 | M116: 0 | N116: 0 | O116: 0 | P116: 0 | Q116: 0 | R116: 0 | S116: 0 | T116: 0 | U116: 0
A117: 1 | B117: 2 | L117: 0 | M117: 0 | N117: 0 | O117: 0 | P117: 0 | Q117: 0 | R117: 0 | S117: 0 | T117: 0 | U117: 0
A118: 1 | B118: 2 | L118: 0 | M118: 0 | N118: 0 | O118: 0 | P118: 0 | Q118: 0 | R118: 0 | S118: 0 | T118: 0 | U118: 0
A119: 1 | B119: 2 | L119: 0 | M119: 0 | N119: 0 | O119: 0 | P119: 0 | Q119: 0 | R119: 0 | S119: 0 | T119: 0 | U119: 0
A120: 1 | B120: 2 | L120: 0 | M120: 0 | N120: 0 | O120: 0 | P120: 0 | Q120: 0 | R120: 0 | S120: 0 | T120: 0 | U120: 0
A121: 1 | B121: 2 | L121: 0 | M121: 0 | N121: 0 | O121: 0 | P121: 0 | Q121: 0 | R121: 0 | S121: 0 | T121: 0 | U121: 0
A122: 1 | B122: 2 | L122: 0 | M122: 0 | N122: 0 | O122: 0 | P122: 0 | Q122: 0 | R122: 0 | S122: 0 | T122: 0 | U122: 0
A123: 1 | B123: 2 | L123: 0 | M123: 0 | N123: 0 | O123: 0 | P123: 0 | Q123: 0 | R123: 0 | S123: 0 | T123: 0 | U123: 0
A124: 1 | B124: 2 | L124: 0 | M124: 0 | N124: 0 | O124: 0 | P124: 0 | Q124: 0 | R124: 0 | S124: 0 | T124: 0 | U124: 0
A125: 1 | B125: 2 | L125: 0 | M125: 0 | N125: 0 | O125: 0 | P125: 0 | Q125: 0 | R125: 0 | S125: 0 | T125: 0 | U125: 0
A126: 1 | B126: 2 | L126: 0 | M126: 0 | N126: 0 | O126: 0 | P126: 0 | Q126: 0 | R126: 0 | S126: 0 | T126: 0 | U126: 0
A127: 1 | B127: 2 | L127: 0 | M127: 0 | N127: 0 | O127: 0 | P127: 0 | Q127: 0 | R127: 0 | S127: 0 | T127: 0 | U127: 0
A128: 1 | B128: 2 | L128: 0 | M128: 0 | N128: 0 | O128: 0 | P128: 0 | Q128: 0 | R128: 0 | S128: 0 | T128: 0 | U128: 0
A129: 1 | B129: 2 | L129: 0 | M129: 0 | N129: 0 | O129: 0 | P129: 0 | Q129: 0 | R129: 0 | S129: 0 | T129: 0 | U129: 0
A130: 1 | B130: 2 | L130: 0 | M130: 0 | N130: 0 | O130: 0 | P130: 0 | Q130: 0 | R130: 0 | S130: 0 | T130: 0 | U130: 0
A131: 1 | B131: 2 | L131: 0 | M131: 0 | N131: 0 | O131: 0 | P131: 0 | Q131: 0 | R131: 0 | S131: 0 | T131: 0 | U131: 0
A132: 1 | B132: 2 | L132: 0 | M132: 0 | N132: 0 | O132: 0 | P132: 0 | Q132: 0 | R132: 0 | S132: 0 | T132: 0 | U132: 0
A133: 1 | B133: 2 | L133: 0 | M133: 0 | N133: 0 | O133: 0 | P133: 0 | Q133: 0 | R133: 0 | S133: 0 | T133: 0 | U133: 0
A134: 1 | B134: 2 | L134: =(C134/8.16)^$M$2 -> 0 | M134: =(D134/8.16)^$M$2 -> 0 | N134: =(E134/8.16)^$M$2 -> 0 | O134: =(F134/8.16)^$M$2 -> 0 | P134: =(G134/8.16)^$M$2 -> 0 | Q134: =(H134/8.16)^$M$2 -> 0 | R134: =(I134/8.16)^$M$2 -> 0 | S134: =(J134/8.16)^$M$2 -> 0 | T134: =(K134/8.16)^$M$2 -> 0 | U134: =SUM(L134:T134) -> 0
A135: 1 | B135: 2 | L135: 0 | M135: 0 | N135: 0 | O135: 0 | P135: 0 | Q135: 0 | R135: 0 | S135: 0 | T135: 0 | U135: 0
A136: 1 | B136: 2 | L136: 0 | M136: 0 | N136: 0 | O136: 0 | P136: 0 | Q136: 0 | R136: 0 | S136: 0 | T136: 0 | U136: 0
A137: 1 | B137: 2 | L137: 0 | M137: 0 | N137: 0 | O137: 0 | P137: 0 | Q137: 0 | R137: 0 | S137: 0 | T137: 0 | U137: 0
A138: 1 | B138: 2 | L138: 0 | M138: 0 | N138: 0 | O138: 0 | P138: 0 | Q138: 0 | R138: 0 | S138: 0 | T138: 0 | U138: 0
A139: 1 | B139: 2 | L139: 0 | M139: 0 | N139: 0 | O139: 0 | P139: 0 | Q139: 0 | R139: 0 | S139: 0 | T139: 0 | U139: 0
A140: 1 | B140: 2 | L140: 0 | M140: 0 | N140: 0 | O140: 0 | P140: 0 | Q140: 0 | R140: 0 | S140: 0 | T140: 0 | U140: 0
A141: 1 | B141: 2 | L141: 0 | M141: 0 | N141: 0 | O141: 0 | P141: 0 | Q141: 0 | R141: 0 | S141: 0 | T141: 0 | U141: 0
A142: 1 | B142: 2 | L142: 0 | M142: 0 | N142: 0 | O142: 0 | P142: 0 | Q142: 0 | R142: 0 | S142: 0 | T142: 0 | U142: 0
A143: 1 | B143: 2 | L143: 0 | M143: 0 | N143: 0 | O143: 0 | P143: 0 | Q143: 0 | R143: 0 | S143: 0 | T143: 0 | U143: 0
A144: 1 | B144: 2 | L144: 0 | M144: 0 | N144: 0 | O144: 0 | P144: 0 | Q144: 0 | R144: 0 | S144: 0 | T144: 0 | U144: 0
A145: 1 | B145: 2 | L145: 0 | M145: 0 | N145: 0 | O145: 0 | P145: 0 | Q145: 0 | R145: 0 | S145: 0 | T145: 0 | U145: 0
A146: 1 | B146: 2 | L146: 0 | M146: 0 | N146: 0 | O146: 0 | P146: 0 | Q146: 0 | R146: 0 | S146: 0 | T146: 0 | U146: 0
A147: 1 | B147: 2 | L147: 0 | M147: 0 | N147: 0 | O147: 0 | P147: 0 | Q147: 0 | R147: 0 | S147: 0 | T147: 0 | U147: 0
A148: 1 | B148: 2 | L148: 0 | M148: 0 | N148: 0 | O148: 0 | P148: 0 | Q148: 0 | R148: 0 | S148: 0 | T148: 0 | U148: 0
A149: 1 | B149: 2 | L149: 0 | M149: 0 | N149: 0 | O149: 0 | P149: 0 | Q149: 0 | R149: 0 | S149: 0 | T149: 0 | U149: 0
A150: 1 | B150: 2 | L150: 0 | M150: 0 | N150: 0 | O150: 0 | P150: 0 | Q150: 0 | R150: 0 | S150: 0 | T150: 0 | U150: 0
A151: 1 | B151: 2 | L151: 0 | M151: 0 | N151: 0 | O151: 0 | P151: 0 | Q151: 0 | R151: 0 | S151: 0 | T151: 0 | U151: 0
A152: 1 | B152: 2 | L152: 0 | M152: 0 | N152: 0 | O152: 0 | P152: 0 | Q152: 0 | R152: 0 | S152: 0 | T152: 0 | U152: 0
A153: 1 | B153: 2 | L153: 0 | M153: 0 | N153: 0 | O153: 0 | P153: 0 | Q153: 0 | R153: 0 | S153: 0 | T153: 0 | U153: 0
A154: 1 | B154: 2 | L154: 0 | M154: 0 | N154: 0 | O154: 0 | P154: 0 | Q154: 0 | R154: 0 | S154: 0 | T154: 0 | U154: 0
A155: 1 | B155: 2 | L155: 0 | M155: 0 | N155: 0 | O155: 0 | P155: 0 | Q155: 0 | R155: 0 | S155: 0 | T155: 0 | U155: 0
A156: 1 | B156: 2 | L156: 0 | M156: 0 | N156: 0 | O156: 0 | P156: 0 | Q156: 0 | R156: 0 | S156: 0 | T156: 0 | U156: 0
A157: 1 | B157: 2 | L157: 0 | M157: 0 | N157: 0 | O157: 0 | P157: 0 | Q157: 0 | R157: 0 | S157: 0 | T157: 0 | U157: 0
A158: 1 | B158: 2 | L158: 0 | M158: 0 | N158: 0 | O158: 0 | P158: 0 | Q158: 0 | R158: 0 | S158: 0 | T158: 0 | U158: 0
A159: 1 | B159: 2 | L159: 0 | M159: 0 | N159: 0 | O159: 0 | P159: 0 | Q159: 0 | R159: 0 | S159: 0 | T159: 0 | U159: 0
A160: 1 | B160: 2 | L160: 0 | M160: 0 | N160: 0 | O160: 0 | P160: 0 | Q160: 0 | R160: 0 | S160: 0 | T160: 0 | U160: 0
A161: 1 | B161: 2 | L161: 0 | M161: 0 | N161: 0 | O161: 0 | P161: 0 | Q161: 0 | R161: 0 | S161: 0 | T161: 0 | U161: 0
A162: 1 | B162: 2 | L162: 0 | M162: 0 | N162: 0 | O162: 0 | P162: 0 | Q162: 0 | R162: 0 | S162: 0 | T162: 0 | U162: 0
A163: 1 | B163: 2 | L163: 0 | M163: 0 | N163: 0 | O163: 0 | P163: 0 | Q163: 0 | R163: 0 | S163: 0 | T163: 0 | U163: 0
A164: 1 | B164: 2 | L164: 0 | M164: 0 | N164: 0 | O164: 0 | P164: 0 | Q164: 0 | R164: 0 | S164: 0 | T164: 0 | U164: 0
A165: 1 | B165: 2 | L165: 0 | M165: 0 | N165: 0 | O165: 0 | P165: 0 | Q165: 0 | R165: 0 | S165: 0 | T165: 0 | U165: 0
A166: 1 | B166: 2 | L166: 0 | M166: 0 | N166: 0 | O166: 0 | P166: 0 | Q166: 0 | R166: 0 | S166: 0 | T166: 0 | U166: 0
A167: 1 | B167: 2 | L167: 0 | M167: 0 | N167: 0 | O167: 0 | P167: 0 | Q167: 0 | R167: 0 | S167: 0 | T167: 0 | U167: 0
A168: 1 | B168: 2 | L168: 0 | M168: 0 | N168: 0 | O168: 0 | P168: 0 | Q168: 0 | R168: 0 | S168: 0 | T168: 0 | U168: 0
A169: 1 | B169: 2 | L169: 0 | M169: 0 | N169: 0 | O169: 0 | P169: 0 | Q169: 0 | R169: 0 | S169: 0 | T169: 0 | U169: 0
A170: 1 | B170: 2 | L170: 0 | M170: 0 | N170: 0 | O170: 0 | P170: 0 | Q170: 0 | R170: 0 | S170: 0 | T170: 0 | U170: 0
A171: 1 | B171: 2 | L171: 0 | M171: 0 | N171: 0 | O171: 0 | P171: 0 | Q171: 0 | R171: 0 | S171: 0 | T171: 0 | U171: 0
A172: 1 | B172: 2 | L172: 0 | M172: 0 | N172: 0 | O172: 0 | P172: 0 | Q172: 0 | R172: 0 | S172: 0 | T172: 0 | U172: 0
A173: 1 | B173: 2 | L173: 0 | M173: 0 | N173: 0 | O173: 0 | P173: 0 | Q173: 0 | R173: 0 | S173: 0 | T173: 0 | U173: 0
A174: 1 | B174: 2 | L174: 0 | M174: 0 | N174: 0 | O174: 0 | P174: 0 | Q174: 0 | R174: 0 | S174: 0 | T174: 0 | U174: 0
A175: 1 | B175: 2 | L175: 0 | M175: 0 | N175: 0 | O175: 0 | P175: 0 | Q175: 0 | R175: 0 | S175: 0 | T175: 0 | U175: 0
A176: 1 | B176: 2 | L176: 0 | M176: 0 | N176: 0 | O176: 0 | P176: 0 | Q176: 0 | R176: 0 | S176: 0 | T176: 0 | U176: 0
A177: 1 | B177: 2 | L177: 0 | M177: 0 | N177: 0 | O177: 0 | P177: 0 | Q177: 0 | R177: 0 | S177: 0 | T177: 0 | U177: 0
A178: 1 | B178: 2 | L178: 0 | M178: 0 | N178: 0 | O178: 0 | P178: 0 | Q178: 0 | R178: 0 | S178: 0 | T178: 0 | U178: 0
A179: 1 | B179: 2 | L179: 0 | M179: 0 | N179: 0 | O179: 0 | P179: 0 | Q179: 0 | R179: 0 | S179: 0 | T179: 0 | U179: 0
A180: 1 | B180: 2 | L180: 0 | M180: 0 | N180: 0 | O180: 0 | P180: 0 | Q180: 0 | R180: 0 | S180: 0 | T180: 0 | U180: 0
A181: 1 | B181: 2 | L181: 0 | M181: 0 | N181: 0 | O181: 0 | P181: 0 | Q181: 0 | R181: 0 | S181: 0 | T181: 0 | U181: 0
A182: 1 | B182: 2 | L182: 0 | M182: 0 | N182: 0 | O182: 0 | P182: 0 | Q182: 0 | R182: 0 | S182: 0 | T182: 0 | U182: 0
A183: 1 | B183: 2 | L183: 0 | M183: 0 | N183: 0 | O183: 0 | P183: 0 | Q183: 0 | R183: 0 | S183: 0 | T183: 0 | U183: 0
A184: 1 | B184: 2 | L184: 0 | M184: 0 | N184: 0 | O184: 0 | P184: 0 | Q184: 0 | R184: 0 | S184: 0 | T184: 0 | U184: 0
A185: 1 | B185: 2 | L185: 0 | M185: 0 | N185: 0 | O185: 0 | P185: 0 | Q185: 0 | R185: 0 | S185: 0 | T185: 0 | U185: 0
A186: 1 | B186: 2 | L186: 0 | M186: 0 | N186: 0 | O186: 0 | P186: 0 | Q186: 0 | R186: 0 | S186: 0 | T186: 0 | U186: 0
A187: 1 | B187: 2 | L187: 0 | M187: 0 | N187: 0 | O187: 0 | P187: 0 | Q187: 0 | R187: 0 | S187: 0 | T187: 0 | U187: 0
A188: 1 | B188: 2 | L188: 0 | M188: 0 | N188: 0 | O188: 0 | P188: 0 | Q188: 0 | R188: 0 | S188: 0 | T188: 0 | U188: 0
A189: 1 | B189: 2 | L189: 0 | M189: 0 | N189: 0 | O189: 0 | P189: 0 | Q189: 0 | R189: 0 | S189: 0 | T189: 0 | U189: 0
A190: 1 | B190: 2 | L190: 0 | M190: 0 | N190: 0 | O190: 0 | P190: 0 | Q190: 0 | R190: 0 | S190: 0 | T190: 0 | U190: 0
A191: 1 | B191: 2 | L191: 0 | M191: 0 | N191: 0 | O191: 0 | P191: 0 | Q191: 0 | R191: 0 | S191: 0 | T191: 0 | U191: 0
A192: 1 | B192: 2 | L192: 0 | M192: 0 | N192: 0 | O192: 0 | P192: 0 | Q192: 0 | R192: 0 | S192: 0 | T192: 0 | U192: 0
A193: 1 | B193: 2 | L193: 0 | M193: 0 | N193: 0 | O193: 0 | P193: 0 | Q193: 0 | R193: 0 | S193: 0 | T193: 0 | U193: 0
A194: 1 | B194: 2 | L194: 0 | M194: 0 | N194: 0 | O194: 0 | P194: 0 | Q194: 0 | R194: 0 | S194: 0 | T194: 0 | U194: 0
A195: 1 | B195: 2 | L195: 0 | M195: 0 | N195: 0 | O195: 0 | P195: 0 | Q195: 0 | R195: 0 | S195: 0 | T195: 0 | U195: 0
A196: 1 | B196: 2 | L196: 0 | M196: 0 | N196: 0 | O196: 0 | P196: 0 | Q196: 0 | R196: 0 | S196: 0 | T196: 0 | U196: 0
A197: 1 | B197: 2 | L197: 0 | M197: 0 | N197: 0 | O197: 0 | P197: 0 | Q197: 0 | R197: 0 | S197: 0 | T197: 0 | U197: 0
A198: 1 | B198: 2 | L198: =(C198/8.16)^$M$2 -> 0 | M198: =(D198/8.16)^$M$2 -> 0 | N198: =(E198/8.16)^$M$2 -> 0 | O198: =(F198/8.16)^$M$2 -> 0 | P198: =(G198/8.16)^$M$2 -> 0 | Q198: =(H198/8.16)^$M$2 -> 0 | R198: =(I198/8.16)^$M$2 -> 0 | S198: =(J198/8.16)^$M$2 -> 0 | T198: =(K198/8.16)^$M$2 -> 0 | U198: =SUM(L198:T198) -> 0
A199: 1 | B199: 2 | L199: 0 | M199: 0 | N199: 0 | O199: 0 | P199: 0 | Q199: 0 | R199: 0 | S199: 0 | T199: 0 | U199: 0
A200: 1 | B200: 2 | L200: 0 | M200: 0 | N200: 0 | O200: 0 | P200: 0 | Q200: 0 | R200: 0 | S200: 0 | T200: 0 | U200: 0
... 813 more rows

Sheet 3 Design MESA Direction 1
A1: Computation of design value of Equivalent Standard Axle Loads
A3: Vehicle | B3: Vehicle Class | C3: Average ESA/VEF | D3: AADTT | E3: Load distribution factor between lanes | F3: ESA/day for each category
A4: Medium Truck (2 Axles) - Type 2 | B4: 2 | C4: ='2 Axle Loads Direction 1'!I1010 -> 0 | D4: ='1 ADT Direction 1'!B22 -> 47.52 | E4: 1 | F4: =C4*D4*E4 -> 0
A5: Heavy Truck (3 Axles) - Type 3 | B5: 3 | C5: ='2 Axle Loads Direction 1'!I1011 -> 0 | D5: ='1 ADT Direction 1'!C22 -> 47.52 | E5: 1 | F5: =C5*D5*E5 -> 0
A6: Heavy Truck (4 Axles) - Type 4 | B6: 4 | C6: ='2 Axle Loads Direction 1'!I1012 -> 0 | D6: ='1 ADT Direction 1'!D22 -> 47.52 | E6: 1 | F6: 0
A7: Semi-Trailers (5 Axles) - Type 5 | B7: 5 | C7: ='2 Axle Loads Direction 1'!I1013 -> 0 | D7: ='1 ADT Direction 1'!E22 -> 47.52 | E7: 1 | F7: 0
A8: Semi-Trailers (6 Axles) - Type 6 | B8: 6 | C8: ='2 Axle Loads Direction 1'!I1014 -> 0 | D8: ='1 ADT Direction 1'!F22 -> 47.52 | E8: 1 | F8: 0
A9: Trailers (7 Axles) - Type 7 | B9: 7 | C9: ='2 Axle Loads Direction 1'!I1015 -> 0 | D9: ='1 ADT Direction 1'!G22 -> 47.52 | E9: 1 | F9: 0
A10: Trailers (9 Axles) - Type 9 | B10: 9 | C10: ='2 Axle Loads Direction 1'!I1016 -> 0 | D10: ='1 ADT Direction 1'!H22 -> 47.52 | E10: 1 | F10: 0
A11: a - Total ESA/day (one way) | F11: =SUM(F4:F10) -> 0
H12: Truck Type
A13: Factors | H13: 2 | I13: 3 | J13: 4 | K13: 5 | L13: 6 | M13: 7 | N13: 9
A14: a=current average annual daily traffic loading in ESA/day (one way) in year of count | H14: =F4 -> 0 | I14: =F5 -> 0 | J14: =F6 -> 0 | K14: =F7 -> 0 | L14: =F8 -> 0 | M14: =F9 -> 0 | N14: =F10 -> 0 | O14: Growth Period 1
A15: b=annual growth rate (%) for growth Period 1 | H15: 5 | I15: 5 | J15: 5 | K15: 5 | L15: 5 | M15: 5 | N15: 5
A16: c=design life (years) for growth Period 1 | H16: 10 | I16: 10 | J16: 10 | K16: 10 | L16: 10 | M16: 10 | N16: 10
A17: d=number of years to start of design life for growth Period 1 | H17: 2 | I17: 2 | J17: 2 | K17: 2 | L17: 2 | M17: 2 | N17: 2
A18: a=average annual daily traffic loading in ESA/day (one way) at end of growth Period 1/ beginning of Period 2 | H18: =H14*((1+(H15/100))^(H16+H17)) -> 0 | I18: =I14*((1+(I15/100))^(I16+I17)) -> 0 | J18: 0 | K18: 0 | L18: 0 | M18: 0 | N18: 0 | O18: Growth Period 2
A19: b=annual growth rate (%) for growth Period 2 | H19: 4 | I19: 4 | J19: 4 | K19: 4 | L19: 4 | M19: 4 | N19: 4
A20: c=design life (years) for growth Period 2 | H20: 5 | I20: 5 | J20: 5 | K20: 5 | L20: 5 | M20: 5 | N20: 5
A21: a=average annual daily traffic loading in ESA/day (one way) at end of growth Period 2/ beginning of Period 3 | H21: =H18*((1+(H19/100))^(H20)) -> 0 | I21: =I18*((1+(I19/100))^(I20)) -> 0 | J21: 0 | K21: 0 | L21: 0 | M21: 0 | N21: 0 | O21: Growth Period 3
A22: b=annual growth rate (%) for growth Period 3 | H22: 3 | I22: 3 | J22: 3 | K22: 3 | L22: 3 | M22: 3 | N22: 3
A23: c=design life (years) for growth Period 3 | H23: 5 | I23: 5 | J23: 5 | K23: 5 | L23: 5 | M23: 5 | N23: 5
A24: Total Cummulative ESA by Truck Type (one way) | H24: =(((H14*365*100/H15)*(((1+(H15/100))^(H16+H17))-((1+(H15/100))^H17)))/1000000)+(((H18*365*100/H19)*(((1+(H19/100))^H20)-(1)))/1000000)+(((H21*365*100/H22)*(((1+(H22/100))^H23)-(1)))/1000000) -> 0 | I24: =(((I14*365*100/I15)*(((1+(I15/100))^(I16+I17))-((1+(I15/100))^I17)))/1000000)+(((I18*365*100/I19)*(((1+(I19/100))^I20)-(1)))/1000000)+(((I21*365*100/I22)*(((1+(I22/100))^I23)-(1)))/1000000) -> 0 | J24: 0 | K24: 0 | L24: 0 | M24: 0 | N24: 0 | O24: MESA
A25: Total Cummulative Design MESA (one way) | H25: =SUM(H24:N24) -> 0
A29: Pavement Design MESA Direction 1 | D29: =H25 -> 0 | F29: 51 | G29: If MESA is already known then enter it here
D30: =IF(D29>F29,D29,F29) -> 51
A35: Computation of design value of Equivalent Standard Axle Loads (IF YOU ALREADY HAVE VEF per vehicle class and AADTT OR ADTT)
A37: Vehicle | B37: Vehicle Class | C37: Average ESA/VEF | D37: AADTT/ ADTT | E37: Load distribution factor between lanes | F37: ESA/day for each category
A38: Medium Truck (2 Axles) - Type 2 | B38: 2 | C38: 2 | D38: 0 | E38: 1 | F38: =C38*D38*E38 -> 0
A39: Heavy Truck (3 Axles) - Type 3 | B39: 3 | C39: 3 | D39: 0 | E39: 1 | F39: =C39*D39*E39 -> 0
A40: Heavy Truck (4 Axles) - Type 4 | B40: 4 | C40: 3.8 | D40: 0 | E40: 1 | F40: 0
A41: Semi-Trailers (5 Axles) - Type 5 | B41: 5 | C41: 4.2 | D41: 0 | E41: 1 | F41: 0
A42: Semi-Trailers (6 Axles) - Type 6 | B42: 6 | C42: 6.2 | D42: 0 | E42: 1 | F42: 0
A43: Trailers (7 Axles) - Type 7 | B43: 7 | C43: 6.3 | D43: 0 | E43: 1 | F43: 0
A44: Trailers (9 Axles) - Type 9 | B44: 9 | C44: 6 | D44: 0 | E44: 1 | F44: 0
A45: a - Total ESA/day (one way) | F45: =SUM(F38:F44) -> 0
H46: Truck Type
A47: Factors | H47: 2 | I47: 3 | J47: 4 | K47: 5 | L47: 6 | M47: 7 | N47: 9
A48: a=current average annual daily traffic loading in ESA/day (one way) in year of count | H48: =F38 -> 0 | I48: =F39 -> 0 | J48: =F40 -> 0 | K48: =F41 -> 0 | L48: =F42 -> 0 | M48: =F43 -> 0 | N48: =F44 -> 0 | O48: Growth Period 1
A49: b=annual growth rate (%) for growth Period 1 | H49: 5 | I49: 5 | J49: 5 | K49: 5 | L49: 5 | M49: 5 | N49: 5
A50: c=design life (years) for growth Period 1 | H50: 10 | I50: 10 | J50: 10 | K50: 10 | L50: 10 | M50: 10 | N50: 10
A51: d=number of years to start of design life for growth Period 1 | H51: 2 | I51: 2 | J51: 2 | K51: 2 | L51: 2 | M51: 2 | N51: 2
A52: a=average annual daily traffic loading in ESA/day (one way) at end of growth Period 1/ beginning of Period 2 | H52: =H48*((1+(H49/100))^(H50+H51)) -> 0 | I52: =I48*((1+(I49/100))^(I50+I51)) -> 0 | J52: 0 | K52: 0 | L52: 0 | M52: 0 | N52: 0 | O52: Growth Period 2
A53: b=annual growth rate (%) for growth Period 2 | H53: 4 | I53: 4 | J53: 4 | K53: 4 | L53: 4 | M53: 4 | N53: 4
A54: c=design life (years) for growth Period 2 | H54: 5 | I54: 5 | J54: 5 | K54: 5 | L54: 5 | M54: 5 | N54: 5
A55: a=average annual daily traffic loading in ESA/day (one way) at end of growth Period 2/ beginning of Period 3 | H55: =H52*((1+(H53/100))^(H54)) -> 0 | I55: =I52*((1+(I53/100))^(I54)) -> 0 | J55: 0 | K55: 0 | L55: 0 | M55: 0 | N55: 0 | O55: Growth Period 3
A56: b=annual growth rate (%) for growth Period 3 | H56: 3 | I56: 3 | J56: 3 | K56: 3 | L56: 3 | M56: 3 | N56: 3
A57: c=design life (years) for growth Period 3 | H57: 5 | I57: 5 | J57: 5 | K57: 5 | L57: 5 | M57: 5 | N57: 5
A58: Total Cummulative MESA by Truck Type (one way) | H58: =(((H48*365*100/H49)*(((1+(H49/100))^(H50+H51))-((1+(H49/100))^H51)))/1000000)+(((H52*365*100/H53)*(((1+(H53/100))^H54)-(1)))/1000000)+(((H55*365*100/H56)*(((1+(H56/100))^H57)-(1)))/1000000) -> 0 | I58: =(((I48*365*100/I49)*(((1+(I49/100))^(I50+I51))-((1+(I49/100))^I51)))/1000000)+(((I52*365*100/I53)*(((1+(I53/100))^I54)-(1)))/1000000)+(((I55*365*100/I56)*(((1+(I56/100))^I57)-(1)))/1000000) -> 0 | J58: 0 | K58: 0 | L58: 0 | M58: 0 | N58: 0 | O58: MESA
A59: Total Cummulative Design MESA (one way) | H59: =SUM(H58:N58) -> 0
A62: Pavement Design MESA Direction 1 | D62: =H59 -> 0
A66: Determinant MESA Direction 1 | D66: =IF(D30>D62,D30,D62) -> 51

Sheet 4 ADT Direction 2
A1: Summary Traffic Count in Direction 2
A4: VEHICLE | B4: Medium Truck (2 Axles) - Type 2 | C4: Heavy Truck (3 Axles) - Type 3 | D4: Heavy Truck (4 Axles) - Type 4 | E4: Semi-Trailers (5 Axles) - Type 5 | F4: Semi-Trailers (6 Axles) - Type 6 | G4: Trailers (7 Axles) - Type 7 | H4: Trailers (9 Axles) - Type 9 | I4: DAILY averages | L4: Computation of 24 hr Average Night Expansion Factor (Weekday) | T4: Computation of 24 hr Average Night Expansion Factor (Weekend)
A5: Vehicle Class | B5: 2 | C5: 3 | D5: 4 | E5: 5 | F5: 6 | G5: 7 | H5: 9 | L5: Full day count on day of 24 hr count | R5: 300 | T5: Full day count on day of 24 hr count | Z5: 300
A6: Date | L6: Vehicle number on the 24 hr count day, corresponding to the same counting period for day that requires grossing | R6: 250 | T6: Vehicle number on the 24 hr count day, corresponding to the same counting period for day that requires grossing | Z6: 250
A7: ADTT (Weekday) (Less than 24 hrs) | B7: 20 | C7: 20 | D7: 20 | E7: 20 | F7: 20 | G7: 20 | H7: 20 | I7: =SUM(B7:H7) -> 140 | L7: Grossing Factor | R7: =R5/R6 -> 1.2 | T7: Grossing Factor | Z7: =Z5/Z6 -> 1.2
A8: Full day count on day of 24 hr count | B8: 30 | C8: 30 | D8: 30 | E8: 30 | F8: 30 | G8: 30 | H8: 30 | I8: =SUM(B8:H8) -> 210
A9: Night Expansion Factor | B9: =B8/B7 -> 1.5 | C9: =C8/C7 -> 1.5 | D9: 1.5 | E9: 1.5 | F9: 1.5 | G9: 1.5 | H9: 1.5 | I9: =AVERAGE(B9:H9) -> 1.5
A10: ADTT (Weekday (24 hrs) | B10: =B7*B9 -> 30 | C10: 30 | D10: 30 | E10: 30 | F10: 30 | G10: 30 | H10: 30 | I10: =SUM(B10:H10) -> 210
A12: ADTT (Weekend) (Less than 24 hrs) | B12: 20 | C12: 20 | D12: 20 | E12: 20 | F12: 20 | G12: 20 | H12: 20 | I12: =SUM(B12:H12) -> 140 | L12: Lane Split Factor (or directional split if two-lane road and ADTT entered is Total) | R12: 1
A13: Full day count on day of 24 hr count | B13: 30 | C13: 30 | D13: 30 | E13: 30 | F13: 30 | G13: 30 | H13: 30 | I13: =SUM(B13:H13) -> 210
A14: Night Expansion Factor | B14: =B13/B12 -> 1.5 | C14: =C13/C12 -> 1.5 | D14: =D13/D12 -> 1.5 | E14: =E13/E12 -> 1.5 | F14: =F13/F12 -> 1.5 | G14: =G13/G12 -> 1.5 | H14: =H13/H12 -> 1.5 | I14: =AVERAGE(B14:H14) -> 1.5
A15: ADTT (Weekend) (24 hrs) | B15: =B12*B14 -> 30 | C15: 30 | D15: 30 | E15: 30 | F15: 30 | G15: 30 | H15: 30 | I15: =SUM(B15:H15) -> 210
A17: ADTT (7-day) | B17: =(B10*5+B15*2)/7 -> 30 | C17: =(C10*5+C15*2)/7 -> 30 | D17: 30 | E17: 30 | F17: 30 | G17: 30 | H17: 30 | I17: =SUM(B17:H17) -> 210
A18: Seasonal Factor | B18: 1.2 | C18: 1.2 | D18: 1.2 | E18: 1.2 | F18: 1.2 | G18: 1.2 | H18: 1.2 | I18: =AVERAGE(B18:H18) -> 1.2
A19: Diverted Traffic Factor | B19: 1.2 | C19: 1.2 | D19: 1.2 | E19: 1.2 | F19: 1.2 | G19: 1.2 | H19: 1.2 | I19: 1.2
A20: Generated Traffic Factor | B20: 1.1 | C20: 1.1 | D20: 1.1 | E20: 1.1 | F20: 1.1 | G20: 1.1 | H20: 1.1 | I20: 1.1
A22: AADTT (Design) | B22: =B17*$R$12*B18*B19*B20 -> 47.52 | C22: =C17*$R$12*C18*C19*C20 -> 47.52 | D22: 47.52 | E22: 47.52 | F22: 47.52 | G22: =G17*$R$12*G18*G19*G20 -> 47.52 | H22: 47.52 | I22: =SUM(B22:H22) -> 332.64

Sheet 5 Axle Loads Direction 2
A1: Computation of design axle loading from axle load survey data
C2: Axle Load (tonnes) | L2: n | M2: 4
A3: Direction | B3: Vehicle Class | C3: Axle 1 | D3: Axle 2 | E3: Axle 3 | F3: Axle 4 | G3: Axle 5 | H3: Axle 6 | I3: Axle 7 | J3: Axle 8 | K3: Axle 9 | L3: Equivalency factor per axle EF = (Axle Load/8.16)^n
L4: Axle 1 | M4: Axle 2 | N4: Axle 3 | O4: Axle 4 | P4: Axle 5 | Q4: Axle 6 | R4: Axle 7 | S4: Axle 8 | T4: Axle 9 | U4: Total EF per vehicle
A5: 2 | B5: 2 | L5: =(C5/8.16)^$M$2 -> 0 | M5: 0 | N5: 0 | O5: 0 | P5: 0 | Q5: 0 | R5: 0 | S5: 0 | T5: 0 | U5: =SUM(L5:T5) -> 0
A6: 2 | B6: 2 | L6: 0 | M6: 0 | N6: 0 | O6: 0 | P6: 0 | Q6: 0 | R6: 0 | S6: 0 | T6: 0 | U6: =SUM(L6:T6) -> 0
A7: 2 | B7: 2 | L7: 0 | M7: 0 | N7: 0 | O7: 0 | P7: 0 | Q7: 0 | R7: 0 | S7: 0 | T7: 0 | U7: 0
A8: 2 | B8: 2 | L8: 0 | M8: 0 | N8: 0 | O8: 0 | P8: 0 | Q8: 0 | R8: 0 | S8: 0 | T8: 0 | U8: 0
A9: 2 | B9: 2 | L9: 0 | M9: 0 | N9: 0 | O9: 0 | P9: 0 | Q9: 0 | R9: 0 | S9: 0 | T9: 0 | U9: 0
A10: 2 | B10: 2 | L10: 0 | M10: 0 | N10: 0 | O10: 0 | P10: 0 | Q10: 0 | R10: 0 | S10: 0 | T10: 0 | U10: 0
A11: 2 | B11: 2 | L11: 0 | M11: 0 | N11: 0 | O11: 0 | P11: 0 | Q11: 0 | R11: 0 | S11: 0 | T11: 0 | U11: 0
A12: 2 | B12: 2 | L12: 0 | M12: 0 | N12: 0 | O12: 0 | P12: 0 | Q12: 0 | R12: 0 | S12: 0 | T12: 0 | U12: 0
A13: 2 | B13: 2 | L13: 0 | M13: 0 | N13: 0 | O13: 0 | P13: 0 | Q13: 0 | R13: 0 | S13: 0 | T13: 0 | U13: 0
A14: 2 | B14: 2 | L14: 0 | M14: 0 | N14: 0 | O14: 0 | P14: 0 | Q14: 0 | R14: 0 | S14: 0 | T14: 0 | U14: 0
A15: 2 | B15: 2 | L15: 0 | M15: 0 | N15: 0 | O15: 0 | P15: 0 | Q15: 0 | R15: 0 | S15: 0 | T15: 0 | U15: 0
A16: 2 | B16: 2 | L16: 0 | M16: 0 | N16: 0 | O16: 0 | P16: 0 | Q16: 0 | R16: 0 | S16: 0 | T16: 0 | U16: 0
A17: 2 | B17: 2 | L17: 0 | M17: 0 | N17: 0 | O17: 0 | P17: 0 | Q17: 0 | R17: 0 | S17: 0 | T17: 0 | U17: 0
A18: 2 | B18: 2 | L18: 0 | M18: 0 | N18: 0 | O18: 0 | P18: 0 | Q18: 0 | R18: 0 | S18: 0 | T18: 0 | U18: 0
A19: 2 | B19: 2 | L19: 0 | M19: 0 | N19: 0 | O19: 0 | P19: 0 | Q19: 0 | R19: 0 | S19: 0 | T19: 0 | U19: 0
A20: 2 | B20: 2 | L20: 0 | M20: 0 | N20: 0 | O20: 0 | P20: 0 | Q20: 0 | R20: 0 | S20: 0 | T20: 0 | U20: 0
A21: 2 | B21: 2 | L21: =(C21/8.16)^$M$2 -> 0 | M21: 0 | N21: 0 | O21: 0 | P21: 0 | Q21: 0 | R21: 0 | S21: 0 | T21: 0 | U21: 0
A22: 2 | B22: 2 | L22: 0 | M22: 0 | N22: 0 | O22: 0 | P22: 0 | Q22: 0 | R22: 0 | S22: 0 | T22: 0 | U22: 0
A23: 2 | B23: 2 | L23: 0 | M23: 0 | N23: 0 | O23: 0 | P23: 0 | Q23: 0 | R23: 0 | S23: 0 | T23: 0 | U23: 0
A24: 2 | B24: 2 | L24: 0 | M24: 0 | N24: 0 | O24: 0 | P24: 0 | Q24: 0 | R24: 0 | S24: 0 | T24: 0 | U24: 0
A25: 2 | B25: 2 | L25: 0 | M25: 0 | N25: 0 | O25: 0 | P25: 0 | Q25: 0 | R25: 0 | S25: 0 | T25: 0 | U25: 0
A26: 2 | B26: 2 | L26: 0 | M26: 0 | N26: 0 | O26: 0 | P26: 0 | Q26: 0 | R26: 0 | S26: 0 | T26: 0 | U26: 0
A27: 2 | B27: 2 | L27: 0 | M27: 0 | N27: 0 | O27: 0 | P27: 0 | Q27: 0 | R27: 0 | S27: 0 | T27: 0 | U27: 0
A28: 2 | B28: 2 | L28: 0 | M28: 0 | N28: 0 | O28: 0 | P28: 0 | Q28: 0 | R28: 0 | S28: 0 | T28: 0 | U28: 0
A29: 2 | B29: 2 | L29: 0 | M29: 0 | N29: 0 | O29: 0 | P29: 0 | Q29: 0 | R29: 0 | S29: 0 | T29: 0 | U29: 0
A30: 2 | B30: 2 | L30: 0 | M30: 0 | N30: 0 | O30: 0 | P30: 0 | Q30: 0 | R30: 0 | S30: 0 | T30: 0 | U30: 0
A31: 2 | B31: 2 | L31: 0 | M31: 0 | N31: 0 | O31: 0 | P31: 0 | Q31: 0 | R31: 0 | S31: 0 | T31: 0 | U31: 0
A32: 2 | B32: 2 | L32: 0 | M32: 0 | N32: 0 | O32: 0 | P32: 0 | Q32: 0 | R32: 0 | S32: 0 | T32: 0 | U32: 0
A33: 2 | B33: 2 | L33: 0 | M33: 0 | N33: 0 | O33: 0 | P33: 0 | Q33: 0 | R33: 0 | S33: 0 | T33: 0 | U33: 0
A34: 2 | B34: 2 | L34: 0 | M34: 0 | N34: 0 | O34: 0 | P34: 0 | Q34: 0 | R34: 0 | S34: 0 | T34: 0 | U34: 0
A35: 2 | B35: 2 | L35: 0 | M35: 0 | N35: 0 | O35: 0 | P35: 0 | Q35: 0 | R35: 0 | S35: 0 | T35: 0 | U35: 0
A36: 2 | B36: 2 | L36: 0 | M36: 0 | N36: 0 | O36: 0 | P36: 0 | Q36: 0 | R36: 0 | S36: 0 | T36: 0 | U36: 0
A37: 2 | B37: 2 | L37: 0 | M37: 0 | N37: 0 | O37: 0 | P37: 0 | Q37: 0 | R37: 0 | S37: 0 | T37: 0 | U37: 0
A38: 2 | B38: 2 | L38: 0 | M38: 0 | N38: 0 | O38: 0 | P38: 0 | Q38: 0 | R38: 0 | S38: 0 | T38: 0 | U38: 0
A39: 2 | B39: 2 | L39: 0 | M39: 0 | N39: 0 | O39: 0 | P39: 0 | Q39: 0 | R39: 0 | S39: 0 | T39: 0 | U39: 0
A40: 2 | B40: 2 | L40: 0 | M40: 0 | N40: 0 | O40: 0 | P40: 0 | Q40: 0 | R40: 0 | S40: 0 | T40: 0 | U40: 0
A41: 2 | B41: 2 | L41: 0 | M41: 0 | N41: 0 | O41: 0 | P41: 0 | Q41: 0 | R41: 0 | S41: 0 | T41: 0 | U41: 0
A42: 2 | B42: 2 | L42: 0 | M42: 0 | N42: 0 | O42: 0 | P42: 0 | Q42: 0 | R42: 0 | S42: 0 | T42: 0 | U42: 0
A43: 2 | B43: 2 | L43: 0 | M43: 0 | N43: 0 | O43: 0 | P43: 0 | Q43: 0 | R43: 0 | S43: 0 | T43: 0 | U43: 0
A44: 2 | B44: 2 | L44: 0 | M44: 0 | N44: 0 | O44: 0 | P44: 0 | Q44: 0 | R44: 0 | S44: 0 | T44: 0 | U44: 0
A45: 2 | B45: 2 | L45: 0 | M45: 0 | N45: 0 | O45: 0 | P45: 0 | Q45: 0 | R45: 0 | S45: 0 | T45: 0 | U45: 0
A46: 2 | B46: 2 | L46: 0 | M46: 0 | N46: 0 | O46: 0 | P46: 0 | Q46: 0 | R46: 0 | S46: 0 | T46: 0 | U46: 0
A47: 2 | B47: 2 | L47: 0 | M47: 0 | N47: 0 | O47: 0 | P47: 0 | Q47: 0 | R47: 0 | S47: 0 | T47: 0 | U47: 0
A48: 2 | B48: 2 | L48: 0 | M48: 0 | N48: 0 | O48: 0 | P48: 0 | Q48: 0 | R48: 0 | S48: 0 | T48: 0 | U48: 0
A49: 2 | B49: 2 | L49: 0 | M49: 0 | N49: 0 | O49: =(F49/8.16)^$M$2 -> 0 | P49: 0 | Q49: 0 | R49: 0 | S49: 0 | T49: 0 | U49: 0
A50: 2 | B50: 2 | L50: =(C50/8.16)^$M$2 -> 0 | M50: 0 | N50: 0 | O50: 0 | P50: 0 | Q50: 0 | R50: 0 | S50: 0 | T50: 0 | U50: 0
A51: 2 | B51: 2 | L51: 0 | M51: 0 | N51: 0 | O51: 0 | P51: 0 | Q51: 0 | R51: 0 | S51: 0 | T51: 0 | U51: 0
A52: 2 | B52: 2 | L52: 0 | M52: 0 | N52: 0 | O52: 0 | P52: 0 | Q52: 0 | R52: 0 | S52: 0 | T52: 0 | U52: 0
A53: 2 | B53: 2 | L53: 0 | M53: 0 | N53: 0 | O53: 0 | P53: 0 | Q53: 0 | R53: 0 | S53: 0 | T53: 0 | U53: 0
A54: 2 | B54: 2 | L54: 0 | M54: 0 | N54: 0 | O54: 0 | P54: 0 | Q54: 0 | R54: 0 | S54: 0 | T54: 0 | U54: 0
A55: 2 | B55: 2 | L55: 0 | M55: 0 | N55: 0 | O55: 0 | P55: 0 | Q55: 0 | R55: 0 | S55: 0 | T55: 0 | U55: 0
A56: 2 | B56: 2 | L56: 0 | M56: 0 | N56: 0 | O56: 0 | P56: 0 | Q56: 0 | R56: 0 | S56: 0 | T56: 0 | U56: 0
A57: 2 | B57: 2 | L57: 0 | M57: 0 | N57: 0 | O57: 0 | P57: 0 | Q57: 0 | R57: 0 | S57: 0 | T57: 0 | U57: 0
A58: 2 | B58: 2 | L58: 0 | M58: 0 | N58: 0 | O58: 0 | P58: 0 | Q58: 0 | R58: 0 | S58: 0 | T58: 0 | U58: 0
A59: 2 | B59: 2 | L59: 0 | M59: 0 | N59: 0 | O59: 0 | P59: 0 | Q59: 0 | R59: 0 | S59: 0 | T59: 0 | U59: 0
A60: 2 | B60: 2 | L60: 0 | M60: 0 | N60: 0 | O60: 0 | P60: 0 | Q60: 0 | R60: 0 | S60: 0 | T60: 0 | U60: 0
A61: 2 | B61: 2 | L61: 0 | M61: 0 | N61: 0 | O61: 0 | P61: 0 | Q61: 0 | R61: 0 | S61: 0 | T61: 0 | U61: 0
A62: 2 | B62: 2 | L62: 0 | M62: 0 | N62: 0 | O62: 0 | P62: 0 | Q62: 0 | R62: 0 | S62: 0 | T62: 0 | U62: 0
A63: 2 | B63: 2 | L63: 0 | M63: 0 | N63: 0 | O63: 0 | P63: 0 | Q63: 0 | R63: 0 | S63: 0 | T63: 0 | U63: 0
A64: 2 | B64: 2 | L64: 0 | M64: 0 | N64: 0 | O64: 0 | P64: 0 | Q64: 0 | R64: 0 | S64: 0 | T64: 0 | U64: 0
A65: 2 | B65: 2 | L65: 0 | M65: 0 | N65: 0 | O65: 0 | P65: 0 | Q65: 0 | R65: 0 | S65: 0 | T65: 0 | U65: 0
A66: 2 | B66: 2 | L66: 0 | M66: 0 | N66: 0 | O66: 0 | P66: 0 | Q66: 0 | R66: 0 | S66: 0 | T66: 0 | U66: 0
A67: 2 | B67: 2 | L67: 0 | M67: 0 | N67: 0 | O67: 0 | P67: 0 | Q67: 0 | R67: 0 | S67: 0 | T67: 0 | U67: 0
A68: 2 | B68: 2 | L68: 0 | M68: 0 | N68: 0 | O68: 0 | P68: 0 | Q68: 0 | R68: 0 | S68: 0 | T68: 0 | U68: 0
A69: 2 | B69: 2 | L69: 0 | M69: 0 | N69: 0 | O69: 0 | P69: 0 | Q69: 0 | R69: 0 | S69: 0 | T69: 0 | U69: 0
A70: 2 | B70: 2 | L70: 0 | M70: 0 | N70: 0 | O70: 0 | P70: 0 | Q70: 0 | R70: 0 | S70: 0 | T70: 0 | U70: =SUM(L70:T70) -> 0
A71: 2 | B71: 2 | L71: 0 | M71: 0 | N71: 0 | O71: 0 | P71: 0 | Q71: 0 | R71: 0 | S71: 0 | T71: 0 | U71: 0
A72: 2 | B72: 2 | L72: 0 | M72: 0 | N72: 0 | O72: 0 | P72: 0 | Q72: 0 | R72: 0 | S72: 0 | T72: 0 | U72: 0
A73: 2 | B73: 2 | L73: 0 | M73: 0 | N73: 0 | O73: 0 | P73: 0 | Q73: 0 | R73: 0 | S73: 0 | T73: 0 | U73: 0
A74: 2 | B74: 2 | L74: 0 | M74: 0 | N74: 0 | O74: 0 | P74: 0 | Q74: 0 | R74: 0 | S74: 0 | T74: 0 | U74: 0
A75: 2 | B75: 2 | L75: 0 | M75: 0 | N75: 0 | O75: 0 | P75: 0 | Q75: 0 | R75: 0 | S75: 0 | T75: 0 | U75: 0
A76: 2 | B76: 2 | L76: 0 | M76: 0 | N76: 0 | O76: 0 | P76: 0 | Q76: 0 | R76: 0 | S76: 0 | T76: 0 | U76: 0
A77: 2 | B77: 2 | L77: 0 | M77: 0 | N77: 0 | O77: 0 | P77: 0 | Q77: 0 | R77: 0 | S77: 0 | T77: 0 | U77: 0
A78: 2 | B78: 2 | L78: 0 | M78: 0 | N78: 0 | O78: 0 | P78: 0 | Q78: 0 | R78: 0 | S78: 0 | T78: 0 | U78: 0
A79: 2 | B79: 2 | L79: 0 | M79: 0 | N79: 0 | O79: 0 | P79: 0 | Q79: 0 | R79: 0 | S79: 0 | T79: 0 | U79: 0
A80: 2 | B80: 2 | L80: 0 | M80: 0 | N80: 0 | O80: 0 | P80: 0 | Q80: 0 | R80: 0 | S80: 0 | T80: 0 | U80: 0
A81: 2 | B81: 2 | L81: 0 | M81: 0 | N81: 0 | O81: 0 | P81: 0 | Q81: 0 | R81: 0 | S81: 0 | T81: 0 | U81: 0
A82: 2 | B82: 2 | L82: 0 | M82: 0 | N82: 0 | O82: 0 | P82: 0 | Q82: 0 | R82: 0 | S82: 0 | T82: 0 | U82: 0
A83: 2 | B83: 2 | L83: 0 | M83: 0 | N83: 0 | O83: 0 | P83: 0 | Q83: 0 | R83: 0 | S83: 0 | T83: 0 | U83: 0
A84: 2 | B84: 2 | L84: 0 | M84: 0 | N84: 0 | O84: 0 | P84: 0 | Q84: 0 | R84: 0 | S84: 0 | T84: 0 | U84: 0
A85: 2 | B85: 2 | L85: 0 | M85: 0 | N85: 0 | O85: 0 | P85: 0 | Q85: 0 | R85: 0 | S85: 0 | T85: 0 | U85: 0
A86: 2 | B86: 2 | L86: 0 | M86: 0 | N86: 0 | O86: 0 | P86: 0 | Q86: 0 | R86: 0 | S86: 0 | T86: 0 | U86: 0
A87: 2 | B87: 2 | L87: 0 | M87: 0 | N87: 0 | O87: 0 | P87: 0 | Q87: 0 | R87: 0 | S87: 0 | T87: 0 | U87: 0
A88: 2 | B88: 2 | L88: 0 | M88: 0 | N88: 0 | O88: 0 | P88: 0 | Q88: 0 | R88: 0 | S88: 0 | T88: 0 | U88: 0
A89: 2 | B89: 2 | L89: 0 | M89: 0 | N89: 0 | O89: 0 | P89: 0 | Q89: 0 | R89: 0 | S89: 0 | T89: 0 | U89: 0
A90: 2 | B90: 2 | L90: 0 | M90: 0 | N90: 0 | O90: 0 | P90: 0 | Q90: 0 | R90: 0 | S90: 0 | T90: 0 | U90: 0
A91: 2 | B91: 2 | L91: 0 | M91: 0 | N91: 0 | O91: 0 | P91: 0 | Q91: 0 | R91: =(I91/8.16)^$M$2 -> 0 | S91: 0 | T91: 0 | U91: 0
A92: 2 | B92: 2 | L92: 0 | M92: 0 | N92: 0 | O92: 0 | P92: 0 | Q92: 0 | R92: 0 | S92: 0 | T92: 0 | U92: 0
A93: 2 | B93: 2 | L93: 0 | M93: 0 | N93: 0 | O93: 0 | P93: 0 | Q93: 0 | R93: 0 | S93: 0 | T93: 0 | U93: 0
A94: 2 | B94: 2 | L94: 0 | M94: 0 | N94: 0 | O94: 0 | P94: 0 | Q94: 0 | R94: 0 | S94: 0 | T94: 0 | U94: 0
A95: 2 | B95: 2 | L95: 0 | M95: 0 | N95: 0 | O95: 0 | P95: 0 | Q95: 0 | R95: 0 | S95: 0 | T95: 0 | U95: 0
A96: 2 | B96: 2 | L96: 0 | M96: 0 | N96: 0 | O96: 0 | P96: 0 | Q96: 0 | R96: 0 | S96: 0 | T96: 0 | U96: 0
A97: 2 | B97: 2 | L97: 0 | M97: 0 | N97: 0 | O97: 0 | P97: 0 | Q97: 0 | R97: 0 | S97: 0 | T97: 0 | U97: 0
A98: 2 | B98: 2 | L98: 0 | M98: 0 | N98: 0 | O98: 0 | P98: 0 | Q98: 0 | R98: 0 | S98: 0 | T98: 0 | U98: 0
A99: 2 | B99: 2 | L99: 0 | M99: 0 | N99: 0 | O99: 0 | P99: 0 | Q99: 0 | R99: 0 | S99: 0 | T99: 0 | U99: 0
A100: 2 | B100: 2 | L100: 0 | M100: 0 | N100: 0 | O100: 0 | P100: 0 | Q100: 0 | R100: 0 | S100: 0 | T100: 0 | U100: 0
A101: 2 | B101: 2 | L101: 0 | M101: 0 | N101: 0 | O101: 0 | P101: 0 | Q101: 0 | R101: 0 | S101: 0 | T101: 0 | U101: 0
A102: 2 | B102: 2 | L102: 0 | M102: 0 | N102: 0 | O102: 0 | P102: 0 | Q102: 0 | R102: 0 | S102: 0 | T102: 0 | U102: 0
A103: 2 | B103: 2 | L103: 0 | M103: 0 | N103: 0 | O103: 0 | P103: 0 | Q103: 0 | R103: 0 | S103: 0 | T103: 0 | U103: 0
A104: 2 | B104: 2 | L104: 0 | M104: 0 | N104: 0 | O104: 0 | P104: 0 | Q104: 0 | R104: 0 | S104: 0 | T104: 0 | U104: 0
A105: 2 | B105: 2 | L105: 0 | M105: 0 | N105: 0 | O105: 0 | P105: 0 | Q105: 0 | R105: 0 | S105: 0 | T105: 0 | U105: 0
A106: 2 | B106: 2 | L106: 0 | M106: 0 | N106: 0 | O106: 0 | P106: 0 | Q106: 0 | R106: 0 | S106: 0 | T106: 0 | U106: 0
A107: 2 | B107: 2 | L107: 0 | M107: 0 | N107: 0 | O107: 0 | P107: 0 | Q107: 0 | R107: 0 | S107: 0 | T107: 0 | U107: 0
A108: 2 | B108: 2 | L108: 0 | M108: 0 | N108: 0 | O108: 0 | P108: 0 | Q108: 0 | R108: 0 | S108: 0 | T108: 0 | U108: 0
A109: 2 | B109: 2 | L109: 0 | M109: 0 | N109: 0 | O109: 0 | P109: 0 | Q109: 0 | R109: 0 | S109: 0 | T109: 0 | U109: 0
A110: 2 | B110: 2 | L110: 0 | M110: 0 | N110: 0 | O110: 0 | P110: 0 | Q110: 0 | R110: 0 | S110: 0 | T110: 0 | U110: 0
A111: 2 | B111: 2 | L111: 0 | M111: 0 | N111: 0 | O111: 0 | P111: 0 | Q111: 0 | R111: 0 | S111: 0 | T111: 0 | U111: 0
A112: 2 | B112: 2 | L112: 0 | M112: 0 | N112: 0 | O112: 0 | P112: 0 | Q112: 0 | R112: 0 | S112: 0 | T112: 0 | U112: 0
A113: 2 | B113: 2 | L113: 0 | M113: 0 | N113: 0 | O113: =(F113/8.16)^$M$2 -> 0 | P113: 0 | Q113: 0 | R113: 0 | S113: 0 | T113: 0 | U113: 0
A114: 2 | B114: 2 | L114: =(C114/8.16)^$M$2 -> 0 | M114: 0 | N114: 0 | O114: 0 | P114: 0 | Q114: 0 | R114: 0 | S114: 0 | T114: 0 | U114: 0
A115: 2 | B115: 2 | L115: 0 | M115: 0 | N115: 0 | O115: 0 | P115: 0 | Q115: 0 | R115: 0 | S115: 0 | T115: 0 | U115: 0
A116: 2 | B116: 2 | L116: 0 | M116: 0 | N116: 0 | O116: 0 | P116: 0 | Q116: 0 | R116: 0 | S116: 0 | T116: 0 | U116: 0
A117: 2 | B117: 2 | L117: 0 | M117: 0 | N117: 0 | O117: 0 | P117: 0 | Q117: 0 | R117: 0 | S117: 0 | T117: 0 | U117: 0
A118: 2 | B118: 2 | L118: 0 | M118: 0 | N118: 0 | O118: 0 | P118: 0 | Q118: 0 | R118: 0 | S118: 0 | T118: 0 | U118: 0
A119: 2 | B119: 2 | L119: 0 | M119: 0 | N119: 0 | O119: 0 | P119: 0 | Q119: 0 | R119: 0 | S119: 0 | T119: 0 | U119: 0
A120: 2 | B120: 2 | L120: 0 | M120: 0 | N120: 0 | O120: 0 | P120: 0 | Q120: 0 | R120: 0 | S120: 0 | T120: 0 | U120: 0
A121: 2 | B121: 2 | L121: 0 | M121: 0 | N121: 0 | O121: 0 | P121: 0 | Q121: 0 | R121: 0 | S121: 0 | T121: 0 | U121: 0
A122: 2 | B122: 2 | L122: 0 | M122: 0 | N122: 0 | O122: 0 | P122: 0 | Q122: 0 | R122: 0 | S122: 0 | T122: 0 | U122: 0
A123: 2 | B123: 2 | L123: 0 | M123: 0 | N123: 0 | O123: 0 | P123: 0 | Q123: 0 | R123: 0 | S123: 0 | T123: 0 | U123: 0
A124: 2 | B124: 2 | L124: 0 | M124: 0 | N124: 0 | O124: 0 | P124: 0 | Q124: 0 | R124: 0 | S124: 0 | T124: 0 | U124: 0
A125: 2 | B125: 2 | L125: 0 | M125: 0 | N125: 0 | O125: 0 | P125: 0 | Q125: 0 | R125: 0 | S125: 0 | T125: 0 | U125: 0
A126: 2 | B126: 2 | L126: 0 | M126: 0 | N126: 0 | O126: 0 | P126: 0 | Q126: 0 | R126: 0 | S126: 0 | T126: 0 | U126: 0
A127: 2 | B127: 2 | L127: 0 | M127: 0 | N127: 0 | O127: 0 | P127: 0 | Q127: 0 | R127: 0 | S127: 0 | T127: 0 | U127: 0
A128: 2 | B128: 2 | L128: 0 | M128: 0 | N128: 0 | O128: 0 | P128: 0 | Q128: 0 | R128: 0 | S128: 0 | T128: 0 | U128: 0
A129: 2 | B129: 2 | L129: 0 | M129: 0 | N129: 0 | O129: 0 | P129: 0 | Q129: 0 | R129: 0 | S129: 0 | T129: 0 | U129: 0
A130: 2 | B130: 2 | L130: 0 | M130: 0 | N130: 0 | O130: 0 | P130: 0 | Q130: 0 | R130: 0 | S130: 0 | T130: 0 | U130: 0
A131: 2 | B131: 2 | L131: 0 | M131: 0 | N131: 0 | O131: 0 | P131: 0 | Q131: 0 | R131: 0 | S131: 0 | T131: 0 | U131: 0
A132: 2 | B132: 2 | L132: 0 | M132: 0 | N132: 0 | O132: 0 | P132: 0 | Q132: 0 | R132: 0 | S132: 0 | T132: 0 | U132: 0
A133: 2 | B133: 2 | L133: 0 | M133: 0 | N133: 0 | O133: 0 | P133: 0 | Q133: 0 | R133: 0 | S133: 0 | T133: 0 | U133: 0
A134: 2 | B134: 2 | L134: 0 | M134: 0 | N134: 0 | O134: 0 | P134: 0 | Q134: 0 | R134: 0 | S134: 0 | T134: 0 | U134: =SUM(L134:T134) -> 0
A135: 2 | B135: 2 | L135: 0 | M135: 0 | N135: 0 | O135: 0 | P135: 0 | Q135: 0 | R135: 0 | S135: 0 | T135: 0 | U135: 0
A136: 2 | B136: 2 | L136: 0 | M136: 0 | N136: 0 | O136: 0 | P136: 0 | Q136: 0 | R136: 0 | S136: 0 | T136: 0 | U136: 0
A137: 2 | B137: 2 | L137: 0 | M137: 0 | N137: 0 | O137: 0 | P137: 0 | Q137: 0 | R137: 0 | S137: 0 | T137: 0 | U137: 0
A138: 2 | B138: 2 | L138: 0 | M138: 0 | N138: 0 | O138: 0 | P138: 0 | Q138: 0 | R138: 0 | S138: 0 | T138: 0 | U138: 0
A139: 2 | B139: 2 | L139: 0 | M139: 0 | N139: 0 | O139: 0 | P139: 0 | Q139: 0 | R139: 0 | S139: 0 | T139: 0 | U139: 0
A140: 2 | B140: 2 | L140: 0 | M140: 0 | N140: 0 | O140: 0 | P140: 0 | Q140: 0 | R140: 0 | S140: 0 | T140: 0 | U140: 0
A141: 2 | B141: 2 | L141: 0 | M141: 0 | N141: 0 | O141: 0 | P141: 0 | Q141: 0 | R141: 0 | S141: 0 | T141: 0 | U141: 0
A142: 2 | B142: 2 | L142: 0 | M142: 0 | N142: 0 | O142: 0 | P142: 0 | Q142: 0 | R142: 0 | S142: 0 | T142: 0 | U142: 0
A143: 2 | B143: 2 | L143: 0 | M143: 0 | N143: 0 | O143: 0 | P143: 0 | Q143: 0 | R143: 0 | S143: 0 | T143: 0 | U143: 0
A144: 2 | B144: 2 | L144: 0 | M144: 0 | N144: 0 | O144: 0 | P144: 0 | Q144: 0 | R144: 0 | S144: 0 | T144: 0 | U144: 0
A145: 2 | B145: 2 | L145: 0 | M145: 0 | N145: 0 | O145: 0 | P145: 0 | Q145: 0 | R145: 0 | S145: 0 | T145: 0 | U145: 0
A146: 2 | B146: 2 | L146: 0 | M146: 0 | N146: 0 | O146: 0 | P146: 0 | Q146: 0 | R146: 0 | S146: 0 | T146: 0 | U146: 0
A147: 2 | B147: 2 | L147: 0 | M147: 0 | N147: 0 | O147: 0 | P147: 0 | Q147: 0 | R147: 0 | S147: 0 | T147: 0 | U147: 0
A148: 2 | B148: 2 | L148: 0 | M148: 0 | N148: 0 | O148: 0 | P148: 0 | Q148: 0 | R148: 0 | S148: 0 | T148: 0 | U148: 0
A149: 2 | B149: 2 | L149: 0 | M149: 0 | N149: 0 | O149: 0 | P149: 0 | Q149: 0 | R149: 0 | S149: 0 | T149: 0 | U149: 0
A150: 2 | B150: 2 | L150: 0 | M150: 0 | N150: 0 | O150: 0 | P150: 0 | Q150: 0 | R150: 0 | S150: 0 | T150: 0 | U150: 0
A151: 2 | B151: 2 | L151: 0 | M151: 0 | N151: 0 | O151: 0 | P151: 0 | Q151: 0 | R151: 0 | S151: 0 | T151: 0 | U151: 0
A152: 2 | B152: 2 | L152: 0 | M152: 0 | N152: 0 | O152: 0 | P152: 0 | Q152: 0 | R152: 0 | S152: 0 | T152: 0 | U152: 0
A153: 2 | B153: 2 | L153: 0 | M153: 0 | N153: 0 | O153: 0 | P153: 0 | Q153: 0 | R153: 0 | S153: 0 | T153: 0 | U153: 0
A154: 2 | B154: 2 | L154: 0 | M154: 0 | N154: 0 | O154: 0 | P154: 0 | Q154: 0 | R154: 0 | S154: 0 | T154: 0 | U154: 0
A155: 2 | B155: 2 | L155: 0 | M155: 0 | N155: 0 | O155: 0 | P155: 0 | Q155: 0 | R155: 0 | S155: 0 | T155: 0 | U155: 0
A156: 2 | B156: 2 | L156: =(C156/8.16)^$M$2 -> 0 | M156: =(D156/8.16)^$M$2 -> 0 | N156: =(E156/8.16)^$M$2 -> 0 | O156: =(F156/8.16)^$M$2 -> 0 | P156: =(G156/8.16)^$M$2 -> 0 | Q156: =(H156/8.16)^$M$2 -> 0 | R156: =(I156/8.16)^$M$2 -> 0 | S156: =(J156/8.16)^$M$2 -> 0 | T156: =(K156/8.16)^$M$2 -> 0 | U156: =SUM(L156:T156) -> 0
A157: 2 | B157: 2 | L157: 0 | M157: 0 | N157: 0 | O157: 0 | P157: 0 | Q157: 0 | R157: 0 | S157: 0 | T157: 0 | U157: 0
A158: 2 | B158: 2 | L158: 0 | M158: 0 | N158: 0 | O158: 0 | P158: 0 | Q158: 0 | R158: 0 | S158: 0 | T158: 0 | U158: 0
A159: 2 | B159: 2 | L159: 0 | M159: 0 | N159: 0 | O159: 0 | P159: 0 | Q159: 0 | R159: 0 | S159: 0 | T159: 0 | U159: 0
A160: 2 | B160: 2 | L160: 0 | M160: 0 | N160: 0 | O160: 0 | P160: 0 | Q160: 0 | R160: 0 | S160: 0 | T160: 0 | U160: 0
A161: 2 | B161: 2 | L161: 0 | M161: 0 | N161: 0 | O161: 0 | P161: 0 | Q161: 0 | R161: 0 | S161: 0 | T161: 0 | U161: 0
A162: 2 | B162: 2 | L162: 0 | M162: 0 | N162: 0 | O162: 0 | P162: 0 | Q162: 0 | R162: 0 | S162: 0 | T162: 0 | U162: 0
A163: 2 | B163: 2 | L163: 0 | M163: 0 | N163: 0 | O163: 0 | P163: 0 | Q163: 0 | R163: 0 | S163: 0 | T163: 0 | U163: 0
A164: 2 | B164: 2 | L164: 0 | M164: 0 | N164: 0 | O164: 0 | P164: 0 | Q164: 0 | R164: 0 | S164: 0 | T164: 0 | U164: 0
A165: 2 | B165: 2 | L165: 0 | M165: 0 | N165: 0 | O165: 0 | P165: 0 | Q165: 0 | R165: 0 | S165: 0 | T165: 0 | U165: 0
A166: 2 | B166: 2 | L166: 0 | M166: 0 | N166: 0 | O166: 0 | P166: 0 | Q166: 0 | R166: 0 | S166: 0 | T166: 0 | U166: 0
A167: 2 | B167: 2 | L167: 0 | M167: 0 | N167: 0 | O167: 0 | P167: 0 | Q167: 0 | R167: 0 | S167: 0 | T167: 0 | U167: 0
A168: 2 | B168: 2 | L168: 0 | M168: 0 | N168: 0 | O168: 0 | P168: 0 | Q168: 0 | R168: 0 | S168: 0 | T168: 0 | U168: 0
A169: 2 | B169: 2 | L169: 0 | M169: 0 | N169: 0 | O169: 0 | P169: 0 | Q169: 0 | R169: 0 | S169: 0 | T169: 0 | U169: 0
A170: 2 | B170: 2 | L170: 0 | M170: 0 | N170: 0 | O170: 0 | P170: 0 | Q170: 0 | R170: 0 | S170: 0 | T170: 0 | U170: 0
A171: 2 | B171: 2 | L171: 0 | M171: 0 | N171: 0 | O171: 0 | P171: 0 | Q171: 0 | R171: 0 | S171: 0 | T171: 0 | U171: 0
A172: 2 | B172: 2 | L172: =(C172/8.16)^$M$2 -> 0 | M172: 0 | N172: 0 | O172: 0 | P172: 0 | Q172: 0 | R172: 0 | S172: 0 | T172: 0 | U172: 0
A173: 2 | B173: 2 | L173: 0 | M173: 0 | N173: 0 | O173: 0 | P173: 0 | Q173: 0 | R173: 0 | S173: 0 | T173: 0 | U173: 0
A174: 2 | B174: 2 | L174: 0 | M174: 0 | N174: 0 | O174: 0 | P174: 0 | Q174: 0 | R174: 0 | S174: 0 | T174: 0 | U174: 0
A175: 2 | B175: 2 | L175: 0 | M175: 0 | N175: 0 | O175: 0 | P175: 0 | Q175: 0 | R175: 0 | S175: 0 | T175: 0 | U175: 0
A176: 2 | B176: 2 | L176: 0 | M176: 0 | N176: 0 | O176: 0 | P176: 0 | Q176: 0 | R176: 0 | S176: 0 | T176: 0 | U176: 0
A177: 2 | B177: 2 | L177: 0 | M177: 0 | N177: 0 | O177: 0 | P177: 0 | Q177: 0 | R177: 0 | S177: 0 | T177: 0 | U177: 0
A178: 2 | B178: 2 | L178: 0 | M178: 0 | N178: 0 | O178: 0 | P178: 0 | Q178: 0 | R178: 0 | S178: 0 | T178: 0 | U178: 0
A179: 2 | B179: 2 | L179: 0 | M179: 0 | N179: 0 | O179: 0 | P179: 0 | Q179: 0 | R179: 0 | S179: 0 | T179: 0 | U179: 0
A180: 2 | B180: 2 | L180: 0 | M180: 0 | N180: 0 | O180: 0 | P180: 0 | Q180: 0 | R180: 0 | S180: 0 | T180: 0 | U180: 0
A181: 2 | B181: 2 | L181: 0 | M181: 0 | N181: 0 | O181: 0 | P181: 0 | Q181: 0 | R181: 0 | S181: 0 | T181: 0 | U181: 0
A182: 2 | B182: 2 | L182: 0 | M182: 0 | N182: 0 | O182: 0 | P182: 0 | Q182: 0 | R182: 0 | S182: 0 | T182: 0 | U182: 0
A183: 2 | B183: 2 | L183: 0 | M183: 0 | N183: 0 | O183: 0 | P183: 0 | Q183: 0 | R183: 0 | S183: 0 | T183: 0 | U183: 0
A184: 2 | B184: 2 | L184: 0 | M184: 0 | N184: 0 | O184: 0 | P184: 0 | Q184: 0 | R184: 0 | S184: 0 | T184: 0 | U184: 0
A185: 2 | B185: 2 | L185: 0 | M185: 0 | N185: 0 | O185: 0 | P185: 0 | Q185: 0 | R185: 0 | S185: 0 | T185: 0 | U185: 0
A186: 2 | B186: 2 | L186: 0 | M186: 0 | N186: 0 | O186: 0 | P186: 0 | Q186: 0 | R186: 0 | S186: 0 | T186: 0 | U186: 0
A187: 2 | B187: 2 | L187: 0 | M187: 0 | N187: 0 | O187: 0 | P187: 0 | Q187: 0 | R187: 0 | S187: 0 | T187: 0 | U187: 0
A188: 2 | B188: 2 | L188: 0 | M188: 0 | N188: 0 | O188: 0 | P188: 0 | Q188: 0 | R188: 0 | S188: 0 | T188: 0 | U188: 0
A189: 2 | B189: 2 | L189: 0 | M189: 0 | N189: 0 | O189: 0 | P189: 0 | Q189: 0 | R189: 0 | S189: 0 | T189: 0 | U189: 0
A190: 2 | B190: 2 | L190: 0 | M190: 0 | N190: 0 | O190: 0 | P190: 0 | Q190: 0 | R190: 0 | S190: 0 | T190: 0 | U190: 0
A191: 2 | B191: 2 | L191: 0 | M191: 0 | N191: 0 | O191: 0 | P191: 0 | Q191: 0 | R191: 0 | S191: 0 | T191: 0 | U191: 0
A192: 2 | B192: 2 | L192: 0 | M192: 0 | N192: 0 | O192: 0 | P192: 0 | Q192: 0 | R192: 0 | S192: 0 | T192: 0 | U192: 0
A193: 2 | B193: 2 | L193: 0 | M193: 0 | N193: 0 | O193: 0 | P193: 0 | Q193: 0 | R193: 0 | S193: 0 | T193: 0 | U193: 0
A194: 2 | B194: 2 | L194: 0 | M194: 0 | N194: 0 | O194: 0 | P194: 0 | Q194: 0 | R194: 0 | S194: 0 | T194: 0 | U194: 0
A195: 2 | B195: 2 | L195: 0 | M195: 0 | N195: 0 | O195: 0 | P195: 0 | Q195: 0 | R195: 0 | S195: 0 | T195: 0 | U195: 0
A196: 2 | B196: 2 | L196: 0 | M196: 0 | N196: 0 | O196: 0 | P196: 0 | Q196: 0 | R196: 0 | S196: 0 | T196: 0 | U196: 0
A197: 2 | B197: 2 | L197: 0 | M197: 0 | N197: 0 | O197: 0 | P197: 0 | Q197: 0 | R197: 0 | S197: 0 | T197: 0 | U197: 0
A198: 2 | B198: 2 | L198: 0 | M198: 0 | N198: 0 | O198: 0 | P198: 0 | Q198: 0 | R198: 0 | S198: 0 | T198: 0 | U198: 0
A199: 2 | B199: 2 | L199: 0 | M199: 0 | N199: 0 | O199: 0 | P199: 0 | Q199: 0 | R199: 0 | S199: 0 | T199: 0 | U199: 0
A200: 2 | B200: 2 | L200: 0 | M200: 0 | N200: 0 | O200: =(F200/8.16)^$M$2 -> 0 | P200: 0 | Q200: 0 | R200: 0 | S200: 0 | T200: 0 | U200: 0
... 813 more rows

Sheet 6 Design MESA Direction 2
A1: Computation of design value of Equivalent Standard Axle Loads
A3: Vehicle | B3: Vehicle Class | C3: Average ESA/VEF | D3: AADTT | E3: Load distribution factor between lanes | F3: ESA/day for each category
A4: Medium Truck (2 Axles) - Type 2 | B4: 2 | C4: ='5 Axle Loads Direction 2'!I1010 -> 0 | D4: ='4 ADT Direction 2'!B22 -> 47.52 | E4: 1 | F4: =C4*D4*E4 -> 0
A5: Heavy Truck (3 Axles) - Type 3 | B5: 3 | C5: ='5 Axle Loads Direction 2'!I1011 -> 0 | D5: ='4 ADT Direction 2'!C22 -> 47.52 | E5: 1 | F5: =C5*D5*E5 -> 0
A6: Heavy Truck (4 Axles) - Type 4 | B6: 4 | C6: ='5 Axle Loads Direction 2'!I1012 -> 0 | D6: ='4 ADT Direction 2'!D22 -> 47.52 | E6: 1 | F6: 0
A7: Semi-Trailers (5 Axles) - Type 5 | B7: 5 | C7: ='5 Axle Loads Direction 2'!I1013 -> 0 | D7: ='4 ADT Direction 2'!E22 -> 47.52 | E7: 1 | F7: 0
A8: Semi-Trailers (6 Axles) - Type 6 | B8: 6 | C8: ='5 Axle Loads Direction 2'!I1014 -> 0 | D8: ='4 ADT Direction 2'!F22 -> 47.52 | E8: 1 | F8: 0
A9: Trailers (7 Axles) - Type 7 | B9: 7 | C9: ='5 Axle Loads Direction 2'!I1015 -> 0 | D9: ='4 ADT Direction 2'!G22 -> 47.52 | E9: 1 | F9: 0
A10: Trailers (9 Axles) - Type 9 | B10: 9 | C10: ='5 Axle Loads Direction 2'!I1016 -> 0 | D10: ='4 ADT Direction 2'!H22 -> 47.52 | E10: 1 | F10: 0
A11: a - Total ESA/day (one way) | F11: =SUM(F4:F10) -> 0
H12: Truck Type
A13: Factors | H13: 2 | I13: 3 | J13: 4 | K13: 5 | L13: 6 | M13: 7 | N13: 9
A14: a=current average annual daily traffic loading in ESA/day (one way) in year of count | H14: =F4 -> 0 | I14: =F5 -> 0 | J14: =F6 -> 0 | K14: =F7 -> 0 | L14: =F8 -> 0 | M14: =F9 -> 0 | N14: =F10 -> 0 | O14: Growth Period 1
A15: b=annual growth rate (%) for growth Period 1 | H15: 5 | I15: 5 | J15: 5 | K15: 5 | L15: 5 | M15: 5 | N15: 5
A16: c=design life (years) for growth Period 1 | H16: 10 | I16: 10 | J16: 10 | K16: 10 | L16: 10 | M16: 10 | N16: 10
A17: d=number of years to start of design life for growth Period 1 | H17: 2 | I17: 2 | J17: 2 | K17: 2 | L17: 2 | M17: 2 | N17: 2
A18: a=average annual daily traffic loading in ESA/day (one way) at end of growth Period 1/ beginning of Period 2 | H18: =H14*((1+(H15/100))^(H16+H17)) -> 0 | I18: =I14*((1+(I15/100))^(I16+I17)) -> 0 | J18: 0 | K18: 0 | L18: 0 | M18: 0 | N18: 0 | O18: Growth Period 2
A19: b=annual growth rate (%) for growth Period 2 | H19: 4 | I19: 4 | J19: 4 | K19: 4 | L19: 4 | M19: 4 | N19: 4
A20: c=design life (years) for growth Period 2 | H20: 5 | I20: 5 | J20: 5 | K20: 5 | L20: 5 | M20: 5 | N20: 5
A21: a=average annual daily traffic loading in ESA/day (one way) at end of growth Period 2/ beginning of Period 3 | H21: =H18*((1+(H19/100))^(H20)) -> 0 | I21: =I18*((1+(I19/100))^(I20)) -> 0 | J21: 0 | K21: 0 | L21: 0 | M21: 0 | N21: 0 | O21: Growth Period 3
A22: b=annual growth rate (%) for growth Period 3 | H22: 3 | I22: 3 | J22: 3 | K22: 3 | L22: 3 | M22: 3 | N22: 3
A23: c=design life (years) for growth Period 3 | H23: 5 | I23: 5 | J23: 5 | K23: 5 | L23: 5 | M23: 5 | N23: 5
A24: Total Cummulative ESA by Truck Type (one way) | H24: =(((H14*365*100/H15)*(((1+(H15/100))^(H16+H17))-((1+(H15/100))^H17)))/1000000)+(((H18*365*100/H19)*(((1+(H19/100))^H20)-(1)))/1000000)+(((H21*365*100/H22)*(((1+(H22/100))^H23)-(1)))/1000000) -> 0 | I24: =(((I14*365*100/I15)*(((1+(I15/100))^(I16+I17))-((1+(I15/100))^I17)))/1000000)+(((I18*365*100/I19)*(((1+(I19/100))^I20)-(1)))/1000000)+(((I21*365*100/I22)*(((1+(I22/100))^I23)-(1)))/1000000) -> 0 | J24: 0 | K24: 0 | L24: 0 | M24: 0 | N24: 0 | O24: MESA
A25: Total Cummulative Design MESA (one way) | H25: =SUM(H24:N24) -> 0
A29: Pavement Design MESA Direction 2 | D29: =H25 -> 0 | F29: 0 | G29: If MESA is already known then enter it here
D30: =IF(D29>F29,D29,F29) -> 0
A35: Computation of design value of Equivalent Standard Axle Loads (IF YOU ALREADY HAVE VEF per vehicle class and AADTT OR ADTT)
A37: Vehicle | B37: Vehicle Class | C37: Average ESA/VEF | D37: AADTT/ ADTT | E37: Load distribution factor between lanes | F37: ESA/day for each category
A38: Medium Truck (2 Axles) - Type 2 | B38: 2 | C38: 2 | D38: 0 | E38: 1 | F38: =C38*D38*E38 -> 0
A39: Heavy Truck (3 Axles) - Type 3 | B39: 3 | C39: 3 | D39: 0 | E39: 1 | F39: =C39*D39*E39 -> 0
A40: Heavy Truck (4 Axles) - Type 4 | B40: 4 | C40: 3.8 | D40: 0 | E40: 1 | F40: 0
A41: Semi-Trailers (5 Axles) - Type 5 | B41: 5 | C41: 4.2 | D41: 0 | E41: 1 | F41: 0
A42: Semi-Trailers (6 Axles) - Type 6 | B42: 6 | C42: 6.2 | D42: 0 | E42: 1 | F42: 0
A43: Trailers (7 Axles) - Type 7 | B43: 7 | C43: 6.3 | D43: 0 | E43: 1 | F43: 0
A44: Trailers (9 Axles) - Type 9 | B44: 9 | C44: 6 | D44: 0 | E44: 1 | F44: 0
A45: a - Total ESA/day (one way) | F45: =SUM(F38:F44) -> 0
H46: Truck Type
A47: Factors | H47: 2 | I47: 3 | J47: 4 | K47: 5 | L47: 6 | M47: 7 | N47: 9
A48: a=current average annual daily traffic loading in ESA/day (one way) in year of count | H48: =F38 -> 0 | I48: =F39 -> 0 | J48: =F40 -> 0 | K48: =F41 -> 0 | L48: =F42 -> 0 | M48: =F43 -> 0 | N48: =F44 -> 0 | O48: Growth Period 1
A49: b=annual growth rate (%) for growth Period 1 | H49: 5 | I49: 5 | J49: 5 | K49: 5 | L49: 5 | M49: 5 | N49: 5
A50: c=design life (years) for growth Period 1 | H50: 10 | I50: 10 | J50: 10 | K50: 10 | L50: 10 | M50: 10 | N50: 10
A51: d=number of years to start of design life for growth Period 1 | H51: 2 | I51: 2 | J51: 2 | K51: 2 | L51: 2 | M51: 2 | N51: 2
A52: a=average annual daily traffic loading in ESA/day (one way) at end of growth Period 1/ beginning of Period 2 | H52: =H48*((1+(H49/100))^(H50+H51)) -> 0 | I52: =I48*((1+(I49/100))^(I50+I51)) -> 0 | J52: 0 | K52: 0 | L52: 0 | M52: 0 | N52: 0 | O52: Growth Period 2
A53: b=annual growth rate (%) for growth Period 2 | H53: 4 | I53: 4 | J53: 4 | K53: 4 | L53: 4 | M53: 4 | N53: 4
A54: c=design life (years) for growth Period 2 | H54: 5 | I54: 5 | J54: 5 | K54: 5 | L54: 5 | M54: 5 | N54: 5
A55: a=average annual daily traffic loading in ESA/day (one way) at end of growth Period 2/ beginning of Period 3 | H55: =H52*((1+(H53/100))^(H54)) -> 0 | I55: =I52*((1+(I53/100))^(I54)) -> 0 | J55: 0 | K55: 0 | L55: 0 | M55: 0 | N55: 0 | O55: Growth Period 3
A56: b=annual growth rate (%) for growth Period 3 | H56: 3 | I56: 3 | J56: 3 | K56: 3 | L56: 3 | M56: 3 | N56: 3
A57: c=design life (years) for growth Period 3 | H57: 5 | I57: 5 | J57: 5 | K57: 5 | L57: 5 | M57: 5 | N57: 5
A58: Total Cummulative MESA by Truck Type (one way) | H58: =(((H48*365*100/H49)*(((1+(H49/100))^(H50+H51))-((1+(H49/100))^H51)))/1000000)+(((H52*365*100/H53)*(((1+(H53/100))^H54)-(1)))/1000000)+(((H55*365*100/H56)*(((1+(H56/100))^H57)-(1)))/1000000) -> 0 | I58: =(((I48*365*100/I49)*(((1+(I49/100))^(I50+I51))-((1+(I49/100))^I51)))/1000000)+(((I52*365*100/I53)*(((1+(I53/100))^I54)-(1)))/1000000)+(((I55*365*100/I56)*(((1+(I56/100))^I57)-(1)))/1000000) -> 0 | J58: 0 | K58: 0 | L58: 0 | M58: 0 | N58: 0 | O58: MESA
A59: Total Cummulative Design MESA (one way) | H59: =SUM(H58:N58) -> 0
A62: Pavement Design MESA Direction 2 | D62: =H59 -> 0
A66: Determinant MESA Direction 2 | D66: =IF(D30>D62,D30,D62) -> 0

Sheet 7 ADT Direction 1-SS
A1: Summary Traffic Count in Direction 1
A4: VEHICLE | B4: Medium Truck (2 Axles) - Type 2 | C4: Heavy Truck (3 Axles) - Type 3 | D4: Heavy Truck (3 Axles) - Type 3B | E4: Heavy Truck (4 Axles) - Type 4 | F4: Semi-Trailers (5 Axles) - Type 5 | G4: Semi-Trailers (5 Axles) - Type 5B | H4: Semi-Trailers (5 Axles) - Type 5C | I4: Semi-Trailers (5 Axles) - Type 5D | J4: Semi-Trailers (6 Axles) - Type 6 | K4: Semi-Trailers (6 Axles) - Type 6B | L4: Semi-Trailers (6 Axles) - Type 6C | M4: Trailers (7 Axles) - Type 7 | N4: Trailers (7 Axles) - Type 7B | O4: Trailers (7 Axles) - Type 7C | P4: Trailers (9 Axles) - Type 9 | Q4: Trailers (9 Axles) - Type 9B | R4: DAILY averages | U4: Computation of 24 hr Average Night Expansion Factor (Weekday) | AC4: Computation of 24 hr Average Night Expansion Factor (Weekend)
A5: Vehicle Class | B5: 2 | C5: 3 | D5: 3B | E5: 4 | F5: 5 | G5: 5B | H5: 5C | I5: 5D | J5: 6 | K5: 6B | L5: 6C | M5: 7 | N5: 7B | O5: 7C | P5: 9 | Q5: 9B | U5: Full day count on day of 24 hr count | AA5: 300 | AC5: Full day count on day of 24 hr count | AI5: 300
A6: Date | U6: Vehicle number on the 24 hr count day, corresponding to the same counting period for day that requires grossing | AA6: 250 | AC6: Vehicle number on the 24 hr count day, corresponding to the same counting period for day that requires grossing | AI6: 250
A7: ADTT (Weekday) (Less than 24 hrs) | B7: 20 | C7: 20 | D7: 20 | E7: 20 | F7: 20 | G7: 20 | H7: 20 | I7: 20 | J7: 20 | K7: 20 | L7: 20 | M7: 20 | N7: 20 | O7: 20 | P7: 20 | Q7: 20 | R7: =SUM(B7:Q7) -> 320 | U7: Grossing Factor | AA7: =AA5/AA6 -> 1.2 | AC7: Grossing Factor | AI7: =AI5/AI6 -> 1.2
A8: Full day count on day of 24 hr count | B8: 30 | C8: 30 | D8: 30 | E8: 30 | F8: 30 | G8: 30 | H8: 30 | I8: 30 | J8: 30 | K8: 30 | L8: 30 | M8: 30 | N8: 30 | O8: 30 | P8: 30 | Q8: 30 | R8: =SUM(B8:Q8) -> 480
A9: Night Expansion Factor | B9: =B8/B7 -> 1.5 | C9: 1.5 | D9: 1.5 | E9: 1.5 | F9: 1.5 | G9: 1.5 | H9: 1.5 | I9: 1.5 | J9: 1.5 | K9: 1.5 | L9: 1.5 | M9: 1.5 | N9: 1.5 | O9: 1.5 | P9: 1.5 | Q9: 1.5 | R9: =AVERAGE(B9:Q9) -> 1.5
A10: ADTT (Weekday (24 hrs) | B10: =B7*B9 -> 30 | C10: 30 | D10: 30 | E10: 30 | F10: 30 | G10: 30 | H10: 30 | I10: 30 | J10: 30 | K10: 30 | L10: 30 | M10: 30 | N10: 30 | O10: 30 | P10: 30 | Q10: 30 | R10: =SUM(B10:Q10) -> 480
A12: ADTT (Weekend) (Less than 24 hrs) | B12: 20 | C12: 20 | D12: 20 | E12: 20 | F12: 20 | G12: 20 | H12: 20 | I12: 20 | J12: 20 | K12: 20 | L12: 20 | M12: 20 | N12: 20 | O12: 20 | P12: 20 | Q12: 20 | R12: =SUM(B12:Q12) -> 320 | U12: Lane Split Factor (or directional split if two-lane road and ADTT entered is Total) | AA12: 1
A13: Full day count on day of 24 hr count | B13: 30 | C13: 30 | D13: 30 | E13: 30 | F13: 30 | G13: 30 | H13: 30 | I13: 30 | J13: 30 | K13: 30 | L13: 30 | M13: 30 | N13: 30 | O13: 30 | P13: 30 | Q13: 30 | R13: =SUM(B13:Q13) -> 480
A14: Night Expansion Factor | B14: =B13/B12 -> 1.5 | C14: 1.5 | D14: 1.5 | E14: 1.5 | F14: 1.5 | G14: 1.5 | H14: 1.5 | I14: 1.5 | J14: 1.5 | K14: 1.5 | L14: 1.5 | M14: 1.5 | N14: 1.5 | O14: 1.5 | P14: 1.5 | Q14: 1.5 | R14: =AVERAGE(B14:Q14) -> 1.5
A15: ADTT (Weekend) (24 hrs) | B15: =B12*B14 -> 30 | C15: 30 | D15: 30 | E15: 30 | F15: 30 | G15: 30 | H15: 30 | I15: 30 | J15: 30 | K15: 30 | L15: 30 | M15: 30 | N15: 30 | O15: 30 | P15: 30 | Q15: 30 | R15: =SUM(B15:Q15) -> 480
A17: ADTT (7-day) | B17: =(B10*5+B15*2)/7 -> 30 | C17: 30 | D17: 30 | E17: 30 | F17: 30 | G17: 30 | H17: 30 | I17: 30 | J17: 30 | K17: 30 | L17: 30 | M17: 30 | N17: 30 | O17: 30 | P17: 30 | Q17: 30 | R17: =SUM(B17:Q17) -> 480
A18: Seasonal Factor | B18: 1.2 | C18: 1.2 | D18: 1.2 | E18: 1.2 | F18: 1.2 | G18: 1.2 | H18: 1.2 | I18: 1.2 | J18: 1.2 | K18: 1.2 | L18: 1.2 | M18: 1.2 | N18: 1.2 | O18: 1.2 | P18: 1.2 | Q18: 1.2 | R18: =AVERAGE(B18:Q18) -> 1.2
A19: Diverted Traffic Factor | B19: 1.2 | C19: 1.2 | D19: 1.2 | E19: 1.2 | F19: 1.2 | G19: 1.2 | H19: 1.2 | I19: 1.2 | J19: 1.2 | K19: 1.2 | L19: 1.2 | M19: 1.2 | N19: 1.2 | O19: 1.2 | P19: 1.2 | Q19: 1.2 | R19: =AVERAGE(B19:Q19) -> 1.2
A20: Generated Traffic Factor | B20: 1.1 | C20: 1.1 | D20: 1.1 | E20: 1.1 | F20: 1.1 | G20: 1.1 | H20: 1.1 | I20: 1.1 | J20: 1.1 | K20: 1.1 | L20: 1.1 | M20: 1.1 | N20: 1.1 | O20: 1.1 | P20: 1.1 | Q20: 1.1 | R20: =AVERAGE(B20:Q20) -> 1.1
A22: AADTT (Design) | B22: =B17*$AA$12*B18*B19*B20 -> 47.52 | C22: 47.52 | D22: 47.52 | E22: 47.52 | F22: 47.52 | G22: 47.52 | H22: 47.52 | I22: 47.52 | J22: 47.52 | K22: 47.52 | L22: 47.52 | M22: 47.52 | N22: 47.52 | O22: 47.52 | P22: 47.52 | Q22: 47.52 | R22: =SUM(B22:Q22) -> 760.32
B27: Truck Type | C27: Axle 1 | D27: Axle 2 | E27: Axle 3 | F27: Axle 4 | G27: Axle 5 | H27: Axle 6 | I27: Axle 7 | J27: Axle 8 | K27: Axle 9
B28: 2 | C28: SAST | D28: SADT
B29: 3 | C29: SAST | D29: TADT
B30: 3B | C30: SAST | D30: SADT | E30: SADT
B31: 4 | C31: SAST | D31: SAST | E31: TADT
B32: 5 | C32: SAST | D32: TADT | F32: TADT
B33: 5B | C33: SAST | D33: TADT | F33: TAST
B34: 5C | C34: SAST | D34: SADT | E34: TRDT
B35: 5D | C35: SAST | D35: SADT | E35: TRST
B36: 6 | C36: SAST | D36: TADT | F36: TRDT
B37: 6B | C37: SAST | D37: TADT | F37: TRST
B38: 6C | C38: SAST | D38: TAST | F38: TRST
B39: 7 | C39: SAST | D39: TADT | F39: TADT | H39: TADT
B40: 7B | C40: SAST | D40: TADT | F40: TAST | H40: TAST
B41: 7C | C41: SAST | D41: TAST | F41: TAST | H41: TAST
B42: 9 | C42: SAST | D42: TADT | F42: TADT | H42: TADT | J42: TADT
B43: 9B | C43: SAST | D43: TADT | F43: TAST | H43: TAST | J43: TAST

Sheet 8 Axle Loads Direction 1-SS
A1: Computation of design axle loading from axle load survey data | J1: n= | K1: 4
C2: Axle Load (tonnes)
A3: Direction | B3: Vehicle Class | C3: Axle 1 | D3: Axle 2 | E3: Axle 3 | F3: Axle 4 | G3: Axle 5 | H3: Axle 6 | I3: Axle 7 | J3: Axle 8 | K3: Axle 9 | L3: HVAGs Loads (tonnes) | AD3: HVAGs (ESA) | AU3: VEF | AW3: QADT
L4: SAST1 | M4: SAST2 | N4: SADT1 | O4: SADT2 | P4: TADT1 | Q4: TADT2 | R4: TADT3 | S4: TADT4 | T4: TADT5 | U4: TAST1 | V4: TAST2 | W4: TAST3 | X4: TAST4 | Y4: TRDT1 | Z4: TRDT2 | AA4: TRST1 | AB4: TRST2 | AD4: SAST1 | AE4: SAST2 | AF4: SADT1 | AG4: SADT2 | AH4: TADT1 | AI4: TADT2 | AJ4: TADT3 | AK4: TADT4 | AL4: TADT5 | AM4: TAST1 | AN4: TAST2 | AO4: TAST3 | AP4: TAST4 | AQ4: TRDT1 | AR4: TRDT2 | AS4: TRST1 | AT4: TRST2 | AW4: Load (kN) | AX4: Sum of Loads | AY4: Proportion of Loads (%/100)
A5: 1 | B5: 3 | C5: 7 | D5: 6 | E5: 6 | L5: =C5 -> 7 | M5: =IF(B5=4,D5,0) -> 0 | N5: =IF(OR(B5=2,B5="3B",B5="5C",B5="5D"),D5,0) -> 0 | O5: =IF(B5="3B",E5,0) -> 0 | P5: =IF(OR(B5=3,B5=5,B5="5B",B5=6,B5="6B",B5=7,B5="7B",B5=9,B5="9B"),D5+E5,0) -> 12 | Q5: =IF(B5=4,E5+F5,0) -> 0 | R5: =IF(OR(B5=5,B5=7,B5=9),F5+G5,0) -> 0 | S5: =IF(OR(B5=7,B5=9),H5+I5,0) -> 0 | T5: =IF(B5=9,J5+K5,0) -> 0 | U5: =IF(OR(B5="6C",B5="7C"),D5+E5,0) -> 0 | V5: =IF(B5="4B",F5+G5,0) -> 0 | W5: =IF(OR(B5="7B",B5="7C",B5="9B"),H5+I5,0) -> 0 | X5: =IF(OR(B5="9B"),J5+K5,0) -> 0 | Y5: =IF((B5="5C"),E5+F5+G5,0) -> 0 | Z5: =IF(B5=6,F5+G5+H5,0) -> 0 | AA5: =IF((B5="5D"),E5+F5+G5,0) -> 0 | AB5: =IF(OR(B5="6B",B5="6C"),F5+G5+H5,0) -> 0 | AD5: =((L5*10)/58)^$K$1 -> 2.121681482 | AE5: =((M5*10)/58)^$K$1 -> 0 | AF5: =((N5*10)/80)^$K$1 -> 0 | AG5: =((O5*10)/80)^$K$1 -> 0 | AH5: =((P5*10)/135)^$K$1 -> 0.624295077 | AI5: =((Q5*10)/135)^$K$1 -> 0 | AJ5: =((R5*10)/135)^$K$1 -> 0 | AK5: =((S5*10)/135)^$K$1 -> 0 | AL5: =((T5*10)/135)^$K$1 -> 0 | AM5: =((U5*10)/98)^$K$1 -> 0 | AN5: =((V5*10)/98)^$K$1 -> 0 | AO5: =((W5*10)/98)^$K$1 -> 0 | AP5: =((X5*10)/98)^$K$1 -> 0 | AQ5: =((Y5*10)/182)^$K$1 -> 0 | AR5: =((Z5*10)/182)^$K$1 -> 0 | AS5: =((AA5*10)/132)^$K$1 -> 0 | AT5: =((AB5*10)/132)^$K$1 -> 0 | AU5: =SUM(AD5:AT5) -> 2.745976559 | AW5: 10
A6: 1 | B6: 2 | C6: 4 | D6: 8 | L6: =C6 -> 4 | M6: =IF(B6=4,D6,0) -> 0 | N6: =IF(OR(B6=2,B6="3B",B6="5C",B6="5D"),D6,0) -> 8 | O6: =IF(B6="3B",E6,0) -> 0 | P6: =IF(OR(B6=3,B6=5,B6="5B",B6=6,B6="6B",B6=7,B6="7B",B6=9,B6="9B"),D6+E6,0) -> 0 | Q6: =IF(B6=4,E6+F6,0) -> 0 | R6: =IF(OR(B6=5,B6=7,B6=9),F6+G6,0) -> 0 | S6: =IF(OR(B6=7,B6=9),H6+I6,0) -> 0 | T6: =IF(B6=9,J6+K6,0) -> 0 | U6: =IF(OR(B6="6C",B6="7C"),D6+E6,0) -> 0 | V6: =IF(B6="4B",F6+G6,0) -> 0 | W6: =IF(OR(B6="7B",B6="7C",B6="9B"),H6+I6,0) -> 0 | X6: =IF(OR(B6="9B"),J6+K6,0) -> 0 | Y6: =IF((B6="5C"),E6+F6+G6,0) -> 0 | Z6: =IF(B6=6,F6+G6+H6,0) -> 0 | AA6: =IF((B6="5D"),E6+F6+G6,0) -> 0 | AB6: =IF(OR(B6="6B",B6="6C"),F6+G6+H6,0) -> 0 | AD6: 0.2262184337 | AE6: 0 | AF6: 1 | AG6: 0 | AH6: 0 | AI6: 0 | AJ6: 0 | AK6: 0 | AL6: 0 | AM6: 0 | AN6: 0 | AO6: 0 | AP6: 0 | AQ6: 0 | AR6: 0 | AS6: =((AA6*10)/132)^$K$1 -> 0 | AT6: =((AB6*10)/132)^$K$1 -> 0 | AU6: =SUM(AD6:AT6) -> 1.226218434 | AW6: 20
A7: 1 | B7: 3 | L7: 0 | M7: 0 | N7: 0 | O7: 0 | P7: 0 | Q7: 0 | R7: 0 | S7: 0 | T7: 0 | U7: 0 | V7: 0 | W7: 0 | X7: 0 | Y7: 0 | Z7: 0 | AA7: 0 | AB7: 0 | AD7: 0 | AE7: 0 | AF7: 0 | AG7: 0 | AH7: 0 | AI7: 0 | AJ7: 0 | AK7: 0 | AL7: 0 | AM7: 0 | AN7: 0 | AO7: 0 | AP7: 0 | AQ7: 0 | AR7: 0 | AS7: 0 | AT7: 0 | AU7: 0 | AW7: 30
A8: 1 | B8: 3 | L8: 0 | M8: 0 | N8: 0 | O8: 0 | P8: 0 | Q8: 0 | R8: 0 | S8: 0 | T8: 0 | U8: 0 | V8: 0 | W8: 0 | X8: 0 | Y8: 0 | Z8: 0 | AA8: 0 | AB8: 0 | AD8: 0 | AE8: 0 | AF8: 0 | AG8: 0 | AH8: 0 | AI8: 0 | AJ8: 0 | AK8: 0 | AL8: 0 | AM8: 0 | AN8: 0 | AO8: 0 | AP8: 0 | AQ8: 0 | AR8: 0 | AS8: 0 | AT8: 0 | AU8: 0 | AW8: 40
A9: 1 | B9: 3 | L9: 0 | M9: 0 | N9: 0 | O9: 0 | P9: 0 | Q9: 0 | R9: 0 | S9: 0 | T9: 0 | U9: 0 | V9: 0 | W9: 0 | X9: 0 | Y9: 0 | Z9: 0 | AA9: 0 | AB9: 0 | AD9: 0 | AE9: 0 | AF9: 0 | AG9: 0 | AH9: 0 | AI9: 0 | AJ9: 0 | AK9: 0 | AL9: 0 | AM9: 0 | AN9: 0 | AO9: 0 | AP9: 0 | AQ9: 0 | AR9: 0 | AS9: 0 | AT9: 0 | AU9: 0 | AW9: 50
A10: 1 | B10: 3 | L10: 0 | M10: 0 | N10: 0 | O10: 0 | P10: 0 | Q10: 0 | R10: 0 | S10: 0 | T10: 0 | U10: 0 | V10: 0 | W10: 0 | X10: 0 | Y10: 0 | Z10: 0 | AA10: 0 | AB10: 0 | AD10: 0 | AE10: 0 | AF10: 0 | AG10: 0 | AH10: 0 | AI10: 0 | AJ10: 0 | AK10: 0 | AL10: 0 | AM10: 0 | AN10: 0 | AO10: 0 | AP10: 0 | AQ10: 0 | AR10: 0 | AS10: 0 | AT10: 0 | AU10: 0 | AW10: 60
A11: 1 | B11: 3 | L11: 0 | M11: 0 | N11: 0 | O11: 0 | P11: 0 | Q11: 0 | R11: 0 | S11: 0 | T11: 0 | U11: 0 | V11: 0 | W11: 0 | X11: 0 | Y11: 0 | Z11: 0 | AA11: 0 | AB11: 0 | AD11: 0 | AE11: 0 | AF11: 0 | AG11: 0 | AH11: 0 | AI11: 0 | AJ11: 0 | AK11: 0 | AL11: 0 | AM11: 0 | AN11: 0 | AO11: 0 | AP11: 0 | AQ11: 0 | AR11: 0 | AS11: 0 | AT11: 0 | AU11: 0 | AW11: 70
A12: 1 | B12: 3B | C12: 6 | D12: 10 | E12: 8 | L12: 6 | M12: 0 | N12: 10 | O12: 8 | P12: 0 | Q12: 0 | R12: 0 | S12: 0 | T12: 0 | U12: 0 | V12: 0 | W12: 0 | X12: 0 | Y12: 0 | Z12: 0 | AA12: 0 | AB12: 0 | AD12: 1.145230821 | AE12: 0 | AF12: 2.44140625 | AG12: 1 | AH12: 0 | AI12: 0 | AJ12: 0 | AK12: 0 | AL12: 0 | AM12: 0 | AN12: 0 | AO12: 0 | AP12: 0 | AQ12: 0 | AR12: 0 | AS12: 0 | AT12: 0 | AU12: 4.586637071 | AW12: 80
A13: 1 | B13: 3 | L13: 0 | M13: 0 | N13: 0 | O13: 0 | P13: 0 | Q13: 0 | R13: 0 | S13: 0 | T13: 0 | U13: 0 | V13: 0 | W13: 0 | X13: 0 | Y13: 0 | Z13: 0 | AA13: 0 | AB13: 0 | AD13: 0 | AE13: 0 | AF13: 0 | AG13: 0 | AH13: 0 | AI13: 0 | AJ13: 0 | AK13: 0 | AL13: 0 | AM13: 0 | AN13: 0 | AO13: 0 | AP13: 0 | AQ13: 0 | AR13: 0 | AS13: 0 | AT13: 0 | AU13: 0 | AW13: 90
A14: 1 | B14: 3 | L14: 0 | M14: 0 | N14: 0 | O14: 0 | P14: 0 | Q14: 0 | R14: 0 | S14: 0 | T14: 0 | U14: 0 | V14: 0 | W14: 0 | X14: 0 | Y14: 0 | Z14: 0 | AA14: 0 | AB14: 0 | AD14: 0 | AE14: 0 | AF14: 0 | AG14: 0 | AH14: 0 | AI14: 0 | AJ14: 0 | AK14: 0 | AL14: 0 | AM14: 0 | AN14: 0 | AO14: 0 | AP14: 0 | AQ14: 0 | AR14: 0 | AS14: 0 | AT14: 0 | AU14: 0 | AW14: 100
A15: 1 | B15: 3 | L15: 0 | M15: 0 | N15: 0 | O15: 0 | P15: 0 | Q15: 0 | R15: 0 | S15: 0 | T15: 0 | U15: 0 | V15: 0 | W15: 0 | X15: 0 | Y15: 0 | Z15: 0 | AA15: 0 | AB15: 0 | AD15: 0 | AE15: 0 | AF15: 0 | AG15: 0 | AH15: 0 | AI15: 0 | AJ15: 0 | AK15: 0 | AL15: 0 | AM15: 0 | AN15: 0 | AO15: 0 | AP15: 0 | AQ15: 0 | AR15: 0 | AS15: 0 | AT15: 0 | AU15: 0 | AW15: 110
A16: 1 | B16: 3 | L16: 0 | M16: 0 | N16: 0 | O16: 0 | P16: 0 | Q16: 0 | R16: 0 | S16: 0 | T16: 0 | U16: 0 | V16: 0 | W16: 0 | X16: 0 | Y16: 0 | Z16: 0 | AA16: 0 | AB16: 0 | AD16: 0 | AE16: 0 | AF16: 0 | AG16: 0 | AH16: 0 | AI16: 0 | AJ16: 0 | AK16: 0 | AL16: 0 | AM16: 0 | AN16: 0 | AO16: 0 | AP16: 0 | AQ16: 0 | AR16: 0 | AS16: 0 | AT16: 0 | AU16: 0 | AW16: 120
A17: 1 | B17: 3 | L17: 0 | M17: 0 | N17: 0 | O17: 0 | P17: 0 | Q17: 0 | R17: 0 | S17: 0 | T17: 0 | U17: 0 | V17: 0 | W17: 0 | X17: 0 | Y17: 0 | Z17: 0 | AA17: 0 | AB17: 0 | AD17: 0 | AE17: 0 | AF17: 0 | AG17: 0 | AH17: 0 | AI17: 0 | AJ17: 0 | AK17: 0 | AL17: 0 | AM17: 0 | AN17: 0 | AO17: 0 | AP17: 0 | AQ17: 0 | AR17: 0 | AS17: 0 | AT17: 0 | AU17: 0 | AW17: 130
A18: 1 | B18: 3 | L18: 0 | M18: 0 | N18: 0 | O18: 0 | P18: 0 | Q18: 0 | R18: 0 | S18: 0 | T18: 0 | U18: 0 | V18: 0 | W18: 0 | X18: 0 | Y18: 0 | Z18: 0 | AA18: 0 | AB18: 0 | AD18: 0 | AE18: 0 | AF18: 0 | AG18: 0 | AH18: 0 | AI18: 0 | AJ18: 0 | AK18: 0 | AL18: 0 | AM18: 0 | AN18: 0 | AO18: 0 | AP18: 0 | AQ18: 0 | AR18: 0 | AS18: 0 | AT18: 0 | AU18: 0 | AW18: 140
A19: 1 | B19: 3 | L19: 0 | M19: 0 | N19: 0 | O19: 0 | P19: 0 | Q19: 0 | R19: 0 | S19: 0 | T19: 0 | U19: 0 | V19: 0 | W19: 0 | X19: 0 | Y19: 0 | Z19: 0 | AA19: 0 | AB19: 0 | AD19: 0 | AE19: 0 | AF19: 0 | AG19: 0 | AH19: 0 | AI19: 0 | AJ19: 0 | AK19: 0 | AL19: 0 | AM19: 0 | AN19: 0 | AO19: 0 | AP19: 0 | AQ19: 0 | AR19: 0 | AS19: 0 | AT19: 0 | AU19: 0 | AW19: 150
A20: 1 | B20: 3 | L20: 0 | M20: 0 | N20: 0 | O20: 0 | P20: 0 | Q20: 0 | R20: 0 | S20: 0 | T20: 0 | U20: 0 | V20: 0 | W20: 0 | X20: 0 | Y20: 0 | Z20: 0 | AA20: 0 | AB20: 0 | AD20: 0 | AE20: 0 | AF20: 0 | AG20: 0 | AH20: 0 | AI20: 0 | AJ20: 0 | AK20: 0 | AL20: 0 | AM20: 0 | AN20: 0 | AO20: 0 | AP20: 0 | AQ20: 0 | AR20: 0 | AS20: 0 | AT20: 0 | AU20: 0 | AW20: 160
A21: 1 | B21: 3 | L21: 0 | M21: 0 | N21: 0 | O21: 0 | P21: 0 | Q21: 0 | R21: 0 | S21: 0 | T21: 0 | U21: 0 | V21: 0 | W21: 0 | X21: 0 | Y21: 0 | Z21: 0 | AA21: 0 | AB21: 0 | AD21: 0 | AE21: 0 | AF21: 0 | AG21: 0 | AH21: 0 | AI21: 0 | AJ21: 0 | AK21: 0 | AL21: 0 | AM21: 0 | AN21: 0 | AO21: 0 | AP21: 0 | AQ21: 0 | AR21: 0 | AS21: 0 | AT21: 0 | AU21: 0 | AW21: 170
A22: 1 | B22: 3C | C22: 6 | D22: 8 | E22: 4 | L22: 6 | M22: 0 | N22: 0 | O22: 0 | P22: 0 | Q22: 0 | R22: 0 | S22: 0 | T22: 0 | U22: 0 | V22: 0 | W22: 0 | X22: 0 | Y22: 0 | Z22: 0 | AA22: 0 | AB22: 0 | AD22: 1.145230821 | AE22: 0 | AF22: 0 | AG22: 0 | AH22: 0 | AI22: 0 | AJ22: 0 | AK22: 0 | AL22: 0 | AM22: 0 | AN22: 0 | AO22: 0 | AP22: 0 | AQ22: 0 | AR22: 0 | AS22: 0 | AT22: 0 | AU22: 1.145230821 | AW22: 180
A23: 1 | B23: 3 | L23: 0 | M23: 0 | N23: 0 | O23: 0 | P23: 0 | Q23: 0 | R23: 0 | S23: 0 | T23: 0 | U23: 0 | V23: 0 | W23: 0 | X23: 0 | Y23: 0 | Z23: 0 | AA23: 0 | AB23: 0 | AD23: 0 | AE23: 0 | AF23: 0 | AG23: 0 | AH23: 0 | AI23: 0 | AJ23: 0 | AK23: 0 | AL23: 0 | AM23: 0 | AN23: 0 | AO23: 0 | AP23: 0 | AQ23: 0 | AR23: 0 | AS23: 0 | AT23: 0 | AU23: 0 | AW23: 190
A24: 1 | B24: 3 | L24: 0 | M24: 0 | N24: 0 | O24: 0 | P24: 0 | Q24: 0 | R24: 0 | S24: 0 | T24: 0 | U24: 0 | V24: 0 | W24: 0 | X24: 0 | Y24: 0 | Z24: 0 | AA24: 0 | AB24: 0 | AD24: 0 | AE24: 0 | AF24: 0 | AG24: 0 | AH24: 0 | AI24: 0 | AJ24: 0 | AK24: 0 | AL24: 0 | AM24: 0 | AN24: 0 | AO24: 0 | AP24: 0 | AQ24: 0 | AR24: 0 | AS24: 0 | AT24: 0 | AU24: 0 | AW24: 200
A25: 1 | B25: 3 | L25: 0 | M25: 0 | N25: 0 | O25: 0 | P25: 0 | Q25: 0 | R25: 0 | S25: 0 | T25: 0 | U25: 0 | V25: 0 | W25: 0 | X25: 0 | Y25: 0 | Z25: 0 | AA25: 0 | AB25: 0 | AD25: 0 | AE25: 0 | AF25: 0 | AG25: 0 | AH25: 0 | AI25: 0 | AJ25: 0 | AK25: 0 | AL25: 0 | AM25: 0 | AN25: 0 | AO25: 0 | AP25: 0 | AQ25: 0 | AR25: 0 | AS25: 0 | AT25: 0 | AU25: 0 | AW25: 210
A26: 1 | B26: 3 | L26: 0 | M26: 0 | N26: 0 | O26: 0 | P26: 0 | Q26: 0 | R26: 0 | S26: 0 | T26: 0 | U26: 0 | V26: 0 | W26: 0 | X26: 0 | Y26: 0 | Z26: 0 | AA26: 0 | AB26: 0 | AD26: 0 | AE26: 0 | AF26: 0 | AG26: 0 | AH26: 0 | AI26: 0 | AJ26: 0 | AK26: 0 | AL26: 0 | AM26: 0 | AN26: 0 | AO26: 0 | AP26: 0 | AQ26: 0 | AR26: 0 | AS26: 0 | AT26: 0 | AU26: 0 | AW26: 220
A27: 1 | B27: 3 | L27: 0 | M27: 0 | N27: 0 | O27: 0 | P27: 0 | Q27: 0 | R27: 0 | S27: 0 | T27: 0 | U27: 0 | V27: 0 | W27: 0 | X27: 0 | Y27: 0 | Z27: 0 | AA27: 0 | AB27: 0 | AD27: 0 | AE27: 0 | AF27: 0 | AG27: 0 | AH27: 0 | AI27: 0 | AJ27: 0 | AK27: 0 | AL27: 0 | AM27: 0 | AN27: 0 | AO27: 0 | AP27: 0 | AQ27: 0 | AR27: 0 | AS27: 0 | AT27: 0 | AU27: 0 | AW27: 230
A28: 1 | B28: 3 | L28: 0 | M28: 0 | N28: 0 | O28: 0 | P28: 0 | Q28: 0 | R28: 0 | S28: 0 | T28: 0 | U28: 0 | V28: 0 | W28: 0 | X28: 0 | Y28: 0 | Z28: 0 | AA28: 0 | AB28: 0 | AD28: 0 | AE28: 0 | AF28: 0 | AG28: 0 | AH28: 0 | AI28: 0 | AJ28: 0 | AK28: 0 | AL28: 0 | AM28: 0 | AN28: 0 | AO28: 0 | AP28: 0 | AQ28: 0 | AR28: 0 | AS28: 0 | AT28: 0 | AU28: 0 | AW28: 240
A29: 1 | B29: 3 | L29: 0 | M29: 0 | N29: 0 | O29: 0 | P29: 0 | Q29: 0 | R29: 0 | S29: 0 | T29: 0 | U29: 0 | V29: 0 | W29: 0 | X29: 0 | Y29: 0 | Z29: 0 | AA29: 0 | AB29: 0 | AD29: 0 | AE29: 0 | AF29: 0 | AG29: 0 | AH29: 0 | AI29: 0 | AJ29: 0 | AK29: 0 | AL29: 0 | AM29: 0 | AN29: 0 | AO29: 0 | AP29: 0 | AQ29: 0 | AR29: 0 | AS29: 0 | AT29: 0 | AU29: 0 | AW29: 250
A30: 1 | B30: 4 | C30: 6 | D30: 6 | E30: 8 | F30: 9 | L30: 6 | M30: 6 | N30: 0 | O30: 0 | P30: 0 | Q30: 17 | R30: 0 | S30: 0 | T30: 0 | U30: 0 | V30: 0 | W30: 0 | X30: 0 | Y30: 0 | Z30: 0 | AA30: 0 | AB30: 0 | AD30: 1.145230821 | AE30: 1.145230821 | AF30: 0 | AG30: 0 | AH30: 0 | AI30: 2.514551945 | AJ30: 0 | AK30: 0 | AL30: 0 | AM30: 0 | AN30: 0 | AO30: 0 | AP30: 0 | AQ30: 0 | AR30: 0 | AS30: 0 | AT30: 0 | AU30: 4.805013586 | AW30: 260
A31: 1 | B31: 3 | L31: 0 | M31: 0 | N31: 0 | O31: 0 | P31: 0 | Q31: 0 | R31: 0 | S31: 0 | T31: 0 | U31: 0 | V31: 0 | W31: 0 | X31: 0 | Y31: 0 | Z31: 0 | AA31: 0 | AB31: 0 | AD31: 0 | AE31: 0 | AF31: 0 | AG31: 0 | AH31: 0 | AI31: 0 | AJ31: 0 | AK31: 0 | AL31: 0 | AM31: 0 | AN31: 0 | AO31: 0 | AP31: 0 | AQ31: 0 | AR31: 0 | AS31: 0 | AT31: 0 | AU31: 0 | AW31: 270
A32: 1 | B32: 3 | L32: 0 | M32: 0 | N32: 0 | O32: 0 | P32: 0 | Q32: 0 | R32: 0 | S32: 0 | T32: 0 | U32: 0 | V32: 0 | W32: 0 | X32: 0 | Y32: 0 | Z32: 0 | AA32: 0 | AB32: 0 | AD32: 0 | AE32: 0 | AF32: 0 | AG32: 0 | AH32: 0 | AI32: 0 | AJ32: 0 | AK32: 0 | AL32: 0 | AM32: 0 | AN32: 0 | AO32: 0 | AP32: 0 | AQ32: 0 | AR32: 0 | AS32: 0 | AT32: 0 | AU32: 0 | AW32: 280
A33: 1 | B33: 3 | L33: 0 | M33: 0 | N33: 0 | O33: 0 | P33: 0 | Q33: 0 | R33: 0 | S33: 0 | T33: 0 | U33: 0 | V33: 0 | W33: 0 | X33: 0 | Y33: 0 | Z33: 0 | AA33: 0 | AB33: 0 | AD33: 0 | AE33: 0 | AF33: 0 | AG33: 0 | AH33: 0 | AI33: 0 | AJ33: 0 | AK33: 0 | AL33: 0 | AM33: 0 | AN33: 0 | AO33: 0 | AP33: 0 | AQ33: 0 | AR33: 0 | AS33: 0 | AT33: 0 | AU33: 0 | AW33: 290
A34: 1 | B34: 3 | L34: 0 | M34: 0 | N34: 0 | O34: 0 | P34: 0 | Q34: 0 | R34: 0 | S34: 0 | T34: 0 | U34: 0 | V34: 0 | W34: 0 | X34: 0 | Y34: 0 | Z34: 0 | AA34: 0 | AB34: 0 | AD34: 0 | AE34: 0 | AF34: 0 | AG34: 0 | AH34: 0 | AI34: 0 | AJ34: 0 | AK34: 0 | AL34: 0 | AM34: 0 | AN34: 0 | AO34: 0 | AP34: 0 | AQ34: 0 | AR34: 0 | AS34: 0 | AT34: 0 | AU34: 0 | AW34: 300
A35: 1 | B35: 4B | C35: 6 | D35: 6 | E35: 10 | F35: 10 | L35: 6 | M35: 0 | N35: 0 | O35: 0 | P35: 0 | Q35: 0 | R35: 0 | S35: 0 | T35: 0 | U35: 0 | V35: 10 | W35: 0 | X35: 0 | Y35: 0 | Z35: 0 | AA35: 0 | AB35: 0 | AD35: 1.145230821 | AE35: 0 | AF35: 0 | AG35: 0 | AH35: 0 | AI35: 0 | AJ35: 0 | AK35: 0 | AL35: 0 | AM35: 0 | AN35: 1.084165785 | AO35: 0 | AP35: 0 | AQ35: 0 | AR35: 0 | AS35: 0 | AT35: 0 | AU35: 2.229396605 | AW35: 310
A36: 1 | B36: 3 | L36: 0 | M36: 0 | N36: 0 | O36: 0 | P36: 0 | Q36: 0 | R36: 0 | S36: 0 | T36: 0 | U36: 0 | V36: 0 | W36: 0 | X36: 0 | Y36: 0 | Z36: 0 | AA36: 0 | AB36: 0 | AD36: 0 | AE36: 0 | AF36: 0 | AG36: 0 | AH36: 0 | AI36: 0 | AJ36: 0 | AK36: 0 | AL36: 0 | AM36: 0 | AN36: 0 | AO36: 0 | AP36: 0 | AQ36: 0 | AR36: 0 | AS36: 0 | AT36: 0 | AU36: 0 | AW36: 320
A37: 1 | B37: 3 | L37: 0 | M37: 0 | N37: 0 | O37: 0 | P37: 0 | Q37: 0 | R37: 0 | S37: 0 | T37: 0 | U37: 0 | V37: 0 | W37: 0 | X37: 0 | Y37: 0 | Z37: 0 | AA37: 0 | AB37: 0 | AD37: =((L37*10)/58)^$K$1 -> 0 | AE37: =((M37*10)/58)^$K$1 -> 0 | AF37: =((N37*10)/80)^$K$1 -> 0 | AG37: =((O37*10)/80)^$K$1 -> 0 | AH37: 0 | AI37: 0 | AJ37: 0 | AK37: 0 | AL37: 0 | AM37: =((U37*10)/98)^$K$1 -> 0 | AN37: =((V37*10)/98)^$K$1 -> 0 | AO37: =((W37*10)/98)^$K$1 -> 0 | AP37: =((X37*10)/98)^$K$1 -> 0 | AQ37: 0 | AR37: 0 | AS37: 0 | AT37: 0 | AU37: 0 | AW37: 330
A38: 1 | B38: 3 | L38: 0 | M38: 0 | N38: 0 | O38: 0 | P38: 0 | Q38: 0 | R38: 0 | S38: 0 | T38: 0 | U38: 0 | V38: 0 | W38: 0 | X38: 0 | Y38: 0 | Z38: 0 | AA38: 0 | AB38: 0 | AD38: 0 | AE38: 0 | AF38: 0 | AG38: 0 | AH38: 0 | AI38: 0 | AJ38: 0 | AK38: 0 | AL38: 0 | AM38: 0 | AN38: 0 | AO38: 0 | AP38: 0 | AQ38: 0 | AR38: 0 | AS38: 0 | AT38: 0 | AU38: 0 | AW38: 340
A39: 1 | B39: 3 | L39: 0 | M39: 0 | N39: 0 | O39: 0 | P39: 0 | Q39: 0 | R39: 0 | S39: 0 | T39: 0 | U39: 0 | V39: 0 | W39: 0 | X39: 0 | Y39: 0 | Z39: 0 | AA39: 0 | AB39: 0 | AD39: 0 | AE39: 0 | AF39: 0 | AG39: 0 | AH39: 0 | AI39: 0 | AJ39: 0 | AK39: 0 | AL39: 0 | AM39: 0 | AN39: 0 | AO39: 0 | AP39: 0 | AQ39: 0 | AR39: 0 | AS39: 0 | AT39: 0 | AU39: 0 | AW39: 350
A40: 1 | B40: 3 | L40: 0 | M40: 0 | N40: 0 | O40: 0 | P40: 0 | Q40: 0 | R40: 0 | S40: 0 | T40: 0 | U40: 0 | V40: 0 | W40: 0 | X40: 0 | Y40: 0 | Z40: 0 | AA40: 0 | AB40: 0 | AD40: 0 | AE40: 0 | AF40: 0 | AG40: 0 | AH40: 0 | AI40: 0 | AJ40: 0 | AK40: 0 | AL40: 0 | AM40: 0 | AN40: 0 | AO40: 0 | AP40: 0 | AQ40: 0 | AR40: 0 | AS40: 0 | AT40: 0 | AU40: 0 | AW40: Sum | AY40: =SUM(AY5:AY39) -> 0
A41: 1 | B41: 3 | L41: 0 | M41: 0 | N41: 0 | O41: 0 | P41: 0 | Q41: 0 | R41: 0 | S41: 0 | T41: 0 | U41: 0 | V41: 0 | W41: 0 | X41: 0 | Y41: 0 | Z41: 0 | AA41: 0 | AB41: 0 | AD41: 0 | AE41: 0 | AF41: 0 | AG41: 0 | AH41: 0 | AI41: 0 | AJ41: 0 | AK41: 0 | AL41: 0 | AM41: 0 | AN41: 0 | AO41: 0 | AP41: 0 | AQ41: 0 | AR41: 0 | AS41: 0 | AT41: 0 | AU41: 0
A42: 1 | B42: 3 | L42: 0 | M42: 0 | N42: 0 | O42: 0 | P42: 0 | Q42: 0 | R42: 0 | S42: 0 | T42: 0 | U42: 0 | V42: 0 | W42: 0 | X42: 0 | Y42: 0 | Z42: 0 | AA42: 0 | AB42: 0 | AD42: 0 | AE42: 0 | AF42: 0 | AG42: 0 | AH42: 0 | AI42: 0 | AJ42: 0 | AK42: 0 | AL42: 0 | AM42: 0 | AN42: 0 | AO42: 0 | AP42: 0 | AQ42: 0 | AR42: 0 | AS42: 0 | AT42: 0 | AU42: 0
A43: 1 | B43: 3 | L43: 0 | M43: 0 | N43: 0 | O43: 0 | P43: 0 | Q43: 0 | R43: 0 | S43: 0 | T43: 0 | U43: 0 | V43: 0 | W43: 0 | X43: 0 | Y43: 0 | Z43: 0 | AA43: 0 | AB43: 0 | AD43: 0 | AE43: 0 | AF43: 0 | AG43: 0 | AH43: 0 | AI43: 0 | AJ43: 0 | AK43: 0 | AL43: 0 | AM43: 0 | AN43: 0 | AO43: 0 | AP43: 0 | AQ43: 0 | AR43: 0 | AS43: 0 | AT43: 0 | AU43: 0
A44: 1 | B44: 3 | L44: 0 | M44: 0 | N44: 0 | O44: 0 | P44: 0 | Q44: 0 | R44: 0 | S44: 0 | T44: 0 | U44: 0 | V44: 0 | W44: 0 | X44: 0 | Y44: 0 | Z44: 0 | AA44: 0 | AB44: 0 | AD44: 0 | AE44: 0 | AF44: 0 | AG44: 0 | AH44: 0 | AI44: 0 | AJ44: 0 | AK44: 0 | AL44: 0 | AM44: 0 | AN44: 0 | AO44: 0 | AP44: 0 | AQ44: 0 | AR44: 0 | AS44: 0 | AT44: 0 | AU44: 0
A45: 1 | B45: 5 | L45: 0 | M45: 0 | N45: 0 | O45: 0 | P45: 0 | Q45: 0 | R45: 0 | S45: 0 | T45: 0 | U45: 0 | V45: 0 | W45: 0 | X45: 0 | Y45: 0 | Z45: 0 | AA45: 0 | AB45: 0 | AD45: 0 | AE45: 0 | AF45: 0 | AG45: 0 | AH45: 0 | AI45: 0 | AJ45: 0 | AK45: 0 | AL45: 0 | AM45: 0 | AN45: 0 | AO45: 0 | AP45: 0 | AQ45: 0 | AR45: 0 | AS45: 0 | AT45: 0 | AU45: 0
A46: 1 | B46: 3 | L46: 0 | M46: 0 | N46: 0 | O46: 0 | P46: 0 | Q46: 0 | R46: 0 | S46: 0 | T46: 0 | U46: 0 | V46: 0 | W46: 0 | X46: 0 | Y46: 0 | Z46: 0 | AA46: 0 | AB46: 0 | AD46: 0 | AE46: 0 | AF46: 0 | AG46: 0 | AH46: 0 | AI46: 0 | AJ46: 0 | AK46: 0 | AL46: 0 | AM46: 0 | AN46: 0 | AO46: 0 | AP46: 0 | AQ46: 0 | AR46: 0 | AS46: 0 | AT46: 0 | AU46: 0
A47: 1 | B47: 3 | L47: 0 | M47: 0 | N47: 0 | O47: 0 | P47: 0 | Q47: 0 | R47: 0 | S47: 0 | T47: 0 | U47: 0 | V47: 0 | W47: 0 | X47: 0 | Y47: 0 | Z47: 0 | AA47: 0 | AB47: 0 | AD47: 0 | AE47: 0 | AF47: 0 | AG47: 0 | AH47: 0 | AI47: 0 | AJ47: 0 | AK47: 0 | AL47: 0 | AM47: 0 | AN47: 0 | AO47: 0 | AP47: 0 | AQ47: 0 | AR47: 0 | AS47: 0 | AT47: 0 | AU47: 0
A48: 1 | B48: 3 | L48: 0 | M48: 0 | N48: 0 | O48: 0 | P48: 0 | Q48: 0 | R48: 0 | S48: 0 | T48: 0 | U48: 0 | V48: 0 | W48: 0 | X48: 0 | Y48: 0 | Z48: 0 | AA48: 0 | AB48: 0 | AD48: 0 | AE48: 0 | AF48: 0 | AG48: 0 | AH48: 0 | AI48: 0 | AJ48: 0 | AK48: 0 | AL48: 0 | AM48: 0 | AN48: 0 | AO48: 0 | AP48: 0 | AQ48: 0 | AR48: 0 | AS48: 0 | AT48: 0 | AU48: 0
A49: 1 | B49: 3 | L49: 0 | M49: 0 | N49: 0 | O49: 0 | P49: 0 | Q49: 0 | R49: 0 | S49: 0 | T49: 0 | U49: 0 | V49: 0 | W49: 0 | X49: 0 | Y49: 0 | Z49: 0 | AA49: 0 | AB49: 0 | AD49: 0 | AE49: 0 | AF49: 0 | AG49: 0 | AH49: 0 | AI49: 0 | AJ49: 0 | AK49: 0 | AL49: 0 | AM49: 0 | AN49: 0 | AO49: 0 | AP49: 0 | AQ49: 0 | AR49: 0 | AS49: 0 | AT49: 0 | AU49: 0
A50: 1 | B50: 3 | L50: 0 | M50: 0 | N50: 0 | O50: 0 | P50: 0 | Q50: 0 | R50: 0 | S50: 0 | T50: 0 | U50: 0 | V50: 0 | W50: 0 | X50: 0 | Y50: 0 | Z50: 0 | AA50: 0 | AB50: 0 | AD50: 0 | AE50: 0 | AF50: 0 | AG50: 0 | AH50: 0 | AI50: 0 | AJ50: 0 | AK50: 0 | AL50: 0 | AM50: 0 | AN50: 0 | AO50: 0 | AP50: 0 | AQ50: 0 | AR50: 0 | AS50: 0 | AT50: 0 | AU50: 0
A51: 1 | B51: 5B | C51: 4 | D51: 6 | E51: 6 | F51: 9 | G51: 9 | L51: 4 | M51: 0 | N51: 0 | O51: 0 | P51: 12 | Q51: 0 | R51: 0 | S51: 0 | T51: 0 | U51: 0 | V51: 0 | W51: 0 | X51: 0 | Y51: 0 | Z51: 0 | AA51: 0 | AB51: 0 | AD51: 0.2262184337 | AE51: 0 | AF51: 0 | AG51: 0 | AH51: 0.624295077 | AI51: 0 | AJ51: 0 | AK51: 0 | AL51: 0 | AM51: 0 | AN51: 0 | AO51: 0 | AP51: 0 | AQ51: 0 | AR51: 0 | AS51: 0 | AT51: 0 | AU51: 0.8505135107
A52: 1 | B52: 3 | L52: 0 | M52: 0 | N52: 0 | O52: 0 | P52: 0 | Q52: 0 | R52: 0 | S52: 0 | T52: 0 | U52: 0 | V52: 0 | W52: 0 | X52: 0 | Y52: 0 | Z52: 0 | AA52: 0 | AB52: 0 | AD52: 0 | AE52: 0 | AF52: 0 | AG52: 0 | AH52: 0 | AI52: 0 | AJ52: 0 | AK52: 0 | AL52: 0 | AM52: 0 | AN52: 0 | AO52: 0 | AP52: 0 | AQ52: 0 | AR52: 0 | AS52: 0 | AT52: 0 | AU52: 0
A53: 1 | B53: 3 | L53: 0 | M53: 0 | N53: 0 | O53: 0 | P53: 0 | Q53: 0 | R53: 0 | S53: 0 | T53: 0 | U53: 0 | V53: 0 | W53: 0 | X53: 0 | Y53: 0 | Z53: 0 | AA53: 0 | AB53: 0 | AD53: 0 | AE53: 0 | AF53: 0 | AG53: 0 | AH53: 0 | AI53: 0 | AJ53: 0 | AK53: 0 | AL53: 0 | AM53: 0 | AN53: 0 | AO53: 0 | AP53: 0 | AQ53: 0 | AR53: 0 | AS53: 0 | AT53: 0 | AU53: 0
A54: 1 | B54: 3 | L54: 0 | M54: 0 | N54: 0 | O54: 0 | P54: 0 | Q54: 0 | R54: 0 | S54: 0 | T54: 0 | U54: 0 | V54: 0 | W54: 0 | X54: 0 | Y54: 0 | Z54: 0 | AA54: 0 | AB54: 0 | AD54: 0 | AE54: 0 | AF54: 0 | AG54: 0 | AH54: 0 | AI54: 0 | AJ54: 0 | AK54: 0 | AL54: 0 | AM54: 0 | AN54: 0 | AO54: 0 | AP54: 0 | AQ54: 0 | AR54: 0 | AS54: 0 | AT54: 0 | AU54: 0
A55: 1 | B55: 3 | L55: 0 | M55: 0 | N55: 0 | O55: 0 | P55: 0 | Q55: 0 | R55: 0 | S55: 0 | T55: 0 | U55: 0 | V55: 0 | W55: 0 | X55: 0 | Y55: 0 | Z55: 0 | AA55: 0 | AB55: 0 | AD55: 0 | AE55: 0 | AF55: 0 | AG55: 0 | AH55: 0 | AI55: 0 | AJ55: 0 | AK55: 0 | AL55: 0 | AM55: 0 | AN55: 0 | AO55: 0 | AP55: 0 | AQ55: 0 | AR55: 0 | AS55: 0 | AT55: 0 | AU55: 0
A56: 1 | B56: 3 | L56: 0 | M56: 0 | N56: 0 | O56: 0 | P56: 0 | Q56: 0 | R56: 0 | S56: 0 | T56: 0 | U56: 0 | V56: 0 | W56: 0 | X56: 0 | Y56: 0 | Z56: 0 | AA56: 0 | AB56: 0 | AD56: 0 | AE56: 0 | AF56: 0 | AG56: 0 | AH56: 0 | AI56: 0 | AJ56: 0 | AK56: 0 | AL56: 0 | AM56: 0 | AN56: 0 | AO56: 0 | AP56: 0 | AQ56: 0 | AR56: 0 | AS56: 0 | AT56: 0 | AU56: 0
A57: 1 | B57: 3 | L57: 0 | M57: 0 | N57: 0 | O57: 0 | P57: 0 | Q57: 0 | R57: 0 | S57: 0 | T57: 0 | U57: 0 | V57: 0 | W57: 0 | X57: 0 | Y57: 0 | Z57: 0 | AA57: 0 | AB57: 0 | AD57: 0 | AE57: 0 | AF57: 0 | AG57: 0 | AH57: 0 | AI57: 0 | AJ57: 0 | AK57: 0 | AL57: 0 | AM57: 0 | AN57: 0 | AO57: 0 | AP57: 0 | AQ57: 0 | AR57: 0 | AS57: 0 | AT57: 0 | AU57: 0
A58: 1 | B58: 6 | C58: 5 | D58: 6 | E58: 6 | F58: 9 | G58: 9 | H58: 9 | L58: 5 | M58: 0 | N58: 0 | O58: 0 | P58: 12 | Q58: 0 | R58: 0 | S58: 0 | T58: 0 | U58: 0 | V58: 0 | W58: 0 | X58: 0 | Y58: 0 | Z58: 27 | AA58: 0 | AB58: 0 | AD58: 0.5522910979 | AE58: 0 | AF58: 0 | AG58: 0 | AH58: 0.624295077 | AI58: 0 | AJ58: 0 | AK58: 0 | AL58: 0 | AM58: 0 | AN58: 0 | AO58: 0 | AP58: 0 | AQ58: 0 | AR58: 4.843613765 | AS58: 0 | AT58: 0 | AU58: 6.020199939
A59: 1 | B59: 3 | L59: 0 | M59: 0 | N59: 0 | O59: 0 | P59: 0 | Q59: 0 | R59: 0 | S59: 0 | T59: 0 | U59: 0 | V59: 0 | W59: 0 | X59: 0 | Y59: 0 | Z59: 0 | AA59: 0 | AB59: 0 | AD59: 0 | AE59: 0 | AF59: 0 | AG59: 0 | AH59: 0 | AI59: 0 | AJ59: 0 | AK59: 0 | AL59: 0 | AM59: 0 | AN59: 0 | AO59: 0 | AP59: 0 | AQ59: 0 | AR59: 0 | AS59: 0 | AT59: 0 | AU59: 0
A60: 1 | B60: 3 | L60: 0 | M60: 0 | N60: 0 | O60: 0 | P60: 0 | Q60: 0 | R60: 0 | S60: 0 | T60: 0 | U60: 0 | V60: 0 | W60: 0 | X60: 0 | Y60: 0 | Z60: 0 | AA60: 0 | AB60: 0 | AD60: 0 | AE60: 0 | AF60: 0 | AG60: 0 | AH60: 0 | AI60: 0 | AJ60: 0 | AK60: 0 | AL60: 0 | AM60: 0 | AN60: 0 | AO60: 0 | AP60: 0 | AQ60: 0 | AR60: 0 | AS60: 0 | AT60: 0 | AU60: 0
A61: 1 | B61: 3 | L61: 0 | M61: 0 | N61: 0 | O61: 0 | P61: 0 | Q61: 0 | R61: 0 | S61: 0 | T61: 0 | U61: 0 | V61: 0 | W61: 0 | X61: 0 | Y61: 0 | Z61: 0 | AA61: 0 | AB61: 0 | AD61: 0 | AE61: 0 | AF61: 0 | AG61: 0 | AH61: 0 | AI61: 0 | AJ61: 0 | AK61: 0 | AL61: 0 | AM61: 0 | AN61: 0 | AO61: 0 | AP61: 0 | AQ61: 0 | AR61: 0 | AS61: 0 | AT61: 0 | AU61: 0
A62: 1 | B62: 3 | L62: 0 | M62: 0 | N62: 0 | O62: 0 | P62: 0 | Q62: 0 | R62: 0 | S62: 0 | T62: 0 | U62: 0 | V62: 0 | W62: 0 | X62: 0 | Y62: 0 | Z62: 0 | AA62: 0 | AB62: 0 | AD62: 0 | AE62: 0 | AF62: 0 | AG62: 0 | AH62: 0 | AI62: 0 | AJ62: 0 | AK62: 0 | AL62: 0 | AM62: 0 | AN62: 0 | AO62: 0 | AP62: 0 | AQ62: 0 | AR62: 0 | AS62: 0 | AT62: 0 | AU62: 0
A63: 1 | B63: 6B | C63: 5 | D63: 7 | E63: 7 | F63: 9 | G63: 9 | H63: 9 | L63: 5 | M63: 0 | N63: 0 | O63: 0 | P63: 14 | Q63: 0 | R63: 0 | S63: 0 | T63: 0 | U63: 0 | V63: 0 | W63: 0 | X63: 0 | Y63: 0 | Z63: 0 | AA63: 0 | AB63: 27 | AD63: 0.5522910979 | AE63: 0 | AF63: 0 | AG63: 0 | AH63: 1.156583704 | AI63: 0 | AJ63: 0 | AK63: 0 | AL63: 0 | AM63: 0 | AN63: 0 | AO63: 0 | AP63: 0 | AQ63: 0 | AR63: 0 | AS63: 0 | AT63: 17.50488782 | AU63: 19.21376262
A64: 1 | B64: 3 | L64: 0 | M64: 0 | N64: 0 | O64: 0 | P64: 0 | Q64: 0 | R64: 0 | S64: 0 | T64: 0 | U64: 0 | V64: 0 | W64: 0 | X64: 0 | Y64: 0 | Z64: 0 | AA64: 0 | AB64: 0 | AD64: 0 | AE64: 0 | AF64: 0 | AG64: 0 | AH64: 0 | AI64: 0 | AJ64: 0 | AK64: 0 | AL64: 0 | AM64: 0 | AN64: 0 | AO64: 0 | AP64: 0 | AQ64: 0 | AR64: 0 | AS64: 0 | AT64: 0 | AU64: 0
A65: 1 | B65: 3 | L65: 0 | M65: 0 | N65: 0 | O65: 0 | P65: 0 | Q65: 0 | R65: 0 | S65: 0 | T65: 0 | U65: 0 | V65: 0 | W65: 0 | X65: 0 | Y65: 0 | Z65: 0 | AA65: 0 | AB65: 0 | AD65: 0 | AE65: 0 | AF65: 0 | AG65: 0 | AH65: 0 | AI65: 0 | AJ65: 0 | AK65: 0 | AL65: 0 | AM65: 0 | AN65: 0 | AO65: 0 | AP65: 0 | AQ65: 0 | AR65: 0 | AS65: 0 | AT65: 0 | AU65: 0
A66: 1 | B66: 3 | L66: 0 | M66: 0 | N66: 0 | O66: 0 | P66: 0 | Q66: 0 | R66: 0 | S66: 0 | T66: 0 | U66: 0 | V66: 0 | W66: 0 | X66: 0 | Y66: 0 | Z66: 0 | AA66: 0 | AB66: 0 | AD66: 0 | AE66: 0 | AF66: 0 | AG66: 0 | AH66: 0 | AI66: 0 | AJ66: 0 | AK66: 0 | AL66: 0 | AM66: 0 | AN66: 0 | AO66: 0 | AP66: 0 | AQ66: 0 | AR66: 0 | AS66: 0 | AT66: 0 | AU66: 0
A67: 1 | B67: 3 | L67: 0 | M67: 0 | N67: 0 | O67: 0 | P67: 0 | Q67: 0 | R67: 0 | S67: 0 | T67: 0 | U67: 0 | V67: 0 | W67: 0 | X67: 0 | Y67: 0 | Z67: 0 | AA67: 0 | AB67: 0 | AD67: 0 | AE67: 0 | AF67: 0 | AG67: 0 | AH67: 0 | AI67: 0 | AJ67: 0 | AK67: 0 | AL67: 0 | AM67: 0 | AN67: 0 | AO67: 0 | AP67: 0 | AQ67: 0 | AR67: 0 | AS67: 0 | AT67: 0 | AU67: 0
A68: 1 | B68: 7 | C68: 4 | D68: 6 | E68: 6 | F68: 10 | G68: 10 | H68: 9 | I68: 9 | L68: 4 | M68: 0 | N68: 0 | O68: 0 | P68: 12 | Q68: 0 | R68: 20 | S68: 18 | T68: 0 | U68: 0 | V68: 0 | W68: 0 | X68: 0 | Y68: 0 | Z68: 0 | AA68: 0 | AB68: 0 | AD68: 0.2262184337 | AE68: 0 | AF68: 0 | AG68: 0 | AH68: 0.624295077 | AI68: 0 | AJ68: 4.817091643 | AK68: 3.160493827 | AL68: 0 | AM68: 0 | AN68: 0 | AO68: 0 | AP68: 0 | AQ68: 0 | AR68: 0 | AS68: 0 | AT68: 0 | AU68: 8.828098981
A69: 1 | B69: 3 | L69: 0 | M69: 0 | N69: 0 | O69: 0 | P69: 0 | Q69: 0 | R69: 0 | S69: 0 | T69: 0 | U69: 0 | V69: 0 | W69: 0 | X69: 0 | Y69: 0 | Z69: 0 | AA69: 0 | AB69: 0 | AD69: =((L69*10)/58)^$K$1 -> 0 | AE69: =((M69*10)/58)^$K$1 -> 0 | AF69: =((N69*10)/80)^$K$1 -> 0 | AG69: =((O69*10)/80)^$K$1 -> 0 | AH69: =((P69*10)/135)^$K$1 -> 0 | AI69: =((Q69*10)/135)^$K$1 -> 0 | AJ69: =((R69*10)/135)^$K$1 -> 0 | AK69: =((S69*10)/135)^$K$1 -> 0 | AL69: =((T69*10)/135)^$K$1 -> 0 | AM69: =((U69*10)/98)^$K$1 -> 0 | AN69: =((V69*10)/98)^$K$1 -> 0 | AO69: =((W69*10)/98)^$K$1 -> 0 | AP69: =((X69*10)/98)^$K$1 -> 0 | AQ69: =((Y69*10)/182)^$K$1 -> 0 | AR69: =((Z69*10)/182)^$K$1 -> 0 | AS69: 0 | AT69: 0 | AU69: 0
A70: 1 | B70: 3 | L70: =C70 -> 0 | M70: =IF(B70=4,D70,0) -> 0 | N70: =IF(OR(B70=2,B70="3B",B70="5C",B70="5D"),D70,0) -> 0 | O70: =IF(B70="3B",E70,0) -> 0 | P70: =IF(OR(B70=3,B70=5,B70="5B",B70=6,B70="6B",B70=7,B70="7B",B70=9,B70="9B"),D70+E70,0) -> 0 | Q70: =IF(B70=4,E70+F70,0) -> 0 | R70: =IF(OR(B70=5,B70=7,B70=9),F70+G70,0) -> 0 | S70: =IF(OR(B70=7,B70=9),H70+I70,0) -> 0 | T70: =IF(B70=9,J70+K70,0) -> 0 | U70: =IF(OR(B70="6C",B70="7C"),D70+E70,0) -> 0 | V70: =IF(B70="4B",F70+G70,0) -> 0 | W70: =IF(OR(B70="7B",B70="7C",B70="9B"),H70+I70,0) -> 0 | X70: =IF(OR(B70="9B"),J70+K70,0) -> 0 | Y70: =IF((B70="5C"),E70+F70+G70,0) -> 0 | Z70: =IF(B70=6,F70+G70+H70,0) -> 0 | AA70: =IF((B70="5D"),E70+F70+G70,0) -> 0 | AB70: =IF(OR(B70="6B",B70="6C"),F70+G70+H70,0) -> 0 | AD70: 0 | AE70: 0 | AF70: 0 | AG70: 0 | AH70: 0 | AI70: 0 | AJ70: 0 | AK70: 0 | AL70: 0 | AM70: 0 | AN70: 0 | AO70: 0 | AP70: 0 | AQ70: 0 | AR70: 0 | AS70: =((AA70*10)/132)^$K$1 -> 0 | AT70: =((AB70*10)/132)^$K$1 -> 0 | AU70: =SUM(AD70:AT70) -> 0
A71: 1 | B71: 7B | C71: 4 | D71: 6 | E71: 6 | F71: 10 | G71: 10 | H71: 9 | I71: 9 | L71: 4 | M71: 0 | N71: 0 | O71: 0 | P71: 12 | Q71: 0 | R71: 0 | S71: 0 | T71: 0 | U71: 0 | V71: 0 | W71: 18 | X71: 0 | Y71: 0 | Z71: 0 | AA71: 0 | AB71: 0 | AD71: 0.2262184337 | AE71: 0 | AF71: 0 | AG71: 0 | AH71: 0.624295077 | AI71: 0 | AJ71: 0 | AK71: 0 | AL71: 0 | AM71: 0 | AN71: 0 | AO71: 11.38113874 | AP71: 0 | AQ71: 0 | AR71: 0 | AS71: 0 | AT71: 0 | AU71: 12.23165225
A72: 1 | B72: 3 | L72: 0 | M72: 0 | N72: 0 | O72: 0 | P72: 0 | Q72: 0 | R72: 0 | S72: 0 | T72: 0 | U72: 0 | V72: 0 | W72: 0 | X72: 0 | Y72: 0 | Z72: 0 | AA72: 0 | AB72: 0 | AD72: 0 | AE72: 0 | AF72: 0 | AG72: 0 | AH72: 0 | AI72: 0 | AJ72: 0 | AK72: 0 | AL72: 0 | AM72: 0 | AN72: 0 | AO72: 0 | AP72: 0 | AQ72: 0 | AR72: 0 | AS72: 0 | AT72: 0 | AU72: 0
A73: 1 | B73: 3 | L73: 0 | M73: 0 | N73: 0 | O73: 0 | P73: 0 | Q73: 0 | R73: 0 | S73: 0 | T73: 0 | U73: 0 | V73: 0 | W73: 0 | X73: 0 | Y73: 0 | Z73: 0 | AA73: 0 | AB73: 0 | AD73: 0 | AE73: 0 | AF73: 0 | AG73: 0 | AH73: 0 | AI73: 0 | AJ73: 0 | AK73: 0 | AL73: 0 | AM73: 0 | AN73: 0 | AO73: 0 | AP73: 0 | AQ73: 0 | AR73: 0 | AS73: 0 | AT73: 0 | AU73: 0
A74: 1 | B74: 3 | L74: 0 | M74: 0 | N74: 0 | O74: 0 | P74: 0 | Q74: 0 | R74: 0 | S74: 0 | T74: 0 | U74: 0 | V74: 0 | W74: 0 | X74: 0 | Y74: 0 | Z74: 0 | AA74: 0 | AB74: 0 | AD74: 0 | AE74: 0 | AF74: 0 | AG74: 0 | AH74: 0 | AI74: 0 | AJ74: 0 | AK74: 0 | AL74: 0 | AM74: 0 | AN74: 0 | AO74: 0 | AP74: 0 | AQ74: 0 | AR74: 0 | AS74: 0 | AT74: 0 | AU74: 0
A75: 1 | B75: 3 | L75: 0 | M75: 0 | N75: 0 | O75: 0 | P75: 0 | Q75: 0 | R75: 0 | S75: 0 | T75: 0 | U75: 0 | V75: 0 | W75: 0 | X75: 0 | Y75: 0 | Z75: 0 | AA75: 0 | AB75: 0 | AD75: 0 | AE75: 0 | AF75: 0 | AG75: 0 | AH75: 0 | AI75: 0 | AJ75: 0 | AK75: 0 | AL75: 0 | AM75: 0 | AN75: 0 | AO75: 0 | AP75: 0 | AQ75: 0 | AR75: 0 | AS75: 0 | AT75: 0 | AU75: 0
A76: 1 | B76: 3 | L76: 0 | M76: 0 | N76: 0 | O76: 0 | P76: 0 | Q76: 0 | R76: 0 | S76: 0 | T76: 0 | U76: 0 | V76: 0 | W76: 0 | X76: 0 | Y76: 0 | Z76: 0 | AA76: 0 | AB76: 0 | AD76: 0 | AE76: 0 | AF76: 0 | AG76: 0 | AH76: 0 | AI76: 0 | AJ76: 0 | AK76: 0 | AL76: 0 | AM76: 0 | AN76: 0 | AO76: 0 | AP76: 0 | AQ76: 0 | AR76: 0 | AS76: 0 | AT76: 0 | AU76: 0
A77: 1 | B77: 9 | C77: 4 | D77: 4 | E77: 6 | F77: 6 | G77: 7 | H77: 7 | I77: 7 | J77: 7 | K77: 8 | L77: 4 | M77: 0 | N77: 0 | O77: 0 | P77: 10 | Q77: 0 | R77: 13 | S77: 14 | T77: 15 | U77: 0 | V77: 0 | W77: 0 | X77: 0 | Y77: 0 | Z77: 0 | AA77: 0 | AB77: 0 | AD77: 0.2262184337 | AE77: 0 | AF77: 0 | AG77: 0 | AH77: 0.3010682277 | AI77: 0 | AJ77: 0.8598809651 | AK77: 1.156583704 | AL77: 1.524157903 | AM77: 0 | AN77: 0 | AO77: 0 | AP77: 0 | AQ77: 0 | AR77: 0 | AS77: 0 | AT77: 0 | AU77: 4.067909233
A78: 1 | B78: 3 | L78: 0 | M78: 0 | N78: 0 | O78: 0 | P78: 0 | Q78: 0 | R78: 0 | S78: 0 | T78: 0 | U78: 0 | V78: 0 | W78: 0 | X78: 0 | Y78: 0 | Z78: 0 | AA78: 0 | AB78: 0 | AD78: 0 | AE78: 0 | AF78: 0 | AG78: 0 | AH78: 0 | AI78: 0 | AJ78: 0 | AK78: 0 | AL78: 0 | AM78: 0 | AN78: 0 | AO78: 0 | AP78: 0 | AQ78: 0 | AR78: 0 | AS78: 0 | AT78: 0 | AU78: 0
A79: 1 | B79: 3 | L79: 0 | M79: 0 | N79: 0 | O79: 0 | P79: 0 | Q79: 0 | R79: 0 | S79: 0 | T79: 0 | U79: 0 | V79: 0 | W79: 0 | X79: 0 | Y79: 0 | Z79: 0 | AA79: 0 | AB79: 0 | AD79: 0 | AE79: 0 | AF79: 0 | AG79: 0 | AH79: 0 | AI79: 0 | AJ79: 0 | AK79: 0 | AL79: 0 | AM79: 0 | AN79: 0 | AO79: 0 | AP79: 0 | AQ79: 0 | AR79: 0 | AS79: 0 | AT79: 0 | AU79: 0
A80: 1 | B80: 3 | L80: 0 | M80: 0 | N80: 0 | O80: 0 | P80: 0 | Q80: 0 | R80: 0 | S80: 0 | T80: 0 | U80: 0 | V80: 0 | W80: 0 | X80: 0 | Y80: 0 | Z80: 0 | AA80: 0 | AB80: 0 | AD80: 0 | AE80: 0 | AF80: 0 | AG80: 0 | AH80: 0 | AI80: 0 | AJ80: 0 | AK80: 0 | AL80: 0 | AM80: 0 | AN80: 0 | AO80: 0 | AP80: 0 | AQ80: 0 | AR80: 0 | AS80: 0 | AT80: 0 | AU80: 0
A81: 1 | B81: 3 | L81: 0 | M81: 0 | N81: 0 | O81: 0 | P81: 0 | Q81: 0 | R81: 0 | S81: 0 | T81: 0 | U81: 0 | V81: 0 | W81: 0 | X81: 0 | Y81: 0 | Z81: 0 | AA81: 0 | AB81: 0 | AD81: 0 | AE81: 0 | AF81: 0 | AG81: 0 | AH81: 0 | AI81: 0 | AJ81: 0 | AK81: 0 | AL81: 0 | AM81: 0 | AN81: 0 | AO81: 0 | AP81: 0 | AQ81: 0 | AR81: 0 | AS81: 0 | AT81: 0 | AU81: 0
A82: 1 | B82: 3 | L82: 0 | M82: 0 | N82: 0 | O82: 0 | P82: 0 | Q82: 0 | R82: 0 | S82: 0 | T82: 0 | U82: 0 | V82: 0 | W82: 0 | X82: 0 | Y82: 0 | Z82: 0 | AA82: 0 | AB82: 0 | AD82: 0 | AE82: 0 | AF82: 0 | AG82: 0 | AH82: 0 | AI82: 0 | AJ82: 0 | AK82: 0 | AL82: 0 | AM82: 0 | AN82: 0 | AO82: 0 | AP82: 0 | AQ82: 0 | AR82: 0 | AS82: 0 | AT82: 0 | AU82: 0
A83: 1 | B83: 9B | C83: 4 | D83: 4 | E83: 6 | F83: 6 | G83: 7 | H83: 9 | I83: 9 | J83: 7 | K83: 8 | L83: 4 | M83: 0 | N83: 0 | O83: 0 | P83: 10 | Q83: 0 | R83: 0 | S83: 0 | T83: 0 | U83: 0 | V83: 0 | W83: 18 | X83: 15 | Y83: 0 | Z83: 0 | AA83: 0 | AB83: 0 | AD83: 0.2262184337 | AE83: 0 | AF83: 0 | AG83: 0 | AH83: 0.3010682277 | AI83: 0 | AJ83: 0 | AK83: 0 | AL83: 0 | AM83: 0 | AN83: 0 | AO83: 11.38113874 | AP83: 5.488589285 | AQ83: 0 | AR83: 0 | AS83: 0 | AT83: 0 | AU83: 17.39701469
A84: 1 | B84: 3 | L84: 0 | M84: 0 | N84: 0 | O84: 0 | P84: 0 | Q84: 0 | R84: 0 | S84: 0 | T84: 0 | U84: 0 | V84: 0 | W84: 0 | X84: 0 | Y84: 0 | Z84: 0 | AA84: 0 | AB84: 0 | AD84: 0 | AE84: 0 | AF84: 0 | AG84: 0 | AH84: 0 | AI84: 0 | AJ84: 0 | AK84: 0 | AL84: 0 | AM84: 0 | AN84: 0 | AO84: 0 | AP84: 0 | AQ84: 0 | AR84: 0 | AS84: 0 | AT84: 0 | AU84: 0
A85: 1 | B85: 3 | L85: 0 | M85: 0 | N85: 0 | O85: 0 | P85: 0 | Q85: 0 | R85: 0 | S85: 0 | T85: 0 | U85: 0 | V85: 0 | W85: 0 | X85: 0 | Y85: 0 | Z85: 0 | AA85: 0 | AB85: 0 | AD85: 0 | AE85: 0 | AF85: 0 | AG85: 0 | AH85: 0 | AI85: 0 | AJ85: 0 | AK85: 0 | AL85: 0 | AM85: 0 | AN85: 0 | AO85: 0 | AP85: 0 | AQ85: 0 | AR85: 0 | AS85: 0 | AT85: 0 | AU85: 0
A86: 1 | B86: 3 | L86: 0 | M86: 0 | N86: 0 | O86: 0 | P86: 0 | Q86: 0 | R86: 0 | S86: 0 | T86: 0 | U86: 0 | V86: 0 | W86: 0 | X86: 0 | Y86: 0 | Z86: 0 | AA86: 0 | AB86: 0 | AD86: 0 | AE86: 0 | AF86: 0 | AG86: 0 | AH86: 0 | AI86: 0 | AJ86: 0 | AK86: 0 | AL86: 0 | AM86: 0 | AN86: 0 | AO86: 0 | AP86: 0 | AQ86: 0 | AR86: 0 | AS86: 0 | AT86: 0 | AU86: 0
A87: 1 | B87: 3 | L87: 0 | M87: 0 | N87: 0 | O87: 0 | P87: 0 | Q87: 0 | R87: 0 | S87: 0 | T87: 0 | U87: 0 | V87: 0 | W87: 0 | X87: 0 | Y87: 0 | Z87: 0 | AA87: 0 | AB87: 0 | AD87: 0 | AE87: 0 | AF87: 0 | AG87: 0 | AH87: 0 | AI87: 0 | AJ87: 0 | AK87: 0 | AL87: 0 | AM87: 0 | AN87: 0 | AO87: 0 | AP87: 0 | AQ87: 0 | AR87: 0 | AS87: 0 | AT87: 0 | AU87: 0
A88: 1 | B88: 3 | L88: 0 | M88: 0 | N88: 0 | O88: 0 | P88: 0 | Q88: 0 | R88: 0 | S88: 0 | T88: 0 | U88: 0 | V88: 0 | W88: 0 | X88: 0 | Y88: 0 | Z88: 0 | AA88: 0 | AB88: 0 | AD88: 0 | AE88: 0 | AF88: 0 | AG88: 0 | AH88: 0 | AI88: 0 | AJ88: 0 | AK88: 0 | AL88: 0 | AM88: 0 | AN88: 0 | AO88: 0 | AP88: 0 | AQ88: 0 | AR88: 0 | AS88: 0 | AT88: 0 | AU88: 0
A89: 1 | B89: 3 | L89: 0 | M89: 0 | N89: 0 | O89: 0 | P89: 0 | Q89: 0 | R89: 0 | S89: 0 | T89: 0 | U89: 0 | V89: 0 | W89: 0 | X89: 0 | Y89: 0 | Z89: 0 | AA89: 0 | AB89: 0 | AD89: 0 | AE89: 0 | AF89: 0 | AG89: 0 | AH89: 0 | AI89: 0 | AJ89: 0 | AK89: 0 | AL89: 0 | AM89: 0 | AN89: 0 | AO89: 0 | AP89: 0 | AQ89: 0 | AR89: 0 | AS89: 0 | AT89: 0 | AU89: 0
A90: 1 | B90: 3 | L90: 0 | M90: 0 | N90: 0 | O90: 0 | P90: 0 | Q90: 0 | R90: 0 | S90: 0 | T90: 0 | U90: 0 | V90: 0 | W90: 0 | X90: 0 | Y90: 0 | Z90: 0 | AA90: 0 | AB90: 0 | AD90: 0 | AE90: 0 | AF90: 0 | AG90: 0 | AH90: 0 | AI90: 0 | AJ90: 0 | AK90: 0 | AL90: 0 | AM90: 0 | AN90: 0 | AO90: 0 | AP90: 0 | AQ90: 0 | AR90: 0 | AS90: 0 | AT90: 0 | AU90: 0
A91: 1 | B91: 3 | L91: 0 | M91: 0 | N91: 0 | O91: 0 | P91: 0 | Q91: 0 | R91: 0 | S91: 0 | T91: 0 | U91: 0 | V91: 0 | W91: 0 | X91: 0 | Y91: 0 | Z91: 0 | AA91: 0 | AB91: 0 | AD91: 0 | AE91: 0 | AF91: 0 | AG91: 0 | AH91: 0 | AI91: 0 | AJ91: 0 | AK91: 0 | AL91: 0 | AM91: 0 | AN91: 0 | AO91: 0 | AP91: 0 | AQ91: 0 | AR91: 0 | AS91: 0 | AT91: 0 | AU91: 0
A92: 1 | B92: 3 | L92: 0 | M92: 0 | N92: 0 | O92: 0 | P92: 0 | Q92: 0 | R92: 0 | S92: 0 | T92: 0 | U92: 0 | V92: 0 | W92: 0 | X92: 0 | Y92: 0 | Z92: 0 | AA92: 0 | AB92: 0 | AD92: 0 | AE92: 0 | AF92: 0 | AG92: 0 | AH92: 0 | AI92: 0 | AJ92: 0 | AK92: 0 | AL92: 0 | AM92: 0 | AN92: 0 | AO92: 0 | AP92: 0 | AQ92: 0 | AR92: 0 | AS92: 0 | AT92: 0 | AU92: 0
A93: 1 | B93: 3 | L93: 0 | M93: 0 | N93: 0 | O93: 0 | P93: 0 | Q93: 0 | R93: 0 | S93: 0 | T93: 0 | U93: 0 | V93: 0 | W93: 0 | X93: 0 | Y93: 0 | Z93: 0 | AA93: 0 | AB93: 0 | AD93: 0 | AE93: 0 | AF93: 0 | AG93: 0 | AH93: 0 | AI93: 0 | AJ93: 0 | AK93: 0 | AL93: 0 | AM93: 0 | AN93: 0 | AO93: 0 | AP93: 0 | AQ93: 0 | AR93: 0 | AS93: 0 | AT93: 0 | AU93: 0
A94: 1 | B94: 3 | L94: 0 | M94: 0 | N94: 0 | O94: 0 | P94: 0 | Q94: 0 | R94: 0 | S94: 0 | T94: 0 | U94: 0 | V94: 0 | W94: 0 | X94: 0 | Y94: 0 | Z94: 0 | AA94: 0 | AB94: 0 | AD94: 0 | AE94: 0 | AF94: 0 | AG94: 0 | AH94: 0 | AI94: 0 | AJ94: 0 | AK94: 0 | AL94: 0 | AM94: 0 | AN94: 0 | AO94: 0 | AP94: 0 | AQ94: 0 | AR94: 0 | AS94: 0 | AT94: 0 | AU94: 0
A95: 1 | B95: 3 | L95: 0 | M95: 0 | N95: 0 | O95: 0 | P95: 0 | Q95: 0 | R95: 0 | S95: 0 | T95: 0 | U95: 0 | V95: 0 | W95: 0 | X95: 0 | Y95: 0 | Z95: 0 | AA95: 0 | AB95: 0 | AD95: 0 | AE95: 0 | AF95: 0 | AG95: 0 | AH95: 0 | AI95: 0 | AJ95: 0 | AK95: 0 | AL95: 0 | AM95: 0 | AN95: 0 | AO95: 0 | AP95: 0 | AQ95: 0 | AR95: 0 | AS95: 0 | AT95: 0 | AU95: 0
A96: 1 | B96: 3 | L96: 0 | M96: 0 | N96: 0 | O96: 0 | P96: 0 | Q96: 0 | R96: 0 | S96: 0 | T96: 0 | U96: 0 | V96: 0 | W96: 0 | X96: 0 | Y96: 0 | Z96: 0 | AA96: 0 | AB96: 0 | AD96: 0 | AE96: 0 | AF96: 0 | AG96: 0 | AH96: 0 | AI96: 0 | AJ96: 0 | AK96: 0 | AL96: 0 | AM96: 0 | AN96: 0 | AO96: 0 | AP96: 0 | AQ96: 0 | AR96: 0 | AS96: 0 | AT96: 0 | AU96: 0
A97: 1 | B97: 3 | L97: 0 | M97: 0 | N97: 0 | O97: 0 | P97: 0 | Q97: 0 | R97: 0 | S97: 0 | T97: 0 | U97: 0 | V97: 0 | W97: 0 | X97: 0 | Y97: 0 | Z97: 0 | AA97: 0 | AB97: 0 | AD97: 0 | AE97: 0 | AF97: 0 | AG97: 0 | AH97: 0 | AI97: 0 | AJ97: 0 | AK97: 0 | AL97: 0 | AM97: 0 | AN97: 0 | AO97: 0 | AP97: 0 | AQ97: 0 | AR97: 0 | AS97: 0 | AT97: 0 | AU97: 0
A98: 1 | B98: 3 | L98: 0 | M98: 0 | N98: 0 | O98: 0 | P98: 0 | Q98: 0 | R98: 0 | S98: 0 | T98: 0 | U98: 0 | V98: 0 | W98: 0 | X98: 0 | Y98: 0 | Z98: 0 | AA98: 0 | AB98: 0 | AD98: 0 | AE98: 0 | AF98: 0 | AG98: 0 | AH98: 0 | AI98: 0 | AJ98: 0 | AK98: 0 | AL98: 0 | AM98: 0 | AN98: 0 | AO98: 0 | AP98: 0 | AQ98: 0 | AR98: 0 | AS98: 0 | AT98: 0 | AU98: 0
A99: 1 | B99: 3 | L99: 0 | M99: 0 | N99: 0 | O99: 0 | P99: 0 | Q99: 0 | R99: 0 | S99: 0 | T99: 0 | U99: 0 | V99: 0 | W99: 0 | X99: 0 | Y99: 0 | Z99: 0 | AA99: 0 | AB99: 0 | AD99: 0 | AE99: 0 | AF99: 0 | AG99: 0 | AH99: 0 | AI99: 0 | AJ99: 0 | AK99: 0 | AL99: 0 | AM99: 0 | AN99: 0 | AO99: 0 | AP99: 0 | AQ99: 0 | AR99: 0 | AS99: 0 | AT99: 0 | AU99: 0
A100: 1 | B100: 3 | L100: 0 | M100: 0 | N100: 0 | O100: 0 | P100: 0 | Q100: 0 | R100: 0 | S100: 0 | T100: 0 | U100: 0 | V100: 0 | W100: 0 | X100: 0 | Y100: 0 | Z100: 0 | AA100: 0 | AB100: 0 | AD100: 0 | AE100: 0 | AF100: 0 | AG100: 0 | AH100: 0 | AI100: 0 | AJ100: 0 | AK100: 0 | AL100: 0 | AM100: 0 | AN100: 0 | AO100: 0 | AP100: 0 | AQ100: 0 | AR100: 0 | AS100: 0 | AT100: 0 | AU100: 0
A101: 1 | B101: 3 | L101: 0 | M101: 0 | N101: 0 | O101: 0 | P101: 0 | Q101: 0 | R101: 0 | S101: 0 | T101: 0 | U101: 0 | V101: 0 | W101: 0 | X101: 0 | Y101: 0 | Z101: 0 | AA101: 0 | AB101: 0 | AD101: =((L101*10)/58)^$K$1 -> 0 | AE101: =((M101*10)/58)^$K$1 -> 0 | AF101: =((N101*10)/80)^$K$1 -> 0 | AG101: =((O101*10)/80)^$K$1 -> 0 | AH101: 0 | AI101: 0 | AJ101: 0 | AK101: 0 | AL101: 0 | AM101: =((U101*10)/98)^$K$1 -> 0 | AN101: =((V101*10)/98)^$K$1 -> 0 | AO101: =((W101*10)/98)^$K$1 -> 0 | AP101: =((X101*10)/98)^$K$1 -> 0 | AQ101: 0 | AR101: 0 | AS101: 0 | AT101: 0 | AU101: 0
A102: 1 | B102: 3 | L102: 0 | M102: 0 | N102: 0 | O102: 0 | P102: 0 | Q102: 0 | R102: 0 | S102: 0 | T102: 0 | U102: 0 | V102: 0 | W102: 0 | X102: 0 | Y102: 0 | Z102: 0 | AA102: 0 | AB102: 0 | AD102: 0 | AE102: 0 | AF102: 0 | AG102: 0 | AH102: 0 | AI102: 0 | AJ102: 0 | AK102: 0 | AL102: 0 | AM102: 0 | AN102: 0 | AO102: 0 | AP102: 0 | AQ102: 0 | AR102: 0 | AS102: 0 | AT102: 0 | AU102: 0
A103: 1 | B103: 3 | L103: 0 | M103: 0 | N103: 0 | O103: 0 | P103: 0 | Q103: 0 | R103: 0 | S103: 0 | T103: 0 | U103: 0 | V103: 0 | W103: 0 | X103: 0 | Y103: 0 | Z103: 0 | AA103: 0 | AB103: 0 | AD103: 0 | AE103: 0 | AF103: 0 | AG103: 0 | AH103: 0 | AI103: 0 | AJ103: 0 | AK103: 0 | AL103: 0 | AM103: 0 | AN103: 0 | AO103: 0 | AP103: 0 | AQ103: 0 | AR103: 0 | AS103: 0 | AT103: 0 | AU103: 0
A104: 1 | B104: 3 | L104: 0 | M104: 0 | N104: 0 | O104: 0 | P104: 0 | Q104: 0 | R104: 0 | S104: 0 | T104: 0 | U104: 0 | V104: 0 | W104: 0 | X104: 0 | Y104: 0 | Z104: 0 | AA104: 0 | AB104: 0 | AD104: 0 | AE104: 0 | AF104: 0 | AG104: 0 | AH104: 0 | AI104: 0 | AJ104: 0 | AK104: 0 | AL104: 0 | AM104: 0 | AN104: 0 | AO104: 0 | AP104: 0 | AQ104: 0 | AR104: 0 | AS104: 0 | AT104: 0 | AU104: 0
A105: 1 | B105: 3 | L105: 0 | M105: 0 | N105: 0 | O105: 0 | P105: 0 | Q105: 0 | R105: 0 | S105: 0 | T105: 0 | U105: 0 | V105: 0 | W105: 0 | X105: 0 | Y105: 0 | Z105: 0 | AA105: 0 | AB105: 0 | AD105: 0 | AE105: 0 | AF105: 0 | AG105: 0 | AH105: 0 | AI105: 0 | AJ105: 0 | AK105: 0 | AL105: 0 | AM105: 0 | AN105: 0 | AO105: 0 | AP105: 0 | AQ105: 0 | AR105: 0 | AS105: 0 | AT105: 0 | AU105: 0
A106: 1 | B106: 3 | L106: 0 | M106: 0 | N106: 0 | O106: 0 | P106: 0 | Q106: 0 | R106: 0 | S106: 0 | T106: 0 | U106: 0 | V106: 0 | W106: 0 | X106: 0 | Y106: 0 | Z106: 0 | AA106: 0 | AB106: 0 | AD106: 0 | AE106: 0 | AF106: 0 | AG106: 0 | AH106: 0 | AI106: 0 | AJ106: 0 | AK106: 0 | AL106: 0 | AM106: 0 | AN106: 0 | AO106: 0 | AP106: 0 | AQ106: 0 | AR106: 0 | AS106: 0 | AT106: 0 | AU106: 0
A107: 1 | B107: 3 | L107: 0 | M107: 0 | N107: 0 | O107: 0 | P107: 0 | Q107: 0 | R107: 0 | S107: 0 | T107: 0 | U107: 0 | V107: 0 | W107: 0 | X107: 0 | Y107: 0 | Z107: 0 | AA107: 0 | AB107: 0 | AD107: 0 | AE107: 0 | AF107: 0 | AG107: 0 | AH107: 0 | AI107: 0 | AJ107: 0 | AK107: 0 | AL107: 0 | AM107: 0 | AN107: 0 | AO107: 0 | AP107: 0 | AQ107: 0 | AR107: 0 | AS107: 0 | AT107: 0 | AU107: 0
A108: 1 | B108: 3 | L108: 0 | M108: 0 | N108: 0 | O108: 0 | P108: 0 | Q108: 0 | R108: 0 | S108: 0 | T108: 0 | U108: 0 | V108: 0 | W108: 0 | X108: 0 | Y108: 0 | Z108: 0 | AA108: 0 | AB108: 0 | AD108: 0 | AE108: 0 | AF108: 0 | AG108: 0 | AH108: 0 | AI108: 0 | AJ108: 0 | AK108: 0 | AL108: 0 | AM108: 0 | AN108: 0 | AO108: 0 | AP108: 0 | AQ108: 0 | AR108: 0 | AS108: 0 | AT108: 0 | AU108: 0
A109: 1 | B109: 3 | L109: 0 | M109: 0 | N109: 0 | O109: 0 | P109: 0 | Q109: 0 | R109: 0 | S109: 0 | T109: 0 | U109: 0 | V109: 0 | W109: 0 | X109: 0 | Y109: 0 | Z109: 0 | AA109: 0 | AB109: 0 | AD109: 0 | AE109: 0 | AF109: 0 | AG109: 0 | AH109: 0 | AI109: 0 | AJ109: 0 | AK109: 0 | AL109: 0 | AM109: 0 | AN109: 0 | AO109: 0 | AP109: 0 | AQ109: 0 | AR109: 0 | AS109: 0 | AT109: 0 | AU109: 0
A110: 1 | B110: 3 | L110: 0 | M110: 0 | N110: 0 | O110: 0 | P110: 0 | Q110: 0 | R110: 0 | S110: 0 | T110: 0 | U110: 0 | V110: 0 | W110: 0 | X110: 0 | Y110: 0 | Z110: 0 | AA110: 0 | AB110: 0 | AD110: 0 | AE110: 0 | AF110: 0 | AG110: 0 | AH110: 0 | AI110: 0 | AJ110: 0 | AK110: 0 | AL110: 0 | AM110: 0 | AN110: 0 | AO110: 0 | AP110: 0 | AQ110: 0 | AR110: 0 | AS110: 0 | AT110: 0 | AU110: 0
A111: 1 | B111: 3 | L111: 0 | M111: 0 | N111: 0 | O111: 0 | P111: 0 | Q111: 0 | R111: 0 | S111: 0 | T111: 0 | U111: 0 | V111: 0 | W111: 0 | X111: 0 | Y111: 0 | Z111: 0 | AA111: 0 | AB111: 0 | AD111: 0 | AE111: 0 | AF111: 0 | AG111: 0 | AH111: 0 | AI111: 0 | AJ111: 0 | AK111: 0 | AL111: 0 | AM111: 0 | AN111: 0 | AO111: 0 | AP111: 0 | AQ111: 0 | AR111: 0 | AS111: 0 | AT111: 0 | AU111: 0
A112: 1 | B112: 3 | L112: 0 | M112: 0 | N112: 0 | O112: 0 | P112: 0 | Q112: 0 | R112: 0 | S112: 0 | T112: 0 | U112: 0 | V112: 0 | W112: 0 | X112: 0 | Y112: 0 | Z112: 0 | AA112: 0 | AB112: 0 | AD112: 0 | AE112: 0 | AF112: 0 | AG112: 0 | AH112: 0 | AI112: 0 | AJ112: 0 | AK112: 0 | AL112: 0 | AM112: 0 | AN112: 0 | AO112: 0 | AP112: 0 | AQ112: 0 | AR112: 0 | AS112: 0 | AT112: 0 | AU112: 0
A113: 1 | B113: 3 | L113: 0 | M113: 0 | N113: 0 | O113: 0 | P113: 0 | Q113: 0 | R113: 0 | S113: 0 | T113: 0 | U113: 0 | V113: 0 | W113: 0 | X113: 0 | Y113: 0 | Z113: 0 | AA113: 0 | AB113: 0 | AD113: 0 | AE113: 0 | AF113: 0 | AG113: 0 | AH113: 0 | AI113: 0 | AJ113: 0 | AK113: 0 | AL113: 0 | AM113: 0 | AN113: 0 | AO113: 0 | AP113: 0 | AQ113: 0 | AR113: 0 | AS113: 0 | AT113: 0 | AU113: 0
A114: 1 | B114: 3 | L114: 0 | M114: 0 | N114: 0 | O114: 0 | P114: 0 | Q114: 0 | R114: 0 | S114: 0 | T114: 0 | U114: 0 | V114: 0 | W114: 0 | X114: 0 | Y114: 0 | Z114: 0 | AA114: 0 | AB114: 0 | AD114: 0 | AE114: 0 | AF114: 0 | AG114: 0 | AH114: 0 | AI114: 0 | AJ114: 0 | AK114: 0 | AL114: 0 | AM114: 0 | AN114: 0 | AO114: 0 | AP114: 0 | AQ114: 0 | AR114: 0 | AS114: 0 | AT114: 0 | AU114: 0
A115: 1 | B115: 3 | L115: 0 | M115: 0 | N115: 0 | O115: 0 | P115: 0 | Q115: 0 | R115: 0 | S115: 0 | T115: 0 | U115: 0 | V115: 0 | W115: 0 | X115: 0 | Y115: 0 | Z115: 0 | AA115: 0 | AB115: 0 | AD115: 0 | AE115: 0 | AF115: 0 | AG115: 0 | AH115: 0 | AI115: 0 | AJ115: 0 | AK115: 0 | AL115: 0 | AM115: 0 | AN115: 0 | AO115: 0 | AP115: 0 | AQ115: 0 | AR115: 0 | AS115: 0 | AT115: 0 | AU115: 0
A116: 1 | B116: 3 | L116: 0 | M116: 0 | N116: 0 | O116: 0 | P116: 0 | Q116: 0 | R116: 0 | S116: 0 | T116: 0 | U116: 0 | V116: 0 | W116: 0 | X116: 0 | Y116: 0 | Z116: 0 | AA116: 0 | AB116: 0 | AD116: 0 | AE116: 0 | AF116: 0 | AG116: 0 | AH116: 0 | AI116: 0 | AJ116: 0 | AK116: 0 | AL116: 0 | AM116: 0 | AN116: 0 | AO116: 0 | AP116: 0 | AQ116: 0 | AR116: 0 | AS116: 0 | AT116: 0 | AU116: 0
A117: 1 | B117: 3 | L117: 0 | M117: 0 | N117: 0 | O117: 0 | P117: 0 | Q117: 0 | R117: 0 | S117: 0 | T117: 0 | U117: 0 | V117: 0 | W117: 0 | X117: 0 | Y117: 0 | Z117: 0 | AA117: 0 | AB117: 0 | AD117: 0 | AE117: 0 | AF117: 0 | AG117: 0 | AH117: 0 | AI117: 0 | AJ117: 0 | AK117: 0 | AL117: 0 | AM117: 0 | AN117: 0 | AO117: 0 | AP117: 0 | AQ117: 0 | AR117: 0 | AS117: 0 | AT117: 0 | AU117: 0
A118: 1 | B118: 3 | L118: 0 | M118: 0 | N118: 0 | O118: 0 | P118: 0 | Q118: 0 | R118: 0 | S118: 0 | T118: 0 | U118: 0 | V118: 0 | W118: 0 | X118: 0 | Y118: 0 | Z118: 0 | AA118: 0 | AB118: 0 | AD118: 0 | AE118: 0 | AF118: 0 | AG118: 0 | AH118: 0 | AI118: 0 | AJ118: 0 | AK118: 0 | AL118: 0 | AM118: 0 | AN118: 0 | AO118: 0 | AP118: 0 | AQ118: 0 | AR118: 0 | AS118: 0 | AT118: 0 | AU118: 0
A119: 1 | B119: 3 | L119: 0 | M119: 0 | N119: 0 | O119: 0 | P119: 0 | Q119: 0 | R119: 0 | S119: 0 | T119: 0 | U119: 0 | V119: 0 | W119: 0 | X119: 0 | Y119: 0 | Z119: 0 | AA119: 0 | AB119: 0 | AD119: 0 | AE119: 0 | AF119: 0 | AG119: 0 | AH119: 0 | AI119: 0 | AJ119: 0 | AK119: 0 | AL119: 0 | AM119: 0 | AN119: 0 | AO119: 0 | AP119: 0 | AQ119: 0 | AR119: 0 | AS119: 0 | AT119: 0 | AU119: 0
A120: 1 | B120: 3 | L120: 0 | M120: 0 | N120: 0 | O120: 0 | P120: 0 | Q120: 0 | R120: 0 | S120: 0 | T120: 0 | U120: 0 | V120: 0 | W120: 0 | X120: 0 | Y120: 0 | Z120: 0 | AA120: 0 | AB120: 0 | AD120: 0 | AE120: 0 | AF120: 0 | AG120: 0 | AH120: 0 | AI120: 0 | AJ120: 0 | AK120: 0 | AL120: 0 | AM120: 0 | AN120: 0 | AO120: 0 | AP120: 0 | AQ120: 0 | AR120: 0 | AS120: 0 | AT120: 0 | AU120: 0
A121: 1 | B121: 3 | L121: 0 | M121: 0 | N121: 0 | O121: 0 | P121: 0 | Q121: 0 | R121: 0 | S121: 0 | T121: 0 | U121: 0 | V121: 0 | W121: 0 | X121: 0 | Y121: 0 | Z121: 0 | AA121: 0 | AB121: 0 | AD121: 0 | AE121: 0 | AF121: 0 | AG121: 0 | AH121: 0 | AI121: 0 | AJ121: 0 | AK121: 0 | AL121: 0 | AM121: 0 | AN121: 0 | AO121: 0 | AP121: 0 | AQ121: 0 | AR121: 0 | AS121: 0 | AT121: 0 | AU121: 0
A122: 1 | B122: 3 | L122: 0 | M122: 0 | N122: 0 | O122: 0 | P122: 0 | Q122: 0 | R122: 0 | S122: 0 | T122: 0 | U122: 0 | V122: 0 | W122: 0 | X122: 0 | Y122: 0 | Z122: 0 | AA122: 0 | AB122: 0 | AD122: 0 | AE122: 0 | AF122: 0 | AG122: 0 | AH122: 0 | AI122: 0 | AJ122: 0 | AK122: 0 | AL122: 0 | AM122: 0 | AN122: 0 | AO122: 0 | AP122: 0 | AQ122: 0 | AR122: 0 | AS122: 0 | AT122: 0 | AU122: 0
A123: 1 | B123: 3 | L123: 0 | M123: 0 | N123: 0 | O123: 0 | P123: 0 | Q123: 0 | R123: 0 | S123: 0 | T123: 0 | U123: 0 | V123: 0 | W123: 0 | X123: 0 | Y123: 0 | Z123: 0 | AA123: 0 | AB123: 0 | AD123: 0 | AE123: 0 | AF123: 0 | AG123: 0 | AH123: 0 | AI123: 0 | AJ123: 0 | AK123: 0 | AL123: 0 | AM123: 0 | AN123: 0 | AO123: 0 | AP123: 0 | AQ123: 0 | AR123: 0 | AS123: 0 | AT123: 0 | AU123: 0
A124: 1 | B124: 3 | L124: 0 | M124: 0 | N124: 0 | O124: 0 | P124: 0 | Q124: 0 | R124: 0 | S124: 0 | T124: 0 | U124: 0 | V124: 0 | W124: 0 | X124: 0 | Y124: 0 | Z124: 0 | AA124: 0 | AB124: 0 | AD124: 0 | AE124: 0 | AF124: 0 | AG124: 0 | AH124: 0 | AI124: 0 | AJ124: 0 | AK124: 0 | AL124: 0 | AM124: 0 | AN124: 0 | AO124: 0 | AP124: 0 | AQ124: 0 | AR124: 0 | AS124: 0 | AT124: 0 | AU124: 0
A125: 1 | B125: 3 | L125: 0 | M125: 0 | N125: 0 | O125: 0 | P125: 0 | Q125: 0 | R125: 0 | S125: 0 | T125: 0 | U125: 0 | V125: 0 | W125: 0 | X125: 0 | Y125: 0 | Z125: 0 | AA125: 0 | AB125: 0 | AD125: 0 | AE125: 0 | AF125: 0 | AG125: 0 | AH125: 0 | AI125: 0 | AJ125: 0 | AK125: 0 | AL125: 0 | AM125: 0 | AN125: 0 | AO125: 0 | AP125: 0 | AQ125: 0 | AR125: 0 | AS125: 0 | AT125: 0 | AU125: 0
A126: 1 | B126: 3 | L126: 0 | M126: 0 | N126: 0 | O126: 0 | P126: 0 | Q126: 0 | R126: 0 | S126: 0 | T126: 0 | U126: 0 | V126: 0 | W126: 0 | X126: 0 | Y126: 0 | Z126: 0 | AA126: 0 | AB126: 0 | AD126: 0 | AE126: 0 | AF126: 0 | AG126: 0 | AH126: 0 | AI126: 0 | AJ126: 0 | AK126: 0 | AL126: 0 | AM126: 0 | AN126: 0 | AO126: 0 | AP126: 0 | AQ126: 0 | AR126: 0 | AS126: 0 | AT126: 0 | AU126: 0
A127: 1 | B127: 3 | L127: 0 | M127: 0 | N127: 0 | O127: 0 | P127: 0 | Q127: 0 | R127: 0 | S127: 0 | T127: 0 | U127: 0 | V127: 0 | W127: 0 | X127: 0 | Y127: 0 | Z127: 0 | AA127: 0 | AB127: 0 | AD127: 0 | AE127: 0 | AF127: 0 | AG127: 0 | AH127: 0 | AI127: 0 | AJ127: 0 | AK127: 0 | AL127: 0 | AM127: 0 | AN127: 0 | AO127: 0 | AP127: 0 | AQ127: 0 | AR127: 0 | AS127: 0 | AT127: 0 | AU127: 0
A128: 1 | B128: 3 | L128: 0 | M128: 0 | N128: 0 | O128: 0 | P128: 0 | Q128: 0 | R128: 0 | S128: 0 | T128: 0 | U128: 0 | V128: 0 | W128: 0 | X128: 0 | Y128: 0 | Z128: 0 | AA128: 0 | AB128: 0 | AD128: 0 | AE128: 0 | AF128: 0 | AG128: 0 | AH128: 0 | AI128: 0 | AJ128: 0 | AK128: 0 | AL128: 0 | AM128: 0 | AN128: 0 | AO128: 0 | AP128: 0 | AQ128: 0 | AR128: 0 | AS128: 0 | AT128: 0 | AU128: 0
A129: 1 | B129: 3 | L129: 0 | M129: 0 | N129: 0 | O129: 0 | P129: 0 | Q129: 0 | R129: 0 | S129: 0 | T129: 0 | U129: 0 | V129: 0 | W129: 0 | X129: 0 | Y129: 0 | Z129: 0 | AA129: 0 | AB129: 0 | AD129: 0 | AE129: 0 | AF129: 0 | AG129: 0 | AH129: 0 | AI129: 0 | AJ129: 0 | AK129: 0 | AL129: 0 | AM129: 0 | AN129: 0 | AO129: 0 | AP129: 0 | AQ129: 0 | AR129: 0 | AS129: 0 | AT129: 0 | AU129: 0
A130: 1 | B130: 3 | L130: 0 | M130: 0 | N130: 0 | O130: 0 | P130: 0 | Q130: 0 | R130: 0 | S130: 0 | T130: 0 | U130: 0 | V130: 0 | W130: 0 | X130: 0 | Y130: 0 | Z130: 0 | AA130: 0 | AB130: 0 | AD130: 0 | AE130: 0 | AF130: 0 | AG130: 0 | AH130: 0 | AI130: 0 | AJ130: 0 | AK130: 0 | AL130: 0 | AM130: 0 | AN130: 0 | AO130: 0 | AP130: 0 | AQ130: 0 | AR130: 0 | AS130: 0 | AT130: 0 | AU130: 0
A131: 1 | B131: 3 | L131: 0 | M131: 0 | N131: 0 | O131: 0 | P131: 0 | Q131: 0 | R131: 0 | S131: 0 | T131: 0 | U131: 0 | V131: 0 | W131: 0 | X131: 0 | Y131: 0 | Z131: 0 | AA131: 0 | AB131: 0 | AD131: 0 | AE131: 0 | AF131: 0 | AG131: 0 | AH131: 0 | AI131: 0 | AJ131: 0 | AK131: 0 | AL131: 0 | AM131: 0 | AN131: 0 | AO131: 0 | AP131: 0 | AQ131: 0 | AR131: 0 | AS131: 0 | AT131: 0 | AU131: 0
A132: 1 | B132: 3 | L132: 0 | M132: 0 | N132: 0 | O132: 0 | P132: 0 | Q132: 0 | R132: 0 | S132: 0 | T132: 0 | U132: 0 | V132: 0 | W132: 0 | X132: 0 | Y132: 0 | Z132: 0 | AA132: 0 | AB132: 0 | AD132: 0 | AE132: 0 | AF132: 0 | AG132: 0 | AH132: 0 | AI132: 0 | AJ132: 0 | AK132: 0 | AL132: 0 | AM132: 0 | AN132: 0 | AO132: 0 | AP132: 0 | AQ132: 0 | AR132: 0 | AS132: 0 | AT132: 0 | AU132: 0
A133: 1 | B133: 3 | L133: 0 | M133: 0 | N133: 0 | O133: 0 | P133: 0 | Q133: 0 | R133: 0 | S133: 0 | T133: 0 | U133: 0 | V133: 0 | W133: 0 | X133: 0 | Y133: 0 | Z133: 0 | AA133: 0 | AB133: 0 | AD133: =((L133*10)/58)^$K$1 -> 0 | AE133: =((M133*10)/58)^$K$1 -> 0 | AF133: =((N133*10)/80)^$K$1 -> 0 | AG133: =((O133*10)/80)^$K$1 -> 0 | AH133: =((P133*10)/135)^$K$1 -> 0 | AI133: =((Q133*10)/135)^$K$1 -> 0 | AJ133: =((R133*10)/135)^$K$1 -> 0 | AK133: =((S133*10)/135)^$K$1 -> 0 | AL133: =((T133*10)/135)^$K$1 -> 0 | AM133: =((U133*10)/98)^$K$1 -> 0 | AN133: =((V133*10)/98)^$K$1 -> 0 | AO133: =((W133*10)/98)^$K$1 -> 0 | AP133: =((X133*10)/98)^$K$1 -> 0 | AQ133: =((Y133*10)/182)^$K$1 -> 0 | AR133: =((Z133*10)/182)^$K$1 -> 0 | AS133: 0 | AT133: 0 | AU133: 0
A134: 1 | B134: 3 | L134: =C134 -> 0 | M134: =IF(B134=4,D134,0) -> 0 | N134: =IF(OR(B134=2,B134="3B",B134="5C",B134="5D"),D134,0) -> 0 | O134: =IF(B134="3B",E134,0) -> 0 | P134: =IF(OR(B134=3,B134=5,B134="5B",B134=6,B134="6B",B134=7,B134="7B",B134=9,B134="9B"),D134+E134,0) -> 0 | Q134: =IF(B134=4,E134+F134,0) -> 0 | R134: =IF(OR(B134=5,B134=7,B134=9),F134+G134,0) -> 0 | S134: =IF(OR(B134=7,B134=9),H134+I134,0) -> 0 | T134: =IF(B134=9,J134+K134,0) -> 0 | U134: =IF(OR(B134="6C",B134="7C"),D134+E134,0) -> 0 | V134: =IF(B134="4B",F134+G134,0) -> 0 | W134: =IF(OR(B134="7B",B134="7C",B134="9B"),H134+I134,0) -> 0 | X134: =IF(OR(B134="9B"),J134+K134,0) -> 0 | Y134: =IF((B134="5C"),E134+F134+G134,0) -> 0 | Z134: =IF(B134=6,F134+G134+H134,0) -> 0 | AA134: =IF((B134="5D"),E134+F134+G134,0) -> 0 | AB134: =IF(OR(B134="6B",B134="6C"),F134+G134+H134,0) -> 0 | AD134: 0 | AE134: 0 | AF134: 0 | AG134: 0 | AH134: 0 | AI134: 0 | AJ134: 0 | AK134: 0 | AL134: 0 | AM134: 0 | AN134: 0 | AO134: 0 | AP134: 0 | AQ134: 0 | AR134: 0 | AS134: =((AA134*10)/132)^$K$1 -> 0 | AT134: =((AB134*10)/132)^$K$1 -> 0 | AU134: =SUM(AD134:AT134) -> 0
A135: 1 | B135: 3 | L135: 0 | M135: 0 | N135: 0 | O135: 0 | P135: 0 | Q135: 0 | R135: 0 | S135: 0 | T135: 0 | U135: 0 | V135: 0 | W135: 0 | X135: 0 | Y135: 0 | Z135: 0 | AA135: 0 | AB135: 0 | AD135: 0 | AE135: 0 | AF135: 0 | AG135: 0 | AH135: 0 | AI135: 0 | AJ135: 0 | AK135: 0 | AL135: 0 | AM135: 0 | AN135: 0 | AO135: 0 | AP135: 0 | AQ135: 0 | AR135: 0 | AS135: 0 | AT135: 0 | AU135: 0
A136: 1 | B136: 3 | L136: 0 | M136: 0 | N136: 0 | O136: 0 | P136: 0 | Q136: 0 | R136: 0 | S136: 0 | T136: 0 | U136: 0 | V136: 0 | W136: 0 | X136: 0 | Y136: 0 | Z136: 0 | AA136: 0 | AB136: 0 | AD136: 0 | AE136: 0 | AF136: 0 | AG136: 0 | AH136: 0 | AI136: 0 | AJ136: 0 | AK136: 0 | AL136: 0 | AM136: 0 | AN136: 0 | AO136: 0 | AP136: 0 | AQ136: 0 | AR136: 0 | AS136: 0 | AT136: 0 | AU136: 0
A137: 1 | B137: 3 | L137: 0 | M137: 0 | N137: 0 | O137: 0 | P137: 0 | Q137: 0 | R137: 0 | S137: 0 | T137: 0 | U137: 0 | V137: 0 | W137: 0 | X137: 0 | Y137: 0 | Z137: 0 | AA137: 0 | AB137: 0 | AD137: 0 | AE137: 0 | AF137: 0 | AG137: 0 | AH137: 0 | AI137: 0 | AJ137: 0 | AK137: 0 | AL137: 0 | AM137: 0 | AN137: 0 | AO137: 0 | AP137: 0 | AQ137: 0 | AR137: 0 | AS137: 0 | AT137: 0 | AU137: 0
A138: 1 | B138: 3 | L138: 0 | M138: 0 | N138: 0 | O138: 0 | P138: 0 | Q138: 0 | R138: 0 | S138: 0 | T138: 0 | U138: 0 | V138: 0 | W138: 0 | X138: 0 | Y138: 0 | Z138: 0 | AA138: 0 | AB138: 0 | AD138: 0 | AE138: 0 | AF138: 0 | AG138: 0 | AH138: 0 | AI138: 0 | AJ138: 0 | AK138: 0 | AL138: 0 | AM138: 0 | AN138: 0 | AO138: 0 | AP138: 0 | AQ138: 0 | AR138: 0 | AS138: 0 | AT138: 0 | AU138: 0
A139: 1 | B139: 3 | L139: 0 | M139: 0 | N139: 0 | O139: 0 | P139: 0 | Q139: 0 | R139: 0 | S139: 0 | T139: 0 | U139: 0 | V139: 0 | W139: 0 | X139: 0 | Y139: 0 | Z139: 0 | AA139: 0 | AB139: 0 | AD139: 0 | AE139: 0 | AF139: 0 | AG139: 0 | AH139: 0 | AI139: 0 | AJ139: 0 | AK139: 0 | AL139: 0 | AM139: 0 | AN139: 0 | AO139: 0 | AP139: 0 | AQ139: 0 | AR139: 0 | AS139: 0 | AT139: 0 | AU139: 0
A140: 1 | B140: 3 | L140: 0 | M140: 0 | N140: 0 | O140: 0 | P140: 0 | Q140: 0 | R140: 0 | S140: 0 | T140: 0 | U140: 0 | V140: 0 | W140: 0 | X140: 0 | Y140: 0 | Z140: 0 | AA140: 0 | AB140: 0 | AD140: 0 | AE140: 0 | AF140: 0 | AG140: 0 | AH140: 0 | AI140: 0 | AJ140: 0 | AK140: 0 | AL140: 0 | AM140: 0 | AN140: 0 | AO140: 0 | AP140: 0 | AQ140: 0 | AR140: 0 | AS140: 0 | AT140: 0 | AU140: 0
A141: 1 | B141: 3 | L141: 0 | M141: 0 | N141: 0 | O141: 0 | P141: 0 | Q141: 0 | R141: 0 | S141: 0 | T141: 0 | U141: 0 | V141: 0 | W141: 0 | X141: 0 | Y141: 0 | Z141: 0 | AA141: 0 | AB141: 0 | AD141: 0 | AE141: 0 | AF141: 0 | AG141: 0 | AH141: 0 | AI141: 0 | AJ141: 0 | AK141: 0 | AL141: 0 | AM141: 0 | AN141: 0 | AO141: 0 | AP141: 0 | AQ141: 0 | AR141: 0 | AS141: 0 | AT141: 0 | AU141: 0
A142: 1 | B142: 3 | L142: 0 | M142: 0 | N142: 0 | O142: 0 | P142: 0 | Q142: 0 | R142: 0 | S142: 0 | T142: 0 | U142: 0 | V142: 0 | W142: 0 | X142: 0 | Y142: 0 | Z142: 0 | AA142: 0 | AB142: 0 | AD142: 0 | AE142: 0 | AF142: 0 | AG142: 0 | AH142: 0 | AI142: 0 | AJ142: 0 | AK142: 0 | AL142: 0 | AM142: 0 | AN142: 0 | AO142: 0 | AP142: 0 | AQ142: 0 | AR142: 0 | AS142: 0 | AT142: 0 | AU142: 0
A143: 1 | B143: 3 | L143: 0 | M143: 0 | N143: 0 | O143: 0 | P143: 0 | Q143: 0 | R143: 0 | S143: 0 | T143: 0 | U143: 0 | V143: 0 | W143: 0 | X143: 0 | Y143: 0 | Z143: 0 | AA143: 0 | AB143: 0 | AD143: 0 | AE143: 0 | AF143: 0 | AG143: 0 | AH143: 0 | AI143: 0 | AJ143: 0 | AK143: 0 | AL143: 0 | AM143: 0 | AN143: 0 | AO143: 0 | AP143: 0 | AQ143: 0 | AR143: 0 | AS143: 0 | AT143: 0 | AU143: 0
A144: 1 | B144: 3B | L144: 0 | M144: 0 | N144: 0 | O144: 0 | P144: 0 | Q144: 0 | R144: 0 | S144: 0 | T144: 0 | U144: 0 | V144: 0 | W144: 0 | X144: 0 | Y144: 0 | Z144: 0 | AA144: 0 | AB144: 0 | AD144: 0 | AE144: 0 | AF144: 0 | AG144: 0 | AH144: 0 | AI144: 0 | AJ144: 0 | AK144: 0 | AL144: 0 | AM144: 0 | AN144: 0 | AO144: 0 | AP144: 0 | AQ144: 0 | AR144: 0 | AS144: 0 | AT144: 0 | AU144: 0
A145: 1 | B145: 3C | L145: 0 | M145: 0 | N145: 0 | O145: 0 | P145: 0 | Q145: 0 | R145: 0 | S145: 0 | T145: 0 | U145: 0 | V145: 0 | W145: 0 | X145: 0 | Y145: 0 | Z145: 0 | AA145: 0 | AB145: 0 | AD145: 0 | AE145: 0 | AF145: 0 | AG145: 0 | AH145: 0 | AI145: 0 | AJ145: 0 | AK145: 0 | AL145: 0 | AM145: 0 | AN145: 0 | AO145: 0 | AP145: 0 | AQ145: 0 | AR145: 0 | AS145: 0 | AT145: 0 | AU145: 0
A146: 1 | B146: 4 | L146: 0 | M146: 0 | N146: 0 | O146: 0 | P146: 0 | Q146: 0 | R146: 0 | S146: 0 | T146: 0 | U146: 0 | V146: 0 | W146: 0 | X146: 0 | Y146: 0 | Z146: 0 | AA146: 0 | AB146: 0 | AD146: 0 | AE146: 0 | AF146: 0 | AG146: 0 | AH146: 0 | AI146: 0 | AJ146: 0 | AK146: 0 | AL146: 0 | AM146: 0 | AN146: 0 | AO146: 0 | AP146: 0 | AQ146: 0 | AR146: 0 | AS146: 0 | AT146: 0 | AU146: 0
A147: 1 | B147: 4B | L147: 0 | M147: 0 | N147: 0 | O147: 0 | P147: 0 | Q147: 0 | R147: 0 | S147: 0 | T147: 0 | U147: 0 | V147: 0 | W147: 0 | X147: 0 | Y147: 0 | Z147: 0 | AA147: 0 | AB147: 0 | AD147: 0 | AE147: 0 | AF147: 0 | AG147: 0 | AH147: 0 | AI147: 0 | AJ147: 0 | AK147: 0 | AL147: 0 | AM147: 0 | AN147: 0 | AO147: 0 | AP147: 0 | AQ147: 0 | AR147: 0 | AS147: 0 | AT147: 0 | AU147: 0
A148: 1 | B148: 5 | L148: 0 | M148: 0 | N148: 0 | O148: 0 | P148: 0 | Q148: 0 | R148: 0 | S148: 0 | T148: 0 | U148: 0 | V148: 0 | W148: 0 | X148: 0 | Y148: 0 | Z148: 0 | AA148: 0 | AB148: 0 | AD148: 0 | AE148: 0 | AF148: 0 | AG148: 0 | AH148: 0 | AI148: 0 | AJ148: 0 | AK148: 0 | AL148: 0 | AM148: 0 | AN148: 0 | AO148: 0 | AP148: 0 | AQ148: 0 | AR148: 0 | AS148: 0 | AT148: 0 | AU148: 0
A149: 1 | B149: 5B | L149: 0 | M149: 0 | N149: 0 | O149: 0 | P149: 0 | Q149: 0 | R149: 0 | S149: 0 | T149: 0 | U149: 0 | V149: 0 | W149: 0 | X149: 0 | Y149: 0 | Z149: 0 | AA149: 0 | AB149: 0 | AD149: 0 | AE149: 0 | AF149: 0 | AG149: 0 | AH149: 0 | AI149: 0 | AJ149: 0 | AK149: 0 | AL149: 0 | AM149: 0 | AN149: 0 | AO149: 0 | AP149: 0 | AQ149: 0 | AR149: 0 | AS149: 0 | AT149: 0 | AU149: 0
A150: 1 | B150: 6 | L150: 0 | M150: 0 | N150: 0 | O150: 0 | P150: 0 | Q150: 0 | R150: 0 | S150: 0 | T150: 0 | U150: 0 | V150: 0 | W150: 0 | X150: 0 | Y150: 0 | Z150: 0 | AA150: 0 | AB150: 0 | AD150: 0 | AE150: 0 | AF150: 0 | AG150: 0 | AH150: 0 | AI150: 0 | AJ150: 0 | AK150: 0 | AL150: 0 | AM150: 0 | AN150: 0 | AO150: 0 | AP150: 0 | AQ150: 0 | AR150: 0 | AS150: 0 | AT150: 0 | AU150: 0
A151: 1 | B151: 6B | L151: 0 | M151: 0 | N151: 0 | O151: 0 | P151: 0 | Q151: 0 | R151: 0 | S151: 0 | T151: 0 | U151: 0 | V151: 0 | W151: 0 | X151: 0 | Y151: 0 | Z151: 0 | AA151: 0 | AB151: 0 | AD151: 0 | AE151: 0 | AF151: 0 | AG151: 0 | AH151: 0 | AI151: 0 | AJ151: 0 | AK151: 0 | AL151: 0 | AM151: 0 | AN151: 0 | AO151: 0 | AP151: 0 | AQ151: 0 | AR151: 0 | AS151: 0 | AT151: 0 | AU151: 0
A152: 1 | B152: 7 | L152: 0 | M152: 0 | N152: 0 | O152: 0 | P152: 0 | Q152: 0 | R152: 0 | S152: 0 | T152: 0 | U152: 0 | V152: 0 | W152: 0 | X152: 0 | Y152: 0 | Z152: 0 | AA152: 0 | AB152: 0 | AD152: 0 | AE152: 0 | AF152: 0 | AG152: 0 | AH152: 0 | AI152: 0 | AJ152: 0 | AK152: 0 | AL152: 0 | AM152: 0 | AN152: 0 | AO152: 0 | AP152: 0 | AQ152: 0 | AR152: 0 | AS152: 0 | AT152: 0 | AU152: 0
A153: 1 | B153: 7B | L153: 0 | M153: 0 | N153: 0 | O153: 0 | P153: 0 | Q153: 0 | R153: 0 | S153: 0 | T153: 0 | U153: 0 | V153: 0 | W153: 0 | X153: 0 | Y153: 0 | Z153: 0 | AA153: 0 | AB153: 0 | AD153: 0 | AE153: 0 | AF153: 0 | AG153: 0 | AH153: 0 | AI153: 0 | AJ153: 0 | AK153: 0 | AL153: 0 | AM153: 0 | AN153: 0 | AO153: 0 | AP153: 0 | AQ153: 0 | AR153: 0 | AS153: 0 | AT153: 0 | AU153: 0
A154: 1 | B154: 9 | L154: 0 | M154: 0 | N154: 0 | O154: 0 | P154: 0 | Q154: 0 | R154: 0 | S154: 0 | T154: 0 | U154: 0 | V154: 0 | W154: 0 | X154: 0 | Y154: 0 | Z154: 0 | AA154: 0 | AB154: 0 | AD154: 0 | AE154: 0 | AF154: 0 | AG154: 0 | AH154: 0 | AI154: 0 | AJ154: 0 | AK154: 0 | AL154: 0 | AM154: 0 | AN154: 0 | AO154: 0 | AP154: 0 | AQ154: 0 | AR154: 0 | AS154: 0 | AT154: 0 | AU154: 0
A155: 1 | B155: 9B | L155: 0 | M155: 0 | N155: 0 | O155: 0 | P155: 0 | Q155: 0 | R155: 0 | S155: 0 | T155: 0 | U155: 0 | V155: 0 | W155: 0 | X155: 0 | Y155: 0 | Z155: 0 | AA155: 0 | AB155: 0 | AD155: 0 | AE155: 0 | AF155: 0 | AG155: 0 | AH155: 0 | AI155: 0 | AJ155: 0 | AK155: 0 | AL155: 0 | AM155: 0 | AN155: 0 | AO155: 0 | AP155: 0 | AQ155: 0 | AR155: 0 | AS155: 0 | AT155: 0 | AU155: 0
A156: 1 | B156: 2 | C156: 4 | D156: 8 | L156: 4 | M156: 0 | N156: 8 | O156: 0 | P156: 0 | Q156: 0 | R156: 0 | S156: 0 | T156: 0 | U156: 0 | V156: 0 | W156: 0 | X156: 0 | Y156: 0 | Z156: 0 | AA156: 0 | AB156: 0 | AD156: =((L156*10)/58)^$K$1 -> 0.2262184337 | AE156: =((M156*10)/58)^$K$1 -> 0 | AF156: =((N156*10)/80)^$K$1 -> 1 | AG156: =((O156*10)/80)^$K$1 -> 0 | AH156: 0 | AI156: 0 | AJ156: 0 | AK156: 0 | AL156: 0 | AM156: 0 | AN156: 0 | AO156: 0 | AP156: 0 | AQ156: 0 | AR156: 0 | AS156: 0 | AT156: 0 | AU156: 1.226218434 | AW156: 20
A157: 1 | B157: 3 | L157: 0 | M157: 0 | N157: 0 | O157: 0 | P157: 0 | Q157: 0 | R157: 0 | S157: 0 | T157: 0 | U157: 0 | V157: 0 | W157: 0 | X157: 0 | Y157: 0 | Z157: 0 | AA157: 0 | AB157: 0 | AD157: 0 | AE157: 0 | AF157: 0 | AG157: 0 | AH157: 0 | AI157: 0 | AJ157: 0 | AK157: 0 | AL157: 0 | AM157: 0 | AN157: 0 | AO157: 0 | AP157: 0 | AQ157: 0 | AR157: 0 | AS157: 0 | AT157: 0 | AU157: 0 | AW157: 30
A158: 1 | B158: 3 | L158: 0 | M158: 0 | N158: 0 | O158: 0 | P158: 0 | Q158: 0 | R158: 0 | S158: 0 | T158: 0 | U158: 0 | V158: 0 | W158: 0 | X158: 0 | Y158: 0 | Z158: 0 | AA158: 0 | AB158: 0 | AD158: 0 | AE158: 0 | AF158: 0 | AG158: 0 | AH158: 0 | AI158: 0 | AJ158: 0 | AK158: 0 | AL158: 0 | AM158: 0 | AN158: 0 | AO158: 0 | AP158: 0 | AQ158: 0 | AR158: 0 | AS158: 0 | AT158: 0 | AU158: 0 | AW158: 40
A159: 1 | B159: 3 | L159: 0 | M159: 0 | N159: 0 | O159: 0 | P159: 0 | Q159: 0 | R159: 0 | S159: 0 | T159: 0 | U159: 0 | V159: 0 | W159: 0 | X159: 0 | Y159: 0 | Z159: 0 | AA159: 0 | AB159: 0 | AD159: 0 | AE159: 0 | AF159: 0 | AG159: 0 | AH159: 0 | AI159: 0 | AJ159: 0 | AK159: 0 | AL159: 0 | AM159: 0 | AN159: 0 | AO159: 0 | AP159: 0 | AQ159: 0 | AR159: 0 | AS159: 0 | AT159: 0 | AU159: 0 | AW159: 50
A160: 1 | B160: 3 | L160: 0 | M160: 0 | N160: 0 | O160: 0 | P160: 0 | Q160: 0 | R160: 0 | S160: 0 | T160: 0 | U160: 0 | V160: 0 | W160: 0 | X160: 0 | Y160: 0 | Z160: 0 | AA160: 0 | AB160: 0 | AD160: 0 | AE160: 0 | AF160: 0 | AG160: 0 | AH160: 0 | AI160: 0 | AJ160: 0 | AK160: 0 | AL160: 0 | AM160: 0 | AN160: 0 | AO160: 0 | AP160: 0 | AQ160: 0 | AR160: 0 | AS160: 0 | AT160: 0 | AU160: 0 | AW160: 60
A161: 1 | B161: 3 | L161: 0 | M161: 0 | N161: 0 | O161: 0 | P161: 0 | Q161: 0 | R161: 0 | S161: 0 | T161: 0 | U161: 0 | V161: 0 | W161: 0 | X161: 0 | Y161: 0 | Z161: 0 | AA161: 0 | AB161: 0 | AD161: 0 | AE161: 0 | AF161: 0 | AG161: 0 | AH161: 0 | AI161: 0 | AJ161: 0 | AK161: 0 | AL161: 0 | AM161: 0 | AN161: 0 | AO161: 0 | AP161: 0 | AQ161: 0 | AR161: 0 | AS161: 0 | AT161: 0 | AU161: 0 | AW161: 70
A162: 1 | B162: 3B | C162: 6 | D162: 10 | E162: 8 | L162: 6 | M162: 0 | N162: 10 | O162: 8 | P162: 0 | Q162: 0 | R162: 0 | S162: 0 | T162: 0 | U162: 0 | V162: 0 | W162: 0 | X162: 0 | Y162: 0 | Z162: 0 | AA162: 0 | AB162: 0 | AD162: 1.145230821 | AE162: 0 | AF162: 2.44140625 | AG162: 1 | AH162: 0 | AI162: 0 | AJ162: 0 | AK162: 0 | AL162: 0 | AM162: 0 | AN162: 0 | AO162: 0 | AP162: 0 | AQ162: 0 | AR162: 0 | AS162: 0 | AT162: 0 | AU162: 4.586637071 | AW162: 80
A163: 1 | B163: 3 | L163: 0 | M163: 0 | N163: 0 | O163: 0 | P163: 0 | Q163: 0 | R163: 0 | S163: 0 | T163: 0 | U163: 0 | V163: 0 | W163: 0 | X163: 0 | Y163: 0 | Z163: 0 | AA163: 0 | AB163: 0 | AD163: 0 | AE163: 0 | AF163: 0 | AG163: 0 | AH163: 0 | AI163: 0 | AJ163: 0 | AK163: 0 | AL163: 0 | AM163: 0 | AN163: 0 | AO163: 0 | AP163: 0 | AQ163: 0 | AR163: 0 | AS163: 0 | AT163: 0 | AU163: 0 | AW163: 90
A164: 1 | B164: 3 | L164: 0 | M164: 0 | N164: 0 | O164: 0 | P164: 0 | Q164: 0 | R164: 0 | S164: 0 | T164: 0 | U164: 0 | V164: 0 | W164: 0 | X164: 0 | Y164: 0 | Z164: 0 | AA164: 0 | AB164: 0 | AD164: 0 | AE164: 0 | AF164: 0 | AG164: 0 | AH164: 0 | AI164: 0 | AJ164: 0 | AK164: 0 | AL164: 0 | AM164: 0 | AN164: 0 | AO164: 0 | AP164: 0 | AQ164: 0 | AR164: 0 | AS164: 0 | AT164: 0 | AU164: 0 | AW164: 100
A165: 1 | B165: 3 | L165: 0 | M165: 0 | N165: 0 | O165: 0 | P165: 0 | Q165: 0 | R165: 0 | S165: 0 | T165: 0 | U165: 0 | V165: 0 | W165: 0 | X165: 0 | Y165: 0 | Z165: 0 | AA165: 0 | AB165: 0 | AD165: 0 | AE165: 0 | AF165: 0 | AG165: 0 | AH165: 0 | AI165: 0 | AJ165: 0 | AK165: 0 | AL165: 0 | AM165: =((U165*10)/98)^$K$1 -> 0 | AN165: =((V165*10)/98)^$K$1 -> 0 | AO165: =((W165*10)/98)^$K$1 -> 0 | AP165: =((X165*10)/98)^$K$1 -> 0 | AQ165: 0 | AR165: 0 | AS165: 0 | AT165: 0 | AU165: 0 | AW165: 110
A166: 1 | B166: 3 | L166: 0 | M166: 0 | N166: 0 | O166: 0 | P166: 0 | Q166: 0 | R166: 0 | S166: 0 | T166: 0 | U166: 0 | V166: 0 | W166: 0 | X166: 0 | Y166: 0 | Z166: 0 | AA166: 0 | AB166: 0 | AD166: 0 | AE166: 0 | AF166: 0 | AG166: 0 | AH166: 0 | AI166: 0 | AJ166: 0 | AK166: 0 | AL166: 0 | AM166: 0 | AN166: 0 | AO166: 0 | AP166: 0 | AQ166: 0 | AR166: 0 | AS166: 0 | AT166: 0 | AU166: 0 | AW166: 120
A167: 1 | B167: 3 | L167: 0 | M167: 0 | N167: 0 | O167: 0 | P167: 0 | Q167: 0 | R167: 0 | S167: 0 | T167: 0 | U167: 0 | V167: 0 | W167: 0 | X167: 0 | Y167: 0 | Z167: 0 | AA167: 0 | AB167: 0 | AD167: 0 | AE167: 0 | AF167: 0 | AG167: 0 | AH167: 0 | AI167: 0 | AJ167: 0 | AK167: 0 | AL167: 0 | AM167: 0 | AN167: 0 | AO167: 0 | AP167: 0 | AQ167: 0 | AR167: 0 | AS167: 0 | AT167: 0 | AU167: 0 | AW167: 130
A168: 1 | B168: 3 | L168: 0 | M168: 0 | N168: 0 | O168: 0 | P168: 0 | Q168: 0 | R168: 0 | S168: 0 | T168: 0 | U168: 0 | V168: 0 | W168: 0 | X168: 0 | Y168: 0 | Z168: 0 | AA168: 0 | AB168: 0 | AD168: 0 | AE168: 0 | AF168: 0 | AG168: 0 | AH168: 0 | AI168: 0 | AJ168: 0 | AK168: 0 | AL168: 0 | AM168: 0 | AN168: 0 | AO168: 0 | AP168: 0 | AQ168: 0 | AR168: 0 | AS168: 0 | AT168: 0 | AU168: 0 | AW168: 140
A169: 1 | B169: 3 | L169: 0 | M169: 0 | N169: 0 | O169: 0 | P169: 0 | Q169: 0 | R169: 0 | S169: 0 | T169: 0 | U169: 0 | V169: 0 | W169: 0 | X169: 0 | Y169: 0 | Z169: 0 | AA169: 0 | AB169: 0 | AD169: 0 | AE169: 0 | AF169: 0 | AG169: 0 | AH169: 0 | AI169: 0 | AJ169: 0 | AK169: 0 | AL169: 0 | AM169: 0 | AN169: 0 | AO169: 0 | AP169: 0 | AQ169: 0 | AR169: 0 | AS169: 0 | AT169: 0 | AU169: 0 | AW169: 150
A170: 1 | B170: 3 | L170: 0 | M170: 0 | N170: 0 | O170: 0 | P170: 0 | Q170: 0 | R170: 0 | S170: 0 | T170: 0 | U170: 0 | V170: 0 | W170: 0 | X170: 0 | Y170: 0 | Z170: 0 | AA170: 0 | AB170: 0 | AD170: 0 | AE170: 0 | AF170: 0 | AG170: 0 | AH170: 0 | AI170: 0 | AJ170: 0 | AK170: 0 | AL170: 0 | AM170: 0 | AN170: 0 | AO170: 0 | AP170: 0 | AQ170: 0 | AR170: 0 | AS170: 0 | AT170: 0 | AU170: 0 | AW170: 160
A171: 1 | B171: 3 | L171: 0 | M171: 0 | N171: 0 | O171: 0 | P171: 0 | Q171: 0 | R171: 0 | S171: 0 | T171: 0 | U171: 0 | V171: 0 | W171: 0 | X171: 0 | Y171: 0 | Z171: 0 | AA171: 0 | AB171: 0 | AD171: 0 | AE171: 0 | AF171: 0 | AG171: 0 | AH171: 0 | AI171: 0 | AJ171: 0 | AK171: 0 | AL171: 0 | AM171: 0 | AN171: 0 | AO171: 0 | AP171: 0 | AQ171: 0 | AR171: 0 | AS171: 0 | AT171: 0 | AU171: 0 | AW171: 170
A172: 1 | B172: 3C | C172: 6 | D172: 8 | E172: 4 | L172: 6 | M172: 0 | N172: 0 | O172: 0 | P172: 0 | Q172: 0 | R172: 0 | S172: 0 | T172: 0 | U172: 0 | V172: 0 | W172: 0 | X172: 0 | Y172: 0 | Z172: 0 | AA172: 0 | AB172: 0 | AD172: 1.145230821 | AE172: 0 | AF172: 0 | AG172: 0 | AH172: 0 | AI172: 0 | AJ172: 0 | AK172: 0 | AL172: 0 | AM172: 0 | AN172: 0 | AO172: 0 | AP172: 0 | AQ172: 0 | AR172: 0 | AS172: 0 | AT172: 0 | AU172: 1.145230821 | AW172: 180
A173: 1 | B173: 3 | L173: 0 | M173: 0 | N173: 0 | O173: 0 | P173: 0 | Q173: 0 | R173: 0 | S173: 0 | T173: 0 | U173: 0 | V173: 0 | W173: 0 | X173: 0 | Y173: 0 | Z173: 0 | AA173: 0 | AB173: 0 | AD173: 0 | AE173: 0 | AF173: 0 | AG173: 0 | AH173: 0 | AI173: 0 | AJ173: 0 | AK173: 0 | AL173: 0 | AM173: 0 | AN173: 0 | AO173: 0 | AP173: 0 | AQ173: 0 | AR173: 0 | AS173: 0 | AT173: 0 | AU173: 0 | AW173: 190
A174: 1 | B174: 3 | L174: 0 | M174: 0 | N174: 0 | O174: 0 | P174: 0 | Q174: 0 | R174: 0 | S174: 0 | T174: 0 | U174: 0 | V174: 0 | W174: 0 | X174: 0 | Y174: 0 | Z174: 0 | AA174: 0 | AB174: 0 | AD174: 0 | AE174: 0 | AF174: 0 | AG174: 0 | AH174: 0 | AI174: 0 | AJ174: 0 | AK174: 0 | AL174: 0 | AM174: 0 | AN174: 0 | AO174: 0 | AP174: 0 | AQ174: 0 | AR174: 0 | AS174: 0 | AT174: 0 | AU174: 0 | AW174: 200
A175: 1 | B175: 3 | L175: 0 | M175: 0 | N175: 0 | O175: 0 | P175: 0 | Q175: 0 | R175: 0 | S175: 0 | T175: 0 | U175: 0 | V175: 0 | W175: 0 | X175: 0 | Y175: 0 | Z175: 0 | AA175: 0 | AB175: 0 | AD175: 0 | AE175: 0 | AF175: 0 | AG175: 0 | AH175: 0 | AI175: 0 | AJ175: 0 | AK175: 0 | AL175: 0 | AM175: 0 | AN175: 0 | AO175: 0 | AP175: 0 | AQ175: 0 | AR175: 0 | AS175: 0 | AT175: 0 | AU175: 0 | AW175: 210
A176: 1 | B176: 3 | L176: 0 | M176: 0 | N176: 0 | O176: 0 | P176: 0 | Q176: 0 | R176: 0 | S176: 0 | T176: 0 | U176: 0 | V176: 0 | W176: 0 | X176: 0 | Y176: 0 | Z176: 0 | AA176: 0 | AB176: 0 | AD176: 0 | AE176: 0 | AF176: 0 | AG176: 0 | AH176: 0 | AI176: 0 | AJ176: 0 | AK176: 0 | AL176: 0 | AM176: 0 | AN176: 0 | AO176: 0 | AP176: 0 | AQ176: 0 | AR176: 0 | AS176: 0 | AT176: 0 | AU176: 0 | AW176: 220
A177: 1 | B177: 3 | L177: 0 | M177: 0 | N177: 0 | O177: 0 | P177: 0 | Q177: 0 | R177: 0 | S177: 0 | T177: 0 | U177: 0 | V177: 0 | W177: 0 | X177: 0 | Y177: 0 | Z177: 0 | AA177: 0 | AB177: 0 | AD177: 0 | AE177: 0 | AF177: 0 | AG177: 0 | AH177: 0 | AI177: 0 | AJ177: 0 | AK177: 0 | AL177: 0 | AM177: 0 | AN177: 0 | AO177: 0 | AP177: 0 | AQ177: 0 | AR177: 0 | AS177: 0 | AT177: 0 | AU177: 0 | AW177: 230
A178: 1 | B178: 3 | L178: 0 | M178: 0 | N178: 0 | O178: 0 | P178: 0 | Q178: 0 | R178: 0 | S178: 0 | T178: 0 | U178: 0 | V178: 0 | W178: 0 | X178: 0 | Y178: 0 | Z178: 0 | AA178: 0 | AB178: 0 | AD178: 0 | AE178: 0 | AF178: 0 | AG178: 0 | AH178: 0 | AI178: 0 | AJ178: 0 | AK178: 0 | AL178: 0 | AM178: 0 | AN178: 0 | AO178: 0 | AP178: 0 | AQ178: 0 | AR178: 0 | AS178: 0 | AT178: 0 | AU178: 0 | AW178: 240
A179: 1 | B179: 3 | L179: 0 | M179: 0 | N179: 0 | O179: 0 | P179: 0 | Q179: 0 | R179: 0 | S179: 0 | T179: 0 | U179: 0 | V179: 0 | W179: 0 | X179: 0 | Y179: 0 | Z179: 0 | AA179: 0 | AB179: 0 | AD179: 0 | AE179: 0 | AF179: 0 | AG179: 0 | AH179: 0 | AI179: 0 | AJ179: 0 | AK179: 0 | AL179: 0 | AM179: 0 | AN179: 0 | AO179: 0 | AP179: 0 | AQ179: 0 | AR179: 0 | AS179: 0 | AT179: 0 | AU179: 0 | AW179: 250
A180: 1 | B180: 4 | C180: 6 | D180: 6 | E180: 8 | F180: 9 | L180: 6 | M180: 6 | N180: 0 | O180: 0 | P180: 0 | Q180: 17 | R180: 0 | S180: 0 | T180: 0 | U180: 0 | V180: 0 | W180: 0 | X180: 0 | Y180: 0 | Z180: 0 | AA180: 0 | AB180: 0 | AD180: 1.145230821 | AE180: 1.145230821 | AF180: 0 | AG180: 0 | AH180: 0 | AI180: 2.514551945 | AJ180: 0 | AK180: 0 | AL180: 0 | AM180: 0 | AN180: 0 | AO180: 0 | AP180: 0 | AQ180: 0 | AR180: 0 | AS180: 0 | AT180: 0 | AU180: 4.805013586 | AW180: 260
A181: 1 | B181: 3 | L181: 0 | M181: 0 | N181: 0 | O181: 0 | P181: 0 | Q181: 0 | R181: 0 | S181: 0 | T181: 0 | U181: 0 | V181: 0 | W181: 0 | X181: 0 | Y181: 0 | Z181: 0 | AA181: 0 | AB181: 0 | AD181: 0 | AE181: 0 | AF181: 0 | AG181: 0 | AH181: 0 | AI181: 0 | AJ181: 0 | AK181: 0 | AL181: 0 | AM181: 0 | AN181: 0 | AO181: 0 | AP181: 0 | AQ181: 0 | AR181: 0 | AS181: 0 | AT181: 0 | AU181: 0 | AW181: 270
A182: 1 | B182: 3 | L182: 0 | M182: 0 | N182: 0 | O182: 0 | P182: 0 | Q182: 0 | R182: 0 | S182: 0 | T182: 0 | U182: 0 | V182: 0 | W182: 0 | X182: 0 | Y182: 0 | Z182: 0 | AA182: 0 | AB182: 0 | AD182: 0 | AE182: 0 | AF182: 0 | AG182: 0 | AH182: 0 | AI182: 0 | AJ182: 0 | AK182: 0 | AL182: 0 | AM182: 0 | AN182: 0 | AO182: 0 | AP182: 0 | AQ182: 0 | AR182: 0 | AS182: 0 | AT182: 0 | AU182: 0 | AW182: 280
A183: 1 | B183: 3 | L183: 0 | M183: 0 | N183: 0 | O183: 0 | P183: 0 | Q183: 0 | R183: 0 | S183: 0 | T183: 0 | U183: 0 | V183: 0 | W183: 0 | X183: 0 | Y183: 0 | Z183: 0 | AA183: 0 | AB183: 0 | AD183: 0 | AE183: 0 | AF183: 0 | AG183: 0 | AH183: 0 | AI183: 0 | AJ183: 0 | AK183: 0 | AL183: 0 | AM183: 0 | AN183: 0 | AO183: 0 | AP183: 0 | AQ183: 0 | AR183: 0 | AS183: 0 | AT183: 0 | AU183: 0 | AW183: 290
A184: 1 | B184: 3 | L184: 0 | M184: 0 | N184: 0 | O184: 0 | P184: 0 | Q184: 0 | R184: 0 | S184: 0 | T184: 0 | U184: 0 | V184: 0 | W184: 0 | X184: 0 | Y184: 0 | Z184: 0 | AA184: 0 | AB184: 0 | AD184: 0 | AE184: 0 | AF184: 0 | AG184: 0 | AH184: 0 | AI184: 0 | AJ184: 0 | AK184: 0 | AL184: 0 | AM184: 0 | AN184: 0 | AO184: 0 | AP184: 0 | AQ184: 0 | AR184: 0 | AS184: 0 | AT184: 0 | AU184: 0 | AW184: 300
A185: 1 | B185: 4B | C185: 6 | D185: 6 | E185: 10 | F185: 10 | L185: 6 | M185: 0 | N185: 0 | O185: 0 | P185: 0 | Q185: 0 | R185: 0 | S185: 0 | T185: 0 | U185: 0 | V185: 10 | W185: 0 | X185: 0 | Y185: 0 | Z185: 0 | AA185: 0 | AB185: 0 | AD185: 1.145230821 | AE185: 0 | AF185: 0 | AG185: 0 | AH185: 0 | AI185: 0 | AJ185: 0 | AK185: 0 | AL185: 0 | AM185: 0 | AN185: 1.084165785 | AO185: 0 | AP185: 0 | AQ185: 0 | AR185: 0 | AS185: 0 | AT185: 0 | AU185: 2.229396605 | AW185: 310
A186: 1 | B186: 3 | L186: 0 | M186: 0 | N186: 0 | O186: 0 | P186: 0 | Q186: 0 | R186: 0 | S186: 0 | T186: 0 | U186: 0 | V186: 0 | W186: 0 | X186: 0 | Y186: 0 | Z186: 0 | AA186: 0 | AB186: 0 | AD186: 0 | AE186: 0 | AF186: 0 | AG186: 0 | AH186: 0 | AI186: 0 | AJ186: 0 | AK186: 0 | AL186: 0 | AM186: 0 | AN186: 0 | AO186: 0 | AP186: 0 | AQ186: 0 | AR186: 0 | AS186: 0 | AT186: 0 | AU186: 0 | AW186: 320
A187: 1 | B187: 3 | L187: 0 | M187: 0 | N187: 0 | O187: 0 | P187: 0 | Q187: 0 | R187: 0 | S187: 0 | T187: 0 | U187: 0 | V187: 0 | W187: 0 | X187: 0 | Y187: 0 | Z187: 0 | AA187: 0 | AB187: 0 | AD187: 0 | AE187: 0 | AF187: 0 | AG187: 0 | AH187: 0 | AI187: 0 | AJ187: 0 | AK187: 0 | AL187: 0 | AM187: 0 | AN187: 0 | AO187: 0 | AP187: 0 | AQ187: 0 | AR187: 0 | AS187: 0 | AT187: 0 | AU187: 0 | AW187: 330
A188: 1 | B188: 3 | L188: 0 | M188: 0 | N188: 0 | O188: 0 | P188: 0 | Q188: 0 | R188: 0 | S188: 0 | T188: 0 | U188: 0 | V188: 0 | W188: 0 | X188: 0 | Y188: 0 | Z188: 0 | AA188: 0 | AB188: 0 | AD188: 0 | AE188: 0 | AF188: 0 | AG188: 0 | AH188: 0 | AI188: 0 | AJ188: 0 | AK188: 0 | AL188: 0 | AM188: 0 | AN188: 0 | AO188: 0 | AP188: 0 | AQ188: 0 | AR188: 0 | AS188: 0 | AT188: 0 | AU188: 0 | AW188: 340
A189: 1 | B189: 3 | L189: 0 | M189: 0 | N189: 0 | O189: 0 | P189: 0 | Q189: 0 | R189: 0 | S189: 0 | T189: 0 | U189: 0 | V189: 0 | W189: 0 | X189: 0 | Y189: 0 | Z189: 0 | AA189: 0 | AB189: 0 | AD189: 0 | AE189: 0 | AF189: 0 | AG189: 0 | AH189: 0 | AI189: 0 | AJ189: 0 | AK189: 0 | AL189: 0 | AM189: 0 | AN189: 0 | AO189: 0 | AP189: 0 | AQ189: 0 | AR189: 0 | AS189: 0 | AT189: 0 | AU189: 0 | AW189: 350
A190: 1 | B190: 3 | L190: 0 | M190: 0 | N190: 0 | O190: 0 | P190: 0 | Q190: 0 | R190: 0 | S190: 0 | T190: 0 | U190: 0 | V190: 0 | W190: 0 | X190: 0 | Y190: 0 | Z190: 0 | AA190: 0 | AB190: 0 | AD190: 0 | AE190: 0 | AF190: 0 | AG190: 0 | AH190: 0 | AI190: 0 | AJ190: 0 | AK190: 0 | AL190: 0 | AM190: 0 | AN190: 0 | AO190: 0 | AP190: 0 | AQ190: 0 | AR190: 0 | AS190: 0 | AT190: 0 | AU190: 0 | AW190: Sum | AY190: =SUM(AY155:AY189) -> 0
A191: 1 | B191: 3 | L191: 0 | M191: 0 | N191: 0 | O191: 0 | P191: 0 | Q191: 0 | R191: 0 | S191: 0 | T191: 0 | U191: 0 | V191: 0 | W191: 0 | X191: 0 | Y191: 0 | Z191: 0 | AA191: 0 | AB191: 0 | AD191: 0 | AE191: 0 | AF191: 0 | AG191: 0 | AH191: 0 | AI191: 0 | AJ191: 0 | AK191: 0 | AL191: 0 | AM191: 0 | AN191: 0 | AO191: 0 | AP191: 0 | AQ191: 0 | AR191: 0 | AS191: 0 | AT191: 0 | AU191: 0
A192: 1 | B192: 3 | L192: 0 | M192: 0 | N192: 0 | O192: 0 | P192: 0 | Q192: 0 | R192: 0 | S192: 0 | T192: 0 | U192: 0 | V192: 0 | W192: 0 | X192: 0 | Y192: 0 | Z192: 0 | AA192: 0 | AB192: 0 | AD192: 0 | AE192: 0 | AF192: 0 | AG192: 0 | AH192: 0 | AI192: 0 | AJ192: 0 | AK192: 0 | AL192: 0 | AM192: 0 | AN192: 0 | AO192: 0 | AP192: 0 | AQ192: 0 | AR192: 0 | AS192: 0 | AT192: 0 | AU192: 0
A193: 1 | B193: 3 | L193: 0 | M193: 0 | N193: 0 | O193: 0 | P193: 0 | Q193: 0 | R193: 0 | S193: 0 | T193: 0 | U193: 0 | V193: 0 | W193: 0 | X193: 0 | Y193: 0 | Z193: 0 | AA193: 0 | AB193: 0 | AD193: 0 | AE193: 0 | AF193: 0 | AG193: 0 | AH193: 0 | AI193: 0 | AJ193: 0 | AK193: 0 | AL193: 0 | AM193: 0 | AN193: 0 | AO193: 0 | AP193: 0 | AQ193: 0 | AR193: 0 | AS193: 0 | AT193: 0 | AU193: 0
A194: 1 | B194: 3 | L194: 0 | M194: 0 | N194: 0 | O194: 0 | P194: 0 | Q194: 0 | R194: 0 | S194: 0 | T194: 0 | U194: 0 | V194: 0 | W194: 0 | X194: 0 | Y194: 0 | Z194: 0 | AA194: 0 | AB194: 0 | AD194: 0 | AE194: 0 | AF194: 0 | AG194: 0 | AH194: 0 | AI194: 0 | AJ194: 0 | AK194: 0 | AL194: 0 | AM194: 0 | AN194: 0 | AO194: 0 | AP194: 0 | AQ194: 0 | AR194: 0 | AS194: 0 | AT194: 0 | AU194: 0
A195: 1 | B195: 5 | L195: 0 | M195: 0 | N195: 0 | O195: 0 | P195: 0 | Q195: 0 | R195: 0 | S195: 0 | T195: 0 | U195: 0 | V195: 0 | W195: 0 | X195: 0 | Y195: 0 | Z195: 0 | AA195: 0 | AB195: 0 | AD195: 0 | AE195: 0 | AF195: 0 | AG195: 0 | AH195: 0 | AI195: 0 | AJ195: 0 | AK195: 0 | AL195: 0 | AM195: 0 | AN195: 0 | AO195: 0 | AP195: 0 | AQ195: 0 | AR195: 0 | AS195: 0 | AT195: 0 | AU195: 0
A196: 1 | B196: 3 | L196: 0 | M196: 0 | N196: 0 | O196: 0 | P196: 0 | Q196: 0 | R196: 0 | S196: 0 | T196: 0 | U196: 0 | V196: 0 | W196: 0 | X196: 0 | Y196: 0 | Z196: 0 | AA196: 0 | AB196: 0 | AD196: 0 | AE196: 0 | AF196: 0 | AG196: 0 | AH196: 0 | AI196: 0 | AJ196: 0 | AK196: 0 | AL196: 0 | AM196: 0 | AN196: 0 | AO196: 0 | AP196: 0 | AQ196: 0 | AR196: 0 | AS196: 0 | AT196: 0 | AU196: 0
A197: 1 | B197: 3 | L197: 0 | M197: 0 | N197: 0 | O197: 0 | P197: 0 | Q197: 0 | R197: 0 | S197: 0 | T197: 0 | U197: 0 | V197: 0 | W197: 0 | X197: 0 | Y197: 0 | Z197: 0 | AA197: 0 | AB197: 0 | AD197: 0 | AE197: 0 | AF197: 0 | AG197: 0 | AH197: =((P197*10)/135)^$K$1 -> 0 | AI197: =((Q197*10)/135)^$K$1 -> 0 | AJ197: =((R197*10)/135)^$K$1 -> 0 | AK197: =((S197*10)/135)^$K$1 -> 0 | AL197: =((T197*10)/135)^$K$1 -> 0 | AM197: =((U197*10)/98)^$K$1 -> 0 | AN197: =((V197*10)/98)^$K$1 -> 0 | AO197: =((W197*10)/98)^$K$1 -> 0 | AP197: =((X197*10)/98)^$K$1 -> 0 | AQ197: =((Y197*10)/182)^$K$1 -> 0 | AR197: =((Z197*10)/182)^$K$1 -> 0 | AS197: 0 | AT197: 0 | AU197: 0
A198: 1 | B198: 3 | L198: =C198 -> 0 | M198: =IF(B198=4,D198,0) -> 0 | N198: =IF(OR(B198=2,B198="3B",B198="5C",B198="5D"),D198,0) -> 0 | O198: =IF(B198="3B",E198,0) -> 0 | P198: =IF(OR(B198=3,B198=5,B198="5B",B198=6,B198="6B",B198=7,B198="7B",B198=9,B198="9B"),D198+E198,0) -> 0 | Q198: =IF(B198=4,E198+F198,0) -> 0 | R198: =IF(OR(B198=5,B198=7,B198=9),F198+G198,0) -> 0 | S198: =IF(OR(B198=7,B198=9),H198+I198,0) -> 0 | T198: =IF(B198=9,J198+K198,0) -> 0 | U198: =IF(OR(B198="6C",B198="7C"),D198+E198,0) -> 0 | V198: =IF(B198="4B",F198+G198,0) -> 0 | W198: =IF(OR(B198="7B",B198="7C",B198="9B"),H198+I198,0) -> 0 | X198: =IF(OR(B198="9B"),J198+K198,0) -> 0 | Y198: =IF((B198="5C"),E198+F198+G198,0) -> 0 | Z198: =IF(B198=6,F198+G198+H198,0) -> 0 | AA198: =IF((B198="5D"),E198+F198+G198,0) -> 0 | AB198: =IF(OR(B198="6B",B198="6C"),F198+G198+H198,0) -> 0 | AD198: 0 | AE198: 0 | AF198: 0 | AG198: 0 | AH198: 0 | AI198: 0 | AJ198: 0 | AK198: 0 | AL198: 0 | AM198: 0 | AN198: 0 | AO198: 0 | AP198: 0 | AQ198: 0 | AR198: 0 | AS198: =((AA198*10)/132)^$K$1 -> 0 | AT198: =((AB198*10)/132)^$K$1 -> 0 | AU198: =SUM(AD198:AT198) -> 0
A199: 1 | B199: 3 | L199: 0 | M199: 0 | N199: 0 | O199: 0 | P199: 0 | Q199: 0 | R199: 0 | S199: 0 | T199: 0 | U199: 0 | V199: 0 | W199: 0 | X199: 0 | Y199: 0 | Z199: 0 | AA199: 0 | AB199: 0 | AD199: 0 | AE199: 0 | AF199: 0 | AG199: 0 | AH199: 0 | AI199: 0 | AJ199: 0 | AK199: 0 | AL199: 0 | AM199: 0 | AN199: 0 | AO199: 0 | AP199: 0 | AQ199: 0 | AR199: 0 | AS199: 0 | AT199: 0 | AU199: 0
A200: 1 | B200: 3 | L200: 0 | M200: 0 | N200: 0 | O200: 0 | P200: 0 | Q200: 0 | R200: 0 | S200: 0 | T200: 0 | U200: 0 | V200: 0 | W200: 0 | X200: 0 | Y200: 0 | Z200: 0 | AA200: 0 | AB200: 0 | AD200: 0 | AE200: 0 | AF200: 0 | AG200: 0 | AH200: 0 | AI200: 0 | AJ200: 0 | AK200: 0 | AL200: 0 | AM200: 0 | AN200: 0 | AO200: 0 | AP200: 0 | AQ200: 0 | AR200: 0 | AS200: 0 | AT200: 0 | AU200: 0
... 822 more rows

Sheet 9 Design MESA Direction 1-SS
A1: Computation of design value of Equivalent Standard Axle Loads
A3: Vehicle | B3: Vehicle Class | C3: Average ESA/VEF | D3: AADTT | E3: Load distribution factor between lanes | F3: ESA/day for each category
A4: Medium Truck (2 Axles) - Type 2 | B4: 2 | C4: ='8 Axle Loads Direction 1-SS'!L1010 -> 1.226218434 | D4: ='7 ADT Direction 1-SS'!B22 -> 47.52 | E4: 1 | F4: =C4*D4*E4 -> 58.26989997
A5: Heavy Truck (3 Axles) - Type 3 | B5: 3 | C5: ='8 Axle Loads Direction 1-SS'!L1011 -> 0.003296490466 | D5: ='7 ADT Direction 1-SS'!C22 -> 47.52 | E5: 1 | F5: =C5*D5*E5 -> 0.156649227
A6: Heavy Truck (3 Axles) - Type 3B | B6: 3B | C6: ='8 Axle Loads Direction 1-SS'!L1012 -> 2.116909417 | D6: ='7 ADT Direction 1-SS'!D22 -> 47.52 | E6: 1 | F6: 100.5955355
A7: Heavy Truck (4 Axles) - Type 4 | B7: 4 | C7: ='8 Axle Loads Direction 1-SS'!L1013 -> 2.217698578 | D7: ='7 ADT Direction 1-SS'!E22 -> 47.52 | E7: 3 | F7: 316.1551093
A8: Semi-Trailers (5 Axles) - Type 5 | B8: 5 | C8: ='8 Axle Loads Direction 1-SS'!L1014 -> 0 | D8: ='7 ADT Direction 1-SS'!F22 -> 47.52 | E8: 1 | F8: 0
A9: Semi-Trailers (5 Axles) - Type 5B | B9: 5B | C9: ='8 Axle Loads Direction 1-SS'!L1015 -> 0.3925446972 | D9: ='7 ADT Direction 1-SS'!G22 -> 47.52 | E9: 1 | F9: 18.65372401
A10: Semi-Trailers (5 Axles) - Type 5C | B10: 5C | C10: ='8 Axle Loads Direction 1-SS'!L1016 -> 0 | D10: ='7 ADT Direction 1-SS'!H22 -> 47.52 | E10: 1 | F10: 0
A11: Semi-Trailers (5 Axles) - Type 5D | B11: 5D | C11: ='8 Axle Loads Direction 1-SS'!L1017 -> 0 | D11: ='7 ADT Direction 1-SS'!I22 -> 47.52 | E11: 1 | F11: 0
A12: Semi-Trailers (6 Axles) - Type 6 | B12: 6 | C12: ='8 Axle Loads Direction 1-SS'!L1018 -> 3.01009997 | D12: ='7 ADT Direction 1-SS'!J22 -> 47.52 | E12: 1 | F12: 143.0399506
A13: Semi-Trailers (6 Axles) - Type 6B | B13: 6B | C13: ='8 Axle Loads Direction 1-SS'!L1019 -> 9.606881308 | D13: ='7 ADT Direction 1-SS'!K22 -> 47.52 | E13: 1 | F13: 456.5189998
A14: Semi-Trailers (6 Axles) - Type 6C | B14: 6C | C14: ='8 Axle Loads Direction 1-SS'!L1020 -> 0 | D14: ='7 ADT Direction 1-SS'!L22 -> 47.52 | E14: 1 | F14: 0
A15: Trailers (7 Axles) - Type 7 | B15: 7 | C15: ='8 Axle Loads Direction 1-SS'!L1021 -> 4.414049491 | D15: ='7 ADT Direction 1-SS'!M22 -> 47.52 | E15: 1 | F15: 209.7556318
A16: Trailers (7 Axles) - Type 7B | B16: 7B | C16: ='8 Axle Loads Direction 1-SS'!L1022 -> 6.115826126 | D16: ='7 ADT Direction 1-SS'!N22 -> 47.52 | E16: 1 | F16: 290.6240575
A17: Trailers (7 Axles) - Type 7C | B17: 7C | C17: ='8 Axle Loads Direction 1-SS'!L1023 -> 0 | D17: ='7 ADT Direction 1-SS'!O22 -> 47.52 | E17: 1 | F17: 0
A18: Trailers (9 Axles) - Type 9 | B18: 9 | C18: ='8 Axle Loads Direction 1-SS'!L1024 -> 2.033954616 | D18: ='7 ADT Direction 1-SS'!P22 -> 47.52 | E18: 1 | F18: 96.65352337
A19: Trailers (9 Axles) - Type 9B | B19: 9B | C19: ='8 Axle Loads Direction 1-SS'!L1025 -> 8.698507344 | D19: ='7 ADT Direction 1-SS'!Q22 -> 47.52 | E19: 1 | F19: 413.353069
A20: a - Total ESA/day (one way) | F20: =SUM(F4:F19) -> 2103.77615
H21: Truck Type
A22: Factors | H22: 2 | I22: 3 | J22: 3B | K22: 4 | L22: 5 | M22: 5B | N22: 5C | O22: 5D | P22: 6 | Q22: 6B | R22: 6C | S22: 7 | T22: 7B | U22: 7C | V22: 9 | W22: 9B
A23: a=current average annual daily traffic loading in ESA/day (one way) in year of count | H23: =F4 -> 58.26989997 | I23: =F5 -> 0.156649227 | J23: =F6 -> 100.5955355 | K23: =F7 -> 316.1551093 | L23: =F8 -> 0 | M23: =F9 -> 18.65372401 | N23: =F10 -> 0 | O23: =F11 -> 0 | P23: =F12 -> 143.0399506 | Q23: =F13 -> 456.5189998 | R23: =F14 -> 0 | S23: =F15 -> 209.7556318 | T23: =F16 -> 290.6240575 | U23: =F17 -> 0 | V23: =F18 -> 96.65352337 | W23: =F19 -> 413.353069 | X23: Growth Period 1
A24: b=annual growth rate (%) for growth Period 1 | H24: 5 | I24: 5 | J24: 5 | K24: 5 | L24: 5 | M24: 5 | N24: 5 | O24: 5 | P24: 5 | Q24: 5 | R24: 5 | S24: 5 | T24: 5 | U24: 5 | V24: 5 | W24: 5
A25: c=design life (years) for growth Period 1 | H25: 10 | I25: 10 | J25: 10 | K25: 10 | L25: 10 | M25: 10 | N25: 10 | O25: 10 | P25: 10 | Q25: 10 | R25: 10 | S25: 10 | T25: 10 | U25: 10 | V25: 10 | W25: 10
A26: d=number of years to start of design life for growth Period 1 | H26: 2 | I26: 2 | J26: 2 | K26: 2 | L26: 2 | M26: 2 | N26: 2 | O26: 2 | P26: 2 | Q26: 2 | R26: 2 | S26: 2 | T26: 2 | U26: 2 | V26: 2 | W26: 2
A27: a=average annual daily traffic loading in ESA/day (one way) at end of growth Period 1/ beginning of Period 2 | H27: =H23*((1+(H24/100))^(H25+H26)) -> 104.6443685 | I27: =I23*((1+(I24/100))^(I25+I26)) -> 0.2813195052 | J27: 180.6551288 | K27: 567.769153 | L27: 0 | M27: 33.49940827 | N27: 0 | O27: 0 | P27: 256.8792001 | Q27: =Q23*((1+(Q24/100))^(Q25+Q26)) -> 819.8425337 | R27: =R23*((1+(R24/100))^(R25+R26)) -> 0 | S27: =S23*((1+(S24/100))^(S25+S26)) -> 376.6909783 | T27: 521.9190522 | U27: 0 | V27: 173.5758414 | W27: 742.3227238 | X27: Growth Period 2
A28: b=annual growth rate (%) for growth Period 2 | H28: 4 | I28: 4 | J28: 4 | K28: 4 | L28: 4 | M28: 4 | N28: 4 | O28: 4 | P28: 4 | Q28: 4 | R28: 4 | S28: 4 | T28: 4 | U28: 4 | V28: 4 | W28: 4
A29: c=design life (years) for growth Period 2 | H29: 5 | I29: 5 | J29: 5 | K29: 5 | L29: 5 | M29: 5 | N29: 5 | O29: 5 | P29: 5 | Q29: 5 | R29: 5 | S29: 5 | T29: 5 | U29: 5 | V29: 5 | W29: 5
A30: a=average annual daily traffic loading in ESA/day (one way) at end of growth Period 2/ beginning of Period 3 | H30: =H27*((1+(H28/100))^(H29)) -> 127.3158746 | I30: =I27*((1+(I28/100))^(I29)) -> 0.3422681925 | J30: 219.7945868 | K30: 690.7779879 | L30: 0 | M30: 40.7571523 | N30: 0 | O30: 0 | P30: 312.5328244 | Q30: 997.4637981 | R30: 0 | S30: 458.302172 | T30: 634.9943297 | U30: =U27*((1+(U28/100))^(U29)) -> 0 | V30: 211.1815512 | W30: 903.1490965 | X30: Growth Period 3
A31: b=annual growth rate (%) for growth Period 3 | H31: 3 | I31: 3 | J31: 3 | K31: 3 | L31: 3 | M31: 3 | N31: 3 | O31: 3 | P31: 3 | Q31: 3 | R31: 3 | S31: 3 | T31: 3 | U31: 3 | V31: 3 | W31: 3
A32: c=design life (years) for growth Period 3 | H32: 5 | I32: 5 | J32: 5 | K32: 5 | L32: 5 | M32: 5 | N32: 5 | O32: 5 | P32: 5 | Q32: 5 | R32: 5 | S32: 5 | T32: 5 | U32: 5 | V32: 5 | W32: 5
A33: Total Cummulative ESA by Truck Type (one way) | H33: =(((H23*365*100/H24)*(((1+(H24/100))^(H25+H26))-((1+(H24/100))^H26)))/1000000)+(((H27*365*100/H28)*(((1+(H28/100))^H29)-(1)))/1000000)+(((H30*365*100/H31)*(((1+(H31/100))^H32)-(1)))/1000000) -> 0.7485277643 | I33: =(((I23*365*100/I24)*(((1+(I24/100))^(I25+I26))-((1+(I24/100))^I26)))/1000000)+(((I27*365*100/I28)*(((1+(I28/100))^I29)-(1)))/1000000)+(((I30*365*100/I31)*(((1+(I31/100))^I32)-(1)))/1000000) -> 0.002012296155 | J33: 1.292237525 | K33: 4.061288543 | L33: 0 | M33: 0.2396233791 | N33: 0 | O33: 0 | P33: 1.837473111 | Q33: 5.864385325 | R33: 0 | S33: 2.694494314 | T33: 3.733319881 | U33: 0 | V33: 1.241598935 | W33: 5.309881238 | X33: MESA
A34: Total Cummulative Design MESA (one way) | H34: =SUM(H33:W33) -> 27.02484231
A38: Pavement Design MESA Direction 1 | D38: =H34 -> 27.02484231 | F38: 0 | G38: If MESA is already known then enter it here
D39: =IF(D38>F38,D38,F38) -> 27.02484231
A44: Computation of design value of Equivalent Standard Axle Loads (IF YOU ALREADY HAVE VEF per vehicle class and AADTT OR ADTT)
A46: Vehicle | B46: Vehicle Class | C46: Average ESA/VEF | D46: AADTT/ ADTT | E46: Load distribution factor between lanes | F46: ESA/day for each category
A47: Medium Truck (2 Axles) - Type 2 | B47: 2 | C47: 2 | D47: 0 | E47: 1 | F47: =C47*D47*E47 -> 0
A48: Heavy Truck (3 Axles) - Type 3 | B48: 3 | C48: 3 | D48: 0 | E48: 1 | F48: =C48*D48*E48 -> 0
A49: Heavy Truck (3 Axles) - Type 3B | B49: 3B | C49: 4 | D49: 0 | E49: 1 | F49: 0
A50: Heavy Truck (4 Axles) - Type 4 | B50: 4 | C50: 4.5 | D50: 0 | E50: 1 | F50: 0
A51: Semi-Trailers (5 Axles) - Type 5 | B51: 5 | C51: 3.8 | D51: 0 | E51: 1 | F51: 0
A52: Semi-Trailers (5 Axles) - Type 5B | B52: 5B | C52: 4.8 | D52: 0 | E52: 1 | F52: 0
A53: Semi-Trailers (5 Axles) - Type 5C | B53: 5C | C53: 4.2 | D53: 0 | E53: 1 | F53: 0
A54: Semi-Trailers (5 Axles) - Type 5D | B54: 5D | C54: 4.8 | D54: 0 | E54: 1 | F54: 0
A55: Semi-Trailers (6 Axles) - Type 6 | B55: 6 | C55: 6.2 | D55: 0 | E55: 1 | F55: 0
A56: Semi-Trailers (6 Axles) - Type 6B | B56: 6B | C56: 6.2 | D56: 0 | E56: 1 | F56: 0
A57: Semi-Trailers (6 Axles) - Type 6C | B57: 6C | C57: 6.9 | D57: 0 | E57: 1 | F57: 0
A58: Trailers (7 Axles) - Type 7 | B58: 7 | C58: 6.3 | D58: 0 | E58: 1 | F58: 0
A59: Trailers (7 Axles) - Type 7B | B59: 7B | C59: 6.3 | D59: 0 | E59: 1 | F59: 0
A60: Trailers (7 Axles) - Type 7C | B60: 7C | C60: 7 | D60: 0 | E60: 1 | F60: 0
A61: Trailers (9 Axles) - Type 9 | B61: 9 | C61: 6 | D61: 0 | E61: 1 | F61: 0
A62: Trailers (9 Axles) - Type 9B | B62: 9B | C62: 6.9 | D62: 0 | E62: 1 | F62: 0
A63: a - Total ESA/day (one way) | F63: =SUM(F47:F62) -> 0
H64: Truck Type
A65: Factors | H65: 2 | I65: 3 | J65: 3B | K65: 4 | L65: 5 | M65: 5B | N65: 5C | O65: 5D | P65: 6 | Q65: 6B | R65: 6C | S65: 7 | T65: 7B | U65: 7C | V65: 9 | W65: 9B
A66: a=current average annual daily traffic loading in ESA/day (one way) in year of count | H66: =F47 -> 0 | I66: =F48 -> 0 | J66: =F49 -> 0 | K66: =F50 -> 0 | L66: =F51 -> 0 | M66: =F52 -> 0 | N66: =F53 -> 0 | O66: =F54 -> 0 | P66: =F55 -> 0 | Q66: =F56 -> 0 | R66: =F57 -> 0 | S66: =F58 -> 0 | T66: =F59 -> 0 | U66: =F60 -> 0 | V66: =F61 -> 0 | W66: =F62 -> 0 | X66: Growth Period 1
A67: b=annual growth rate (%) for growth Period 1 | H67: 5 | I67: 5 | J67: 5 | K67: 5 | L67: 5 | M67: 5 | N67: 5 | O67: 5 | P67: 5 | Q67: 5 | R67: 5 | S67: 5 | T67: 5 | U67: 5 | V67: 5 | W67: 5
A68: c=design life (years) for growth Period 1 | H68: 10 | I68: 10 | J68: 10 | K68: 10 | L68: 10 | M68: 10 | N68: 10 | O68: 10 | P68: 10 | Q68: 10 | R68: 10 | S68: 10 | T68: 10 | U68: 10 | V68: 10 | W68: 10
A69: d=number of years to start of design life for growth Period 1 | H69: 2 | I69: 2 | J69: 2 | K69: 2 | L69: 2 | M69: 2 | N69: 2 | O69: 2 | P69: 2 | Q69: 2 | R69: 2 | S69: 2 | T69: 2 | U69: 2 | V69: 2 | W69: 2
A70: a=average annual daily traffic loading in ESA/day (one way) at end of growth Period 1/ beginning of Period 2 | H70: =H66*((1+(H67/100))^(H68+H69)) -> 0 | I70: =I66*((1+(I67/100))^(I68+I69)) -> 0 | J70: 0 | K70: 0 | L70: 0 | M70: 0 | N70: 0 | O70: 0 | P70: 0 | Q70: 0 | R70: =R66*((1+(R67/100))^(R68+R69)) -> 0 | S70: 0 | T70: 0 | U70: =U66*((1+(U67/100))^(U68+U69)) -> 0 | V70: 0 | W70: 0 | X70: Growth Period 2
A71: b=annual growth rate (%) for growth Period 2 | H71: 4 | I71: 4 | J71: 4 | K71: 4 | L71: 4 | M71: 4 | N71: 4 | O71: 4 | P71: 4 | Q71: 4 | R71: 4 | S71: 4 | T71: 4 | U71: 4 | V71: 4 | W71: 4
A72: c=design life (years) for growth Period 2 | H72: 5 | I72: 5 | J72: 5 | K72: 5 | L72: 5 | M72: 5 | N72: 5 | O72: 5 | P72: 5 | Q72: 5 | R72: 5 | S72: 5 | T72: 5 | U72: 5 | V72: 5 | W72: 5
A73: a=average annual daily traffic loading in ESA/day (one way) at end of growth Period 2/ beginning of Period 3 | H73: =H70*((1+(H71/100))^(H72)) -> 0 | I73: =I70*((1+(I71/100))^(I72)) -> 0 | J73: 0 | K73: 0 | L73: 0 | M73: 0 | N73: 0 | O73: 0 | P73: 0 | Q73: 0 | R73: =R70*((1+(R71/100))^(R72)) -> 0 | S73: 0 | T73: 0 | U73: =U70*((1+(U71/100))^(U72)) -> 0 | V73: 0 | W73: 0 | X73: Growth Period 3
A74: b=annual growth rate (%) for growth Period 3 | H74: 3 | I74: 3 | J74: 3 | K74: 3 | L74: 3 | M74: 3 | N74: 3 | O74: 3 | P74: 3 | Q74: 3 | R74: 3 | S74: 3 | T74: 3 | U74: 3 | V74: 3 | W74: 3
A75: c=design life (years) for growth Period 3 | H75: 5 | I75: 5 | J75: 5 | K75: 5 | L75: 5 | M75: 5 | N75: 5 | O75: 5 | P75: 5 | Q75: 5 | R75: 5 | S75: 5 | T75: 5 | U75: 5 | V75: 5 | W75: 5
A76: Total Cummulative MESA by Truck Type (one way) | H76: =(((H66*365*100/H67)*(((1+(H67/100))^(H68+H69))-((1+(H67/100))^H69)))/1000000)+(((H70*365*100/H71)*(((1+(H71/100))^H72)-(1)))/1000000)+(((H73*365*100/H74)*(((1+(H74/100))^H75)-(1)))/1000000) -> 0 | I76: =(((I66*365*100/I67)*(((1+(I67/100))^(I68+I69))-((1+(I67/100))^I69)))/1000000)+(((I70*365*100/I71)*(((1+(I71/100))^I72)-(1)))/1000000)+(((I73*365*100/I74)*(((1+(I74/100))^I75)-(1)))/1000000) -> 0 | J76: 0 | K76: 0 | L76: 0 | M76: 0 | N76: 0 | O76: 0 | P76: 0 | Q76: 0 | R76: =(((R66*365*100/R67)*(((1+(R67/100))^(R68+R69))-((1+(R67/100))^R69)))/1000000)+(((R70*365*100/R71)*(((1+(R71/100))^R72)-(1)))/1000000)+(((R73*365*100/R74)*(((1+(R74/100))^R75)-(1)))/1000000) -> 0 | S76: 0 | T76: 0 | U76: =(((U66*365*100/U67)*(((1+(U67/100))^(U68+U69))-((1+(U67/100))^U69)))/1000000)+(((U70*365*100/U71)*(((1+(U71/100))^U72)-(1)))/1000000)+(((U73*365*100/U74)*(((1+(U74/100))^U75)-(1)))/1000000) -> 0 | V76: 0 | W76: 0 | X76: MESA
A77: Total Cummulative Design MESA (one way) | H77: =SUM(H76:W76) -> 0
A80: Pavement Design MESA Direction 1 | D80: =H77 -> 0
A84: Determinant MESA Direction 1 | D84: =IF(D39>D80,D39,D80) -> 27.02484231

Sheet 10 ADT Direction 2-SS
A1: Summary Traffic Count in Direction 2
A4: VEHICLE | B4: Medium Truck (2 Axles) - Type 2 | C4: Heavy Truck (3 Axles) - Type 3 | D4: Heavy Truck (3 Axles) - Type 3B | E4: Heavy Truck (4 Axles) - Type 4 | F4: Semi-Trailers (5 Axles) - Type 5 | G4: Semi-Trailers (5 Axles) - Type 5B | H4: Semi-Trailers (5 Axles) - Type 5C | I4: Semi-Trailers (5 Axles) - Type 5D | J4: Semi-Trailers (6 Axles) - Type 6 | K4: Semi-Trailers (6 Axles) - Type 6B | L4: Semi-Trailers (6 Axles) - Type 6C | M4: Trailers (7 Axles) - Type 7 | N4: Trailers (7 Axles) - Type 7B | O4: Trailers (7 Axles) - Type 7C | P4: Trailers (9 Axles) - Type 9 | Q4: Trailers (9 Axles) - Type 9B | R4: DAILY averages | U4: Computation of 24 hr Average Night Expansion Factor (Weekday) | AC4: Computation of 24 hr Average Night Expansion Factor (Weekend)
A5: Vehicle Class | B5: 2 | C5: 3 | D5: 3B | E5: 4 | F5: 5 | G5: 5B | H5: 5C | I5: 5D | J5: 6 | K5: 6B | L5: 6C | M5: 7 | N5: 7B | O5: 7C | P5: 9 | Q5: 9B | U5: Full day count on day of 24 hr count | AA5: 300 | AC5: Full day count on day of 24 hr count | AI5: 300
A6: Date | U6: Vehicle number on the 24 hr count day, corresponding to the same counting period for day that requires grossing | AA6: 250 | AC6: Vehicle number on the 24 hr count day, corresponding to the same counting period for day that requires grossing | AI6: 250
A7: ADTT (Weekday) (Less than 24 hrs) | B7: 20 | C7: 20 | D7: 20 | E7: 20 | F7: 20 | G7: 20 | H7: 20 | I7: 20 | J7: 20 | K7: 20 | L7: 20 | M7: 20 | N7: 20 | O7: 20 | P7: 20 | Q7: 20 | R7: =SUM(B7:Q7) -> 320 | U7: Grossing Factor | AA7: =AA5/AA6 -> 1.2 | AC7: Grossing Factor | AI7: =AI5/AI6 -> 1.2
A8: Full day count on day of 24 hr count | B8: 30 | C8: 30 | D8: 30 | E8: 30 | F8: 30 | G8: 30 | H8: 30 | I8: 30 | J8: 30 | K8: 30 | L8: 30 | M8: 30 | N8: 30 | O8: 30 | P8: 30 | Q8: 30 | R8: =SUM(B8:Q8) -> 480
A9: Night Expansion Factor | B9: =B8/B7 -> 1.5 | C9: =C8/C7 -> 1.5 | D9: 1.5 | E9: 1.5 | F9: 1.5 | G9: 1.5 | H9: 1.5 | I9: 1.5 | J9: 1.5 | K9: 1.5 | L9: 1.5 | M9: 1.5 | N9: 1.5 | O9: 1.5 | P9: 1.5 | Q9: 1.5 | R9: =AVERAGE(B9:Q9) -> 1.5
A10: ADTT (Weekday (24 hrs) | B10: =B7*B9 -> 30 | C10: =C7*C9 -> 30 | D10: 30 | E10: 30 | F10: 30 | G10: 30 | H10: 30 | I10: 30 | J10: 30 | K10: 30 | L10: 30 | M10: 30 | N10: 30 | O10: 30 | P10: 30 | Q10: 30 | R10: =SUM(B10:Q10) -> 480
A12: ADTT (Weekend) (Less than 24 hrs) | B12: 20 | C12: 20 | D12: 20 | E12: 20 | F12: 20 | G12: 20 | H12: 20 | I12: 20 | J12: 20 | K12: 20 | L12: 20 | M12: 20 | N12: 20 | O12: 20 | P12: 20 | Q12: 20 | R12: =SUM(B12:Q12) -> 320 | U12: Lane Split Factor (or directional split if two-lane road and ADTT entered is Total) | AA12: 1
A13: Full day count on day of 24 hr count | B13: 30 | C13: 30 | D13: 30 | E13: 30 | F13: 30 | G13: 30 | H13: 30 | I13: 30 | J13: 30 | K13: 30 | L13: 30 | M13: 30 | N13: 30 | O13: 30 | P13: 30 | Q13: 30 | R13: =SUM(B13:Q13) -> 480
A14: Night Expansion Factor | B14: =B13/B12 -> 1.5 | C14: =C13/C12 -> 1.5 | D14: 1.5 | E14: 1.5 | F14: 1.5 | G14: 1.5 | H14: 1.5 | I14: 1.5 | J14: 1.5 | K14: 1.5 | L14: 1.5 | M14: 1.5 | N14: 1.5 | O14: 1.5 | P14: 1.5 | Q14: 1.5 | R14: =AVERAGE(B14:Q14) -> 1.5
A15: ADTT (Weekend) (24 hrs) | B15: =B12*B14 -> 30 | C15: =C12*C14 -> 30 | D15: 30 | E15: 30 | F15: 30 | G15: 30 | H15: 30 | I15: 30 | J15: 30 | K15: 30 | L15: 30 | M15: 30 | N15: 30 | O15: 30 | P15: 30 | Q15: 30 | R15: =SUM(B15:Q15) -> 480
A17: ADTT (7-day) | B17: =(B10*5+B15*2)/7 -> 30 | C17: =(C10*5+C15*2)/7 -> 30 | D17: 30 | E17: 30 | F17: 30 | G17: 30 | H17: 30 | I17: 30 | J17: 30 | K17: 30 | L17: 30 | M17: 30 | N17: 30 | O17: 30 | P17: 30 | Q17: 30 | R17: =SUM(B17:Q17) -> 480
A18: Seasonal Factor | B18: 1.2 | C18: 1.2 | D18: 1.2 | E18: 1.2 | F18: 1.2 | G18: 1.2 | H18: 1.2 | I18: 1.2 | J18: 1.2 | K18: 1.2 | L18: 1.2 | M18: 1.2 | N18: 1.2 | O18: 1.2 | P18: 1.2 | Q18: 1.2 | R18: =AVERAGE(B18:Q18) -> 1.2
A19: Diverted Traffic Factor | B19: 1.2 | C19: 1.2 | D19: 1.2 | E19: 1.2 | F19: 1.2 | G19: 1.2 | H19: 1.2 | I19: 1.2 | J19: 1.2 | K19: 1.2 | L19: 1.2 | M19: 1.2 | N19: 1.2 | O19: 1.2 | P19: 1.2 | Q19: 1.2 | R19: 1.2
A20: Generated Traffic Factor | B20: 1.1 | C20: 1.1 | D20: 1.1 | E20: 1.1 | F20: 1.1 | G20: 1.1 | H20: 1.1 | I20: 1.1 | J20: 1.1 | K20: 1.1 | L20: 1.1 | M20: 1.1 | N20: 1.1 | O20: 1.1 | P20: 1.1 | Q20: 1.1 | R20: 1.1
A22: AADTT (Design) | B22: =B17*$AA$12*B18*B19*B20 -> 47.52 | C22: =C17*$AA$12*C18*C19*C20 -> 47.52 | D22: 47.52 | E22: 47.52 | F22: 47.52 | G22: 47.52 | H22: 47.52 | I22: 47.52 | J22: 47.52 | K22: 47.52 | L22: 47.52 | M22: 47.52 | N22: 47.52 | O22: 47.52 | P22: 47.52 | Q22: =Q17*$AA$12*Q18*Q19*Q20 -> 47.52 | R22: =SUM(B22:Q22) -> 760.32
B27: Truck Type | C27: Axle 1 | D27: Axle 2 | E27: Axle 3 | F27: Axle 4 | G27: Axle 5 | H27: Axle 6 | I27: Axle 7 | J27: Axle 8 | K27: Axle 9
B28: 2 | C28: SAST | D28: SADT
B29: 3 | C29: SAST | D29: TADT
B30: 3B | C30: SAST | D30: SADT | E30: SADT
B31: 4 | C31: SAST | D31: SAST | E31: TADT
B32: 5 | C32: SAST | D32: TADT | F32: TADT
B33: 5B | C33: SAST | D33: TADT | F33: TAST
B34: 5C | C34: SAST | D34: SADT | E34: TRDT
B35: 5D | C35: SAST | D35: SADT | E35: TRST
B36: 6 | C36: SAST | D36: TADT | F36: TRDT
B37: 6B | C37: SAST | D37: TADT | F37: TRST
B38: 6C | C38: SAST | D38: TAST | F38: TRST
B39: 7 | C39: SAST | D39: TADT | F39: TADT | H39: TADT
B40: 7B | C40: SAST | D40: TADT | F40: TAST | H40: TAST
B41: 7C | C41: SAST | D41: TAST | F41: TAST | H41: TAST
B42: 9 | C42: SAST | D42: TADT | F42: TADT | H42: TADT | J42: TADT
B43: 9B | C43: SAST | D43: TADT | F43: TAST | H43: TAST | J43: TAST

Sheet 11 Axle Loads Direction 2-SS
A1: Computation of design axle loading from axle load survey data | J1: n= | K1: 4
C2: Axle Load (tonnes)
A3: Direction | B3: Vehicle Class | C3: Axle 1 | D3: Axle 2 | E3: Axle 3 | F3: Axle 4 | G3: Axle 5 | H3: Axle 6 | I3: Axle 7 | J3: Axle 8 | K3: Axle 9 | L3: HVAGs Loads (tonnes) | AD3: HVAGs (ESA) | AU3: VEF | AW3: QADT
L4: SAST1 | M4: SAST2 | N4: SADT1 | O4: SADT2 | P4: TADT1 | Q4: TADT2 | R4: TADT3 | S4: TADT4 | T4: TADT5 | U4: TAST1 | V4: TAST2 | W4: TAST3 | X4: TAST4 | Y4: TRDT1 | Z4: TRDT2 | AA4: TRST1 | AB4: TRST2 | AD4: SAST1 | AE4: SAST2 | AF4: SADT1 | AG4: SADT2 | AH4: TADT1 | AI4: TADT2 | AJ4: TADT3 | AK4: TADT4 | AL4: TADT5 | AM4: TAST1 | AN4: TAST2 | AO4: TAST3 | AP4: TAST4 | AQ4: TRDT1 | AR4: TRDT2 | AS4: TRST1 | AT4: TRST2 | AW4: Load (kN) | AX4: Sum of Loads | AY4: Proportion of Loads (%/100)
A5: 2 | B5: 3 | C5: 7 | D5: 6 | E5: 6 | L5: =C5 -> 7 | M5: =IF(B5=4,D5,0) -> 0 | N5: =IF(OR(B5=2,B5="3B",B5="5C",B5="5D"),D5,0) -> 0 | O5: =IF(B5="3B",E5,0) -> 0 | P5: =IF(OR(B5=3,B5=5,B5="5B",B5=6,B5="6B",B5=7,B5="7B",B5=9,B5="9B"),D5+E5,0) -> 12 | Q5: =IF(B5=4,E5+F5,0) -> 0 | R5: =IF(OR(B5=5,B5=7,B5=9),F5+G5,0) -> 0 | S5: =IF(OR(B5=7,B5=9),H5+I5,0) -> 0 | T5: =IF(B5=9,J5+K5,0) -> 0 | U5: =IF(OR(B5="6C",B5="7C"),D5+E5,0) -> 0 | V5: =IF(B5="4B",F5+G5,0) -> 0 | W5: =IF(OR(B5="7B",B5="7C",B5="9B"),H5+I5,0) -> 0 | X5: =IF(OR(B5="9B"),J5+K5,0) -> 0 | Y5: =IF((B5="5C"),E5+F5+G5,0) -> 0 | Z5: =IF(B5=6,F5+G5+H5,0) -> 0 | AA5: =IF((B5="5D"),E5+F5+G5,0) -> 0 | AB5: =IF(OR(B5="6B",B5="6C"),F5+G5+H5,0) -> 0 | AD5: =((L5*10)/58)^$K$1 -> 2.121681482 | AE5: =((M5*10)/58)^$K$1 -> 0 | AF5: =((N5*10)/80)^$K$1 -> 0 | AG5: =((O5*10)/80)^$K$1 -> 0 | AH5: =((P5*10)/135)^$K$1 -> 0.624295077 | AI5: =((Q5*10)/135)^$K$1 -> 0 | AJ5: =((R5*10)/135)^$K$1 -> 0 | AK5: =((S5*10)/135)^$K$1 -> 0 | AL5: =((T5*10)/135)^$K$1 -> 0 | AM5: =((U5*10)/98)^$K$1 -> 0 | AN5: =((V5*10)/98)^$K$1 -> 0 | AO5: =((W5*10)/98)^$K$1 -> 0 | AP5: =((X5*10)/98)^$K$1 -> 0 | AQ5: =((Y5*10)/182)^$K$1 -> 0 | AR5: =((Z5*10)/182)^$K$1 -> 0 | AS5: =((AA5*10)/132)^$K$1 -> 0 | AT5: =((AB5*10)/132)^$K$1 -> 0 | AU5: =SUM(AD5:AT5) -> 2.745976559 | AW5: 10
A6: 2 | B6: 2 | C6: 4 | D6: 8 | L6: =C6 -> 4 | M6: =IF(B6=4,D6,0) -> 0 | N6: =IF(OR(B6=2,B6="3B",B6="5C",B6="5D"),D6,0) -> 8 | O6: =IF(B6="3B",E6,0) -> 0 | P6: =IF(OR(B6=3,B6=5,B6="5B",B6=6,B6="6B",B6=7,B6="7B",B6=9,B6="9B"),D6+E6,0) -> 0 | Q6: =IF(B6=4,E6+F6,0) -> 0 | R6: =IF(OR(B6=5,B6=7,B6=9),F6+G6,0) -> 0 | S6: =IF(OR(B6=7,B6=9),H6+I6,0) -> 0 | T6: =IF(B6=9,J6+K6,0) -> 0 | U6: =IF(OR(B6="6C",B6="7C"),D6+E6,0) -> 0 | V6: =IF(B6="4B",F6+G6,0) -> 0 | W6: =IF(OR(B6="7B",B6="7C",B6="9B"),H6+I6,0) -> 0 | X6: =IF(OR(B6="9B"),J6+K6,0) -> 0 | Y6: =IF((B6="5C"),E6+F6+G6,0) -> 0 | Z6: =IF(B6=6,F6+G6+H6,0) -> 0 | AA6: =IF((B6="5D"),E6+F6+G6,0) -> 0 | AB6: =IF(OR(B6="6B",B6="6C"),F6+G6+H6,0) -> 0 | AD6: 0.2262184337 | AE6: 0 | AF6: 1 | AG6: 0 | AH6: 0 | AI6: 0 | AJ6: 0 | AK6: 0 | AL6: 0 | AM6: 0 | AN6: 0 | AO6: 0 | AP6: 0 | AQ6: 0 | AR6: 0 | AS6: =((AA6*10)/132)^$K$1 -> 0 | AT6: =((AB6*10)/132)^$K$1 -> 0 | AU6: =SUM(AD6:AT6) -> 1.226218434 | AW6: 20
A7: 2 | B7: 3 | L7: 0 | M7: 0 | N7: 0 | O7: 0 | P7: 0 | Q7: 0 | R7: 0 | S7: 0 | T7: 0 | U7: 0 | V7: 0 | W7: 0 | X7: 0 | Y7: 0 | Z7: 0 | AA7: 0 | AB7: 0 | AD7: 0 | AE7: 0 | AF7: 0 | AG7: 0 | AH7: 0 | AI7: 0 | AJ7: 0 | AK7: 0 | AL7: 0 | AM7: 0 | AN7: 0 | AO7: 0 | AP7: 0 | AQ7: 0 | AR7: 0 | AS7: 0 | AT7: 0 | AU7: 0 | AW7: 30
A8: 2 | B8: 3 | L8: 0 | M8: 0 | N8: 0 | O8: 0 | P8: 0 | Q8: 0 | R8: 0 | S8: 0 | T8: 0 | U8: 0 | V8: 0 | W8: 0 | X8: 0 | Y8: 0 | Z8: 0 | AA8: 0 | AB8: 0 | AD8: 0 | AE8: 0 | AF8: 0 | AG8: 0 | AH8: 0 | AI8: 0 | AJ8: 0 | AK8: 0 | AL8: 0 | AM8: 0 | AN8: 0 | AO8: 0 | AP8: 0 | AQ8: 0 | AR8: 0 | AS8: 0 | AT8: 0 | AU8: 0 | AW8: 40
A9: 2 | B9: 3 | L9: 0 | M9: 0 | N9: 0 | O9: 0 | P9: 0 | Q9: 0 | R9: 0 | S9: 0 | T9: 0 | U9: 0 | V9: 0 | W9: 0 | X9: 0 | Y9: 0 | Z9: 0 | AA9: 0 | AB9: 0 | AD9: 0 | AE9: 0 | AF9: 0 | AG9: 0 | AH9: 0 | AI9: 0 | AJ9: 0 | AK9: 0 | AL9: 0 | AM9: 0 | AN9: 0 | AO9: 0 | AP9: 0 | AQ9: 0 | AR9: 0 | AS9: 0 | AT9: 0 | AU9: 0 | AW9: 50
A10: 2 | B10: 3 | L10: 0 | M10: 0 | N10: 0 | O10: 0 | P10: 0 | Q10: 0 | R10: 0 | S10: 0 | T10: 0 | U10: 0 | V10: 0 | W10: 0 | X10: 0 | Y10: 0 | Z10: 0 | AA10: 0 | AB10: 0 | AD10: 0 | AE10: 0 | AF10: 0 | AG10: 0 | AH10: 0 | AI10: 0 | AJ10: 0 | AK10: 0 | AL10: 0 | AM10: 0 | AN10: 0 | AO10: 0 | AP10: 0 | AQ10: 0 | AR10: 0 | AS10: 0 | AT10: 0 | AU10: 0 | AW10: 60
A11: 2 | B11: 3 | L11: 0 | M11: 0 | N11: 0 | O11: 0 | P11: 0 | Q11: 0 | R11: 0 | S11: 0 | T11: 0 | U11: 0 | V11: 0 | W11: 0 | X11: 0 | Y11: 0 | Z11: 0 | AA11: 0 | AB11: 0 | AD11: 0 | AE11: 0 | AF11: 0 | AG11: 0 | AH11: 0 | AI11: 0 | AJ11: 0 | AK11: 0 | AL11: 0 | AM11: 0 | AN11: 0 | AO11: 0 | AP11: 0 | AQ11: 0 | AR11: 0 | AS11: 0 | AT11: 0 | AU11: 0 | AW11: 70
A12: 2 | B12: 3B | C12: 6 | D12: 10 | E12: 8 | L12: 6 | M12: 0 | N12: 10 | O12: 8 | P12: 0 | Q12: 0 | R12: 0 | S12: 0 | T12: 0 | U12: 0 | V12: 0 | W12: 0 | X12: 0 | Y12: 0 | Z12: 0 | AA12: 0 | AB12: 0 | AD12: 1.145230821 | AE12: 0 | AF12: 2.44140625 | AG12: 1 | AH12: 0 | AI12: 0 | AJ12: 0 | AK12: 0 | AL12: 0 | AM12: 0 | AN12: 0 | AO12: 0 | AP12: 0 | AQ12: 0 | AR12: 0 | AS12: 0 | AT12: 0 | AU12: 4.586637071 | AW12: 80
A13: 2 | B13: 3 | L13: 0 | M13: 0 | N13: 0 | O13: 0 | P13: 0 | Q13: 0 | R13: 0 | S13: 0 | T13: 0 | U13: 0 | V13: 0 | W13: 0 | X13: 0 | Y13: 0 | Z13: 0 | AA13: 0 | AB13: 0 | AD13: 0 | AE13: 0 | AF13: 0 | AG13: 0 | AH13: 0 | AI13: 0 | AJ13: 0 | AK13: 0 | AL13: 0 | AM13: 0 | AN13: 0 | AO13: 0 | AP13: 0 | AQ13: 0 | AR13: 0 | AS13: 0 | AT13: 0 | AU13: 0 | AW13: 90
A14: 2 | B14: 3 | L14: 0 | M14: 0 | N14: 0 | O14: 0 | P14: 0 | Q14: 0 | R14: 0 | S14: 0 | T14: 0 | U14: 0 | V14: 0 | W14: 0 | X14: 0 | Y14: 0 | Z14: 0 | AA14: 0 | AB14: 0 | AD14: 0 | AE14: 0 | AF14: 0 | AG14: 0 | AH14: 0 | AI14: 0 | AJ14: 0 | AK14: 0 | AL14: 0 | AM14: 0 | AN14: 0 | AO14: 0 | AP14: 0 | AQ14: 0 | AR14: 0 | AS14: 0 | AT14: 0 | AU14: 0 | AW14: 100
A15: 2 | B15: 3 | L15: 0 | M15: 0 | N15: 0 | O15: 0 | P15: 0 | Q15: 0 | R15: 0 | S15: 0 | T15: 0 | U15: 0 | V15: 0 | W15: 0 | X15: 0 | Y15: 0 | Z15: 0 | AA15: 0 | AB15: 0 | AD15: 0 | AE15: 0 | AF15: 0 | AG15: 0 | AH15: 0 | AI15: 0 | AJ15: 0 | AK15: 0 | AL15: 0 | AM15: 0 | AN15: 0 | AO15: 0 | AP15: 0 | AQ15: 0 | AR15: 0 | AS15: 0 | AT15: 0 | AU15: 0 | AW15: 110
A16: 2 | B16: 3 | L16: 0 | M16: 0 | N16: 0 | O16: 0 | P16: 0 | Q16: 0 | R16: 0 | S16: 0 | T16: 0 | U16: 0 | V16: 0 | W16: 0 | X16: 0 | Y16: 0 | Z16: 0 | AA16: 0 | AB16: 0 | AD16: 0 | AE16: 0 | AF16: 0 | AG16: 0 | AH16: 0 | AI16: 0 | AJ16: 0 | AK16: 0 | AL16: 0 | AM16: 0 | AN16: 0 | AO16: 0 | AP16: 0 | AQ16: 0 | AR16: 0 | AS16: 0 | AT16: 0 | AU16: 0 | AW16: 120
A17: 2 | B17: 3 | L17: 0 | M17: 0 | N17: 0 | O17: 0 | P17: 0 | Q17: 0 | R17: 0 | S17: 0 | T17: 0 | U17: 0 | V17: 0 | W17: 0 | X17: 0 | Y17: 0 | Z17: 0 | AA17: 0 | AB17: 0 | AD17: 0 | AE17: 0 | AF17: 0 | AG17: 0 | AH17: 0 | AI17: 0 | AJ17: 0 | AK17: 0 | AL17: 0 | AM17: 0 | AN17: 0 | AO17: 0 | AP17: 0 | AQ17: 0 | AR17: 0 | AS17: 0 | AT17: 0 | AU17: 0 | AW17: 130
A18: 2 | B18: 3 | L18: 0 | M18: 0 | N18: 0 | O18: 0 | P18: 0 | Q18: 0 | R18: 0 | S18: 0 | T18: 0 | U18: 0 | V18: 0 | W18: 0 | X18: 0 | Y18: 0 | Z18: 0 | AA18: 0 | AB18: 0 | AD18: 0 | AE18: 0 | AF18: 0 | AG18: 0 | AH18: 0 | AI18: 0 | AJ18: 0 | AK18: 0 | AL18: 0 | AM18: 0 | AN18: 0 | AO18: 0 | AP18: 0 | AQ18: 0 | AR18: 0 | AS18: 0 | AT18: 0 | AU18: 0 | AW18: 140
A19: 2 | B19: 3 | L19: 0 | M19: 0 | N19: 0 | O19: 0 | P19: 0 | Q19: 0 | R19: 0 | S19: 0 | T19: 0 | U19: 0 | V19: 0 | W19: 0 | X19: 0 | Y19: 0 | Z19: 0 | AA19: 0 | AB19: 0 | AD19: 0 | AE19: 0 | AF19: 0 | AG19: 0 | AH19: 0 | AI19: 0 | AJ19: 0 | AK19: 0 | AL19: 0 | AM19: 0 | AN19: 0 | AO19: 0 | AP19: 0 | AQ19: 0 | AR19: 0 | AS19: 0 | AT19: 0 | AU19: 0 | AW19: 150
A20: 2 | B20: 3 | L20: 0 | M20: 0 | N20: 0 | O20: 0 | P20: 0 | Q20: 0 | R20: 0 | S20: 0 | T20: 0 | U20: 0 | V20: 0 | W20: 0 | X20: 0 | Y20: 0 | Z20: 0 | AA20: 0 | AB20: 0 | AD20: 0 | AE20: 0 | AF20: 0 | AG20: 0 | AH20: 0 | AI20: 0 | AJ20: 0 | AK20: 0 | AL20: 0 | AM20: 0 | AN20: 0 | AO20: 0 | AP20: 0 | AQ20: 0 | AR20: 0 | AS20: 0 | AT20: 0 | AU20: 0 | AW20: 160
A21: 2 | B21: 3 | L21: 0 | M21: 0 | N21: 0 | O21: 0 | P21: 0 | Q21: 0 | R21: 0 | S21: 0 | T21: 0 | U21: 0 | V21: 0 | W21: 0 | X21: 0 | Y21: 0 | Z21: 0 | AA21: 0 | AB21: 0 | AD21: 0 | AE21: 0 | AF21: 0 | AG21: 0 | AH21: 0 | AI21: 0 | AJ21: 0 | AK21: 0 | AL21: 0 | AM21: 0 | AN21: 0 | AO21: 0 | AP21: 0 | AQ21: 0 | AR21: 0 | AS21: 0 | AT21: 0 | AU21: 0 | AW21: 170
A22: 2 | B22: 3 | C22: 6 | D22: 8 | E22: 4 | L22: 6 | M22: 0 | N22: 0 | O22: 0 | P22: 12 | Q22: 0 | R22: 0 | S22: 0 | T22: 0 | U22: 0 | V22: 0 | W22: 0 | X22: 0 | Y22: 0 | Z22: 0 | AA22: 0 | AB22: 0 | AD22: 1.145230821 | AE22: 0 | AF22: 0 | AG22: 0 | AH22: 0.624295077 | AI22: 0 | AJ22: 0 | AK22: 0 | AL22: 0 | AM22: 0 | AN22: 0 | AO22: 0 | AP22: 0 | AQ22: 0 | AR22: 0 | AS22: 0 | AT22: 0 | AU22: 1.769525898 | AW22: 180
A23: 2 | B23: 3 | L23: 0 | M23: 0 | N23: 0 | O23: 0 | P23: 0 | Q23: 0 | R23: 0 | S23: 0 | T23: 0 | U23: 0 | V23: 0 | W23: 0 | X23: 0 | Y23: 0 | Z23: 0 | AA23: 0 | AB23: 0 | AD23: 0 | AE23: 0 | AF23: 0 | AG23: 0 | AH23: 0 | AI23: 0 | AJ23: 0 | AK23: 0 | AL23: 0 | AM23: 0 | AN23: 0 | AO23: 0 | AP23: 0 | AQ23: 0 | AR23: 0 | AS23: 0 | AT23: 0 | AU23: 0 | AW23: 190
A24: 2 | B24: 3 | L24: 0 | M24: 0 | N24: 0 | O24: 0 | P24: 0 | Q24: 0 | R24: 0 | S24: 0 | T24: 0 | U24: 0 | V24: 0 | W24: 0 | X24: 0 | Y24: 0 | Z24: 0 | AA24: 0 | AB24: 0 | AD24: 0 | AE24: 0 | AF24: 0 | AG24: 0 | AH24: 0 | AI24: 0 | AJ24: 0 | AK24: 0 | AL24: 0 | AM24: 0 | AN24: 0 | AO24: 0 | AP24: 0 | AQ24: 0 | AR24: 0 | AS24: 0 | AT24: 0 | AU24: 0 | AW24: 200
A25: 2 | B25: 3 | L25: 0 | M25: 0 | N25: 0 | O25: 0 | P25: 0 | Q25: 0 | R25: 0 | S25: 0 | T25: 0 | U25: 0 | V25: 0 | W25: 0 | X25: 0 | Y25: 0 | Z25: 0 | AA25: 0 | AB25: 0 | AD25: 0 | AE25: 0 | AF25: 0 | AG25: 0 | AH25: 0 | AI25: 0 | AJ25: 0 | AK25: 0 | AL25: 0 | AM25: 0 | AN25: 0 | AO25: 0 | AP25: 0 | AQ25: 0 | AR25: 0 | AS25: 0 | AT25: 0 | AU25: 0 | AW25: 210
A26: 2 | B26: 3 | L26: 0 | M26: 0 | N26: 0 | O26: 0 | P26: 0 | Q26: 0 | R26: 0 | S26: 0 | T26: 0 | U26: 0 | V26: 0 | W26: 0 | X26: 0 | Y26: 0 | Z26: 0 | AA26: 0 | AB26: 0 | AD26: 0 | AE26: 0 | AF26: 0 | AG26: 0 | AH26: 0 | AI26: 0 | AJ26: 0 | AK26: 0 | AL26: 0 | AM26: 0 | AN26: 0 | AO26: 0 | AP26: 0 | AQ26: 0 | AR26: 0 | AS26: 0 | AT26: 0 | AU26: 0 | AW26: 220
A27: 2 | B27: 3 | L27: 0 | M27: 0 | N27: 0 | O27: 0 | P27: 0 | Q27: 0 | R27: 0 | S27: 0 | T27: 0 | U27: 0 | V27: 0 | W27: 0 | X27: 0 | Y27: 0 | Z27: 0 | AA27: 0 | AB27: 0 | AD27: 0 | AE27: 0 | AF27: 0 | AG27: 0 | AH27: 0 | AI27: 0 | AJ27: 0 | AK27: 0 | AL27: 0 | AM27: 0 | AN27: 0 | AO27: 0 | AP27: 0 | AQ27: 0 | AR27: 0 | AS27: 0 | AT27: 0 | AU27: 0 | AW27: 230
A28: 2 | B28: 3 | L28: 0 | M28: 0 | N28: 0 | O28: 0 | P28: 0 | Q28: 0 | R28: 0 | S28: 0 | T28: 0 | U28: 0 | V28: 0 | W28: 0 | X28: 0 | Y28: 0 | Z28: 0 | AA28: 0 | AB28: 0 | AD28: 0 | AE28: 0 | AF28: 0 | AG28: 0 | AH28: 0 | AI28: 0 | AJ28: 0 | AK28: 0 | AL28: 0 | AM28: 0 | AN28: 0 | AO28: 0 | AP28: 0 | AQ28: 0 | AR28: 0 | AS28: 0 | AT28: 0 | AU28: 0 | AW28: 240
A29: 2 | B29: 3 | L29: 0 | M29: 0 | N29: 0 | O29: 0 | P29: 0 | Q29: 0 | R29: 0 | S29: 0 | T29: 0 | U29: 0 | V29: 0 | W29: 0 | X29: 0 | Y29: 0 | Z29: 0 | AA29: 0 | AB29: 0 | AD29: 0 | AE29: 0 | AF29: 0 | AG29: 0 | AH29: 0 | AI29: 0 | AJ29: 0 | AK29: 0 | AL29: 0 | AM29: 0 | AN29: 0 | AO29: 0 | AP29: 0 | AQ29: 0 | AR29: 0 | AS29: 0 | AT29: 0 | AU29: 0 | AW29: 250
A30: 2 | B30: 4 | C30: 6 | D30: 6 | E30: 8 | F30: 9 | L30: 6 | M30: 6 | N30: 0 | O30: 0 | P30: 0 | Q30: 17 | R30: 0 | S30: 0 | T30: 0 | U30: 0 | V30: 0 | W30: 0 | X30: 0 | Y30: 0 | Z30: 0 | AA30: 0 | AB30: 0 | AD30: 1.145230821 | AE30: 1.145230821 | AF30: 0 | AG30: 0 | AH30: 0 | AI30: 2.514551945 | AJ30: 0 | AK30: 0 | AL30: 0 | AM30: 0 | AN30: 0 | AO30: 0 | AP30: 0 | AQ30: 0 | AR30: 0 | AS30: 0 | AT30: 0 | AU30: 4.805013586 | AW30: 260
A31: 2 | B31: 3 | L31: 0 | M31: 0 | N31: 0 | O31: 0 | P31: 0 | Q31: 0 | R31: 0 | S31: 0 | T31: 0 | U31: 0 | V31: 0 | W31: 0 | X31: 0 | Y31: 0 | Z31: 0 | AA31: 0 | AB31: 0 | AD31: 0 | AE31: 0 | AF31: 0 | AG31: 0 | AH31: 0 | AI31: 0 | AJ31: 0 | AK31: 0 | AL31: 0 | AM31: 0 | AN31: 0 | AO31: 0 | AP31: 0 | AQ31: 0 | AR31: 0 | AS31: 0 | AT31: 0 | AU31: 0 | AW31: 270
A32: 2 | B32: 3 | L32: 0 | M32: 0 | N32: 0 | O32: 0 | P32: 0 | Q32: 0 | R32: 0 | S32: 0 | T32: 0 | U32: 0 | V32: 0 | W32: 0 | X32: 0 | Y32: 0 | Z32: 0 | AA32: 0 | AB32: 0 | AD32: 0 | AE32: 0 | AF32: 0 | AG32: 0 | AH32: 0 | AI32: 0 | AJ32: 0 | AK32: 0 | AL32: 0 | AM32: 0 | AN32: 0 | AO32: 0 | AP32: 0 | AQ32: 0 | AR32: 0 | AS32: 0 | AT32: 0 | AU32: 0 | AW32: 280
A33: 2 | B33: 3 | L33: 0 | M33: 0 | N33: 0 | O33: 0 | P33: 0 | Q33: 0 | R33: 0 | S33: 0 | T33: 0 | U33: 0 | V33: 0 | W33: 0 | X33: 0 | Y33: 0 | Z33: 0 | AA33: 0 | AB33: 0 | AD33: 0 | AE33: 0 | AF33: 0 | AG33: 0 | AH33: 0 | AI33: 0 | AJ33: 0 | AK33: 0 | AL33: 0 | AM33: 0 | AN33: 0 | AO33: 0 | AP33: 0 | AQ33: 0 | AR33: 0 | AS33: 0 | AT33: 0 | AU33: 0 | AW33: 290
A34: 2 | B34: 3 | L34: 0 | M34: 0 | N34: 0 | O34: 0 | P34: 0 | Q34: 0 | R34: 0 | S34: 0 | T34: 0 | U34: 0 | V34: 0 | W34: 0 | X34: 0 | Y34: 0 | Z34: 0 | AA34: 0 | AB34: 0 | AD34: 0 | AE34: 0 | AF34: 0 | AG34: 0 | AH34: 0 | AI34: 0 | AJ34: 0 | AK34: 0 | AL34: 0 | AM34: 0 | AN34: 0 | AO34: 0 | AP34: 0 | AQ34: 0 | AR34: 0 | AS34: 0 | AT34: 0 | AU34: 0 | AW34: 300
A35: 2 | B35: 4B | C35: 6 | D35: 6 | E35: 10 | F35: 10 | L35: 6 | M35: 0 | N35: 0 | O35: 0 | P35: 0 | Q35: 0 | R35: 0 | S35: 0 | T35: 0 | U35: 0 | V35: 10 | W35: 0 | X35: 0 | Y35: 0 | Z35: 0 | AA35: 0 | AB35: 0 | AD35: 1.145230821 | AE35: 0 | AF35: 0 | AG35: 0 | AH35: 0 | AI35: 0 | AJ35: 0 | AK35: 0 | AL35: 0 | AM35: 0 | AN35: 1.084165785 | AO35: 0 | AP35: 0 | AQ35: 0 | AR35: 0 | AS35: 0 | AT35: 0 | AU35: 2.229396605 | AW35: 310
A36: 2 | B36: 3 | L36: 0 | M36: 0 | N36: 0 | O36: 0 | P36: 0 | Q36: 0 | R36: 0 | S36: 0 | T36: 0 | U36: 0 | V36: 0 | W36: 0 | X36: 0 | Y36: 0 | Z36: 0 | AA36: 0 | AB36: 0 | AD36: 0 | AE36: 0 | AF36: 0 | AG36: 0 | AH36: 0 | AI36: 0 | AJ36: 0 | AK36: 0 | AL36: 0 | AM36: 0 | AN36: 0 | AO36: 0 | AP36: 0 | AQ36: 0 | AR36: 0 | AS36: 0 | AT36: 0 | AU36: 0 | AW36: 320
A37: 2 | B37: 3 | L37: 0 | M37: 0 | N37: 0 | O37: 0 | P37: 0 | Q37: 0 | R37: 0 | S37: 0 | T37: 0 | U37: 0 | V37: 0 | W37: 0 | X37: 0 | Y37: 0 | Z37: 0 | AA37: 0 | AB37: 0 | AD37: =((L37*10)/58)^$K$1 -> 0 | AE37: =((M37*10)/58)^$K$1 -> 0 | AF37: =((N37*10)/80)^$K$1 -> 0 | AG37: =((O37*10)/80)^$K$1 -> 0 | AH37: 0 | AI37: 0 | AJ37: 0 | AK37: 0 | AL37: 0 | AM37: =((U37*10)/98)^$K$1 -> 0 | AN37: =((V37*10)/98)^$K$1 -> 0 | AO37: =((W37*10)/98)^$K$1 -> 0 | AP37: =((X37*10)/98)^$K$1 -> 0 | AQ37: 0 | AR37: 0 | AS37: 0 | AT37: 0 | AU37: 0 | AW37: 330
A38: 2 | B38: 3 | L38: 0 | M38: 0 | N38: 0 | O38: 0 | P38: 0 | Q38: 0 | R38: 0 | S38: 0 | T38: 0 | U38: 0 | V38: 0 | W38: 0 | X38: 0 | Y38: 0 | Z38: 0 | AA38: 0 | AB38: 0 | AD38: 0 | AE38: 0 | AF38: 0 | AG38: 0 | AH38: 0 | AI38: 0 | AJ38: 0 | AK38: 0 | AL38: 0 | AM38: 0 | AN38: 0 | AO38: 0 | AP38: 0 | AQ38: 0 | AR38: 0 | AS38: 0 | AT38: 0 | AU38: 0 | AW38: 340
A39: 2 | B39: 3 | L39: 0 | M39: 0 | N39: 0 | O39: 0 | P39: 0 | Q39: 0 | R39: 0 | S39: 0 | T39: 0 | U39: 0 | V39: 0 | W39: 0 | X39: 0 | Y39: 0 | Z39: 0 | AA39: 0 | AB39: 0 | AD39: 0 | AE39: 0 | AF39: 0 | AG39: 0 | AH39: 0 | AI39: 0 | AJ39: 0 | AK39: 0 | AL39: 0 | AM39: 0 | AN39: 0 | AO39: 0 | AP39: 0 | AQ39: 0 | AR39: 0 | AS39: 0 | AT39: 0 | AU39: 0 | AW39: 350
A40: 2 | B40: 3 | L40: 0 | M40: 0 | N40: 0 | O40: 0 | P40: 0 | Q40: 0 | R40: 0 | S40: 0 | T40: 0 | U40: 0 | V40: 0 | W40: 0 | X40: 0 | Y40: 0 | Z40: 0 | AA40: 0 | AB40: 0 | AD40: 0 | AE40: 0 | AF40: 0 | AG40: 0 | AH40: 0 | AI40: 0 | AJ40: 0 | AK40: 0 | AL40: 0 | AM40: 0 | AN40: 0 | AO40: 0 | AP40: 0 | AQ40: 0 | AR40: 0 | AS40: 0 | AT40: 0 | AU40: 0 | AW40: Sum | AY40: =SUM(AY5:AY39) -> 0
A41: 2 | B41: 3 | L41: 0 | M41: 0 | N41: 0 | O41: 0 | P41: 0 | Q41: 0 | R41: 0 | S41: 0 | T41: 0 | U41: 0 | V41: 0 | W41: 0 | X41: 0 | Y41: 0 | Z41: 0 | AA41: 0 | AB41: 0 | AD41: 0 | AE41: 0 | AF41: 0 | AG41: 0 | AH41: 0 | AI41: 0 | AJ41: 0 | AK41: 0 | AL41: 0 | AM41: 0 | AN41: 0 | AO41: 0 | AP41: 0 | AQ41: 0 | AR41: 0 | AS41: 0 | AT41: 0 | AU41: 0
A42: 2 | B42: 3 | L42: 0 | M42: 0 | N42: 0 | O42: 0 | P42: 0 | Q42: 0 | R42: 0 | S42: 0 | T42: 0 | U42: 0 | V42: 0 | W42: 0 | X42: 0 | Y42: 0 | Z42: 0 | AA42: 0 | AB42: 0 | AD42: 0 | AE42: 0 | AF42: 0 | AG42: 0 | AH42: 0 | AI42: 0 | AJ42: 0 | AK42: 0 | AL42: 0 | AM42: 0 | AN42: 0 | AO42: 0 | AP42: 0 | AQ42: 0 | AR42: 0 | AS42: 0 | AT42: 0 | AU42: 0
A43: 2 | B43: 3 | L43: 0 | M43: 0 | N43: 0 | O43: 0 | P43: 0 | Q43: 0 | R43: 0 | S43: 0 | T43: 0 | U43: 0 | V43: 0 | W43: 0 | X43: 0 | Y43: 0 | Z43: 0 | AA43: 0 | AB43: 0 | AD43: 0 | AE43: 0 | AF43: 0 | AG43: 0 | AH43: 0 | AI43: 0 | AJ43: 0 | AK43: 0 | AL43: 0 | AM43: 0 | AN43: 0 | AO43: 0 | AP43: 0 | AQ43: 0 | AR43: 0 | AS43: 0 | AT43: 0 | AU43: 0
A44: 2 | B44: 3 | L44: 0 | M44: 0 | N44: 0 | O44: 0 | P44: 0 | Q44: 0 | R44: 0 | S44: 0 | T44: 0 | U44: 0 | V44: 0 | W44: 0 | X44: 0 | Y44: 0 | Z44: 0 | AA44: 0 | AB44: 0 | AD44: 0 | AE44: 0 | AF44: 0 | AG44: 0 | AH44: 0 | AI44: 0 | AJ44: 0 | AK44: 0 | AL44: 0 | AM44: 0 | AN44: 0 | AO44: 0 | AP44: 0 | AQ44: 0 | AR44: 0 | AS44: 0 | AT44: 0 | AU44: 0
A45: 2 | B45: 5 | L45: 0 | M45: 0 | N45: 0 | O45: 0 | P45: 0 | Q45: 0 | R45: 0 | S45: 0 | T45: 0 | U45: 0 | V45: 0 | W45: 0 | X45: 0 | Y45: 0 | Z45: 0 | AA45: 0 | AB45: 0 | AD45: 0 | AE45: 0 | AF45: 0 | AG45: 0 | AH45: 0 | AI45: 0 | AJ45: 0 | AK45: 0 | AL45: 0 | AM45: 0 | AN45: 0 | AO45: 0 | AP45: 0 | AQ45: 0 | AR45: 0 | AS45: 0 | AT45: 0 | AU45: 0
A46: 2 | B46: 3 | L46: 0 | M46: 0 | N46: 0 | O46: 0 | P46: 0 | Q46: 0 | R46: 0 | S46: 0 | T46: 0 | U46: 0 | V46: 0 | W46: 0 | X46: 0 | Y46: 0 | Z46: 0 | AA46: 0 | AB46: 0 | AD46: 0 | AE46: 0 | AF46: 0 | AG46: 0 | AH46: 0 | AI46: 0 | AJ46: 0 | AK46: 0 | AL46: 0 | AM46: 0 | AN46: 0 | AO46: 0 | AP46: 0 | AQ46: 0 | AR46: 0 | AS46: 0 | AT46: 0 | AU46: 0
A47: 2 | B47: 3 | L47: 0 | M47: 0 | N47: 0 | O47: 0 | P47: 0 | Q47: 0 | R47: 0 | S47: 0 | T47: 0 | U47: 0 | V47: 0 | W47: 0 | X47: 0 | Y47: 0 | Z47: 0 | AA47: 0 | AB47: 0 | AD47: 0 | AE47: 0 | AF47: 0 | AG47: 0 | AH47: 0 | AI47: 0 | AJ47: 0 | AK47: 0 | AL47: 0 | AM47: 0 | AN47: 0 | AO47: 0 | AP47: 0 | AQ47: 0 | AR47: 0 | AS47: 0 | AT47: 0 | AU47: 0
A48: 2 | B48: 3 | L48: 0 | M48: 0 | N48: 0 | O48: 0 | P48: 0 | Q48: 0 | R48: 0 | S48: 0 | T48: 0 | U48: 0 | V48: 0 | W48: 0 | X48: 0 | Y48: 0 | Z48: 0 | AA48: 0 | AB48: 0 | AD48: 0 | AE48: 0 | AF48: 0 | AG48: 0 | AH48: 0 | AI48: 0 | AJ48: 0 | AK48: 0 | AL48: 0 | AM48: 0 | AN48: 0 | AO48: 0 | AP48: 0 | AQ48: 0 | AR48: 0 | AS48: 0 | AT48: 0 | AU48: 0
A49: 2 | B49: 3 | L49: 0 | M49: 0 | N49: 0 | O49: 0 | P49: 0 | Q49: 0 | R49: 0 | S49: 0 | T49: 0 | U49: 0 | V49: 0 | W49: 0 | X49: 0 | Y49: 0 | Z49: 0 | AA49: 0 | AB49: 0 | AD49: 0 | AE49: 0 | AF49: 0 | AG49: 0 | AH49: 0 | AI49: 0 | AJ49: 0 | AK49: 0 | AL49: 0 | AM49: 0 | AN49: 0 | AO49: 0 | AP49: 0 | AQ49: 0 | AR49: 0 | AS49: 0 | AT49: 0 | AU49: 0
A50: 2 | B50: 3 | L50: 0 | M50: 0 | N50: 0 | O50: 0 | P50: 0 | Q50: 0 | R50: 0 | S50: 0 | T50: 0 | U50: 0 | V50: 0 | W50: 0 | X50: 0 | Y50: 0 | Z50: 0 | AA50: 0 | AB50: 0 | AD50: 0 | AE50: 0 | AF50: 0 | AG50: 0 | AH50: 0 | AI50: 0 | AJ50: 0 | AK50: 0 | AL50: 0 | AM50: 0 | AN50: 0 | AO50: 0 | AP50: 0 | AQ50: 0 | AR50: 0 | AS50: 0 | AT50: 0 | AU50: 0
A51: 2 | B51: 5B | C51: 4 | D51: 6 | E51: 6 | F51: 9 | G51: 9 | L51: 4 | M51: 0 | N51: 0 | O51: 0 | P51: 12 | Q51: 0 | R51: 0 | S51: 0 | T51: 0 | U51: 0 | V51: 0 | W51: 0 | X51: 0 | Y51: 0 | Z51: 0 | AA51: 0 | AB51: 0 | AD51: 0.2262184337 | AE51: 0 | AF51: 0 | AG51: 0 | AH51: 0.624295077 | AI51: 0 | AJ51: 0 | AK51: 0 | AL51: 0 | AM51: 0 | AN51: 0 | AO51: 0 | AP51: 0 | AQ51: 0 | AR51: 0 | AS51: 0 | AT51: 0 | AU51: 0.8505135107
A52: 2 | B52: 3 | L52: 0 | M52: 0 | N52: 0 | O52: 0 | P52: 0 | Q52: 0 | R52: 0 | S52: 0 | T52: 0 | U52: 0 | V52: 0 | W52: 0 | X52: 0 | Y52: 0 | Z52: 0 | AA52: 0 | AB52: 0 | AD52: 0 | AE52: 0 | AF52: 0 | AG52: 0 | AH52: 0 | AI52: 0 | AJ52: 0 | AK52: 0 | AL52: 0 | AM52: 0 | AN52: 0 | AO52: 0 | AP52: 0 | AQ52: 0 | AR52: 0 | AS52: 0 | AT52: 0 | AU52: 0
A53: 2 | B53: 3 | L53: 0 | M53: 0 | N53: 0 | O53: 0 | P53: 0 | Q53: 0 | R53: 0 | S53: 0 | T53: 0 | U53: 0 | V53: 0 | W53: 0 | X53: 0 | Y53: 0 | Z53: 0 | AA53: 0 | AB53: 0 | AD53: 0 | AE53: 0 | AF53: 0 | AG53: 0 | AH53: 0 | AI53: 0 | AJ53: 0 | AK53: 0 | AL53: 0 | AM53: 0 | AN53: 0 | AO53: 0 | AP53: 0 | AQ53: 0 | AR53: 0 | AS53: 0 | AT53: 0 | AU53: 0
A54: 2 | B54: 3 | L54: 0 | M54: 0 | N54: 0 | O54: 0 | P54: 0 | Q54: 0 | R54: 0 | S54: 0 | T54: 0 | U54: 0 | V54: 0 | W54: 0 | X54: 0 | Y54: 0 | Z54: 0 | AA54: 0 | AB54: 0 | AD54: 0 | AE54: 0 | AF54: 0 | AG54: 0 | AH54: 0 | AI54: 0 | AJ54: 0 | AK54: 0 | AL54: 0 | AM54: 0 | AN54: 0 | AO54: 0 | AP54: 0 | AQ54: 0 | AR54: 0 | AS54: 0 | AT54: 0 | AU54: 0
A55: 2 | B55: 3 | L55: 0 | M55: 0 | N55: 0 | O55: 0 | P55: 0 | Q55: 0 | R55: 0 | S55: 0 | T55: 0 | U55: 0 | V55: 0 | W55: 0 | X55: 0 | Y55: 0 | Z55: 0 | AA55: 0 | AB55: 0 | AD55: 0 | AE55: 0 | AF55: 0 | AG55: 0 | AH55: 0 | AI55: 0 | AJ55: 0 | AK55: 0 | AL55: 0 | AM55: 0 | AN55: 0 | AO55: 0 | AP55: 0 | AQ55: 0 | AR55: 0 | AS55: 0 | AT55: 0 | AU55: 0
A56: 2 | B56: 3 | L56: 0 | M56: 0 | N56: 0 | O56: 0 | P56: 0 | Q56: 0 | R56: 0 | S56: 0 | T56: 0 | U56: 0 | V56: 0 | W56: 0 | X56: 0 | Y56: 0 | Z56: 0 | AA56: 0 | AB56: 0 | AD56: 0 | AE56: 0 | AF56: 0 | AG56: 0 | AH56: 0 | AI56: 0 | AJ56: 0 | AK56: 0 | AL56: 0 | AM56: 0 | AN56: 0 | AO56: 0 | AP56: 0 | AQ56: 0 | AR56: 0 | AS56: 0 | AT56: 0 | AU56: 0
A57: 2 | B57: 3 | L57: 0 | M57: 0 | N57: 0 | O57: 0 | P57: 0 | Q57: 0 | R57: 0 | S57: 0 | T57: 0 | U57: 0 | V57: 0 | W57: 0 | X57: 0 | Y57: 0 | Z57: 0 | AA57: 0 | AB57: 0 | AD57: 0 | AE57: 0 | AF57: 0 | AG57: 0 | AH57: 0 | AI57: 0 | AJ57: 0 | AK57: 0 | AL57: 0 | AM57: 0 | AN57: 0 | AO57: 0 | AP57: 0 | AQ57: 0 | AR57: 0 | AS57: 0 | AT57: 0 | AU57: 0
A58: 2 | B58: 6 | C58: 5 | D58: 6 | E58: 6 | F58: 9 | G58: 9 | H58: 9 | L58: 5 | M58: 0 | N58: 0 | O58: 0 | P58: 12 | Q58: 0 | R58: 0 | S58: 0 | T58: 0 | U58: 0 | V58: 0 | W58: 0 | X58: 0 | Y58: 0 | Z58: 27 | AA58: 0 | AB58: 0 | AD58: 0.5522910979 | AE58: 0 | AF58: 0 | AG58: 0 | AH58: 0.624295077 | AI58: 0 | AJ58: 0 | AK58: 0 | AL58: 0 | AM58: 0 | AN58: 0 | AO58: 0 | AP58: 0 | AQ58: 0 | AR58: 4.843613765 | AS58: 0 | AT58: 0 | AU58: 6.020199939
A59: 2 | B59: 3 | L59: 0 | M59: 0 | N59: 0 | O59: 0 | P59: 0 | Q59: 0 | R59: 0 | S59: 0 | T59: 0 | U59: 0 | V59: 0 | W59: 0 | X59: 0 | Y59: 0 | Z59: 0 | AA59: 0 | AB59: 0 | AD59: 0 | AE59: 0 | AF59: 0 | AG59: 0 | AH59: 0 | AI59: 0 | AJ59: 0 | AK59: 0 | AL59: 0 | AM59: 0 | AN59: 0 | AO59: 0 | AP59: 0 | AQ59: 0 | AR59: 0 | AS59: 0 | AT59: 0 | AU59: 0
A60: 2 | B60: 3 | L60: 0 | M60: 0 | N60: 0 | O60: 0 | P60: 0 | Q60: 0 | R60: 0 | S60: 0 | T60: 0 | U60: 0 | V60: 0 | W60: 0 | X60: 0 | Y60: 0 | Z60: 0 | AA60: 0 | AB60: 0 | AD60: 0 | AE60: 0 | AF60: 0 | AG60: 0 | AH60: 0 | AI60: 0 | AJ60: 0 | AK60: 0 | AL60: 0 | AM60: 0 | AN60: 0 | AO60: 0 | AP60: 0 | AQ60: 0 | AR60: 0 | AS60: 0 | AT60: 0 | AU60: 0
A61: 2 | B61: 3 | L61: 0 | M61: 0 | N61: 0 | O61: 0 | P61: 0 | Q61: 0 | R61: 0 | S61: 0 | T61: 0 | U61: 0 | V61: 0 | W61: 0 | X61: 0 | Y61: 0 | Z61: 0 | AA61: 0 | AB61: 0 | AD61: 0 | AE61: 0 | AF61: 0 | AG61: 0 | AH61: 0 | AI61: 0 | AJ61: 0 | AK61: 0 | AL61: 0 | AM61: 0 | AN61: 0 | AO61: 0 | AP61: 0 | AQ61: 0 | AR61: 0 | AS61: 0 | AT61: 0 | AU61: 0
A62: 2 | B62: 3 | L62: 0 | M62: 0 | N62: 0 | O62: 0 | P62: 0 | Q62: 0 | R62: 0 | S62: 0 | T62: 0 | U62: 0 | V62: 0 | W62: 0 | X62: 0 | Y62: 0 | Z62: 0 | AA62: 0 | AB62: 0 | AD62: 0 | AE62: 0 | AF62: 0 | AG62: 0 | AH62: 0 | AI62: 0 | AJ62: 0 | AK62: 0 | AL62: 0 | AM62: 0 | AN62: 0 | AO62: 0 | AP62: 0 | AQ62: 0 | AR62: 0 | AS62: 0 | AT62: 0 | AU62: 0
A63: 2 | B63: 6B | C63: 5 | D63: 7 | E63: 7 | F63: 9 | G63: 9 | H63: 9 | L63: 5 | M63: 0 | N63: 0 | O63: 0 | P63: 14 | Q63: 0 | R63: 0 | S63: 0 | T63: 0 | U63: 0 | V63: 0 | W63: 0 | X63: 0 | Y63: 0 | Z63: 0 | AA63: 0 | AB63: 27 | AD63: 0.5522910979 | AE63: 0 | AF63: 0 | AG63: 0 | AH63: 1.156583704 | AI63: 0 | AJ63: 0 | AK63: 0 | AL63: 0 | AM63: 0 | AN63: 0 | AO63: 0 | AP63: 0 | AQ63: 0 | AR63: 0 | AS63: 0 | AT63: 17.50488782 | AU63: 19.21376262
A64: 2 | B64: 3 | L64: 0 | M64: 0 | N64: 0 | O64: 0 | P64: 0 | Q64: 0 | R64: 0 | S64: 0 | T64: 0 | U64: 0 | V64: 0 | W64: 0 | X64: 0 | Y64: 0 | Z64: 0 | AA64: 0 | AB64: 0 | AD64: 0 | AE64: 0 | AF64: 0 | AG64: 0 | AH64: 0 | AI64: 0 | AJ64: 0 | AK64: 0 | AL64: 0 | AM64: 0 | AN64: 0 | AO64: 0 | AP64: 0 | AQ64: 0 | AR64: 0 | AS64: 0 | AT64: 0 | AU64: 0
A65: 2 | B65: 3 | L65: 0 | M65: 0 | N65: 0 | O65: 0 | P65: 0 | Q65: 0 | R65: 0 | S65: 0 | T65: 0 | U65: 0 | V65: 0 | W65: 0 | X65: 0 | Y65: 0 | Z65: 0 | AA65: 0 | AB65: 0 | AD65: 0 | AE65: 0 | AF65: 0 | AG65: 0 | AH65: 0 | AI65: 0 | AJ65: 0 | AK65: 0 | AL65: 0 | AM65: 0 | AN65: 0 | AO65: 0 | AP65: 0 | AQ65: 0 | AR65: 0 | AS65: 0 | AT65: 0 | AU65: 0
A66: 2 | B66: 3 | L66: 0 | M66: 0 | N66: 0 | O66: 0 | P66: 0 | Q66: 0 | R66: 0 | S66: 0 | T66: 0 | U66: 0 | V66: 0 | W66: 0 | X66: 0 | Y66: 0 | Z66: 0 | AA66: 0 | AB66: 0 | AD66: 0 | AE66: 0 | AF66: 0 | AG66: 0 | AH66: 0 | AI66: 0 | AJ66: 0 | AK66: 0 | AL66: 0 | AM66: 0 | AN66: 0 | AO66: 0 | AP66: 0 | AQ66: 0 | AR66: 0 | AS66: 0 | AT66: 0 | AU66: 0
A67: 2 | B67: 3 | L67: 0 | M67: 0 | N67: 0 | O67: 0 | P67: 0 | Q67: 0 | R67: 0 | S67: 0 | T67: 0 | U67: 0 | V67: 0 | W67: 0 | X67: 0 | Y67: 0 | Z67: 0 | AA67: 0 | AB67: 0 | AD67: 0 | AE67: 0 | AF67: 0 | AG67: 0 | AH67: 0 | AI67: 0 | AJ67: 0 | AK67: 0 | AL67: 0 | AM67: 0 | AN67: 0 | AO67: 0 | AP67: 0 | AQ67: 0 | AR67: 0 | AS67: 0 | AT67: 0 | AU67: 0
A68: 2 | B68: 7 | C68: 4 | D68: 6 | E68: 6 | F68: 10 | G68: 10 | H68: 9 | I68: 9 | L68: 4 | M68: 0 | N68: 0 | O68: 0 | P68: 12 | Q68: 0 | R68: 20 | S68: 18 | T68: 0 | U68: 0 | V68: 0 | W68: 0 | X68: 0 | Y68: 0 | Z68: 0 | AA68: 0 | AB68: 0 | AD68: 0.2262184337 | AE68: 0 | AF68: 0 | AG68: 0 | AH68: 0.624295077 | AI68: 0 | AJ68: 4.817091643 | AK68: 3.160493827 | AL68: 0 | AM68: 0 | AN68: 0 | AO68: 0 | AP68: 0 | AQ68: 0 | AR68: 0 | AS68: 0 | AT68: 0 | AU68: 8.828098981
A69: 2 | B69: 3 | L69: 0 | M69: 0 | N69: 0 | O69: 0 | P69: 0 | Q69: 0 | R69: 0 | S69: 0 | T69: 0 | U69: 0 | V69: 0 | W69: 0 | X69: 0 | Y69: 0 | Z69: 0 | AA69: 0 | AB69: 0 | AD69: =((L69*10)/58)^$K$1 -> 0 | AE69: =((M69*10)/58)^$K$1 -> 0 | AF69: =((N69*10)/80)^$K$1 -> 0 | AG69: =((O69*10)/80)^$K$1 -> 0 | AH69: =((P69*10)/135)^$K$1 -> 0 | AI69: =((Q69*10)/135)^$K$1 -> 0 | AJ69: =((R69*10)/135)^$K$1 -> 0 | AK69: =((S69*10)/135)^$K$1 -> 0 | AL69: =((T69*10)/135)^$K$1 -> 0 | AM69: =((U69*10)/98)^$K$1 -> 0 | AN69: =((V69*10)/98)^$K$1 -> 0 | AO69: =((W69*10)/98)^$K$1 -> 0 | AP69: =((X69*10)/98)^$K$1 -> 0 | AQ69: =((Y69*10)/182)^$K$1 -> 0 | AR69: =((Z69*10)/182)^$K$1 -> 0 | AS69: 0 | AT69: 0 | AU69: 0
A70: 2 | B70: 3 | L70: =C70 -> 0 | M70: =IF(B70=4,D70,0) -> 0 | N70: =IF(OR(B70=2,B70="3B",B70="5C",B70="5D"),D70,0) -> 0 | O70: =IF(B70="3B",E70,0) -> 0 | P70: =IF(OR(B70=3,B70=5,B70="5B",B70=6,B70="6B",B70=7,B70="7B",B70=9,B70="9B"),D70+E70,0) -> 0 | Q70: =IF(B70=4,E70+F70,0) -> 0 | R70: =IF(OR(B70=5,B70=7,B70=9),F70+G70,0) -> 0 | S70: =IF(OR(B70=7,B70=9),H70+I70,0) -> 0 | T70: =IF(B70=9,J70+K70,0) -> 0 | U70: =IF(OR(B70="6C",B70="7C"),D70+E70,0) -> 0 | V70: =IF(B70="4B",F70+G70,0) -> 0 | W70: =IF(OR(B70="7B",B70="7C",B70="9B"),H70+I70,0) -> 0 | X70: =IF(OR(B70="9B"),J70+K70,0) -> 0 | Y70: =IF((B70="5C"),E70+F70+G70,0) -> 0 | Z70: =IF(B70=6,F70+G70+H70,0) -> 0 | AA70: =IF((B70="5D"),E70+F70+G70,0) -> 0 | AB70: =IF(OR(B70="6B",B70="6C"),F70+G70+H70,0) -> 0 | AD70: 0 | AE70: 0 | AF70: 0 | AG70: 0 | AH70: 0 | AI70: 0 | AJ70: 0 | AK70: 0 | AL70: 0 | AM70: 0 | AN70: 0 | AO70: 0 | AP70: 0 | AQ70: 0 | AR70: 0 | AS70: =((AA70*10)/132)^$K$1 -> 0 | AT70: =((AB70*10)/132)^$K$1 -> 0 | AU70: =SUM(AD70:AT70) -> 0
A71: 2 | B71: 7B | C71: 4 | D71: 6 | E71: 6 | F71: 10 | G71: 10 | H71: 9 | I71: 9 | L71: 4 | M71: 0 | N71: 0 | O71: 0 | P71: 12 | Q71: 0 | R71: 0 | S71: 0 | T71: 0 | U71: 0 | V71: 0 | W71: 18 | X71: 0 | Y71: 0 | Z71: 0 | AA71: 0 | AB71: 0 | AD71: 0.2262184337 | AE71: 0 | AF71: 0 | AG71: 0 | AH71: 0.624295077 | AI71: 0 | AJ71: 0 | AK71: 0 | AL71: 0 | AM71: 0 | AN71: 0 | AO71: 11.38113874 | AP71: 0 | AQ71: 0 | AR71: 0 | AS71: 0 | AT71: 0 | AU71: 12.23165225
A72: 2 | B72: 3 | L72: 0 | M72: 0 | N72: 0 | O72: 0 | P72: 0 | Q72: 0 | R72: 0 | S72: 0 | T72: 0 | U72: 0 | V72: 0 | W72: 0 | X72: 0 | Y72: 0 | Z72: 0 | AA72: 0 | AB72: 0 | AD72: 0 | AE72: 0 | AF72: 0 | AG72: 0 | AH72: 0 | AI72: 0 | AJ72: 0 | AK72: 0 | AL72: 0 | AM72: 0 | AN72: 0 | AO72: 0 | AP72: 0 | AQ72: 0 | AR72: 0 | AS72: 0 | AT72: 0 | AU72: 0
A73: 2 | B73: 3 | L73: 0 | M73: 0 | N73: 0 | O73: 0 | P73: 0 | Q73: 0 | R73: 0 | S73: 0 | T73: 0 | U73: 0 | V73: 0 | W73: 0 | X73: 0 | Y73: 0 | Z73: 0 | AA73: 0 | AB73: 0 | AD73: 0 | AE73: 0 | AF73: 0 | AG73: 0 | AH73: 0 | AI73: 0 | AJ73: 0 | AK73: 0 | AL73: 0 | AM73: 0 | AN73: 0 | AO73: 0 | AP73: 0 | AQ73: 0 | AR73: 0 | AS73: 0 | AT73: 0 | AU73: 0
A74: 2 | B74: 3 | L74: 0 | M74: 0 | N74: 0 | O74: 0 | P74: 0 | Q74: 0 | R74: 0 | S74: 0 | T74: 0 | U74: 0 | V74: 0 | W74: 0 | X74: 0 | Y74: 0 | Z74: 0 | AA74: 0 | AB74: 0 | AD74: 0 | AE74: 0 | AF74: 0 | AG74: 0 | AH74: 0 | AI74: 0 | AJ74: 0 | AK74: 0 | AL74: 0 | AM74: 0 | AN74: 0 | AO74: 0 | AP74: 0 | AQ74: 0 | AR74: 0 | AS74: 0 | AT74: 0 | AU74: 0
A75: 2 | B75: 3 | L75: 0 | M75: 0 | N75: 0 | O75: 0 | P75: 0 | Q75: 0 | R75: 0 | S75: 0 | T75: 0 | U75: 0 | V75: 0 | W75: 0 | X75: 0 | Y75: 0 | Z75: 0 | AA75: 0 | AB75: 0 | AD75: 0 | AE75: 0 | AF75: 0 | AG75: 0 | AH75: 0 | AI75: 0 | AJ75: 0 | AK75: 0 | AL75: 0 | AM75: 0 | AN75: 0 | AO75: 0 | AP75: 0 | AQ75: 0 | AR75: 0 | AS75: 0 | AT75: 0 | AU75: 0
A76: 2 | B76: 3 | L76: 0 | M76: 0 | N76: 0 | O76: 0 | P76: 0 | Q76: 0 | R76: 0 | S76: 0 | T76: 0 | U76: 0 | V76: 0 | W76: 0 | X76: 0 | Y76: 0 | Z76: 0 | AA76: 0 | AB76: 0 | AD76: 0 | AE76: 0 | AF76: 0 | AG76: 0 | AH76: 0 | AI76: 0 | AJ76: 0 | AK76: 0 | AL76: 0 | AM76: 0 | AN76: 0 | AO76: 0 | AP76: 0 | AQ76: 0 | AR76: 0 | AS76: 0 | AT76: 0 | AU76: 0
A77: 2 | B77: 9 | C77: 4 | D77: 4 | E77: 6 | F77: 6 | G77: 7 | H77: 7 | I77: 7 | J77: 7 | K77: 8 | L77: 4 | M77: 0 | N77: 0 | O77: 0 | P77: 10 | Q77: 0 | R77: 13 | S77: 14 | T77: 15 | U77: 0 | V77: 0 | W77: 0 | X77: 0 | Y77: 0 | Z77: 0 | AA77: 0 | AB77: 0 | AD77: 0.2262184337 | AE77: 0 | AF77: 0 | AG77: 0 | AH77: 0.3010682277 | AI77: 0 | AJ77: 0.8598809651 | AK77: 1.156583704 | AL77: 1.524157903 | AM77: 0 | AN77: 0 | AO77: 0 | AP77: 0 | AQ77: 0 | AR77: 0 | AS77: 0 | AT77: 0 | AU77: 4.067909233
A78: 2 | B78: 3 | L78: 0 | M78: 0 | N78: 0 | O78: 0 | P78: 0 | Q78: 0 | R78: 0 | S78: 0 | T78: 0 | U78: 0 | V78: 0 | W78: 0 | X78: 0 | Y78: 0 | Z78: 0 | AA78: 0 | AB78: 0 | AD78: 0 | AE78: 0 | AF78: 0 | AG78: 0 | AH78: 0 | AI78: 0 | AJ78: 0 | AK78: 0 | AL78: 0 | AM78: 0 | AN78: 0 | AO78: 0 | AP78: 0 | AQ78: 0 | AR78: 0 | AS78: 0 | AT78: 0 | AU78: 0
A79: 2 | B79: 3 | L79: 0 | M79: 0 | N79: 0 | O79: 0 | P79: 0 | Q79: 0 | R79: 0 | S79: 0 | T79: 0 | U79: 0 | V79: 0 | W79: 0 | X79: 0 | Y79: 0 | Z79: 0 | AA79: 0 | AB79: 0 | AD79: 0 | AE79: 0 | AF79: 0 | AG79: 0 | AH79: 0 | AI79: 0 | AJ79: 0 | AK79: 0 | AL79: 0 | AM79: 0 | AN79: 0 | AO79: 0 | AP79: 0 | AQ79: 0 | AR79: 0 | AS79: 0 | AT79: 0 | AU79: 0
A80: 2 | B80: 3 | L80: 0 | M80: 0 | N80: 0 | O80: 0 | P80: 0 | Q80: 0 | R80: 0 | S80: 0 | T80: 0 | U80: 0 | V80: 0 | W80: 0 | X80: 0 | Y80: 0 | Z80: 0 | AA80: 0 | AB80: 0 | AD80: 0 | AE80: 0 | AF80: 0 | AG80: 0 | AH80: 0 | AI80: 0 | AJ80: 0 | AK80: 0 | AL80: 0 | AM80: 0 | AN80: 0 | AO80: 0 | AP80: 0 | AQ80: 0 | AR80: 0 | AS80: 0 | AT80: 0 | AU80: 0
A81: 2 | B81: 3 | L81: 0 | M81: 0 | N81: 0 | O81: 0 | P81: 0 | Q81: 0 | R81: 0 | S81: 0 | T81: 0 | U81: 0 | V81: 0 | W81: 0 | X81: 0 | Y81: 0 | Z81: 0 | AA81: 0 | AB81: 0 | AD81: 0 | AE81: 0 | AF81: 0 | AG81: 0 | AH81: 0 | AI81: 0 | AJ81: 0 | AK81: 0 | AL81: 0 | AM81: 0 | AN81: 0 | AO81: 0 | AP81: 0 | AQ81: 0 | AR81: 0 | AS81: 0 | AT81: 0 | AU81: 0
A82: 2 | B82: 3 | L82: 0 | M82: 0 | N82: 0 | O82: 0 | P82: 0 | Q82: 0 | R82: 0 | S82: 0 | T82: 0 | U82: 0 | V82: 0 | W82: 0 | X82: 0 | Y82: 0 | Z82: 0 | AA82: 0 | AB82: 0 | AD82: 0 | AE82: 0 | AF82: 0 | AG82: 0 | AH82: 0 | AI82: 0 | AJ82: 0 | AK82: 0 | AL82: 0 | AM82: 0 | AN82: 0 | AO82: 0 | AP82: 0 | AQ82: 0 | AR82: 0 | AS82: 0 | AT82: 0 | AU82: 0
A83: 2 | B83: 9B | C83: 4 | D83: 4 | E83: 6 | F83: 6 | G83: 7 | H83: 9 | I83: 9 | J83: 7 | K83: 8 | L83: 4 | M83: 0 | N83: 0 | O83: 0 | P83: 10 | Q83: 0 | R83: 0 | S83: 0 | T83: 0 | U83: 0 | V83: 0 | W83: 18 | X83: 15 | Y83: 0 | Z83: 0 | AA83: 0 | AB83: 0 | AD83: 0.2262184337 | AE83: 0 | AF83: 0 | AG83: 0 | AH83: 0.3010682277 | AI83: 0 | AJ83: 0 | AK83: 0 | AL83: 0 | AM83: 0 | AN83: 0 | AO83: 11.38113874 | AP83: 5.488589285 | AQ83: 0 | AR83: 0 | AS83: 0 | AT83: 0 | AU83: 17.39701469
A84: 2 | B84: 3 | L84: 0 | M84: 0 | N84: 0 | O84: 0 | P84: 0 | Q84: 0 | R84: 0 | S84: 0 | T84: 0 | U84: 0 | V84: 0 | W84: 0 | X84: 0 | Y84: 0 | Z84: 0 | AA84: 0 | AB84: 0 | AD84: 0 | AE84: 0 | AF84: 0 | AG84: 0 | AH84: 0 | AI84: 0 | AJ84: 0 | AK84: 0 | AL84: 0 | AM84: 0 | AN84: 0 | AO84: 0 | AP84: 0 | AQ84: 0 | AR84: 0 | AS84: 0 | AT84: 0 | AU84: 0
A85: 2 | B85: 3 | L85: 0 | M85: 0 | N85: 0 | O85: 0 | P85: 0 | Q85: 0 | R85: 0 | S85: 0 | T85: 0 | U85: 0 | V85: 0 | W85: 0 | X85: 0 | Y85: 0 | Z85: 0 | AA85: 0 | AB85: 0 | AD85: 0 | AE85: 0 | AF85: 0 | AG85: 0 | AH85: 0 | AI85: 0 | AJ85: 0 | AK85: 0 | AL85: 0 | AM85: 0 | AN85: 0 | AO85: 0 | AP85: 0 | AQ85: 0 | AR85: 0 | AS85: 0 | AT85: 0 | AU85: 0
A86: 2 | B86: 3 | L86: 0 | M86: 0 | N86: 0 | O86: 0 | P86: 0 | Q86: 0 | R86: 0 | S86: 0 | T86: 0 | U86: 0 | V86: 0 | W86: 0 | X86: 0 | Y86: 0 | Z86: 0 | AA86: 0 | AB86: 0 | AD86: 0 | AE86: 0 | AF86: 0 | AG86: 0 | AH86: 0 | AI86: 0 | AJ86: 0 | AK86: 0 | AL86: 0 | AM86: 0 | AN86: 0 | AO86: 0 | AP86: 0 | AQ86: 0 | AR86: 0 | AS86: 0 | AT86: 0 | AU86: 0
A87: 2 | B87: 3 | L87: 0 | M87: 0 | N87: 0 | O87: 0 | P87: 0 | Q87: 0 | R87: 0 | S87: 0 | T87: 0 | U87: 0 | V87: 0 | W87: 0 | X87: 0 | Y87: 0 | Z87: 0 | AA87: 0 | AB87: 0 | AD87: 0 | AE87: 0 | AF87: 0 | AG87: 0 | AH87: 0 | AI87: 0 | AJ87: 0 | AK87: 0 | AL87: 0 | AM87: 0 | AN87: 0 | AO87: 0 | AP87: 0 | AQ87: 0 | AR87: 0 | AS87: 0 | AT87: 0 | AU87: 0
A88: 2 | B88: 3 | L88: 0 | M88: 0 | N88: 0 | O88: 0 | P88: 0 | Q88: 0 | R88: 0 | S88: 0 | T88: 0 | U88: 0 | V88: 0 | W88: 0 | X88: 0 | Y88: 0 | Z88: 0 | AA88: 0 | AB88: 0 | AD88: 0 | AE88: 0 | AF88: 0 | AG88: 0 | AH88: 0 | AI88: 0 | AJ88: 0 | AK88: 0 | AL88: 0 | AM88: 0 | AN88: 0 | AO88: 0 | AP88: 0 | AQ88: 0 | AR88: 0 | AS88: 0 | AT88: 0 | AU88: 0
A89: 2 | B89: 3 | L89: 0 | M89: 0 | N89: 0 | O89: 0 | P89: 0 | Q89: 0 | R89: 0 | S89: 0 | T89: 0 | U89: 0 | V89: 0 | W89: 0 | X89: 0 | Y89: 0 | Z89: 0 | AA89: 0 | AB89: 0 | AD89: 0 | AE89: 0 | AF89: 0 | AG89: 0 | AH89: 0 | AI89: 0 | AJ89: 0 | AK89: 0 | AL89: 0 | AM89: 0 | AN89: 0 | AO89: 0 | AP89: 0 | AQ89: 0 | AR89: 0 | AS89: 0 | AT89: 0 | AU89: 0
A90: 2 | B90: 3 | L90: 0 | M90: 0 | N90: 0 | O90: 0 | P90: 0 | Q90: 0 | R90: 0 | S90: 0 | T90: 0 | U90: 0 | V90: 0 | W90: 0 | X90: 0 | Y90: 0 | Z90: 0 | AA90: 0 | AB90: 0 | AD90: 0 | AE90: 0 | AF90: 0 | AG90: 0 | AH90: 0 | AI90: 0 | AJ90: 0 | AK90: 0 | AL90: 0 | AM90: 0 | AN90: 0 | AO90: 0 | AP90: 0 | AQ90: 0 | AR90: 0 | AS90: 0 | AT90: 0 | AU90: 0
A91: 2 | B91: 3 | L91: 0 | M91: 0 | N91: 0 | O91: 0 | P91: 0 | Q91: 0 | R91: 0 | S91: 0 | T91: 0 | U91: 0 | V91: 0 | W91: 0 | X91: 0 | Y91: 0 | Z91: 0 | AA91: 0 | AB91: 0 | AD91: 0 | AE91: 0 | AF91: 0 | AG91: 0 | AH91: 0 | AI91: 0 | AJ91: 0 | AK91: 0 | AL91: 0 | AM91: 0 | AN91: 0 | AO91: 0 | AP91: 0 | AQ91: 0 | AR91: 0 | AS91: 0 | AT91: 0 | AU91: 0
A92: 2 | B92: 3 | L92: 0 | M92: 0 | N92: 0 | O92: 0 | P92: 0 | Q92: 0 | R92: 0 | S92: 0 | T92: 0 | U92: 0 | V92: 0 | W92: 0 | X92: 0 | Y92: 0 | Z92: 0 | AA92: 0 | AB92: 0 | AD92: 0 | AE92: 0 | AF92: 0 | AG92: 0 | AH92: 0 | AI92: 0 | AJ92: 0 | AK92: 0 | AL92: 0 | AM92: 0 | AN92: 0 | AO92: 0 | AP92: 0 | AQ92: 0 | AR92: 0 | AS92: 0 | AT92: 0 | AU92: 0
A93: 2 | B93: 3 | L93: 0 | M93: 0 | N93: 0 | O93: 0 | P93: 0 | Q93: 0 | R93: 0 | S93: 0 | T93: 0 | U93: 0 | V93: 0 | W93: 0 | X93: 0 | Y93: 0 | Z93: 0 | AA93: 0 | AB93: 0 | AD93: 0 | AE93: 0 | AF93: 0 | AG93: 0 | AH93: 0 | AI93: 0 | AJ93: 0 | AK93: 0 | AL93: 0 | AM93: 0 | AN93: 0 | AO93: 0 | AP93: 0 | AQ93: 0 | AR93: 0 | AS93: 0 | AT93: 0 | AU93: 0
A94: 2 | B94: 3 | L94: 0 | M94: 0 | N94: 0 | O94: 0 | P94: 0 | Q94: 0 | R94: 0 | S94: 0 | T94: 0 | U94: 0 | V94: 0 | W94: 0 | X94: 0 | Y94: 0 | Z94: 0 | AA94: 0 | AB94: 0 | AD94: 0 | AE94: 0 | AF94: 0 | AG94: 0 | AH94: 0 | AI94: 0 | AJ94: 0 | AK94: 0 | AL94: 0 | AM94: 0 | AN94: 0 | AO94: 0 | AP94: 0 | AQ94: 0 | AR94: 0 | AS94: 0 | AT94: 0 | AU94: 0
A95: 2 | B95: 3 | L95: 0 | M95: 0 | N95: 0 | O95: 0 | P95: 0 | Q95: 0 | R95: 0 | S95: 0 | T95: 0 | U95: 0 | V95: 0 | W95: 0 | X95: 0 | Y95: 0 | Z95: 0 | AA95: 0 | AB95: 0 | AD95: 0 | AE95: 0 | AF95: 0 | AG95: 0 | AH95: 0 | AI95: 0 | AJ95: 0 | AK95: 0 | AL95: 0 | AM95: 0 | AN95: 0 | AO95: 0 | AP95: 0 | AQ95: 0 | AR95: 0 | AS95: 0 | AT95: 0 | AU95: 0
A96: 2 | B96: 3 | L96: 0 | M96: 0 | N96: 0 | O96: 0 | P96: 0 | Q96: 0 | R96: 0 | S96: 0 | T96: 0 | U96: 0 | V96: 0 | W96: 0 | X96: 0 | Y96: 0 | Z96: 0 | AA96: 0 | AB96: 0 | AD96: 0 | AE96: 0 | AF96: 0 | AG96: 0 | AH96: 0 | AI96: 0 | AJ96: 0 | AK96: 0 | AL96: 0 | AM96: 0 | AN96: 0 | AO96: 0 | AP96: 0 | AQ96: 0 | AR96: 0 | AS96: 0 | AT96: 0 | AU96: 0
A97: 2 | B97: 3 | L97: 0 | M97: 0 | N97: 0 | O97: 0 | P97: 0 | Q97: 0 | R97: 0 | S97: 0 | T97: 0 | U97: 0 | V97: 0 | W97: 0 | X97: 0 | Y97: 0 | Z97: 0 | AA97: 0 | AB97: 0 | AD97: 0 | AE97: 0 | AF97: 0 | AG97: 0 | AH97: 0 | AI97: 0 | AJ97: 0 | AK97: 0 | AL97: 0 | AM97: 0 | AN97: 0 | AO97: 0 | AP97: 0 | AQ97: 0 | AR97: 0 | AS97: 0 | AT97: 0 | AU97: 0
A98: 2 | B98: 3 | L98: 0 | M98: 0 | N98: 0 | O98: 0 | P98: 0 | Q98: 0 | R98: 0 | S98: 0 | T98: 0 | U98: 0 | V98: 0 | W98: 0 | X98: 0 | Y98: 0 | Z98: 0 | AA98: 0 | AB98: 0 | AD98: 0 | AE98: 0 | AF98: 0 | AG98: 0 | AH98: 0 | AI98: 0 | AJ98: 0 | AK98: 0 | AL98: 0 | AM98: 0 | AN98: 0 | AO98: 0 | AP98: 0 | AQ98: 0 | AR98: 0 | AS98: 0 | AT98: 0 | AU98: 0
A99: 2 | B99: 3 | L99: 0 | M99: 0 | N99: 0 | O99: 0 | P99: 0 | Q99: 0 | R99: 0 | S99: 0 | T99: 0 | U99: 0 | V99: 0 | W99: 0 | X99: 0 | Y99: 0 | Z99: 0 | AA99: 0 | AB99: 0 | AD99: 0 | AE99: 0 | AF99: 0 | AG99: 0 | AH99: 0 | AI99: 0 | AJ99: 0 | AK99: 0 | AL99: 0 | AM99: 0 | AN99: 0 | AO99: 0 | AP99: 0 | AQ99: 0 | AR99: 0 | AS99: 0 | AT99: 0 | AU99: 0
A100: 2 | B100: 3 | L100: 0 | M100: 0 | N100: 0 | O100: 0 | P100: 0 | Q100: 0 | R100: 0 | S100: 0 | T100: 0 | U100: 0 | V100: 0 | W100: 0 | X100: 0 | Y100: 0 | Z100: 0 | AA100: 0 | AB100: 0 | AD100: 0 | AE100: 0 | AF100: 0 | AG100: 0 | AH100: 0 | AI100: 0 | AJ100: 0 | AK100: 0 | AL100: 0 | AM100: 0 | AN100: 0 | AO100: 0 | AP100: 0 | AQ100: 0 | AR100: 0 | AS100: 0 | AT100: 0 | AU100: 0
A101: 2 | B101: 3 | L101: 0 | M101: 0 | N101: 0 | O101: 0 | P101: 0 | Q101: 0 | R101: 0 | S101: 0 | T101: 0 | U101: 0 | V101: 0 | W101: 0 | X101: 0 | Y101: 0 | Z101: 0 | AA101: 0 | AB101: 0 | AD101: =((L101*10)/58)^$K$1 -> 0 | AE101: =((M101*10)/58)^$K$1 -> 0 | AF101: =((N101*10)/80)^$K$1 -> 0 | AG101: =((O101*10)/80)^$K$1 -> 0 | AH101: 0 | AI101: 0 | AJ101: 0 | AK101: 0 | AL101: 0 | AM101: =((U101*10)/98)^$K$1 -> 0 | AN101: =((V101*10)/98)^$K$1 -> 0 | AO101: =((W101*10)/98)^$K$1 -> 0 | AP101: 0 | AQ101: 0 | AR101: 0 | AS101: 0 | AT101: 0 | AU101: 0
A102: 2 | B102: 3 | L102: 0 | M102: 0 | N102: 0 | O102: 0 | P102: 0 | Q102: 0 | R102: 0 | S102: 0 | T102: 0 | U102: 0 | V102: 0 | W102: 0 | X102: 0 | Y102: 0 | Z102: 0 | AA102: 0 | AB102: 0 | AD102: 0 | AE102: 0 | AF102: 0 | AG102: 0 | AH102: 0 | AI102: 0 | AJ102: 0 | AK102: 0 | AL102: 0 | AM102: 0 | AN102: 0 | AO102: 0 | AP102: 0 | AQ102: 0 | AR102: 0 | AS102: 0 | AT102: 0 | AU102: 0
A103: 2 | B103: 3 | L103: 0 | M103: 0 | N103: 0 | O103: 0 | P103: 0 | Q103: 0 | R103: 0 | S103: 0 | T103: 0 | U103: 0 | V103: 0 | W103: 0 | X103: 0 | Y103: 0 | Z103: 0 | AA103: 0 | AB103: 0 | AD103: 0 | AE103: 0 | AF103: 0 | AG103: 0 | AH103: 0 | AI103: 0 | AJ103: 0 | AK103: 0 | AL103: 0 | AM103: 0 | AN103: 0 | AO103: 0 | AP103: 0 | AQ103: 0 | AR103: 0 | AS103: 0 | AT103: 0 | AU103: 0
A104: 2 | B104: 3 | L104: 0 | M104: 0 | N104: 0 | O104: 0 | P104: 0 | Q104: 0 | R104: 0 | S104: 0 | T104: 0 | U104: 0 | V104: 0 | W104: 0 | X104: 0 | Y104: 0 | Z104: 0 | AA104: 0 | AB104: 0 | AD104: 0 | AE104: 0 | AF104: 0 | AG104: 0 | AH104: 0 | AI104: 0 | AJ104: 0 | AK104: 0 | AL104: 0 | AM104: 0 | AN104: 0 | AO104: 0 | AP104: 0 | AQ104: 0 | AR104: 0 | AS104: 0 | AT104: 0 | AU104: 0
A105: 2 | B105: 3 | L105: 0 | M105: 0 | N105: 0 | O105: 0 | P105: 0 | Q105: 0 | R105: 0 | S105: 0 | T105: 0 | U105: 0 | V105: 0 | W105: 0 | X105: 0 | Y105: 0 | Z105: 0 | AA105: 0 | AB105: 0 | AD105: 0 | AE105: 0 | AF105: 0 | AG105: 0 | AH105: 0 | AI105: 0 | AJ105: 0 | AK105: 0 | AL105: 0 | AM105: 0 | AN105: 0 | AO105: 0 | AP105: 0 | AQ105: 0 | AR105: 0 | AS105: 0 | AT105: 0 | AU105: 0
A106: 2 | B106: 3 | L106: 0 | M106: 0 | N106: 0 | O106: 0 | P106: 0 | Q106: 0 | R106: 0 | S106: 0 | T106: 0 | U106: 0 | V106: 0 | W106: 0 | X106: 0 | Y106: 0 | Z106: 0 | AA106: 0 | AB106: 0 | AD106: 0 | AE106: 0 | AF106: 0 | AG106: 0 | AH106: 0 | AI106: 0 | AJ106: 0 | AK106: 0 | AL106: 0 | AM106: 0 | AN106: 0 | AO106: 0 | AP106: 0 | AQ106: 0 | AR106: 0 | AS106: 0 | AT106: 0 | AU106: 0
A107: 2 | B107: 3 | L107: 0 | M107: 0 | N107: 0 | O107: 0 | P107: 0 | Q107: 0 | R107: 0 | S107: 0 | T107: 0 | U107: 0 | V107: 0 | W107: 0 | X107: 0 | Y107: 0 | Z107: 0 | AA107: 0 | AB107: 0 | AD107: 0 | AE107: 0 | AF107: 0 | AG107: 0 | AH107: 0 | AI107: 0 | AJ107: 0 | AK107: 0 | AL107: 0 | AM107: 0 | AN107: 0 | AO107: 0 | AP107: 0 | AQ107: 0 | AR107: 0 | AS107: 0 | AT107: 0 | AU107: 0
A108: 2 | B108: 3 | L108: 0 | M108: 0 | N108: 0 | O108: 0 | P108: 0 | Q108: 0 | R108: 0 | S108: 0 | T108: 0 | U108: 0 | V108: 0 | W108: 0 | X108: 0 | Y108: 0 | Z108: 0 | AA108: 0 | AB108: 0 | AD108: 0 | AE108: 0 | AF108: 0 | AG108: 0 | AH108: 0 | AI108: 0 | AJ108: 0 | AK108: 0 | AL108: 0 | AM108: 0 | AN108: 0 | AO108: 0 | AP108: 0 | AQ108: 0 | AR108: 0 | AS108: 0 | AT108: 0 | AU108: 0
A109: 2 | B109: 3 | L109: 0 | M109: 0 | N109: 0 | O109: 0 | P109: 0 | Q109: 0 | R109: 0 | S109: 0 | T109: 0 | U109: 0 | V109: 0 | W109: 0 | X109: 0 | Y109: 0 | Z109: 0 | AA109: 0 | AB109: 0 | AD109: 0 | AE109: 0 | AF109: 0 | AG109: 0 | AH109: 0 | AI109: 0 | AJ109: 0 | AK109: 0 | AL109: 0 | AM109: 0 | AN109: 0 | AO109: 0 | AP109: 0 | AQ109: 0 | AR109: 0 | AS109: 0 | AT109: 0 | AU109: 0
A110: 2 | B110: 3 | L110: 0 | M110: 0 | N110: 0 | O110: 0 | P110: 0 | Q110: 0 | R110: 0 | S110: 0 | T110: 0 | U110: 0 | V110: 0 | W110: 0 | X110: 0 | Y110: 0 | Z110: 0 | AA110: 0 | AB110: 0 | AD110: 0 | AE110: 0 | AF110: 0 | AG110: 0 | AH110: 0 | AI110: 0 | AJ110: 0 | AK110: 0 | AL110: 0 | AM110: 0 | AN110: 0 | AO110: 0 | AP110: 0 | AQ110: 0 | AR110: 0 | AS110: 0 | AT110: 0 | AU110: 0
A111: 2 | B111: 3 | L111: 0 | M111: 0 | N111: 0 | O111: 0 | P111: 0 | Q111: 0 | R111: 0 | S111: 0 | T111: 0 | U111: 0 | V111: 0 | W111: 0 | X111: 0 | Y111: 0 | Z111: 0 | AA111: 0 | AB111: 0 | AD111: 0 | AE111: 0 | AF111: 0 | AG111: 0 | AH111: 0 | AI111: 0 | AJ111: 0 | AK111: 0 | AL111: 0 | AM111: 0 | AN111: 0 | AO111: 0 | AP111: 0 | AQ111: 0 | AR111: 0 | AS111: 0 | AT111: 0 | AU111: 0
A112: 2 | B112: 3 | L112: 0 | M112: 0 | N112: 0 | O112: 0 | P112: 0 | Q112: 0 | R112: 0 | S112: 0 | T112: 0 | U112: 0 | V112: 0 | W112: 0 | X112: 0 | Y112: 0 | Z112: 0 | AA112: 0 | AB112: 0 | AD112: 0 | AE112: 0 | AF112: 0 | AG112: 0 | AH112: 0 | AI112: 0 | AJ112: 0 | AK112: 0 | AL112: 0 | AM112: 0 | AN112: 0 | AO112: 0 | AP112: 0 | AQ112: 0 | AR112: 0 | AS112: 0 | AT112: 0 | AU112: 0
A113: 2 | B113: 3 | L113: 0 | M113: 0 | N113: 0 | O113: 0 | P113: 0 | Q113: 0 | R113: 0 | S113: 0 | T113: 0 | U113: 0 | V113: 0 | W113: 0 | X113: 0 | Y113: 0 | Z113: 0 | AA113: 0 | AB113: 0 | AD113: 0 | AE113: 0 | AF113: 0 | AG113: 0 | AH113: 0 | AI113: 0 | AJ113: 0 | AK113: 0 | AL113: 0 | AM113: 0 | AN113: 0 | AO113: 0 | AP113: 0 | AQ113: 0 | AR113: 0 | AS113: 0 | AT113: 0 | AU113: 0
A114: 2 | B114: 3 | L114: 0 | M114: 0 | N114: 0 | O114: 0 | P114: 0 | Q114: 0 | R114: 0 | S114: 0 | T114: 0 | U114: 0 | V114: 0 | W114: 0 | X114: 0 | Y114: 0 | Z114: 0 | AA114: 0 | AB114: 0 | AD114: 0 | AE114: 0 | AF114: 0 | AG114: 0 | AH114: 0 | AI114: 0 | AJ114: 0 | AK114: 0 | AL114: 0 | AM114: 0 | AN114: 0 | AO114: 0 | AP114: 0 | AQ114: 0 | AR114: 0 | AS114: 0 | AT114: 0 | AU114: 0
A115: 2 | B115: 3 | L115: 0 | M115: 0 | N115: 0 | O115: 0 | P115: 0 | Q115: 0 | R115: 0 | S115: 0 | T115: 0 | U115: 0 | V115: 0 | W115: 0 | X115: 0 | Y115: 0 | Z115: 0 | AA115: 0 | AB115: 0 | AD115: 0 | AE115: 0 | AF115: 0 | AG115: 0 | AH115: 0 | AI115: 0 | AJ115: 0 | AK115: 0 | AL115: 0 | AM115: 0 | AN115: 0 | AO115: 0 | AP115: 0 | AQ115: 0 | AR115: 0 | AS115: 0 | AT115: 0 | AU115: 0
A116: 2 | B116: 3 | L116: 0 | M116: 0 | N116: 0 | O116: 0 | P116: 0 | Q116: 0 | R116: 0 | S116: 0 | T116: 0 | U116: 0 | V116: 0 | W116: 0 | X116: 0 | Y116: 0 | Z116: 0 | AA116: 0 | AB116: 0 | AD116: 0 | AE116: 0 | AF116: 0 | AG116: 0 | AH116: 0 | AI116: 0 | AJ116: 0 | AK116: 0 | AL116: 0 | AM116: 0 | AN116: 0 | AO116: 0 | AP116: 0 | AQ116: 0 | AR116: 0 | AS116: 0 | AT116: 0 | AU116: 0
A117: 2 | B117: 3 | L117: 0 | M117: 0 | N117: 0 | O117: 0 | P117: 0 | Q117: 0 | R117: 0 | S117: 0 | T117: 0 | U117: 0 | V117: 0 | W117: 0 | X117: 0 | Y117: 0 | Z117: 0 | AA117: 0 | AB117: 0 | AD117: 0 | AE117: 0 | AF117: 0 | AG117: 0 | AH117: 0 | AI117: 0 | AJ117: 0 | AK117: 0 | AL117: 0 | AM117: 0 | AN117: 0 | AO117: 0 | AP117: 0 | AQ117: 0 | AR117: 0 | AS117: 0 | AT117: 0 | AU117: 0
A118: 2 | B118: 3 | L118: 0 | M118: 0 | N118: 0 | O118: 0 | P118: 0 | Q118: 0 | R118: 0 | S118: 0 | T118: 0 | U118: 0 | V118: 0 | W118: 0 | X118: 0 | Y118: 0 | Z118: 0 | AA118: 0 | AB118: 0 | AD118: 0 | AE118: 0 | AF118: 0 | AG118: 0 | AH118: 0 | AI118: 0 | AJ118: 0 | AK118: 0 | AL118: 0 | AM118: 0 | AN118: 0 | AO118: 0 | AP118: 0 | AQ118: 0 | AR118: 0 | AS118: 0 | AT118: 0 | AU118: 0
A119: 2 | B119: 3 | L119: 0 | M119: 0 | N119: 0 | O119: 0 | P119: 0 | Q119: 0 | R119: 0 | S119: 0 | T119: 0 | U119: 0 | V119: 0 | W119: 0 | X119: 0 | Y119: 0 | Z119: 0 | AA119: 0 | AB119: 0 | AD119: 0 | AE119: 0 | AF119: 0 | AG119: 0 | AH119: 0 | AI119: 0 | AJ119: 0 | AK119: 0 | AL119: 0 | AM119: 0 | AN119: 0 | AO119: 0 | AP119: 0 | AQ119: 0 | AR119: 0 | AS119: 0 | AT119: 0 | AU119: 0
A120: 2 | B120: 3 | L120: 0 | M120: 0 | N120: 0 | O120: 0 | P120: 0 | Q120: 0 | R120: 0 | S120: 0 | T120: 0 | U120: 0 | V120: 0 | W120: 0 | X120: 0 | Y120: 0 | Z120: 0 | AA120: 0 | AB120: 0 | AD120: 0 | AE120: 0 | AF120: 0 | AG120: 0 | AH120: 0 | AI120: 0 | AJ120: 0 | AK120: 0 | AL120: 0 | AM120: 0 | AN120: 0 | AO120: 0 | AP120: 0 | AQ120: 0 | AR120: 0 | AS120: 0 | AT120: 0 | AU120: 0
A121: 2 | B121: 3 | L121: 0 | M121: 0 | N121: 0 | O121: 0 | P121: 0 | Q121: 0 | R121: 0 | S121: 0 | T121: 0 | U121: 0 | V121: 0 | W121: 0 | X121: 0 | Y121: 0 | Z121: 0 | AA121: 0 | AB121: 0 | AD121: 0 | AE121: 0 | AF121: 0 | AG121: 0 | AH121: 0 | AI121: 0 | AJ121: 0 | AK121: 0 | AL121: 0 | AM121: 0 | AN121: 0 | AO121: 0 | AP121: 0 | AQ121: 0 | AR121: 0 | AS121: 0 | AT121: 0 | AU121: 0
A122: 2 | B122: 3 | L122: 0 | M122: 0 | N122: 0 | O122: 0 | P122: 0 | Q122: 0 | R122: 0 | S122: 0 | T122: 0 | U122: 0 | V122: 0 | W122: 0 | X122: 0 | Y122: 0 | Z122: 0 | AA122: 0 | AB122: 0 | AD122: 0 | AE122: 0 | AF122: 0 | AG122: 0 | AH122: 0 | AI122: 0 | AJ122: 0 | AK122: 0 | AL122: 0 | AM122: 0 | AN122: 0 | AO122: 0 | AP122: 0 | AQ122: 0 | AR122: 0 | AS122: 0 | AT122: 0 | AU122: 0
A123: 2 | B123: 3 | L123: 0 | M123: 0 | N123: 0 | O123: 0 | P123: 0 | Q123: 0 | R123: 0 | S123: 0 | T123: 0 | U123: 0 | V123: 0 | W123: 0 | X123: 0 | Y123: 0 | Z123: 0 | AA123: 0 | AB123: 0 | AD123: 0 | AE123: 0 | AF123: 0 | AG123: 0 | AH123: 0 | AI123: 0 | AJ123: 0 | AK123: 0 | AL123: 0 | AM123: 0 | AN123: 0 | AO123: 0 | AP123: 0 | AQ123: 0 | AR123: 0 | AS123: 0 | AT123: 0 | AU123: 0
A124: 2 | B124: 3 | L124: 0 | M124: 0 | N124: 0 | O124: 0 | P124: 0 | Q124: 0 | R124: 0 | S124: 0 | T124: 0 | U124: 0 | V124: 0 | W124: 0 | X124: 0 | Y124: 0 | Z124: 0 | AA124: 0 | AB124: 0 | AD124: 0 | AE124: 0 | AF124: 0 | AG124: 0 | AH124: 0 | AI124: 0 | AJ124: 0 | AK124: 0 | AL124: 0 | AM124: 0 | AN124: 0 | AO124: 0 | AP124: 0 | AQ124: 0 | AR124: 0 | AS124: 0 | AT124: 0 | AU124: 0
A125: 2 | B125: 3 | L125: 0 | M125: 0 | N125: 0 | O125: 0 | P125: 0 | Q125: 0 | R125: 0 | S125: 0 | T125: 0 | U125: 0 | V125: 0 | W125: 0 | X125: 0 | Y125: 0 | Z125: 0 | AA125: 0 | AB125: 0 | AD125: 0 | AE125: 0 | AF125: 0 | AG125: 0 | AH125: 0 | AI125: 0 | AJ125: 0 | AK125: 0 | AL125: 0 | AM125: 0 | AN125: 0 | AO125: 0 | AP125: 0 | AQ125: 0 | AR125: 0 | AS125: 0 | AT125: 0 | AU125: 0
A126: 2 | B126: 3 | L126: 0 | M126: 0 | N126: 0 | O126: 0 | P126: 0 | Q126: 0 | R126: 0 | S126: 0 | T126: 0 | U126: 0 | V126: 0 | W126: 0 | X126: 0 | Y126: 0 | Z126: 0 | AA126: 0 | AB126: 0 | AD126: 0 | AE126: 0 | AF126: 0 | AG126: 0 | AH126: 0 | AI126: 0 | AJ126: 0 | AK126: 0 | AL126: 0 | AM126: 0 | AN126: 0 | AO126: 0 | AP126: 0 | AQ126: 0 | AR126: 0 | AS126: 0 | AT126: 0 | AU126: 0
A127: 2 | B127: 3 | L127: 0 | M127: 0 | N127: 0 | O127: 0 | P127: 0 | Q127: 0 | R127: 0 | S127: 0 | T127: 0 | U127: 0 | V127: 0 | W127: 0 | X127: 0 | Y127: 0 | Z127: 0 | AA127: 0 | AB127: 0 | AD127: 0 | AE127: 0 | AF127: 0 | AG127: 0 | AH127: 0 | AI127: 0 | AJ127: 0 | AK127: 0 | AL127: 0 | AM127: 0 | AN127: 0 | AO127: 0 | AP127: 0 | AQ127: 0 | AR127: 0 | AS127: 0 | AT127: 0 | AU127: 0
A128: 2 | B128: 3 | L128: 0 | M128: 0 | N128: 0 | O128: 0 | P128: 0 | Q128: 0 | R128: 0 | S128: 0 | T128: 0 | U128: 0 | V128: 0 | W128: 0 | X128: 0 | Y128: 0 | Z128: 0 | AA128: 0 | AB128: 0 | AD128: 0 | AE128: 0 | AF128: 0 | AG128: 0 | AH128: 0 | AI128: 0 | AJ128: 0 | AK128: 0 | AL128: 0 | AM128: 0 | AN128: 0 | AO128: 0 | AP128: 0 | AQ128: 0 | AR128: 0 | AS128: 0 | AT128: 0 | AU128: 0
A129: 2 | B129: 3 | L129: 0 | M129: 0 | N129: 0 | O129: 0 | P129: 0 | Q129: 0 | R129: 0 | S129: 0 | T129: 0 | U129: 0 | V129: 0 | W129: 0 | X129: 0 | Y129: 0 | Z129: 0 | AA129: 0 | AB129: 0 | AD129: 0 | AE129: 0 | AF129: 0 | AG129: 0 | AH129: 0 | AI129: 0 | AJ129: 0 | AK129: 0 | AL129: 0 | AM129: 0 | AN129: 0 | AO129: 0 | AP129: 0 | AQ129: 0 | AR129: 0 | AS129: 0 | AT129: 0 | AU129: 0
A130: 2 | B130: 3 | L130: 0 | M130: 0 | N130: 0 | O130: 0 | P130: 0 | Q130: 0 | R130: 0 | S130: 0 | T130: 0 | U130: 0 | V130: 0 | W130: 0 | X130: 0 | Y130: 0 | Z130: 0 | AA130: 0 | AB130: 0 | AD130: 0 | AE130: 0 | AF130: 0 | AG130: 0 | AH130: 0 | AI130: 0 | AJ130: 0 | AK130: 0 | AL130: 0 | AM130: 0 | AN130: 0 | AO130: 0 | AP130: 0 | AQ130: 0 | AR130: 0 | AS130: 0 | AT130: 0 | AU130: 0
A131: 2 | B131: 3 | L131: 0 | M131: 0 | N131: 0 | O131: 0 | P131: 0 | Q131: 0 | R131: 0 | S131: 0 | T131: 0 | U131: 0 | V131: 0 | W131: 0 | X131: 0 | Y131: 0 | Z131: 0 | AA131: 0 | AB131: 0 | AD131: 0 | AE131: 0 | AF131: 0 | AG131: 0 | AH131: 0 | AI131: 0 | AJ131: 0 | AK131: 0 | AL131: 0 | AM131: 0 | AN131: 0 | AO131: 0 | AP131: 0 | AQ131: 0 | AR131: 0 | AS131: 0 | AT131: 0 | AU131: 0
A132: 2 | B132: 3 | L132: 0 | M132: 0 | N132: 0 | O132: 0 | P132: 0 | Q132: 0 | R132: 0 | S132: 0 | T132: 0 | U132: 0 | V132: 0 | W132: 0 | X132: 0 | Y132: 0 | Z132: 0 | AA132: 0 | AB132: 0 | AD132: 0 | AE132: 0 | AF132: 0 | AG132: 0 | AH132: 0 | AI132: 0 | AJ132: 0 | AK132: 0 | AL132: 0 | AM132: 0 | AN132: 0 | AO132: 0 | AP132: 0 | AQ132: 0 | AR132: 0 | AS132: 0 | AT132: 0 | AU132: 0
A133: 2 | B133: 3 | L133: 0 | M133: 0 | N133: 0 | O133: 0 | P133: 0 | Q133: 0 | R133: 0 | S133: 0 | T133: 0 | U133: 0 | V133: 0 | W133: 0 | X133: 0 | Y133: 0 | Z133: 0 | AA133: 0 | AB133: 0 | AD133: =((L133*10)/58)^$K$1 -> 0 | AE133: =((M133*10)/58)^$K$1 -> 0 | AF133: =((N133*10)/80)^$K$1 -> 0 | AG133: =((O133*10)/80)^$K$1 -> 0 | AH133: =((P133*10)/135)^$K$1 -> 0 | AI133: =((Q133*10)/135)^$K$1 -> 0 | AJ133: =((R133*10)/135)^$K$1 -> 0 | AK133: =((S133*10)/135)^$K$1 -> 0 | AL133: =((T133*10)/135)^$K$1 -> 0 | AM133: =((U133*10)/98)^$K$1 -> 0 | AN133: =((V133*10)/98)^$K$1 -> 0 | AO133: =((W133*10)/98)^$K$1 -> 0 | AP133: =((X133*10)/98)^$K$1 -> 0 | AQ133: =((Y133*10)/182)^$K$1 -> 0 | AR133: =((Z133*10)/182)^$K$1 -> 0 | AS133: 0 | AT133: 0 | AU133: 0
A134: 2 | B134: 3 | L134: =C134 -> 0 | M134: =IF(B134=4,D134,0) -> 0 | N134: =IF(OR(B134=2,B134="3B",B134="5C",B134="5D"),D134,0) -> 0 | O134: =IF(B134="3B",E134,0) -> 0 | P134: =IF(OR(B134=3,B134=5,B134="5B",B134=6,B134="6B",B134=7,B134="7B",B134=9,B134="9B"),D134+E134,0) -> 0 | Q134: =IF(B134=4,E134+F134,0) -> 0 | R134: =IF(OR(B134=5,B134=7,B134=9),F134+G134,0) -> 0 | S134: =IF(OR(B134=7,B134=9),H134+I134,0) -> 0 | T134: =IF(B134=9,J134+K134,0) -> 0 | U134: =IF(OR(B134="6C",B134="7C"),D134+E134,0) -> 0 | V134: =IF(B134="4B",F134+G134,0) -> 0 | W134: =IF(OR(B134="7B",B134="7C",B134="9B"),H134+I134,0) -> 0 | X134: =IF(OR(B134="9B"),J134+K134,0) -> 0 | Y134: =IF((B134="5C"),E134+F134+G134,0) -> 0 | Z134: =IF(B134=6,F134+G134+H134,0) -> 0 | AA134: =IF((B134="5D"),E134+F134+G134,0) -> 0 | AB134: =IF(OR(B134="6B",B134="6C"),F134+G134+H134,0) -> 0 | AD134: 0 | AE134: 0 | AF134: 0 | AG134: 0 | AH134: 0 | AI134: 0 | AJ134: 0 | AK134: 0 | AL134: 0 | AM134: 0 | AN134: 0 | AO134: 0 | AP134: 0 | AQ134: 0 | AR134: 0 | AS134: =((AA134*10)/132)^$K$1 -> 0 | AT134: =((AB134*10)/132)^$K$1 -> 0 | AU134: =SUM(AD134:AT134) -> 0
A135: 2 | B135: 3 | L135: 0 | M135: 0 | N135: 0 | O135: 0 | P135: 0 | Q135: 0 | R135: 0 | S135: 0 | T135: 0 | U135: 0 | V135: 0 | W135: 0 | X135: 0 | Y135: 0 | Z135: 0 | AA135: 0 | AB135: 0 | AD135: 0 | AE135: 0 | AF135: 0 | AG135: 0 | AH135: 0 | AI135: 0 | AJ135: 0 | AK135: 0 | AL135: 0 | AM135: 0 | AN135: 0 | AO135: 0 | AP135: 0 | AQ135: 0 | AR135: 0 | AS135: 0 | AT135: 0 | AU135: 0
A136: 2 | B136: 3 | L136: 0 | M136: 0 | N136: 0 | O136: 0 | P136: 0 | Q136: 0 | R136: 0 | S136: 0 | T136: 0 | U136: 0 | V136: 0 | W136: 0 | X136: 0 | Y136: 0 | Z136: 0 | AA136: 0 | AB136: 0 | AD136: 0 | AE136: 0 | AF136: 0 | AG136: 0 | AH136: 0 | AI136: 0 | AJ136: 0 | AK136: 0 | AL136: 0 | AM136: 0 | AN136: 0 | AO136: 0 | AP136: 0 | AQ136: 0 | AR136: 0 | AS136: 0 | AT136: 0 | AU136: 0
A137: 2 | B137: 3 | L137: 0 | M137: 0 | N137: 0 | O137: 0 | P137: 0 | Q137: 0 | R137: 0 | S137: 0 | T137: 0 | U137: 0 | V137: 0 | W137: 0 | X137: 0 | Y137: 0 | Z137: 0 | AA137: 0 | AB137: 0 | AD137: 0 | AE137: 0 | AF137: 0 | AG137: 0 | AH137: 0 | AI137: 0 | AJ137: 0 | AK137: 0 | AL137: 0 | AM137: 0 | AN137: 0 | AO137: 0 | AP137: 0 | AQ137: 0 | AR137: 0 | AS137: 0 | AT137: 0 | AU137: 0
A138: 2 | B138: 3 | L138: 0 | M138: 0 | N138: 0 | O138: 0 | P138: 0 | Q138: 0 | R138: 0 | S138: 0 | T138: 0 | U138: 0 | V138: 0 | W138: 0 | X138: 0 | Y138: 0 | Z138: 0 | AA138: 0 | AB138: 0 | AD138: 0 | AE138: 0 | AF138: 0 | AG138: 0 | AH138: 0 | AI138: 0 | AJ138: 0 | AK138: 0 | AL138: 0 | AM138: 0 | AN138: 0 | AO138: 0 | AP138: 0 | AQ138: 0 | AR138: 0 | AS138: 0 | AT138: 0 | AU138: 0
A139: 2 | B139: 3 | L139: 0 | M139: 0 | N139: 0 | O139: 0 | P139: 0 | Q139: 0 | R139: 0 | S139: 0 | T139: 0 | U139: 0 | V139: 0 | W139: 0 | X139: 0 | Y139: 0 | Z139: 0 | AA139: 0 | AB139: 0 | AD139: 0 | AE139: 0 | AF139: 0 | AG139: 0 | AH139: 0 | AI139: 0 | AJ139: 0 | AK139: 0 | AL139: 0 | AM139: 0 | AN139: 0 | AO139: 0 | AP139: 0 | AQ139: 0 | AR139: 0 | AS139: 0 | AT139: 0 | AU139: 0
A140: 2 | B140: 3 | L140: 0 | M140: 0 | N140: 0 | O140: 0 | P140: 0 | Q140: 0 | R140: 0 | S140: 0 | T140: 0 | U140: 0 | V140: 0 | W140: 0 | X140: 0 | Y140: 0 | Z140: 0 | AA140: 0 | AB140: 0 | AD140: 0 | AE140: 0 | AF140: 0 | AG140: 0 | AH140: 0 | AI140: 0 | AJ140: 0 | AK140: 0 | AL140: 0 | AM140: 0 | AN140: 0 | AO140: 0 | AP140: 0 | AQ140: 0 | AR140: 0 | AS140: 0 | AT140: 0 | AU140: 0
A141: 2 | B141: 3 | L141: 0 | M141: 0 | N141: 0 | O141: 0 | P141: 0 | Q141: 0 | R141: 0 | S141: 0 | T141: 0 | U141: 0 | V141: 0 | W141: 0 | X141: 0 | Y141: 0 | Z141: 0 | AA141: 0 | AB141: 0 | AD141: 0 | AE141: 0 | AF141: 0 | AG141: 0 | AH141: 0 | AI141: 0 | AJ141: 0 | AK141: 0 | AL141: 0 | AM141: 0 | AN141: 0 | AO141: 0 | AP141: 0 | AQ141: 0 | AR141: 0 | AS141: 0 | AT141: 0 | AU141: 0
A142: 2 | B142: 3 | L142: 0 | M142: 0 | N142: 0 | O142: 0 | P142: 0 | Q142: 0 | R142: 0 | S142: 0 | T142: 0 | U142: 0 | V142: 0 | W142: 0 | X142: 0 | Y142: 0 | Z142: 0 | AA142: 0 | AB142: 0 | AD142: 0 | AE142: 0 | AF142: 0 | AG142: 0 | AH142: 0 | AI142: 0 | AJ142: 0 | AK142: 0 | AL142: 0 | AM142: 0 | AN142: 0 | AO142: 0 | AP142: 0 | AQ142: 0 | AR142: 0 | AS142: 0 | AT142: 0 | AU142: 0
A143: 2 | B143: 3 | L143: 0 | M143: 0 | N143: 0 | O143: 0 | P143: 0 | Q143: 0 | R143: 0 | S143: 0 | T143: 0 | U143: 0 | V143: 0 | W143: 0 | X143: 0 | Y143: 0 | Z143: 0 | AA143: 0 | AB143: 0 | AD143: 0 | AE143: 0 | AF143: 0 | AG143: 0 | AH143: 0 | AI143: 0 | AJ143: 0 | AK143: 0 | AL143: 0 | AM143: 0 | AN143: 0 | AO143: 0 | AP143: 0 | AQ143: 0 | AR143: 0 | AS143: 0 | AT143: 0 | AU143: 0
A144: 2 | B144: 3B | L144: 0 | M144: 0 | N144: 0 | O144: 0 | P144: 0 | Q144: 0 | R144: 0 | S144: 0 | T144: 0 | U144: 0 | V144: 0 | W144: 0 | X144: 0 | Y144: 0 | Z144: 0 | AA144: 0 | AB144: 0 | AD144: 0 | AE144: 0 | AF144: 0 | AG144: 0 | AH144: 0 | AI144: 0 | AJ144: 0 | AK144: 0 | AL144: 0 | AM144: 0 | AN144: 0 | AO144: 0 | AP144: 0 | AQ144: 0 | AR144: 0 | AS144: 0 | AT144: 0 | AU144: 0
A145: 2 | B145: 3C | L145: 0 | M145: 0 | N145: 0 | O145: 0 | P145: 0 | Q145: 0 | R145: 0 | S145: 0 | T145: 0 | U145: 0 | V145: 0 | W145: 0 | X145: 0 | Y145: 0 | Z145: 0 | AA145: 0 | AB145: 0 | AD145: 0 | AE145: 0 | AF145: 0 | AG145: 0 | AH145: 0 | AI145: 0 | AJ145: 0 | AK145: 0 | AL145: 0 | AM145: 0 | AN145: 0 | AO145: 0 | AP145: 0 | AQ145: 0 | AR145: 0 | AS145: 0 | AT145: 0 | AU145: 0
A146: 2 | B146: 4 | L146: 0 | M146: 0 | N146: 0 | O146: 0 | P146: 0 | Q146: 0 | R146: 0 | S146: 0 | T146: 0 | U146: 0 | V146: 0 | W146: 0 | X146: 0 | Y146: 0 | Z146: 0 | AA146: 0 | AB146: 0 | AD146: 0 | AE146: 0 | AF146: 0 | AG146: 0 | AH146: 0 | AI146: 0 | AJ146: 0 | AK146: 0 | AL146: 0 | AM146: 0 | AN146: 0 | AO146: 0 | AP146: 0 | AQ146: 0 | AR146: 0 | AS146: 0 | AT146: 0 | AU146: 0
A147: 2 | B147: 4B | L147: 0 | M147: 0 | N147: 0 | O147: 0 | P147: 0 | Q147: 0 | R147: 0 | S147: 0 | T147: 0 | U147: 0 | V147: 0 | W147: 0 | X147: 0 | Y147: 0 | Z147: 0 | AA147: 0 | AB147: 0 | AD147: 0 | AE147: 0 | AF147: 0 | AG147: 0 | AH147: 0 | AI147: 0 | AJ147: 0 | AK147: 0 | AL147: 0 | AM147: 0 | AN147: 0 | AO147: 0 | AP147: 0 | AQ147: 0 | AR147: 0 | AS147: 0 | AT147: 0 | AU147: 0
A148: 2 | B148: 5 | L148: 0 | M148: 0 | N148: 0 | O148: 0 | P148: 0 | Q148: 0 | R148: 0 | S148: 0 | T148: 0 | U148: 0 | V148: 0 | W148: 0 | X148: 0 | Y148: 0 | Z148: 0 | AA148: 0 | AB148: 0 | AD148: 0 | AE148: 0 | AF148: 0 | AG148: 0 | AH148: 0 | AI148: 0 | AJ148: 0 | AK148: 0 | AL148: 0 | AM148: 0 | AN148: 0 | AO148: 0 | AP148: 0 | AQ148: 0 | AR148: 0 | AS148: 0 | AT148: 0 | AU148: 0
A149: 2 | B149: 5B | L149: 0 | M149: 0 | N149: 0 | O149: 0 | P149: 0 | Q149: 0 | R149: 0 | S149: 0 | T149: 0 | U149: 0 | V149: 0 | W149: 0 | X149: 0 | Y149: 0 | Z149: 0 | AA149: 0 | AB149: 0 | AD149: 0 | AE149: 0 | AF149: 0 | AG149: 0 | AH149: 0 | AI149: 0 | AJ149: 0 | AK149: 0 | AL149: 0 | AM149: 0 | AN149: 0 | AO149: 0 | AP149: 0 | AQ149: 0 | AR149: 0 | AS149: 0 | AT149: 0 | AU149: 0
A150: 2 | B150: 6 | L150: 0 | M150: 0 | N150: 0 | O150: 0 | P150: 0 | Q150: 0 | R150: 0 | S150: 0 | T150: 0 | U150: 0 | V150: 0 | W150: 0 | X150: 0 | Y150: 0 | Z150: 0 | AA150: 0 | AB150: 0 | AD150: 0 | AE150: 0 | AF150: 0 | AG150: 0 | AH150: 0 | AI150: 0 | AJ150: 0 | AK150: 0 | AL150: 0 | AM150: 0 | AN150: 0 | AO150: 0 | AP150: 0 | AQ150: 0 | AR150: 0 | AS150: 0 | AT150: 0 | AU150: 0
A151: 2 | B151: 6B | L151: 0 | M151: 0 | N151: 0 | O151: 0 | P151: 0 | Q151: 0 | R151: 0 | S151: 0 | T151: 0 | U151: 0 | V151: 0 | W151: 0 | X151: 0 | Y151: 0 | Z151: 0 | AA151: 0 | AB151: 0 | AD151: 0 | AE151: 0 | AF151: 0 | AG151: 0 | AH151: 0 | AI151: 0 | AJ151: 0 | AK151: 0 | AL151: 0 | AM151: 0 | AN151: 0 | AO151: 0 | AP151: 0 | AQ151: 0 | AR151: 0 | AS151: 0 | AT151: 0 | AU151: 0
A152: 2 | B152: 7 | L152: 0 | M152: 0 | N152: 0 | O152: 0 | P152: 0 | Q152: 0 | R152: 0 | S152: 0 | T152: 0 | U152: 0 | V152: 0 | W152: 0 | X152: 0 | Y152: 0 | Z152: 0 | AA152: 0 | AB152: 0 | AD152: 0 | AE152: 0 | AF152: 0 | AG152: 0 | AH152: 0 | AI152: 0 | AJ152: 0 | AK152: 0 | AL152: 0 | AM152: 0 | AN152: 0 | AO152: 0 | AP152: 0 | AQ152: 0 | AR152: 0 | AS152: 0 | AT152: 0 | AU152: 0
A153: 2 | B153: 7B | L153: 0 | M153: 0 | N153: 0 | O153: 0 | P153: 0 | Q153: 0 | R153: 0 | S153: 0 | T153: 0 | U153: 0 | V153: 0 | W153: 0 | X153: 0 | Y153: 0 | Z153: 0 | AA153: 0 | AB153: 0 | AD153: 0 | AE153: 0 | AF153: 0 | AG153: 0 | AH153: 0 | AI153: 0 | AJ153: 0 | AK153: 0 | AL153: 0 | AM153: 0 | AN153: 0 | AO153: 0 | AP153: 0 | AQ153: 0 | AR153: 0 | AS153: 0 | AT153: 0 | AU153: 0
A154: 2 | B154: 9 | L154: 0 | M154: 0 | N154: 0 | O154: 0 | P154: 0 | Q154: 0 | R154: 0 | S154: 0 | T154: 0 | U154: 0 | V154: 0 | W154: 0 | X154: 0 | Y154: 0 | Z154: 0 | AA154: 0 | AB154: 0 | AD154: 0 | AE154: 0 | AF154: 0 | AG154: 0 | AH154: 0 | AI154: 0 | AJ154: 0 | AK154: 0 | AL154: 0 | AM154: 0 | AN154: 0 | AO154: 0 | AP154: 0 | AQ154: 0 | AR154: 0 | AS154: 0 | AT154: 0 | AU154: 0
A155: 2 | B155: 9B | L155: 0 | M155: 0 | N155: 0 | O155: 0 | P155: 0 | Q155: 0 | R155: 0 | S155: 0 | T155: 0 | U155: 0 | V155: 0 | W155: 0 | X155: 0 | Y155: 0 | Z155: 0 | AA155: 0 | AB155: 0 | AD155: 0 | AE155: 0 | AF155: 0 | AG155: 0 | AH155: 0 | AI155: 0 | AJ155: 0 | AK155: 0 | AL155: 0 | AM155: 0 | AN155: 0 | AO155: 0 | AP155: 0 | AQ155: 0 | AR155: 0 | AS155: 0 | AT155: 0 | AU155: 0
A156: 2 | B156: 2 | C156: 4 | D156: 8 | L156: 4 | M156: 0 | N156: 8 | O156: 0 | P156: 0 | Q156: 0 | R156: 0 | S156: 0 | T156: 0 | U156: 0 | V156: 0 | W156: 0 | X156: 0 | Y156: 0 | Z156: 0 | AA156: 0 | AB156: 0 | AD156: =((L156*10)/58)^$K$1 -> 0.2262184337 | AE156: =((M156*10)/58)^$K$1 -> 0 | AF156: =((N156*10)/80)^$K$1 -> 1 | AG156: =((O156*10)/80)^$K$1 -> 0 | AH156: 0 | AI156: 0 | AJ156: 0 | AK156: 0 | AL156: 0 | AM156: 0 | AN156: 0 | AO156: 0 | AP156: 0 | AQ156: 0 | AR156: 0 | AS156: 0 | AT156: 0 | AU156: 1.226218434 | AW156: 20
A157: 2 | B157: 3 | L157: 0 | M157: 0 | N157: 0 | O157: 0 | P157: 0 | Q157: 0 | R157: 0 | S157: 0 | T157: 0 | U157: 0 | V157: 0 | W157: 0 | X157: 0 | Y157: 0 | Z157: 0 | AA157: 0 | AB157: 0 | AD157: 0 | AE157: 0 | AF157: 0 | AG157: 0 | AH157: 0 | AI157: 0 | AJ157: 0 | AK157: 0 | AL157: 0 | AM157: 0 | AN157: 0 | AO157: 0 | AP157: 0 | AQ157: 0 | AR157: 0 | AS157: 0 | AT157: 0 | AU157: 0 | AW157: 30
A158: 2 | B158: 3 | L158: 0 | M158: 0 | N158: 0 | O158: 0 | P158: 0 | Q158: 0 | R158: 0 | S158: 0 | T158: 0 | U158: 0 | V158: 0 | W158: 0 | X158: 0 | Y158: 0 | Z158: 0 | AA158: 0 | AB158: 0 | AD158: 0 | AE158: 0 | AF158: 0 | AG158: 0 | AH158: 0 | AI158: 0 | AJ158: 0 | AK158: 0 | AL158: 0 | AM158: 0 | AN158: 0 | AO158: 0 | AP158: 0 | AQ158: 0 | AR158: 0 | AS158: 0 | AT158: 0 | AU158: 0 | AW158: 40
A159: 2 | B159: 3 | L159: 0 | M159: 0 | N159: 0 | O159: 0 | P159: 0 | Q159: 0 | R159: 0 | S159: 0 | T159: 0 | U159: 0 | V159: 0 | W159: 0 | X159: 0 | Y159: 0 | Z159: 0 | AA159: 0 | AB159: 0 | AD159: 0 | AE159: 0 | AF159: 0 | AG159: 0 | AH159: 0 | AI159: 0 | AJ159: 0 | AK159: 0 | AL159: 0 | AM159: 0 | AN159: 0 | AO159: 0 | AP159: 0 | AQ159: 0 | AR159: 0 | AS159: 0 | AT159: 0 | AU159: 0 | AW159: 50
A160: 2 | B160: 3 | L160: 0 | M160: 0 | N160: 0 | O160: 0 | P160: 0 | Q160: 0 | R160: 0 | S160: 0 | T160: 0 | U160: 0 | V160: 0 | W160: 0 | X160: 0 | Y160: 0 | Z160: 0 | AA160: 0 | AB160: 0 | AD160: 0 | AE160: 0 | AF160: 0 | AG160: 0 | AH160: 0 | AI160: 0 | AJ160: 0 | AK160: 0 | AL160: 0 | AM160: 0 | AN160: 0 | AO160: 0 | AP160: 0 | AQ160: 0 | AR160: 0 | AS160: 0 | AT160: 0 | AU160: 0 | AW160: 60
A161: 2 | B161: 3 | L161: 0 | M161: 0 | N161: 0 | O161: 0 | P161: 0 | Q161: 0 | R161: 0 | S161: 0 | T161: 0 | U161: 0 | V161: 0 | W161: 0 | X161: 0 | Y161: 0 | Z161: 0 | AA161: 0 | AB161: 0 | AD161: 0 | AE161: 0 | AF161: 0 | AG161: 0 | AH161: 0 | AI161: 0 | AJ161: 0 | AK161: 0 | AL161: 0 | AM161: 0 | AN161: 0 | AO161: 0 | AP161: 0 | AQ161: 0 | AR161: 0 | AS161: 0 | AT161: 0 | AU161: 0 | AW161: 70
A162: 2 | B162: 3B | C162: 6 | D162: 10 | E162: 8 | L162: 6 | M162: 0 | N162: 10 | O162: 8 | P162: 0 | Q162: 0 | R162: 0 | S162: 0 | T162: 0 | U162: 0 | V162: 0 | W162: 0 | X162: 0 | Y162: 0 | Z162: 0 | AA162: 0 | AB162: 0 | AD162: 1.145230821 | AE162: 0 | AF162: 2.44140625 | AG162: 1 | AH162: 0 | AI162: 0 | AJ162: 0 | AK162: 0 | AL162: 0 | AM162: 0 | AN162: 0 | AO162: 0 | AP162: 0 | AQ162: 0 | AR162: 0 | AS162: 0 | AT162: 0 | AU162: 4.586637071 | AW162: 80
A163: 2 | B163: 3 | L163: 0 | M163: 0 | N163: 0 | O163: 0 | P163: 0 | Q163: 0 | R163: 0 | S163: 0 | T163: 0 | U163: 0 | V163: 0 | W163: 0 | X163: 0 | Y163: 0 | Z163: 0 | AA163: 0 | AB163: 0 | AD163: 0 | AE163: 0 | AF163: 0 | AG163: 0 | AH163: 0 | AI163: 0 | AJ163: 0 | AK163: 0 | AL163: 0 | AM163: 0 | AN163: 0 | AO163: 0 | AP163: 0 | AQ163: 0 | AR163: 0 | AS163: 0 | AT163: 0 | AU163: 0 | AW163: 90
A164: 2 | B164: 3 | L164: 0 | M164: 0 | N164: 0 | O164: 0 | P164: 0 | Q164: 0 | R164: 0 | S164: 0 | T164: 0 | U164: 0 | V164: 0 | W164: 0 | X164: 0 | Y164: 0 | Z164: 0 | AA164: 0 | AB164: 0 | AD164: 0 | AE164: 0 | AF164: 0 | AG164: 0 | AH164: 0 | AI164: 0 | AJ164: 0 | AK164: 0 | AL164: 0 | AM164: 0 | AN164: 0 | AO164: 0 | AP164: 0 | AQ164: 0 | AR164: 0 | AS164: 0 | AT164: 0 | AU164: 0 | AW164: 100
A165: 2 | B165: 3 | L165: 0 | M165: 0 | N165: 0 | O165: 0 | P165: 0 | Q165: 0 | R165: 0 | S165: 0 | T165: 0 | U165: 0 | V165: 0 | W165: 0 | X165: 0 | Y165: 0 | Z165: 0 | AA165: 0 | AB165: 0 | AD165: 0 | AE165: 0 | AF165: 0 | AG165: 0 | AH165: 0 | AI165: 0 | AJ165: 0 | AK165: 0 | AL165: 0 | AM165: =((U165*10)/98)^$K$1 -> 0 | AN165: =((V165*10)/98)^$K$1 -> 0 | AO165: =((W165*10)/98)^$K$1 -> 0 | AP165: =((X165*10)/98)^$K$1 -> 0 | AQ165: 0 | AR165: 0 | AS165: 0 | AT165: 0 | AU165: 0 | AW165: 110
A166: 2 | B166: 3 | L166: 0 | M166: 0 | N166: 0 | O166: 0 | P166: 0 | Q166: 0 | R166: 0 | S166: 0 | T166: 0 | U166: 0 | V166: 0 | W166: 0 | X166: 0 | Y166: 0 | Z166: 0 | AA166: 0 | AB166: 0 | AD166: 0 | AE166: 0 | AF166: 0 | AG166: 0 | AH166: 0 | AI166: 0 | AJ166: 0 | AK166: 0 | AL166: 0 | AM166: 0 | AN166: 0 | AO166: 0 | AP166: 0 | AQ166: 0 | AR166: 0 | AS166: 0 | AT166: 0 | AU166: 0 | AW166: 120
A167: 2 | B167: 3 | L167: 0 | M167: 0 | N167: 0 | O167: 0 | P167: 0 | Q167: 0 | R167: 0 | S167: 0 | T167: 0 | U167: 0 | V167: 0 | W167: 0 | X167: 0 | Y167: 0 | Z167: 0 | AA167: 0 | AB167: 0 | AD167: 0 | AE167: 0 | AF167: 0 | AG167: 0 | AH167: 0 | AI167: 0 | AJ167: 0 | AK167: 0 | AL167: 0 | AM167: 0 | AN167: 0 | AO167: 0 | AP167: 0 | AQ167: 0 | AR167: 0 | AS167: 0 | AT167: 0 | AU167: 0 | AW167: 130
A168: 2 | B168: 3 | L168: 0 | M168: 0 | N168: 0 | O168: 0 | P168: 0 | Q168: 0 | R168: 0 | S168: 0 | T168: 0 | U168: 0 | V168: 0 | W168: 0 | X168: 0 | Y168: 0 | Z168: 0 | AA168: 0 | AB168: 0 | AD168: 0 | AE168: 0 | AF168: 0 | AG168: 0 | AH168: 0 | AI168: 0 | AJ168: 0 | AK168: 0 | AL168: 0 | AM168: 0 | AN168: 0 | AO168: 0 | AP168: 0 | AQ168: 0 | AR168: 0 | AS168: 0 | AT168: 0 | AU168: 0 | AW168: 140
A169: 2 | B169: 3 | L169: 0 | M169: 0 | N169: 0 | O169: 0 | P169: 0 | Q169: 0 | R169: 0 | S169: 0 | T169: 0 | U169: 0 | V169: 0 | W169: 0 | X169: 0 | Y169: 0 | Z169: 0 | AA169: 0 | AB169: 0 | AD169: 0 | AE169: 0 | AF169: 0 | AG169: 0 | AH169: 0 | AI169: 0 | AJ169: 0 | AK169: 0 | AL169: 0 | AM169: 0 | AN169: 0 | AO169: 0 | AP169: 0 | AQ169: 0 | AR169: 0 | AS169: 0 | AT169: 0 | AU169: 0 | AW169: 150
A170: 2 | B170: 3 | L170: 0 | M170: 0 | N170: 0 | O170: 0 | P170: 0 | Q170: 0 | R170: 0 | S170: 0 | T170: 0 | U170: 0 | V170: 0 | W170: 0 | X170: 0 | Y170: 0 | Z170: 0 | AA170: 0 | AB170: 0 | AD170: 0 | AE170: 0 | AF170: 0 | AG170: 0 | AH170: 0 | AI170: 0 | AJ170: 0 | AK170: 0 | AL170: 0 | AM170: 0 | AN170: 0 | AO170: 0 | AP170: 0 | AQ170: 0 | AR170: 0 | AS170: 0 | AT170: 0 | AU170: 0 | AW170: 160
A171: 2 | B171: 3 | L171: 0 | M171: 0 | N171: 0 | O171: 0 | P171: 0 | Q171: 0 | R171: 0 | S171: 0 | T171: 0 | U171: 0 | V171: 0 | W171: 0 | X171: 0 | Y171: 0 | Z171: 0 | AA171: 0 | AB171: 0 | AD171: 0 | AE171: 0 | AF171: 0 | AG171: 0 | AH171: 0 | AI171: 0 | AJ171: 0 | AK171: 0 | AL171: 0 | AM171: 0 | AN171: 0 | AO171: 0 | AP171: 0 | AQ171: 0 | AR171: 0 | AS171: 0 | AT171: 0 | AU171: 0 | AW171: 170
A172: 2 | B172: 3C | C172: 6 | D172: 8 | E172: 4 | L172: 6 | M172: 0 | N172: 0 | O172: 0 | P172: 0 | Q172: 0 | R172: 0 | S172: 0 | T172: 0 | U172: 0 | V172: 0 | W172: 0 | X172: 0 | Y172: 0 | Z172: 0 | AA172: 0 | AB172: 0 | AD172: 1.145230821 | AE172: 0 | AF172: 0 | AG172: 0 | AH172: 0 | AI172: 0 | AJ172: 0 | AK172: 0 | AL172: 0 | AM172: 0 | AN172: 0 | AO172: 0 | AP172: 0 | AQ172: 0 | AR172: 0 | AS172: 0 | AT172: 0 | AU172: 1.145230821 | AW172: 180
A173: 2 | B173: 3 | L173: 0 | M173: 0 | N173: 0 | O173: 0 | P173: 0 | Q173: 0 | R173: 0 | S173: 0 | T173: 0 | U173: 0 | V173: 0 | W173: 0 | X173: 0 | Y173: 0 | Z173: 0 | AA173: 0 | AB173: 0 | AD173: 0 | AE173: 0 | AF173: 0 | AG173: 0 | AH173: 0 | AI173: 0 | AJ173: 0 | AK173: 0 | AL173: 0 | AM173: 0 | AN173: 0 | AO173: 0 | AP173: 0 | AQ173: 0 | AR173: 0 | AS173: 0 | AT173: 0 | AU173: 0 | AW173: 190
A174: 2 | B174: 3 | L174: 0 | M174: 0 | N174: 0 | O174: 0 | P174: 0 | Q174: 0 | R174: 0 | S174: 0 | T174: 0 | U174: 0 | V174: 0 | W174: 0 | X174: 0 | Y174: 0 | Z174: 0 | AA174: 0 | AB174: 0 | AD174: 0 | AE174: 0 | AF174: 0 | AG174: 0 | AH174: 0 | AI174: 0 | AJ174: 0 | AK174: 0 | AL174: 0 | AM174: 0 | AN174: 0 | AO174: 0 | AP174: 0 | AQ174: 0 | AR174: 0 | AS174: 0 | AT174: 0 | AU174: 0 | AW174: 200
A175: 2 | B175: 3 | L175: 0 | M175: 0 | N175: 0 | O175: 0 | P175: 0 | Q175: 0 | R175: 0 | S175: 0 | T175: 0 | U175: 0 | V175: 0 | W175: 0 | X175: 0 | Y175: 0 | Z175: 0 | AA175: 0 | AB175: 0 | AD175: 0 | AE175: 0 | AF175: 0 | AG175: 0 | AH175: 0 | AI175: 0 | AJ175: 0 | AK175: 0 | AL175: 0 | AM175: 0 | AN175: 0 | AO175: 0 | AP175: 0 | AQ175: 0 | AR175: 0 | AS175: 0 | AT175: 0 | AU175: 0 | AW175: 210
A176: 2 | B176: 3 | L176: 0 | M176: 0 | N176: 0 | O176: 0 | P176: 0 | Q176: 0 | R176: 0 | S176: 0 | T176: 0 | U176: 0 | V176: 0 | W176: 0 | X176: 0 | Y176: 0 | Z176: 0 | AA176: 0 | AB176: 0 | AD176: 0 | AE176: 0 | AF176: 0 | AG176: 0 | AH176: 0 | AI176: 0 | AJ176: 0 | AK176: 0 | AL176: 0 | AM176: 0 | AN176: 0 | AO176: 0 | AP176: 0 | AQ176: 0 | AR176: 0 | AS176: 0 | AT176: 0 | AU176: 0 | AW176: 220
A177: 2 | B177: 3 | L177: 0 | M177: 0 | N177: 0 | O177: 0 | P177: 0 | Q177: 0 | R177: 0 | S177: 0 | T177: 0 | U177: 0 | V177: 0 | W177: 0 | X177: 0 | Y177: 0 | Z177: 0 | AA177: 0 | AB177: 0 | AD177: 0 | AE177: 0 | AF177: 0 | AG177: 0 | AH177: 0 | AI177: 0 | AJ177: 0 | AK177: 0 | AL177: 0 | AM177: 0 | AN177: 0 | AO177: 0 | AP177: 0 | AQ177: 0 | AR177: 0 | AS177: 0 | AT177: 0 | AU177: 0 | AW177: 230
A178: 2 | B178: 3 | L178: 0 | M178: 0 | N178: 0 | O178: 0 | P178: 0 | Q178: 0 | R178: 0 | S178: 0 | T178: 0 | U178: 0 | V178: 0 | W178: 0 | X178: 0 | Y178: 0 | Z178: 0 | AA178: 0 | AB178: 0 | AD178: 0 | AE178: 0 | AF178: 0 | AG178: 0 | AH178: 0 | AI178: 0 | AJ178: 0 | AK178: 0 | AL178: 0 | AM178: 0 | AN178: 0 | AO178: 0 | AP178: 0 | AQ178: 0 | AR178: 0 | AS178: 0 | AT178: 0 | AU178: 0 | AW178: 240
A179: 2 | B179: 3 | L179: 0 | M179: 0 | N179: 0 | O179: 0 | P179: 0 | Q179: 0 | R179: 0 | S179: 0 | T179: 0 | U179: 0 | V179: 0 | W179: 0 | X179: 0 | Y179: 0 | Z179: 0 | AA179: 0 | AB179: 0 | AD179: 0 | AE179: 0 | AF179: 0 | AG179: 0 | AH179: 0 | AI179: 0 | AJ179: 0 | AK179: 0 | AL179: 0 | AM179: 0 | AN179: 0 | AO179: 0 | AP179: 0 | AQ179: 0 | AR179: 0 | AS179: 0 | AT179: 0 | AU179: 0 | AW179: 250
A180: 2 | B180: 4 | C180: 6 | D180: 6 | E180: 8 | F180: 9 | L180: 6 | M180: 6 | N180: 0 | O180: 0 | P180: 0 | Q180: 17 | R180: 0 | S180: 0 | T180: 0 | U180: 0 | V180: 0 | W180: 0 | X180: 0 | Y180: 0 | Z180: 0 | AA180: 0 | AB180: 0 | AD180: 1.145230821 | AE180: 1.145230821 | AF180: 0 | AG180: 0 | AH180: 0 | AI180: 2.514551945 | AJ180: 0 | AK180: 0 | AL180: 0 | AM180: 0 | AN180: 0 | AO180: 0 | AP180: 0 | AQ180: 0 | AR180: 0 | AS180: 0 | AT180: 0 | AU180: 4.805013586 | AW180: 260
A181: 2 | B181: 3 | L181: 0 | M181: 0 | N181: 0 | O181: 0 | P181: 0 | Q181: 0 | R181: 0 | S181: 0 | T181: 0 | U181: 0 | V181: 0 | W181: 0 | X181: 0 | Y181: 0 | Z181: 0 | AA181: 0 | AB181: 0 | AD181: 0 | AE181: 0 | AF181: 0 | AG181: 0 | AH181: 0 | AI181: 0 | AJ181: 0 | AK181: 0 | AL181: 0 | AM181: 0 | AN181: 0 | AO181: 0 | AP181: 0 | AQ181: 0 | AR181: 0 | AS181: 0 | AT181: 0 | AU181: 0 | AW181: 270
A182: 2 | B182: 3 | L182: 0 | M182: 0 | N182: 0 | O182: 0 | P182: 0 | Q182: 0 | R182: 0 | S182: 0 | T182: 0 | U182: 0 | V182: 0 | W182: 0 | X182: 0 | Y182: 0 | Z182: 0 | AA182: 0 | AB182: 0 | AD182: 0 | AE182: 0 | AF182: 0 | AG182: 0 | AH182: 0 | AI182: 0 | AJ182: 0 | AK182: 0 | AL182: 0 | AM182: 0 | AN182: 0 | AO182: 0 | AP182: 0 | AQ182: 0 | AR182: 0 | AS182: 0 | AT182: 0 | AU182: 0 | AW182: 280
A183: 2 | B183: 3 | L183: 0 | M183: 0 | N183: 0 | O183: 0 | P183: 0 | Q183: 0 | R183: 0 | S183: 0 | T183: 0 | U183: 0 | V183: 0 | W183: 0 | X183: 0 | Y183: 0 | Z183: 0 | AA183: 0 | AB183: 0 | AD183: 0 | AE183: 0 | AF183: 0 | AG183: 0 | AH183: 0 | AI183: 0 | AJ183: 0 | AK183: 0 | AL183: 0 | AM183: 0 | AN183: 0 | AO183: 0 | AP183: 0 | AQ183: 0 | AR183: 0 | AS183: 0 | AT183: 0 | AU183: 0 | AW183: 290
A184: 2 | B184: 3 | L184: 0 | M184: 0 | N184: 0 | O184: 0 | P184: 0 | Q184: 0 | R184: 0 | S184: 0 | T184: 0 | U184: 0 | V184: 0 | W184: 0 | X184: 0 | Y184: 0 | Z184: 0 | AA184: 0 | AB184: 0 | AD184: 0 | AE184: 0 | AF184: 0 | AG184: 0 | AH184: 0 | AI184: 0 | AJ184: 0 | AK184: 0 | AL184: 0 | AM184: 0 | AN184: 0 | AO184: 0 | AP184: 0 | AQ184: 0 | AR184: 0 | AS184: 0 | AT184: 0 | AU184: 0 | AW184: 300
A185: 2 | B185: 4B | C185: 6 | D185: 6 | E185: 10 | F185: 10 | L185: 6 | M185: 0 | N185: 0 | O185: 0 | P185: 0 | Q185: 0 | R185: 0 | S185: 0 | T185: 0 | U185: 0 | V185: 10 | W185: 0 | X185: 0 | Y185: 0 | Z185: 0 | AA185: 0 | AB185: 0 | AD185: 1.145230821 | AE185: 0 | AF185: 0 | AG185: 0 | AH185: 0 | AI185: 0 | AJ185: 0 | AK185: 0 | AL185: 0 | AM185: 0 | AN185: 1.084165785 | AO185: 0 | AP185: 0 | AQ185: 0 | AR185: 0 | AS185: 0 | AT185: 0 | AU185: 2.229396605 | AW185: 310
A186: 2 | B186: 3 | L186: 0 | M186: 0 | N186: 0 | O186: 0 | P186: 0 | Q186: 0 | R186: 0 | S186: 0 | T186: 0 | U186: 0 | V186: 0 | W186: 0 | X186: 0 | Y186: 0 | Z186: 0 | AA186: 0 | AB186: 0 | AD186: 0 | AE186: 0 | AF186: 0 | AG186: 0 | AH186: 0 | AI186: 0 | AJ186: 0 | AK186: 0 | AL186: 0 | AM186: 0 | AN186: 0 | AO186: 0 | AP186: 0 | AQ186: 0 | AR186: 0 | AS186: 0 | AT186: 0 | AU186: 0 | AW186: 320
A187: 2 | B187: 3 | L187: 0 | M187: 0 | N187: 0 | O187: 0 | P187: 0 | Q187: 0 | R187: 0 | S187: 0 | T187: 0 | U187: 0 | V187: 0 | W187: 0 | X187: 0 | Y187: 0 | Z187: 0 | AA187: 0 | AB187: 0 | AD187: 0 | AE187: 0 | AF187: 0 | AG187: 0 | AH187: 0 | AI187: 0 | AJ187: 0 | AK187: 0 | AL187: 0 | AM187: 0 | AN187: 0 | AO187: 0 | AP187: 0 | AQ187: 0 | AR187: 0 | AS187: 0 | AT187: 0 | AU187: 0 | AW187: 330
A188: 2 | B188: 3 | L188: 0 | M188: 0 | N188: 0 | O188: 0 | P188: 0 | Q188: 0 | R188: 0 | S188: 0 | T188: 0 | U188: 0 | V188: 0 | W188: 0 | X188: 0 | Y188: 0 | Z188: 0 | AA188: 0 | AB188: 0 | AD188: 0 | AE188: 0 | AF188: 0 | AG188: 0 | AH188: 0 | AI188: 0 | AJ188: 0 | AK188: 0 | AL188: 0 | AM188: 0 | AN188: 0 | AO188: 0 | AP188: 0 | AQ188: 0 | AR188: 0 | AS188: 0 | AT188: 0 | AU188: 0 | AW188: 340
A189: 2 | B189: 3 | L189: 0 | M189: 0 | N189: 0 | O189: 0 | P189: 0 | Q189: 0 | R189: 0 | S189: 0 | T189: 0 | U189: 0 | V189: 0 | W189: 0 | X189: 0 | Y189: 0 | Z189: 0 | AA189: 0 | AB189: 0 | AD189: 0 | AE189: 0 | AF189: 0 | AG189: 0 | AH189: 0 | AI189: 0 | AJ189: 0 | AK189: 0 | AL189: 0 | AM189: 0 | AN189: 0 | AO189: 0 | AP189: 0 | AQ189: 0 | AR189: 0 | AS189: 0 | AT189: 0 | AU189: 0 | AW189: 350
A190: 2 | B190: 3 | L190: 0 | M190: 0 | N190: 0 | O190: 0 | P190: 0 | Q190: 0 | R190: 0 | S190: 0 | T190: 0 | U190: 0 | V190: 0 | W190: 0 | X190: 0 | Y190: 0 | Z190: 0 | AA190: 0 | AB190: 0 | AD190: 0 | AE190: 0 | AF190: 0 | AG190: 0 | AH190: 0 | AI190: 0 | AJ190: 0 | AK190: 0 | AL190: 0 | AM190: 0 | AN190: 0 | AO190: 0 | AP190: 0 | AQ190: 0 | AR190: 0 | AS190: 0 | AT190: 0 | AU190: 0 | AW190: Sum | AY190: =SUM(AY155:AY189) -> 0
A191: 2 | B191: 3 | L191: 0 | M191: 0 | N191: 0 | O191: 0 | P191: 0 | Q191: 0 | R191: 0 | S191: 0 | T191: 0 | U191: 0 | V191: 0 | W191: 0 | X191: 0 | Y191: 0 | Z191: 0 | AA191: 0 | AB191: 0 | AD191: 0 | AE191: 0 | AF191: 0 | AG191: 0 | AH191: 0 | AI191: 0 | AJ191: 0 | AK191: 0 | AL191: 0 | AM191: 0 | AN191: 0 | AO191: 0 | AP191: 0 | AQ191: 0 | AR191: 0 | AS191: 0 | AT191: 0 | AU191: 0
A192: 2 | B192: 3 | L192: 0 | M192: 0 | N192: 0 | O192: 0 | P192: 0 | Q192: 0 | R192: 0 | S192: 0 | T192: 0 | U192: 0 | V192: 0 | W192: 0 | X192: 0 | Y192: 0 | Z192: 0 | AA192: 0 | AB192: 0 | AD192: 0 | AE192: 0 | AF192: 0 | AG192: 0 | AH192: 0 | AI192: 0 | AJ192: 0 | AK192: 0 | AL192: 0 | AM192: 0 | AN192: 0 | AO192: 0 | AP192: 0 | AQ192: 0 | AR192: 0 | AS192: 0 | AT192: 0 | AU192: 0
A193: 2 | B193: 3 | L193: 0 | M193: 0 | N193: 0 | O193: 0 | P193: 0 | Q193: 0 | R193: 0 | S193: 0 | T193: 0 | U193: 0 | V193: 0 | W193: 0 | X193: 0 | Y193: 0 | Z193: 0 | AA193: 0 | AB193: 0 | AD193: 0 | AE193: 0 | AF193: 0 | AG193: 0 | AH193: 0 | AI193: 0 | AJ193: 0 | AK193: 0 | AL193: 0 | AM193: 0 | AN193: 0 | AO193: 0 | AP193: 0 | AQ193: 0 | AR193: 0 | AS193: 0 | AT193: 0 | AU193: 0
A194: 2 | B194: 3 | L194: 0 | M194: 0 | N194: 0 | O194: 0 | P194: 0 | Q194: 0 | R194: 0 | S194: 0 | T194: 0 | U194: 0 | V194: 0 | W194: 0 | X194: 0 | Y194: 0 | Z194: 0 | AA194: 0 | AB194: 0 | AD194: 0 | AE194: 0 | AF194: 0 | AG194: 0 | AH194: 0 | AI194: 0 | AJ194: 0 | AK194: 0 | AL194: 0 | AM194: 0 | AN194: 0 | AO194: 0 | AP194: 0 | AQ194: 0 | AR194: 0 | AS194: 0 | AT194: 0 | AU194: 0
A195: 2 | B195: 5 | L195: 0 | M195: 0 | N195: 0 | O195: 0 | P195: 0 | Q195: 0 | R195: 0 | S195: 0 | T195: 0 | U195: 0 | V195: 0 | W195: 0 | X195: 0 | Y195: 0 | Z195: 0 | AA195: 0 | AB195: 0 | AD195: 0 | AE195: 0 | AF195: 0 | AG195: 0 | AH195: 0 | AI195: 0 | AJ195: 0 | AK195: 0 | AL195: 0 | AM195: 0 | AN195: 0 | AO195: 0 | AP195: 0 | AQ195: 0 | AR195: 0 | AS195: 0 | AT195: 0 | AU195: 0
A196: 2 | B196: 3 | L196: 0 | M196: 0 | N196: 0 | O196: 0 | P196: 0 | Q196: 0 | R196: 0 | S196: 0 | T196: 0 | U196: 0 | V196: 0 | W196: 0 | X196: 0 | Y196: 0 | Z196: 0 | AA196: 0 | AB196: 0 | AD196: 0 | AE196: 0 | AF196: 0 | AG196: 0 | AH196: 0 | AI196: 0 | AJ196: 0 | AK196: 0 | AL196: 0 | AM196: 0 | AN196: 0 | AO196: 0 | AP196: 0 | AQ196: 0 | AR196: 0 | AS196: 0 | AT196: 0 | AU196: 0
A197: 2 | B197: 3 | L197: 0 | M197: 0 | N197: 0 | O197: 0 | P197: 0 | Q197: 0 | R197: 0 | S197: 0 | T197: 0 | U197: 0 | V197: 0 | W197: 0 | X197: 0 | Y197: 0 | Z197: 0 | AA197: 0 | AB197: 0 | AD197: 0 | AE197: 0 | AF197: 0 | AG197: 0 | AH197: =((P197*10)/135)^$K$1 -> 0 | AI197: =((Q197*10)/135)^$K$1 -> 0 | AJ197: =((R197*10)/135)^$K$1 -> 0 | AK197: =((S197*10)/135)^$K$1 -> 0 | AL197: =((T197*10)/135)^$K$1 -> 0 | AM197: =((U197*10)/98)^$K$1 -> 0 | AN197: =((V197*10)/98)^$K$1 -> 0 | AO197: =((W197*10)/98)^$K$1 -> 0 | AP197: =((X197*10)/98)^$K$1 -> 0 | AQ197: =((Y197*10)/182)^$K$1 -> 0 | AR197: =((Z197*10)/182)^$K$1 -> 0 | AS197: 0 | AT197: 0 | AU197: 0
A198: 2 | B198: 3 | L198: =C198 -> 0 | M198: =IF(B198=4,D198,0) -> 0 | N198: =IF(OR(B198=2,B198="3B",B198="5C",B198="5D"),D198,0) -> 0 | O198: =IF(B198="3B",E198,0) -> 0 | P198: =IF(OR(B198=3,B198=5,B198="5B",B198=6,B198="6B",B198=7,B198="7B",B198=9,B198="9B"),D198+E198,0) -> 0 | Q198: =IF(B198=4,E198+F198,0) -> 0 | R198: =IF(OR(B198=5,B198=7,B198=9),F198+G198,0) -> 0 | S198: =IF(OR(B198=7,B198=9),H198+I198,0) -> 0 | T198: =IF(B198=9,J198+K198,0) -> 0 | U198: =IF(OR(B198="6C",B198="7C"),D198+E198,0) -> 0 | V198: =IF(B198="4B",F198+G198,0) -> 0 | W198: =IF(OR(B198="7B",B198="7C",B198="9B"),H198+I198,0) -> 0 | X198: =IF(OR(B198="9B"),J198+K198,0) -> 0 | Y198: =IF((B198="5C"),E198+F198+G198,0) -> 0 | Z198: =IF(B198=6,F198+G198+H198,0) -> 0 | AA198: =IF((B198="5D"),E198+F198+G198,0) -> 0 | AB198: =IF(OR(B198="6B",B198="6C"),F198+G198+H198,0) -> 0 | AD198: 0 | AE198: 0 | AF198: 0 | AG198: 0 | AH198: 0 | AI198: 0 | AJ198: 0 | AK198: 0 | AL198: 0 | AM198: 0 | AN198: 0 | AO198: 0 | AP198: 0 | AQ198: 0 | AR198: 0 | AS198: =((AA198*10)/132)^$K$1 -> 0 | AT198: =((AB198*10)/132)^$K$1 -> 0 | AU198: =SUM(AD198:AT198) -> 0
A199: 2 | B199: 3 | L199: 0 | M199: 0 | N199: 0 | O199: 0 | P199: 0 | Q199: 0 | R199: 0 | S199: 0 | T199: 0 | U199: 0 | V199: 0 | W199: 0 | X199: 0 | Y199: 0 | Z199: 0 | AA199: 0 | AB199: 0 | AD199: 0 | AE199: 0 | AF199: 0 | AG199: 0 | AH199: 0 | AI199: 0 | AJ199: 0 | AK199: 0 | AL199: 0 | AM199: 0 | AN199: 0 | AO199: 0 | AP199: 0 | AQ199: 0 | AR199: 0 | AS199: 0 | AT199: 0 | AU199: 0
A200: 2 | B200: 3 | L200: 0 | M200: 0 | N200: 0 | O200: 0 | P200: 0 | Q200: 0 | R200: 0 | S200: 0 | T200: 0 | U200: 0 | V200: 0 | W200: 0 | X200: 0 | Y200: 0 | Z200: 0 | AA200: 0 | AB200: 0 | AD200: 0 | AE200: 0 | AF200: 0 | AG200: 0 | AH200: 0 | AI200: 0 | AJ200: 0 | AK200: 0 | AL200: 0 | AM200: 0 | AN200: 0 | AO200: 0 | AP200: 0 | AQ200: 0 | AR200: 0 | AS200: 0 | AT200: 0 | AU200: 0
... 822 more rows

Sheet 12 Design MESA Direction 2-SS
A1: Computation of design value of Equivalent Standard Axle Loads
A3: Vehicle | B3: Vehicle Class | C3: Average ESA/VEF | D3: AADTT | E3: Load distribution factor between lanes | F3: ESA/day for each category
A4: Medium Truck (2 Axles) - Type 2 | B4: 2 | C4: ='11 Axle Loads Direction 2-SS'!L1010 -> 1.226218434 | D4: ='10 ADT Direction 2-SS'!B22 -> 47.52 | E4: 1 | F4: =C4*D4*E4 -> 58.26989997
A5: Heavy Truck (3 Axles) - Type 3 | B5: 3 | C5: ='11 Axle Loads Direction 2-SS'!L1011 -> 0.00541427153 | D5: ='10 ADT Direction 2-SS'!C22 -> 47.52 | E5: 1 | F5: =C5*D5*E5 -> 0.2572861831
A6: Heavy Truck (3 Axles) - Type 3B | B6: 3B | C6: ='11 Axle Loads Direction 2-SS'!L1012 -> 2.116909417 | D6: ='10 ADT Direction 2-SS'!D22 -> 47.52 | E6: 1 | F6: 100.5955355
A7: Heavy Truck (4 Axles) - Type 4 | B7: 4 | C7: ='11 Axle Loads Direction 2-SS'!L1013 -> 2.217698578 | D7: ='10 ADT Direction 2-SS'!E22 -> 47.52 | E7: 1 | F7: 105.3850364
A8: Semi-Trailers (5 Axles) - Type 5 | B8: 5 | C8: ='11 Axle Loads Direction 2-SS'!L1014 -> 0 | D8: ='10 ADT Direction 2-SS'!F22 -> 47.52 | E8: 1 | F8: 0
A9: Semi-Trailers (5 Axles) - Type 5B | B9: 5B | C9: ='11 Axle Loads Direction 2-SS'!L1015 -> 0.3925446972 | D9: ='10 ADT Direction 2-SS'!G22 -> 47.52 | E9: 1 | F9: 18.65372401
A10: Semi-Trailers (5 Axles) - Type 5C | B10: 5C | C10: ='11 Axle Loads Direction 2-SS'!L1016 -> 0 | D10: ='10 ADT Direction 2-SS'!H22 -> 47.52 | E10: 1 | F10: 0
A11: Semi-Trailers (5 Axles) - Type 5D | B11: 5D | C11: ='11 Axle Loads Direction 2-SS'!L1017 -> 0 | D11: ='10 ADT Direction 2-SS'!I22 -> 47.52 | E11: 1 | F11: 0
A12: Semi-Trailers (6 Axles) - Type 6 | B12: 6 | C12: ='11 Axle Loads Direction 2-SS'!L1018 -> 3.01009997 | D12: ='10 ADT Direction 2-SS'!J22 -> 47.52 | E12: 1 | F12: 143.0399506
A13: Semi-Trailers (6 Axles) - Type 6B | B13: 6B | C13: ='11 Axle Loads Direction 2-SS'!L1019 -> 9.606881308 | D13: ='10 ADT Direction 2-SS'!K22 -> 47.52 | E13: 1 | F13: 456.5189998
A14: Semi-Trailers (6 Axles) - Type 6C | B14: 6C | C14: ='11 Axle Loads Direction 2-SS'!L1020 -> 0 | D14: ='10 ADT Direction 2-SS'!L22 -> 47.52 | E14: 1 | F14: 0
A15: Trailers (7 Axles) - Type 7 | B15: 7 | C15: ='11 Axle Loads Direction 2-SS'!L1021 -> 4.414049491 | D15: ='10 ADT Direction 2-SS'!M22 -> 47.52 | E15: 1 | F15: 209.7556318
A16: Trailers (7 Axles) - Type 7B | B16: 7B | C16: ='11 Axle Loads Direction 2-SS'!L1022 -> 6.115826126 | D16: ='10 ADT Direction 2-SS'!N22 -> 47.52 | E16: 1 | F16: 290.6240575
A17: Trailers (7 Axles) - Type 7C | B17: 7C | C17: ='11 Axle Loads Direction 2-SS'!L1023 -> 0 | D17: ='10 ADT Direction 2-SS'!O22 -> 47.52 | E17: 1 | F17: 0
A18: Trailers (9 Axles) - Type 9 | B18: 9 | C18: ='11 Axle Loads Direction 2-SS'!L1024 -> 2.033954616 | D18: ='10 ADT Direction 2-SS'!P22 -> 47.52 | E18: 1 | F18: 96.65352337
A19: Trailers (9 Axles) - Type 9B | B19: 9B | C19: ='11 Axle Loads Direction 2-SS'!L1025 -> 8.698507344 | D19: ='10 ADT Direction 2-SS'!Q22 -> 47.52 | E19: 1 | F19: 413.353069
A20: a - Total ESA/day (one way) | F20: =SUM(F4:F19) -> 1893.106714
H21: Truck Type
A22: Factors | H22: 2 | I22: 3 | J22: 3B | K22: 4 | L22: 5 | M22: 5B | N22: 5C | O22: 5D | P22: 6 | Q22: 6B | R22: 6C | S22: 7 | T22: 7B | U22: 7C | V22: 9 | W22: 9B
A23: a=current average annual daily traffic loading in ESA/day (one way) in year of count | H23: =F4 -> 58.26989997 | I23: =F5 -> 0.2572861831 | J23: =F6 -> 100.5955355 | K23: =F7 -> 105.3850364 | L23: =F8 -> 0 | M23: =F9 -> 18.65372401 | N23: =F10 -> 0 | O23: =F11 -> 0 | P23: =F12 -> 143.0399506 | Q23: =F13 -> 456.5189998 | R23: =F14 -> 0 | S23: =F15 -> 209.7556318 | T23: =F16 -> 290.6240575 | U23: =F17 -> 0 | V23: =F18 -> 96.65352337 | W23: =F19 -> 413.353069 | X23: Growth Period 1
A24: b=annual growth rate (%) for growth Period 1 | H24: 5 | I24: 5 | J24: 5 | K24: 5 | L24: 5 | M24: 5 | N24: 5 | O24: 5 | P24: 5 | Q24: 5 | R24: 5 | S24: 5 | T24: 5 | U24: 5 | V24: 5 | W24: 5
A25: c=design life (years) for growth Period 1 | H25: 10 | I25: 10 | J25: 10 | K25: 10 | L25: 10 | M25: 10 | N25: 10 | O25: 10 | P25: 10 | Q25: 10 | R25: 10 | S25: 10 | T25: 10 | U25: 10 | V25: 10 | W25: 10
A26: d=number of years to start of design life for growth Period 1 | H26: 2 | I26: 2 | J26: 2 | K26: 2 | L26: 2 | M26: 2 | N26: 2 | O26: 2 | P26: 2 | Q26: 2 | R26: 2 | S26: 2 | T26: 2 | U26: 2 | V26: 2 | W26: 2
A27: a=average annual daily traffic loading in ESA/day (one way) at end of growth Period 1/ beginning of Period 2 | H27: =H23*((1+(H24/100))^(H25+H26)) -> 104.6443685 | I27: =I23*((1+(I24/100))^(I25+I26)) -> 0.4620490195 | J27: 180.6551288 | K27: 189.2563843 | L27: 0 | M27: 33.49940827 | N27: 0 | O27: 0 | P27: 256.8792001 | Q27: =Q23*((1+(Q24/100))^(Q25+Q26)) -> 819.8425337 | R27: =R23*((1+(R24/100))^(R25+R26)) -> 0 | S27: =S23*((1+(S24/100))^(S25+S26)) -> 376.6909783 | T27: 521.9190522 | U27: 0 | V27: 173.5758414 | W27: 742.3227238 | X27: Growth Period 2
A28: b=annual growth rate (%) for growth Period 2 | H28: 4 | I28: 4 | J28: 4 | K28: 4 | L28: 4 | M28: 4 | N28: 4 | O28: 4 | P28: 4 | Q28: 4 | R28: 4 | S28: 4 | T28: 4 | U28: 4 | V28: 4 | W28: 4
A29: c=design life (years) for growth Period 2 | H29: 5 | I29: 5 | J29: 5 | K29: 5 | L29: 5 | M29: 5 | N29: 5 | O29: 5 | P29: 5 | Q29: 5 | R29: 5 | S29: 5 | T29: 5 | U29: 5 | V29: 5 | W29: 5
A30: a=average annual daily traffic loading in ESA/day (one way) at end of growth Period 2/ beginning of Period 3 | H30: =H27*((1+(H28/100))^(H29)) -> 127.3158746 | I30: =I27*((1+(I28/100))^(I29)) -> 0.5621532807 | J30: 219.7945868 | K30: 230.2593293 | L30: 0 | M30: 40.7571523 | N30: 0 | O30: 0 | P30: 312.5328244 | Q30: 997.4637981 | R30: 0 | S30: 458.302172 | T30: 634.9943297 | U30: 0 | V30: 211.1815512 | W30: 903.1490965 | X30: Growth Period 3
A31: b=annual growth rate (%) for growth Period 3 | H31: 3 | I31: 3 | J31: 3 | K31: 3 | L31: 3 | M31: 3 | N31: 3 | O31: 3 | P31: 3 | Q31: 3 | R31: 3 | S31: 3 | T31: 3 | U31: 3 | V31: 3 | W31: 3
A32: c=design life (years) for growth Period 3 | H32: 5 | I32: 5 | J32: 5 | K32: 5 | L32: 5 | M32: 5 | N32: 5 | O32: 5 | P32: 5 | Q32: 5 | R32: 5 | S32: 5 | T32: 5 | U32: 5 | V32: 5 | W32: 5
A33: Total Cummulative ESA by Truck Type (one way) | H33: =(((H23*365*100/H24)*(((1+(H24/100))^(H25+H26))-((1+(H24/100))^H26)))/1000000)+(((H27*365*100/H28)*(((1+(H28/100))^H29)-(1)))/1000000)+(((H30*365*100/H31)*(((1+(H31/100))^H32)-(1)))/1000000) -> 0.7485277643 | I33: =(((I23*365*100/I24)*(((1+(I24/100))^(I25+I26))-((1+(I24/100))^I26)))/1000000)+(((I27*365*100/I28)*(((1+(I28/100))^I29)-(1)))/1000000)+(((I30*365*100/I31)*(((1+(I31/100))^I32)-(1)))/1000000) -> 0.003305065764 | J33: 1.292237525 | K33: 1.353762848 | L33: 0 | M33: 0.2396233791 | N33: 0 | O33: 0 | P33: 1.837473111 | Q33: 5.864385325 | R33: 0 | S33: 2.694494314 | T33: 3.733319881 | U33: 0 | V33: 1.241598935 | W33: 5.309881238 | X33: MESA
A34: Total Cummulative Design MESA (one way) | H34: =SUM(H33:W33) -> 24.31860939
A38: Pavement Design MESA Direction 2 | D38: =H34 -> 24.31860939 | F38: 0 | G38: If MESA is already known then enter it here
D39: =IF(D38>F38,D38,F38) -> 24.31860939
A44: Computation of design value of Equivalent Standard Axle Loads (IF YOU ALREADY HAVE VEF per vehicle class and AADTT OR ADTT)
A46: Vehicle | B46: Vehicle Class | C46: Average ESA/VEF | D46: AADTT/ ADTT | E46: Load distribution factor between lanes | F46: ESA/day for each category
A47: Medium Truck (2 Axles) - Type 2 | B47: 2 | C47: 2 | D47: 0 | E47: 1 | F47: =C47*D47*E47 -> 0
A48: Heavy Truck (3 Axles) - Type 3 | B48: 3 | C48: 3 | D48: 0 | E48: 1 | F48: =C48*D48*E48 -> 0
A49: Heavy Truck (3 Axles) - Type 3B | B49: 3B | C49: 4 | D49: 0 | E49: 1 | F49: 0
A50: Heavy Truck (4 Axles) - Type 4 | B50: 4 | C50: 4.5 | D50: 0 | E50: 1 | F50: 0
A51: Semi-Trailers (5 Axles) - Type 5 | B51: 5 | C51: 3.8 | D51: 0 | E51: 1 | F51: 0
A52: Semi-Trailers (5 Axles) - Type 5B | B52: 5B | C52: 4.8 | D52: 0 | E52: 1 | F52: 0
A53: Semi-Trailers (5 Axles) - Type 5C | B53: 5C | C53: 4.2 | D53: 0 | E53: 1 | F53: 0
A54: Semi-Trailers (5 Axles) - Type 5D | B54: 5D | C54: 4.8 | D54: 0 | E54: 1 | F54: 0
A55: Semi-Trailers (6 Axles) - Type 6 | B55: 6 | C55: 6.2 | D55: 0 | E55: 1 | F55: 0
A56: Semi-Trailers (6 Axles) - Type 6B | B56: 6B | C56: 6.2 | D56: 0 | E56: 1 | F56: 0
A57: Semi-Trailers (6 Axles) - Type 6C | B57: 6C | C57: 6.9 | D57: 0 | E57: 1 | F57: 0
A58: Trailers (7 Axles) - Type 7 | B58: 7 | C58: 6.3 | D58: 0 | E58: 1 | F58: 0
A59: Trailers (7 Axles) - Type 7B | B59: 7B | C59: 6.3 | D59: 0 | E59: 1 | F59: 0
A60: Trailers (7 Axles) - Type 7C | B60: 7C | C60: 7 | D60: 0 | E60: 1 | F60: 0
A61: Trailers (9 Axles) - Type 9 | B61: 9 | C61: 6 | D61: 0 | E61: 1 | F61: 0
A62: Trailers (9 Axles) - Type 9B | B62: 9B | C62: 6.9 | D62: 0 | E62: 1 | F62: 0
A63: a - Total ESA/day (one way) | F63: =SUM(F47:F62) -> 0
H64: Truck Type
A65: Factors | H65: 2 | I65: 3 | J65: 3B | K65: 4 | L65: 5 | M65: 5B | N65: 5C | O65: 5D | P65: 6 | Q65: 6B | R65: 6C | S65: 7 | T65: 7B | U65: 7C | V65: 9 | W65: 9B
A66: a=current average annual daily traffic loading in ESA/day (one way) in year of count | H66: =F47 -> 0 | I66: =F48 -> 0 | J66: =F49 -> 0 | K66: =F50 -> 0 | L66: =F51 -> 0 | M66: =F52 -> 0 | N66: =F53 -> 0 | O66: =F54 -> 0 | P66: =F55 -> 0 | Q66: =F56 -> 0 | R66: =F57 -> 0 | S66: =F58 -> 0 | T66: =F59 -> 0 | U66: =F60 -> 0 | V66: =F61 -> 0 | W66: =F62 -> 0 | X66: Growth Period 1
A67: b=annual growth rate (%) for growth Period 1 | H67: 5 | I67: 5 | J67: 5 | K67: 5 | L67: 5 | M67: 5 | N67: 5 | O67: 5 | P67: 5 | Q67: 5 | R67: 5 | S67: 5 | T67: 5 | U67: 5 | V67: 5 | W67: 5
A68: c=design life (years) for growth Period 1 | H68: 10 | I68: 10 | J68: 10 | K68: 10 | L68: 10 | M68: 10 | N68: 10 | O68: 10 | P68: 10 | Q68: 10 | R68: 10 | S68: 10 | T68: 10 | U68: 10 | V68: 10 | W68: 10
A69: d=number of years to start of design life for growth Period 1 | H69: 2 | I69: 2 | J69: 2 | K69: 2 | L69: 2 | M69: 2 | N69: 2 | O69: 2 | P69: 2 | Q69: 2 | R69: 2 | S69: 2 | T69: 2 | U69: 2 | V69: 2 | W69: 2
A70: a=average annual daily traffic loading in ESA/day (one way) at end of growth Period 1/ beginning of Period 2 | H70: =H66*((1+(H67/100))^(H68+H69)) -> 0 | I70: =I66*((1+(I67/100))^(I68+I69)) -> 0 | J70: 0 | K70: 0 | L70: 0 | M70: 0 | N70: 0 | O70: 0 | P70: 0 | Q70: 0 | R70: 0 | S70: 0 | T70: 0 | U70: 0 | V70: 0 | W70: 0 | X70: Growth Period 2
A71: b=annual growth rate (%) for growth Period 2 | H71: 4 | I71: 4 | J71: 4 | K71: 4 | L71: 4 | M71: 4 | N71: 4 | O71: 4 | P71: 4 | Q71: 4 | R71: 4 | S71: 4 | T71: 4 | U71: 4 | V71: 4 | W71: 4
A72: c=design life (years) for growth Period 2 | H72: 5 | I72: 5 | J72: 5 | K72: 5 | L72: 5 | M72: 5 | N72: 5 | O72: 5 | P72: 5 | Q72: 5 | R72: 5 | S72: 5 | T72: 5 | U72: 5 | V72: 5 | W72: 5
A73: a=average annual daily traffic loading in ESA/day (one way) at end of growth Period 2/ beginning of Period 3 | H73: =H70*((1+(H71/100))^(H72)) -> 0 | I73: =I70*((1+(I71/100))^(I72)) -> 0 | J73: 0 | K73: 0 | L73: 0 | M73: 0 | N73: 0 | O73: 0 | P73: 0 | Q73: 0 | R73: 0 | S73: 0 | T73: 0 | U73: 0 | V73: 0 | W73: 0 | X73: Growth Period 3
A74: b=annual growth rate (%) for growth Period 3 | H74: 3 | I74: 3 | J74: 3 | K74: 3 | L74: 3 | M74: 3 | N74: 3 | O74: 3 | P74: 3 | Q74: 3 | R74: 3 | S74: 3 | T74: 3 | U74: 3 | V74: 3 | W74: 3
A75: c=design life (years) for growth Period 3 | H75: 5 | I75: 5 | J75: 5 | K75: 5 | L75: 5 | M75: 5 | N75: 5 | O75: 5 | P75: 5 | Q75: 5 | R75: 5 | S75: 5 | T75: 5 | U75: 5 | V75: 5 | W75: 5
A76: Total Cummulative MESA by Truck Type (one way) | H76: =(((H66*365*100/H67)*(((1+(H67/100))^(H68+H69))-((1+(H67/100))^H69)))/1000000)+(((H70*365*100/H71)*(((1+(H71/100))^H72)-(1)))/1000000)+(((H73*365*100/H74)*(((1+(H74/100))^H75)-(1)))/1000000) -> 0 | I76: =(((I66*365*100/I67)*(((1+(I67/100))^(I68+I69))-((1+(I67/100))^I69)))/1000000)+(((I70*365*100/I71)*(((1+(I71/100))^I72)-(1)))/1000000)+(((I73*365*100/I74)*(((1+(I74/100))^I75)-(1)))/1000000) -> 0 | J76: 0 | K76: 0 | L76: 0 | M76: 0 | N76: 0 | O76: 0 | P76: 0 | Q76: 0 | R76: 0 | S76: 0 | T76: 0 | U76: 0 | V76: 0 | W76: 0 | X76: MESA
A77: Total Cummulative Design MESA (one way) | H77: =SUM(H76:W76) -> 0
A80: Pavement Design MESA Direction 2 | D80: =H77 -> 0
A84: Determinant MESA Direction 2 | D84: =IF(D39>D80,D39,D80) -> 24.31860939

Sheet 13 Uniform Sections-CUSUMs
B2: Chainage | C2: CBR or other property | D2: Value less mean | E2: Cumulative Sums (CUSUMS)
B3: 0.5 | C3: 7 | D3: =IF(C3>0,C3-$C$504,0) -> -0.625 | E3: =D3 -> -0.625
B4: 1 | C4: 6 | D4: =IF(C4>0,C4-$C$504,0) -> -1.625 | E4: =D4+E3 -> -2.25
B5: 1.5 | C5: 9 | D5: 1.375 | E5: =D5+E4 -> -0.875
B6: 2 | C6: 7 | D6: -0.625 | E6: =D6+E5 -> -1.5
B7: 2.5 | C7: 7 | D7: -0.625 | E7: -2.125
B8: 3 | C8: 10 | D8: 2.375 | E8: 0.25
B9: 3.5 | C9: 8 | D9: 0.375 | E9: 0.625
B10: 4 | C10: 6 | D10: -1.625 | E10: -1
B11: 4.5 | C11: 9 | D11: 1.375 | E11: 0.375
B12: 5 | C12: 7 | D12: -0.625 | E12: -0.25
B13: 5.5 | C13: 7 | D13: -0.625 | E13: -0.875
B14: 6 | C14: 7 | D14: -0.625 | E14: -1.5
B15: 6.5 | C15: 8 | D15: 0.375 | E15: -1.125
B16: 7 | C16: 11 | D16: 3.375 | E16: 2.25
B17: 7.5 | C17: 11 | D17: 3.375 | E17: 5.625
B18: 8 | C18: 10 | D18: 2.375 | E18: 8
B19: 8.5 | C19: 11 | D19: 3.375 | E19: 11.375
B20: 9 | C20: 13 | D20: 5.375 | E20: 16.75
B21: 9.5 | C21: 13 | D21: 5.375 | E21: 22.125
B22: 10 | C22: 12 | D22: 4.375 | E22: 26.5
B23: 10.5 | C23: 10 | D23: 2.375 | E23: 28.875
B24: 11 | C24: 13 | D24: 5.375 | E24: 34.25
B25: 11.5 | C25: 4 | D25: -3.625 | E25: 30.625 | G25: Coefficient of Variation (CoV)
B26: 12 | C26: 5 | D26: -2.625 | E26: 28 | G26: Section | H26: Start Chainage | I26: End Chainage | J26: CoV (%) | L26: CoV=(Standard deviation of the values in that section)/(Mean of the values of that sections)
B27: 12.5 | C27: 6 | D27: -1.625 | E27: 26.375 | G27: 1
B28: 13 | C28: 4 | D28: -3.625 | E28: 22.75 | G28: 2 | L28: CoV< 0.2 represents good homogeneity
B29: 13.5 | C29: 3 | D29: -4.625 | E29: 18.125 | G29: 3 | L29: 0.2<CoV<0.3 represents moderate homogeneity
B30: 14 | C30: 3 | D30: -4.625 | E30: 13.5 | G30: 4 | L30: CoV> 0.3 poor homogeneity
B31: 14.5 | C31: 6 | D31: -1.625 | E31: 11.875 | G31: 5
B32: 15 | C32: 4 | D32: -3.625 | E32: 8.25
B33: 15.5 | C33: 3 | D33: -4.625 | E33: 3.625
B34: 16 | C34: 4 | D34: -3.625 | E34: 0
D35: 0 | E35: 0 | L35: CoV< 0.2 | M35: represents good homogeneity
D36: 0 | E36: 0 | L36: 0.2<CoV<0.3 | M36: represents moderate homogeneity
D37: 0 | E37: 0 | L37: CoV> 0.3 poor homogeneity | M37: poor homogeneity
D38: 0 | E38: 0
D39: 0 | E39: 0
D40: 0 | E40: 0
D41: 0 | E41: 0
D42: 0 | E42: 0
D43: 0 | E43: 0
D44: 0 | E44: 0
D45: 0 | E45: 0
D46: 0 | E46: 0
D47: 0 | E47: 0
D48: 0 | E48: 0
D49: 0 | E49: 0
D50: 0 | E50: 0
D51: 0 | E51: 0
D52: 0 | E52: 0
D53: 0 | E53: 0
D54: 0 | E54: 0
D55: 0 | E55: 0
D56: 0 | E56: 0
D57: 0 | E57: 0
D58: 0 | E58: 0
D59: 0 | E59: 0
D60: 0 | E60: 0
D61: 0 | E61: 0
D62: 0 | E62: 0
D63: 0 | E63: 0
D64: 0 | E64: 0
D65: 0 | E65: 0
D66: 0 | E66: 0
D67: 0 | E67: 0
D68: =IF(C68>0,C68-$C$504,0) -> 0 | E68: 0
D69: 0 | E69: 0
D70: 0 | E70: =D70+E69 -> 0
D71: 0 | E71: 0
D72: 0 | E72: 0
D73: 0 | E73: 0
D74: 0 | E74: 0
D75: 0 | E75: 0
D76: 0 | E76: 0
D77: 0 | E77: 0
D78: 0 | E78: 0
D79: 0 | E79: 0
D80: 0 | E80: 0
D81: 0 | E81: 0
D82: 0 | E82: 0
D83: 0 | E83: 0
D84: 0 | E84: 0
D85: 0 | E85: 0
D86: 0 | E86: 0
D87: 0 | E87: 0
D88: 0 | E88: 0
D89: 0 | E89: 0
D90: 0 | E90: 0
D91: 0 | E91: 0
D92: 0 | E92: 0
D93: 0 | E93: 0
D94: 0 | E94: 0
D95: 0 | E95: 0
D96: 0 | E96: 0
D97: 0 | E97: 0
D98: 0 | E98: 0
D99: 0 | E99: 0
D100: 0 | E100: 0
D101: 0 | E101: 0
D102: 0 | E102: 0
D103: 0 | E103: 0
D104: 0 | E104: 0
D105: 0 | E105: 0
D106: 0 | E106: 0
D107: 0 | E107: 0
D108: 0 | E108: 0
D109: 0 | E109: 0
D110: 0 | E110: 0
D111: 0 | E111: 0
D112: 0 | E112: 0
D113: 0 | E113: 0
D114: 0 | E114: 0
D115: 0 | E115: 0
D116: 0 | E116: 0
D117: 0 | E117: 0
D118: 0 | E118: 0
D119: 0 | E119: 0
D120: 0 | E120: 0
D121: 0 | E121: 0
D122: 0 | E122: 0
D123: 0 | E123: 0
D124: 0 | E124: 0
D125: 0 | E125: 0
D126: 0 | E126: 0
D127: 0 | E127: 0
D128: 0 | E128: 0
D129: 0 | E129: 0
D130: 0 | E130: 0
D131: 0 | E131: 0
D132: =IF(C132>0,C132-$C$504,0) -> 0 | E132: 0
D133: 0 | E133: 0
D134: 0 | E134: =D134+E133 -> 0
D135: 0 | E135: 0
D136: 0 | E136: 0
D137: 0 | E137: 0
D138: 0 | E138: 0
D139: 0 | E139: 0
D140: 0 | E140: 0
D141: 0 | E141: 0
D142: 0 | E142: 0
D143: 0 | E143: 0
D144: 0 | E144: 0
D145: 0 | E145: 0
D146: 0 | E146: 0
D147: 0 | E147: 0
D148: 0 | E148: 0
D149: 0 | E149: 0
D150: 0 | E150: 0
D151: 0 | E151: 0
D152: 0 | E152: 0
D153: 0 | E153: 0
D154: 0 | E154: 0
D155: 0 | E155: 0
D156: 0 | E156: 0
D157: 0 | E157: 0
D158: 0 | E158: 0
D159: 0 | E159: 0
D160: 0 | E160: 0
D161: 0 | E161: 0
D162: 0 | E162: 0
D163: 0 | E163: 0
D164: 0 | E164: 0
D165: 0 | E165: 0
D166: 0 | E166: 0
D167: 0 | E167: 0
D168: 0 | E168: 0
D169: 0 | E169: 0
D170: 0 | E170: 0
D171: 0 | E171: 0
D172: 0 | E172: 0
D173: 0 | E173: 0
D174: 0 | E174: 0
D175: 0 | E175: 0
D176: 0 | E176: 0
D177: 0 | E177: 0
D178: 0 | E178: 0
D179: 0 | E179: 0
D180: 0 | E180: 0
D181: 0 | E181: 0
D182: 0 | E182: 0
D183: 0 | E183: 0
D184: 0 | E184: 0
D185: 0 | E185: 0
D186: 0 | E186: 0
D187: 0 | E187: 0
D188: 0 | E188: 0
D189: 0 | E189: 0
D190: 0 | E190: 0
D191: 0 | E191: 0
D192: 0 | E192: 0
D193: 0 | E193: 0
D194: 0 | E194: 0
D195: 0 | E195: 0
D196: =IF(C196>0,C196-$C$504,0) -> 0 | E196: 0
D197: 0 | E197: 0
D198: 0 | E198: =D198+E197 -> 0
D199: 0 | E199: 0
D200: 0 | E200: 0
D201: 0 | E201: 0
... 303 more rows

Sheet 14 Flexible Pavement Structure
F1: Subgrade Class | G1: CBR (%) | Q1: Traffic Class | R1: MESA | V1: Foundation Select
A2: Chainage | B2: Subgrade CBR (%) | C2: Percentile | D2: 0.05 | F2: S1 | G2: <3 | H2: 2.9 | J2: Native Subgrade Class | K2: Capping | O2: Foundation Class | Q2: T1 | R2: ≤0.3 | S2: 0.3 | V2: F1 (S3)
A3: 0.5 | B3: 7 | F3: S2 | G3: 3-4 | H3: 4 | K3: Layer 1 | M3: Layer 2 | Q3: T2 | R3: 0.3-0.7 | S3: 0.7 | V3: F2 (S4)
A4: 1 | B4: 6 | F4: S3 | G4: 5-7 | H4: 7 | K4: Material | L4: Thickness(mm) | M4: Material | N4: Thickness(mm) | Q4: T3 | R4: 0.7-1.5 | S4: 1.5 | V4: F3 (S5)
A5: 1.5 | B5: 9 | F5: S4 | G5: 8-14 | H5: 14 | J5: S1 | K5: G8 | L5: 425 | O5: F1 (S3) | P5: =_xlfn.CONCAT(J5,"-",O5,) -> S1-F1 (S3) | Q5: T4 | R5: 1.5-3.0 | S5: 3 | V5: F4 (S6)
A6: 2 | B6: 7 | F6: S5 | G6: 15-30 | H6: 30 | J6: S1 | K6: G8 | L6: 200 | M6: GC | N6: 150 | O6: F1 (S3) | P6: =_xlfn.CONCAT(J6,"-",O6,) -> S1-F1 (S3) | Q6: T5 | R6: 3.0-6.0 | S6: 6
A7: 2.5 | B7: 7 | F7: S6 | G7: ≥30 | H7: 9999999 | J7: S1 | K7: GC | L7: 300 | O7: F1 (S3) | P7: S1-F1 (S3) | Q7: T6 | R7: 6.0-10.0 | S7: 10
A8: 3 | B8: 10 | J8: S1 | K8: G8 | L8: 275 | M8: GC | N8: 200 | O8: F2 (S4) | P8: S1-F2 (S4) | Q8: T7 | R8: 10.0-17.0 | S8: 17
A9: 3.5 | B9: 8 | J9: S1 | K9: GC | L9: 375 | O9: F2 (S4) | P9: S1-F2 (S4) | Q9: T8 | R9: 17.0-30.0 | S9: 30
A10: 4 | B10: 6 | J10: S1 | K10: GC | L10: 300 | M10: GS2 | N10: 175 | O10: F3 (S5) | P10: S1-F3 (S5) | Q10: T9 | R10: 30.0-50.0 | S10: 50
A11: 4.5 | B11: 9 | F11: Design Subgrade Strength | G11: =IF(B101="","",B101) -> 6 | J11: S1 | K11: GS2 | L11: 225 | O11: F3 (S5) | P11: S1-F3 (S5) | Q11: T10 | R11: 50.0-80.0+ | S11: 999999
A12: 5 | B12: 7 | F12: Design Subgrade Class | G12: =_xlfn.XLOOKUP(G11,H2:H7,F2:F7,,1) -> S3 | J12: S2 | K12: GC | L12: 150 | O12: F1 (S3) | P12: S2-F1 (S3)
A13: 5.5 | B13: 7 | J13: S2 | K13: GC | L13: 250 | O13: F2 (S4) | P13: S2-F2 (S4)
A14: 6 | B14: 7 | F14: Foundation Class | G14: F2 (S4) | H14: =_xlfn.CONCAT(G12,"-",G14) -> S3-F2 (S4) | J14: S2 | K14: GC | L14: 350 | O14: F3 (S5) | P14: S2-F3 (S5)
A15: 6.5 | B15: 8 | F15: =IF(ISERROR(_xlfn.XLOOKUP(H14,P5:P20,P5:P20)),"No capping required","") ->  | J15: S2 | K15: GS2 | L15: 400 | O15: F4 (S6) | P15: S2-F4 (S6) | Q15: Design Traffic MESA | R15: =MAX('3 Design MESA Direction 1'!D66,'6 Design MESA Direction 2'!D66,'9 Design MESA Direction 1-SS'!D84,'12 Design MESA Direction 2-SS'!D84) -> 51
F16: =IF(G12="S6","S6 calculated, F4 (S6) should be used","") ->  | J16: S3 | K16: GC | L16: 150 | O16: F2 (S4) | P16: S3-F2 (S4) | Q16: Design Traffic Class | R16: =IF(R15="-","-",_xlfn.XLOOKUP(R15,S2:S12,Q2:Q12,"-",1)) -> T10
J17: S3 | K17: GC | L17: 225 | O17: F3 (S5) | P17: S3-F3 (S5)
J18: S3 | K18: GS2 | L18: 275 | O18: F4 (S6) | P18: S3-F4 (S6)
J19: S4 | K19: GS2 | L19: 200 | O19: F4 (S6) | P19: S4-F4 (S6)
J20: S5 | K20: GS2 | L20: 150 | O20: F4 (S6) | P20: S5-F4 (S6)
F22: Capping layer
F23: Layer 1 | H23: Layer 2
F24: Material | G24: Thickness(mm) | H24: Material | I24: Thickness(mm)
F25: =IFERROR(IF($F$15="No capping required",$F$15,_xlfn.XLOOKUP($H$14,$P$5:$P$20,K$5:K$20)),"Select foundation") -> GC | G25: =IFERROR(_xlfn.XLOOKUP($H$14,$P$5:$P$20,L$5:L$20),"") -> 150 | H25: =IFERROR(IF($F$15="No capping required",$F$15,_xlfn.XLOOKUP($H$14,$P$5:$P$20,M$5:M$20)),"Select foundation") -> 0 | I25: =IFERROR(_xlfn.XLOOKUP($H$14,$P$5:$P$20,N$5:N$20),"") -> 0
F28: Possible Design Structures
F29: Chart | G29: Surfacing | H29: Wearing Course | I29: Binder Course | J29: Roadbase | K29: Sub-base
F30: Chart A1 | G30: =_xlfn.XLOOKUP(_xlfn.CONCAT($F30,"-",$R$16,"-",$G$14),'24 Table B'!$A:$A,'24 Table B'!F:F,".",0) -> . | H30: =_xlfn.XLOOKUP(_xlfn.CONCAT($F30,"-",$R$16,"-",$G$14),'24 Table B'!$A:$A,'24 Table B'!G:G,".",0) -> . | I30: =_xlfn.XLOOKUP(_xlfn.CONCAT($F30,"-",$R$16,"-",$G$14),'24 Table B'!$A:$A,'24 Table B'!H:H,".",0) -> . | J30: =_xlfn.XLOOKUP(_xlfn.CONCAT($F30,"-",$R$16,"-",$G$14),'24 Table B'!$A:$A,'24 Table B'!I:I,".",0) -> . | K30: =_xlfn.XLOOKUP(_xlfn.CONCAT($F30,"-",$R$16,"-",$G$14),'24 Table B'!$A:$A,'24 Table B'!J:J,".",0) -> .
F31: Chart A2 | G31: =_xlfn.XLOOKUP(_xlfn.CONCAT($F31,"-",$R$16,"-",$G$14),'24 Table B'!$A:$A,'24 Table B'!F:F,".",0) -> . | H31: =_xlfn.XLOOKUP(_xlfn.CONCAT($F31,"-",$R$16,"-",$G$14),'24 Table B'!$A:$A,'24 Table B'!G:G,".",0) -> . | I31: =_xlfn.XLOOKUP(_xlfn.CONCAT($F31,"-",$R$16,"-",$G$14),'24 Table B'!$A:$A,'24 Table B'!H:H,".",0) -> . | J31: =_xlfn.XLOOKUP(_xlfn.CONCAT($F31,"-",$R$16,"-",$G$14),'24 Table B'!$A:$A,'24 Table B'!I:I,".",0) -> . | K31: =_xlfn.XLOOKUP(_xlfn.CONCAT($F31,"-",$R$16,"-",$G$14),'24 Table B'!$A:$A,'24 Table B'!J:J,".",0) -> .
F32: Chart A3 | G32: =_xlfn.XLOOKUP(_xlfn.CONCAT($F32,"-",$R$16,"-",$G$14),'24 Table B'!$A:$A,'24 Table B'!F:F,".",0) -> . | H32: =_xlfn.XLOOKUP(_xlfn.CONCAT($F32,"-",$R$16,"-",$G$14),'24 Table B'!$A:$A,'24 Table B'!G:G,".",0) -> . | I32: =_xlfn.XLOOKUP(_xlfn.CONCAT($F32,"-",$R$16,"-",$G$14),'24 Table B'!$A:$A,'24 Table B'!H:H,".",0) -> . | J32: =_xlfn.XLOOKUP(_xlfn.CONCAT($F32,"-",$R$16,"-",$G$14),'24 Table B'!$A:$A,'24 Table B'!I:I,".",0) -> . | K32: =_xlfn.XLOOKUP(_xlfn.CONCAT($F32,"-",$R$16,"-",$G$14),'24 Table B'!$A:$A,'24 Table B'!J:J,".",0) -> .
F33: Chart B | G33: =_xlfn.XLOOKUP(_xlfn.CONCAT($F33,"-",$R$16,"-",$G$14),'24 Table B'!$A:$A,'24 Table B'!F:F,".",0) -> . | H33: =_xlfn.XLOOKUP(_xlfn.CONCAT($F33,"-",$R$16,"-",$G$14),'24 Table B'!$A:$A,'24 Table B'!G:G,".",0) -> . | I33: =_xlfn.XLOOKUP(_xlfn.CONCAT($F33,"-",$R$16,"-",$G$14),'24 Table B'!$A:$A,'24 Table B'!H:H,".",0) -> . | J33: =_xlfn.XLOOKUP(_xlfn.CONCAT($F33,"-",$R$16,"-",$G$14),'24 Table B'!$A:$A,'24 Table B'!I:I,".",0) -> . | K33: =_xlfn.XLOOKUP(_xlfn.CONCAT($F33,"-",$R$16,"-",$G$14),'24 Table B'!$A:$A,'24 Table B'!J:J,".",0) -> .
F34: Chart C1 | G34: =_xlfn.XLOOKUP(_xlfn.CONCAT($F34,"-",$R$16,"-",$G$14),'24 Table B'!$A:$A,'24 Table B'!F:F,".",0) -> . | H34: =_xlfn.XLOOKUP(_xlfn.CONCAT($F34,"-",$R$16,"-",$G$14),'24 Table B'!$A:$A,'24 Table B'!G:G,".",0) -> . | I34: =_xlfn.XLOOKUP(_xlfn.CONCAT($F34,"-",$R$16,"-",$G$14),'24 Table B'!$A:$A,'24 Table B'!H:H,".",0) -> . | J34: =_xlfn.XLOOKUP(_xlfn.CONCAT($F34,"-",$R$16,"-",$G$14),'24 Table B'!$A:$A,'24 Table B'!I:I,".",0) -> . | K34: =_xlfn.XLOOKUP(_xlfn.CONCAT($F34,"-",$R$16,"-",$G$14),'24 Table B'!$A:$A,'24 Table B'!J:J,".",0) -> .
F35: Chart C2 | G35: =_xlfn.XLOOKUP(_xlfn.CONCAT($F35,"-",$R$16,"-",$G$14),'24 Table B'!$A:$A,'24 Table B'!F:F,".",0) -> - | H35: =_xlfn.XLOOKUP(_xlfn.CONCAT($F35,"-",$R$16,"-",$G$14),'24 Table B'!$A:$A,'24 Table B'!G:G,".",0) -> 40 HMA | I35: =_xlfn.XLOOKUP(_xlfn.CONCAT($F35,"-",$R$16,"-",$G$14),'24 Table B'!$A:$A,'24 Table B'!H:H,".",0) -> 60 DBM | J35: =_xlfn.XLOOKUP(_xlfn.CONCAT($F35,"-",$R$16,"-",$G$14),'24 Table B'!$A:$A,'24 Table B'!I:I,".",0) -> 175 GB1/MAC/BSM | K35: =_xlfn.XLOOKUP(_xlfn.CONCAT($F35,"-",$R$16,"-",$G$14),'24 Table B'!$A:$A,'24 Table B'!J:J,".",0) -> 250 CB1
F36: Chart D | G36: =_xlfn.XLOOKUP(_xlfn.CONCAT($F36,"-",$R$16,"-",$G$14),'24 Table B'!$A:$A,'24 Table B'!F:F,".",0) -> - | H36: =_xlfn.XLOOKUP(_xlfn.CONCAT($F36,"-",$R$16,"-",$G$14),'24 Table B'!$A:$A,'24 Table B'!G:G,".",0) -> 50 HMA | I36: =_xlfn.XLOOKUP(_xlfn.CONCAT($F36,"-",$R$16,"-",$G$14),'24 Table B'!$A:$A,'24 Table B'!H:H,".",0) -> 75 DBM/SMA/EME2 | J36: =_xlfn.XLOOKUP(_xlfn.CONCAT($F36,"-",$R$16,"-",$G$14),'24 Table B'!$A:$A,'24 Table B'!I:I,".",0) -> 300 GB1/MAC/BSM | K36: =_xlfn.XLOOKUP(_xlfn.CONCAT($F36,"-",$R$16,"-",$G$14),'24 Table B'!$A:$A,'24 Table B'!J:J,".",0) -> 250 CB1
A101: Percentile CBR Value | B101: =IFERROR(_xlfn.PERCENTILE.INC(B3:B100,D2),"-") -> 6

Sheet 15 Flexible Pavement Struct 2
F1: Subgrade Class | G1: CBR (%) | Q1: Traffic Class | R1: MESA | V1: Foundation Select
A2: Chainage | B2: Subgrade CBR (%) | C2: Percentile | D2: 0.05 | F2: S1 | G2: <3 | H2: 2 | J2: Native Subgrade Class | K2: Capping | O2: Foundation Class | Q2: T1 | R2: ≤0.3 | S2: 0.3 | V2: F1 (S3)
A3: 10 | B3: 10 | F3: S2 | G3: 3-4 | H3: 4 | K3: Layer 1 | M3: Layer 2 | Q3: T2 | R3: 0.3-0.7 | S3: 0.7 | V3: F2 (S4)
A4: 20 | B4: 12 | F4: S3 | G4: 5-7 | H4: 7 | K4: Material | L4: Thickness(mm) | M4: Material | N4: Thickness(mm) | Q4: T3 | R4: 0.7-1.5 | S4: 1.5 | V4: F3 (S5)
A5: 30 | B5: 14 | F5: S4 | G5: 8-14 | H5: 14 | J5: S1 | K5: G8 | L5: 425 | O5: F1 (S3) | P5: =_xlfn.CONCAT(J5,"-",O5,) -> S1-F1 (S3) | Q5: T4 | R5: 1.5-3.0 | S5: 3 | V5: F4 (S6)
A6: 40 | B6: 8 | F6: S5 | G6: 15-29 | H6: 29 | J6: S1 | K6: G8 | L6: 200 | M6: GC | N6: 150 | O6: F1 (S3) | P6: =_xlfn.CONCAT(J6,"-",O6,) -> S1-F1 (S3) | Q6: T5 | R6: 3.0-6.0 | S6: 6
A7: 50 | B7: 20 | F7: S6 | G7: ≥30 | H7: 9999999 | J7: S1 | K7: GC | L7: 300 | O7: F1 (S3) | P7: S1-F1 (S3) | Q7: T6 | R7: 6.0-10.0 | S7: 10
A8: 60 | B8: 1 | J8: S1 | K8: G8 | L8: 275 | M8: GC | N8: 200 | O8: F2 (S4) | P8: S1-F2 (S4) | Q8: T7 | R8: 10.0-17.0 | S8: 17
A9: 70 | B9: 1 | J9: S1 | K9: GC | L9: 375 | O9: F2 (S4) | P9: S1-F2 (S4) | Q9: T8 | R9: 17.0-30.0 | S9: 30
J10: S1 | K10: GC | L10: 300 | M10: GS2 | N10: 175 | O10: F3 (S5) | P10: S1-F3 (S5) | Q10: T9 | R10: 30.0-50.0 | S10: 50
F11: Design Subgrade Strength | G11: 4 | J11: S1 | K11: GS2 | L11: 225 | O11: F3 (S5) | P11: S1-F3 (S5) | Q11: T10 | R11: 50.0-80.0+ | S11: 99999
F12: Design Subgrade Class | G12: S3 | J12: S2 | K12: GC | L12: 150 | O12: F1 (S3) | P12: S2-F1 (S3)
J13: S2 | K13: GC | L13: 250 | O13: F2 (S4) | P13: S2-F2 (S4)
F14: Foundation Class | G14: F2 (S4) | H14: =_xlfn.CONCAT(G12,"-",G14) -> S3-F2 (S4) | J14: S2 | K14: GC | L14: 350 | O14: F3 (S5) | P14: S2-F3 (S5)
F15: =IF(ISERROR(_xlfn.XLOOKUP(H14,P5:P20,P5:P20)),"No capping required","") ->  | J15: S2 | K15: GS2 | L15: 400 | O15: F4 (S6) | P15: S2-F4 (S6) | Q15: Design Traffic MESA | R15: 51
F16: =IF(G12="S6","S6 calculated, F4 (S6) should be used","") ->  | J16: S3 | K16: GC | L16: 150 | O16: F2 (S4) | P16: S3-F2 (S4) | Q16: Design Traffic Class | R16: T10
J17: S3 | K17: GC | L17: 225 | O17: F3 (S5) | P17: S3-F3 (S5)
J18: S3 | K18: GS2 | L18: 275 | O18: F4 (S6) | P18: S3-F4 (S6)
J19: S4 | K19: GS2 | L19: 200 | O19: F4 (S6) | P19: S4-F4 (S6)
J20: S5 | K20: GS2 | L20: 150 | O20: F4 (S6) | P20: S5-F4 (S6)
F22: Capping layer
F23: Layer 1 | H23: Layer 2
F24: Material | G24: Thickness(mm) | H24: Material | I24: Thickness(mm)
F25: =IFERROR(IF($F$15="No capping required",$F$15,_xlfn.XLOOKUP($H$14,$P$5:$P$20,K$5:K$20)),"Select foundation") -> GC | G25: =IFERROR(_xlfn.XLOOKUP($H$14,$P$5:$P$20,L$5:L$20),"") -> 150 | H25: =IFERROR(IF($F$15="No capping required",$F$15,_xlfn.XLOOKUP($H$14,$P$5:$P$20,M$5:M$20)),"Select foundation") -> 0 | I25: =IFERROR(_xlfn.XLOOKUP($H$14,$P$5:$P$20,N$5:N$20),"") -> 0
F28: Possible Design Structures
F29: Chart | G29: Surfacing | H29: Wearing Course | I29: Binder Course | J29: Roadbase | K29: Sub-base
F30: Chart A1 | G30: =_xlfn.XLOOKUP(_xlfn.CONCAT($F30,"-",$R$16,"-",$G$14),'24 Table B'!$A:$A,'24 Table B'!F:F,".",0) -> . | H30: =_xlfn.XLOOKUP(_xlfn.CONCAT($F30,"-",$R$16,"-",$G$14),'24 Table B'!$A:$A,'24 Table B'!G:G,".",0) -> . | I30: =_xlfn.XLOOKUP(_xlfn.CONCAT($F30,"-",$R$16,"-",$G$14),'24 Table B'!$A:$A,'24 Table B'!H:H,".",0) -> . | J30: =_xlfn.XLOOKUP(_xlfn.CONCAT($F30,"-",$R$16,"-",$G$14),'24 Table B'!$A:$A,'24 Table B'!I:I,".",0) -> . | K30: =_xlfn.XLOOKUP(_xlfn.CONCAT($F30,"-",$R$16,"-",$G$14),'24 Table B'!$A:$A,'24 Table B'!J:J,".",0) -> .
F31: Chart A2 | G31: =_xlfn.XLOOKUP(_xlfn.CONCAT($F31,"-",$R$16,"-",$G$14),'24 Table B'!$A:$A,'24 Table B'!F:F,".",0) -> . | H31: =_xlfn.XLOOKUP(_xlfn.CONCAT($F31,"-",$R$16,"-",$G$14),'24 Table B'!$A:$A,'24 Table B'!G:G,".",0) -> . | I31: =_xlfn.XLOOKUP(_xlfn.CONCAT($F31,"-",$R$16,"-",$G$14),'24 Table B'!$A:$A,'24 Table B'!H:H,".",0) -> . | J31: =_xlfn.XLOOKUP(_xlfn.CONCAT($F31,"-",$R$16,"-",$G$14),'24 Table B'!$A:$A,'24 Table B'!I:I,".",0) -> . | K31: =_xlfn.XLOOKUP(_xlfn.CONCAT($F31,"-",$R$16,"-",$G$14),'24 Table B'!$A:$A,'24 Table B'!J:J,".",0) -> .
F32: Chart A3 | G32: =_xlfn.XLOOKUP(_xlfn.CONCAT($F32,"-",$R$16,"-",$G$14),'24 Table B'!$A:$A,'24 Table B'!F:F,".",0) -> . | H32: =_xlfn.XLOOKUP(_xlfn.CONCAT($F32,"-",$R$16,"-",$G$14),'24 Table B'!$A:$A,'24 Table B'!G:G,".",0) -> . | I32: =_xlfn.XLOOKUP(_xlfn.CONCAT($F32,"-",$R$16,"-",$G$14),'24 Table B'!$A:$A,'24 Table B'!H:H,".",0) -> . | J32: =_xlfn.XLOOKUP(_xlfn.CONCAT($F32,"-",$R$16,"-",$G$14),'24 Table B'!$A:$A,'24 Table B'!I:I,".",0) -> . | K32: =_xlfn.XLOOKUP(_xlfn.CONCAT($F32,"-",$R$16,"-",$G$14),'24 Table B'!$A:$A,'24 Table B'!J:J,".",0) -> .
F33: Chart B | G33: =_xlfn.XLOOKUP(_xlfn.CONCAT($F33,"-",$R$16,"-",$G$14),'24 Table B'!$A:$A,'24 Table B'!F:F,".",0) -> . | H33: =_xlfn.XLOOKUP(_xlfn.CONCAT($F33,"-",$R$16,"-",$G$14),'24 Table B'!$A:$A,'24 Table B'!G:G,".",0) -> . | I33: =_xlfn.XLOOKUP(_xlfn.CONCAT($F33,"-",$R$16,"-",$G$14),'24 Table B'!$A:$A,'24 Table B'!H:H,".",0) -> . | J33: =_xlfn.XLOOKUP(_xlfn.CONCAT($F33,"-",$R$16,"-",$G$14),'24 Table B'!$A:$A,'24 Table B'!I:I,".",0) -> . | K33: =_xlfn.XLOOKUP(_xlfn.CONCAT($F33,"-",$R$16,"-",$G$14),'24 Table B'!$A:$A,'24 Table B'!J:J,".",0) -> .
F34: Chart C1 | G34: =_xlfn.XLOOKUP(_xlfn.CONCAT($F34,"-",$R$16,"-",$G$14),'24 Table B'!$A:$A,'24 Table B'!F:F,".",0) -> . | H34: =_xlfn.XLOOKUP(_xlfn.CONCAT($F34,"-",$R$16,"-",$G$14),'24 Table B'!$A:$A,'24 Table B'!G:G,".",0) -> . | I34: =_xlfn.XLOOKUP(_xlfn.CONCAT($F34,"-",$R$16,"-",$G$14),'24 Table B'!$A:$A,'24 Table B'!H:H,".",0) -> . | J34: =_xlfn.XLOOKUP(_xlfn.CONCAT($F34,"-",$R$16,"-",$G$14),'24 Table B'!$A:$A,'24 Table B'!I:I,".",0) -> . | K34: =_xlfn.XLOOKUP(_xlfn.CONCAT($F34,"-",$R$16,"-",$G$14),'24 Table B'!$A:$A,'24 Table B'!J:J,".",0) -> .
F35: Chart C2 | G35: =_xlfn.XLOOKUP(_xlfn.CONCAT($F35,"-",$R$16,"-",$G$14),'24 Table B'!$A:$A,'24 Table B'!F:F,".",0) -> - | H35: =_xlfn.XLOOKUP(_xlfn.CONCAT($F35,"-",$R$16,"-",$G$14),'24 Table B'!$A:$A,'24 Table B'!G:G,".",0) -> 40 HMA | I35: =_xlfn.XLOOKUP(_xlfn.CONCAT($F35,"-",$R$16,"-",$G$14),'24 Table B'!$A:$A,'24 Table B'!H:H,".",0) -> 60 DBM | J35: =_xlfn.XLOOKUP(_xlfn.CONCAT($F35,"-",$R$16,"-",$G$14),'24 Table B'!$A:$A,'24 Table B'!I:I,".",0) -> 175 GB1/MAC/BSM | K35: =_xlfn.XLOOKUP(_xlfn.CONCAT($F35,"-",$R$16,"-",$G$14),'24 Table B'!$A:$A,'24 Table B'!J:J,".",0) -> 250 CB1
F36: Chart D | G36: =_xlfn.XLOOKUP(_xlfn.CONCAT($F36,"-",$R$16,"-",$G$14),'24 Table B'!$A:$A,'24 Table B'!F:F,".",0) -> - | H36: =_xlfn.XLOOKUP(_xlfn.CONCAT($F36,"-",$R$16,"-",$G$14),'24 Table B'!$A:$A,'24 Table B'!G:G,".",0) -> 50 HMA | I36: =_xlfn.XLOOKUP(_xlfn.CONCAT($F36,"-",$R$16,"-",$G$14),'24 Table B'!$A:$A,'24 Table B'!H:H,".",0) -> 75 DBM/SMA/EME2 | J36: =_xlfn.XLOOKUP(_xlfn.CONCAT($F36,"-",$R$16,"-",$G$14),'24 Table B'!$A:$A,'24 Table B'!I:I,".",0) -> 300 GB1/MAC/BSM | K36: =_xlfn.XLOOKUP(_xlfn.CONCAT($F36,"-",$R$16,"-",$G$14),'24 Table B'!$A:$A,'24 Table B'!J:J,".",0) -> 250 CB1
A101: Percentile CBR Value | B101: =IFERROR(_xlfn.PERCENTILE.INC(B3:B100,D2),"-") -> 1

Sheet 16 Axle Loads Concrete Dir-1 (hidden)
A1: Computation of design axle loading from axle load survey data
C2: Axle Load (tonnes)
A3: Direction | B3: Vehicle Class | C3: Axle 1 | D3: Axle 2 | E3: Axle 3 | F3: Axle 4 | G3: Axle 5 | H3: Axle 6 | I3: Axle 7 | J3: Axle 8 | K3: Axle 9 | L3: HVAGs Loads (tonnes) | AD3: SAST1 Axle Loads (kN) | BH3: SAST2 Axle Loads (kN) | CL3: SADT1 Axle Loads (kN) | DP3: SADT2 Axle Loads (kN) | ET3: TADT1 Axle Loads (kN) | FX3: TADT2 Axle Loads (kN) | HB3: TADT3 Axle Loads (kN) | IF3: TADT4 Axle Loads (kN) | JJ3: TADT5 Axle Loads (kN) | KN3: TAST1 Axle Loads (kN) | LR3: TAST2 Axle Loads (kN) | MV3: TAST3 Axle Loads (kN) | NZ3: TAST4 Axle Loads (kN) | PD3: TRDT1 Axle Loads (kN) | QM3: TRDT2 Axle Loads (kN) | RV3: TRST1 Axle Loads (kN) | TE3: TRST2 Axle Loads (kN) | UP3: SAST | US3: SADT | UV3: TAST | UY3: TADT | VB3: TRDT | VE3: TRST
